Workbook

Sheet fnd budget
S1: =VLOOKUP(orderCHA,charterinfo_a,4) -> 409
S2: =VLOOKUP(orderCHA,charterinfo_a,5) -> 201
S3: =VLOOKUP(orderCHA,charterinfo_a,6) -> 201
A5: F Y 2 1 F O U N D A T I O N B U D G E T
A6: =VLOOKUP(orderCHA,charterinfo_a,2) -> 409 - ALMA DEL MAR Charter School - NEW BEDFORD pupils
C7: Items | D7: - A L L P U P I L S | L7: - S P E C I A L P O P U L A T I O N I N C R E M E N T S
C8: Adj by
C9: Wage | D9: Pre- | E9: -- Kindergarten -- | G9: Elem- | H9: Jr High/ | I9: High | J9: Voca- | L9: Spec Ed In | M9: Spec Ed | O9: English Learners
C10: Fctr = w | D10: School | E10: Half | F10: Full | G10: entary | H10: Middle | I10: School | J10: tional | L10: (3.79% of total) | M10: Out | N10: PK-5 | O10: 6-8 | P10: 9-12 | Q10: EcoDis | S10: TOTAL**
A12: F O U N D A T I O N E N R O L L M E N T | D12: =VLOOKUP(VLOOKUP(orderCHA,charterinfo_a,3), rate_chafnd,3) -> 0 | E12: =VLOOKUP(VLOOKUP(orderCHA,charterinfo_a,3),rate_chafnd,4) -> 0 | F12: =VLOOKUP(VLOOKUP(orderCHA,charterinfo_a,3),rate_chafnd,5) -> 103 | G12: =VLOOKUP(VLOOKUP(orderCHA,charterinfo_a,3),rate_chafnd,6) -> 355 | H12: =VLOOKUP(VLOOKUP(orderCHA,charterinfo_a,3),rate_chafnd,7) -> 185 | I12: =VLOOKUP(VLOOKUP(orderCHA,charterinfo_a,3),rate_chafnd,8) -> 0 | J12: =VLOOKUP(VLOOKUP(orderCHA,charterinfo_a,3),rate_chafnd,9) -> 0 | L12: =VLOOKUP(VLOOKUP(orderCHA,charterinfo_a,3),rate_chafnd,10) -> 24.3697 | M12: =VLOOKUP(VLOOKUP(orderCHA,charterinfo_a,3),rate_chafnd,11) -> 0 | N12: =VLOOKUP(VLOOKUP(orderCHA,charterinfo_a,3),rate_chafnd,12) -> 184 | O12: =VLOOKUP(VLOOKUP(orderCHA,charterinfo_a,3),rate_chafnd,13) -> 18 | P12: =VLOOKUP(VLOOKUP(orderCHA,charterinfo_a,3),rate_chafnd,14) -> 0 | Q12: =VLOOKUP(VLOOKUP(orderCHA,charterinfo_a,3),rate_chafnd,15) -> 443 | S12: =VLOOKUP(VLOOKUP(orderCHA,charterinfo_a,3),rate_chafnd,16) -> 643
A14: 1 | B14: Administration | C14: w | D14: ='fnd base rates'!$C107*$D$28*D$12 -> 0 | E14: ='fnd base rates'!$C108*$D$28*E$12 -> 0 | F14: ='fnd base rates'!$C109*$D$28*F$12 -> 41172.19 | G14: ='fnd base rates'!$C110*$D$28*G$12 -> 141904.15 | H14: ='fnd base rates'!$C111*$D$28*H$12 -> 73950.05 | I14: ='fnd base rates'!$C112*$D$28*I$12 -> 0 | J14: ='fnd base rates'!$C113*$D$28*J$12 -> 0 | L14: ='fnd base rates'!$C114*$D$28*L$12 -> 67231.37206 | M14: ='fnd base rates'!$C115*$D$28*M$12 -> 0 | N14: ='fnd base rates'!$C116*$D$28*N$12 -> 16915.12 | O14: ='fnd base rates'!$C117*$D$28*O$12 -> 1730.88 | P14: ='fnd base rates'!$C118*$D$28*P$12 -> 0 | Q14: =VLOOKUP((VLOOKUP(VLOOKUP(orderCHA,charterinfo_a,3),rate_chafnd,18)+12),rate_basefnd,3)*$D$28*Q$12 -> 28148.22 | S14: =SUM(D14:Q14) -> 371051.9821
A15: 2 | B15: Instructional Leadership | C15: w | D15: ='fnd base rates'!$D107*$D$28*D$12 -> 0 | E15: ='fnd base rates'!$D108*$D$28*E$12 -> 0 | F15: ='fnd base rates'!$D109*$D$28*F$12 -> 74360.85 | G15: ='fnd base rates'!$D110*$D$28*G$12 -> 256292.25 | H15: ='fnd base rates'!$D111*$D$28*H$12 -> 133560.75 | I15: ='fnd base rates'!$D112*$D$28*I$12 -> 0 | J15: ='fnd base rates'!$D113*$D$28*J$12 -> 0 | L15: ='fnd base rates'!$D114*$D$28*L$12 -> 0 | M15: ='fnd base rates'!$D115*$D$28*M$12 -> 0 | N15: ='fnd base rates'!$D116*$D$28*N$12 -> 29601.92 | O15: ='fnd base rates'!$D117*$D$28*O$12 -> 3028.86 | P15: ='fnd base rates'!$D118*$D$28*P$12 -> 0 | Q15: =VLOOKUP((VLOOKUP(VLOOKUP(orderCHA,charterinfo_a,3),rate_chafnd,18)+12),rate_basefnd,4)*$D$28*Q$12 -> 133369.58 | S15: 630214.21
A16: 3 | B16: Classroom and Specialist Teachers | C16: w | D16: ='fnd base rates'!$E107*$D$28*D$12 -> 0 | E16: ='fnd base rates'!$E108*$D$28*E$12 -> 0 | F16: ='fnd base rates'!$E109*$D$28*F$12 -> 340966.05 | G16: ='fnd base rates'!$E110*$D$28*G$12 -> 1175160.05 | H16: ='fnd base rates'!$E111*$D$28*H$12 -> 538921.65 | I16: ='fnd base rates'!$E112*$D$28*I$12 -> 0 | J16: ='fnd base rates'!$E113*$D$28*J$12 -> 0 | L16: ='fnd base rates'!$E114*$D$28*L$12 -> 221846.3959 | M16: ='fnd base rates'!$E115*$D$28*M$12 -> 0 | N16: ='fnd base rates'!$E116*$D$28*N$12 -> 207198.72 | O16: ='fnd base rates'!$E117*$D$28*O$12 -> 21201.84 | P16: ='fnd base rates'!$E118*$D$28*P$12 -> 0 | Q16: =VLOOKUP((VLOOKUP(VLOOKUP(orderCHA,charterinfo_a,3),rate_chafnd,18)+12),rate_basefnd,5)*$D$28*Q$12 -> 1301959.28 | S16: 3807253.986
A17: 4 | B17: Other Teaching Services | C17: w | D17: ='fnd base rates'!$F107*$D$28*D$12 -> 0 | E17: ='fnd base rates'!$F108*$D$28*E$12 -> 0 | F17: ='fnd base rates'!$F109*$D$28*F$12 -> 87451.12 | G17: ='fnd base rates'!$F110*$D$28*G$12 -> 301409.2 | H17: ='fnd base rates'!$F111*$D$28*H$12 -> 113068.3 | I17: ='fnd base rates'!$F112*$D$28*I$12 -> 0 | J17: ='fnd base rates'!$F113*$D$28*J$12 -> 0 | L17: ='fnd base rates'!$F114*$D$28*L$12 -> 207134.8954 | M17: ='fnd base rates'!$F115*$D$28*M$12 -> 0 | N17: ='fnd base rates'!$F116*$D$28*N$12 -> 29601.92 | O17: ='fnd base rates'!$F117*$D$28*O$12 -> 3028.86 | P17: ='fnd base rates'!$F118*$D$28*P$12 -> 0 | Q17: =VLOOKUP((VLOOKUP(VLOOKUP(orderCHA,charterinfo_a,3),rate_chafnd,18)+12),rate_basefnd,6)*$D$28*Q$12 -> 0 | S17: 741694.2954
A18: 5 | B18: Professional Development | C18: w | D18: ='fnd base rates'!$G107*$D$28*D$12 -> 0 | E18: ='fnd base rates'!$G108*$D$28*E$12 -> 0 | F18: ='fnd base rates'!$G109*$D$28*F$12 -> 13490.94 | G18: ='fnd base rates'!$G110*$D$28*G$12 -> 46505 | H18: ='fnd base rates'!$G111*$D$28*H$12 -> 26271.85 | I18: ='fnd base rates'!$G112*$D$28*I$12 -> 0 | J18: ='fnd base rates'!$G113*$D$28*J$12 -> 0 | L18: ='fnd base rates'!$G114*$D$28*L$12 -> 10701.71006 | M18: ='fnd base rates'!$G115*$D$28*M$12 -> 0 | N18: ='fnd base rates'!$G116*$D$28*N$12 -> 8456.64 | O18: ='fnd base rates'!$G117*$D$28*O$12 -> 865.26 | P18: ='fnd base rates'!$G118*$D$28*P$12 -> 0 | Q18: =VLOOKUP((VLOOKUP(VLOOKUP(orderCHA,charterinfo_a,3),rate_chafnd,18)+12),rate_basefnd,7)*$D$28*Q$12 -> 63162.94 | S18: 169454.3401
A19: 6 | B19: Instructional Equipment & Tech | C19: nw | D19: ='fnd base rates'!$H107*D$12 -> 0 | E19: ='fnd base rates'!$H108*E$12 -> 0 | F19: ='fnd base rates'!$H109*F$12 -> 49350.39 | G19: ='fnd base rates'!$H110*G$12 -> 170091.15 | H19: ='fnd base rates'!$H111*H$12 -> 88639.05 | I19: ='fnd base rates'!$H112*I$12 -> 0 | J19: ='fnd base rates'!$H113*J$12 -> 0 | L19: ='fnd base rates'!$H114*L$12 -> 9340.90601 | M19: ='fnd base rates'!$H115*M$12 -> 0 | N19: ='fnd base rates'!$H116*N$12 -> 21141.6 | O19: ='fnd base rates'!$H117*O$12 -> 2163.42 | P19: ='fnd base rates'!$H118*P$12 -> 0 | Q19: =VLOOKUP((VLOOKUP(VLOOKUP(orderCHA,charterinfo_a,3),rate_chafnd,18)+12),rate_basefnd,8)*Q$12 -> 9683.98 | S19: 350410.496
A20: 7 | B20: Guidance and Pschological | C20: w | D20: ='fnd base rates'!$I107*$D$28*D$12 -> 0 | E20: ='fnd base rates'!$I108*$D$28*E$12 -> 0 | F20: ='fnd base rates'!$I109*$D$28*F$12 -> 24811.67 | G20: ='fnd base rates'!$I110*$D$28*G$12 -> 85515.95 | H20: ='fnd base rates'!$I111*$D$28*H$12 -> 59318.4 | I20: ='fnd base rates'!$I112*$D$28*I$12 -> 0 | J20: ='fnd base rates'!$I113*$D$28*J$12 -> 0 | L20: ='fnd base rates'!$I114*$D$28*L$12 -> 0 | M20: ='fnd base rates'!$I115*$D$28*M$12 -> 0 | N20: ='fnd base rates'!$I116*$D$28*N$12 -> 12686.8 | O20: ='fnd base rates'!$I117*$D$28*O$12 -> 1298.16 | P20: ='fnd base rates'!$I118*$D$28*P$12 -> 0 | Q20: =VLOOKUP((VLOOKUP(VLOOKUP(orderCHA,charterinfo_a,3),rate_chafnd,18)+12),rate_basefnd,9)*$D$28*Q$12 -> 52721.43 | S20: 236352.41
A21: 8 | B21: Pupil Services | C21: w | D21: ='fnd base rates'!$J107*$D$28*D$12 -> 0 | E21: ='fnd base rates'!$J108*$D$28*E$12 -> 0 | F21: ='fnd base rates'!$J109*$D$28*F$12 -> 9871.52 | G21: ='fnd base rates'!$J110*$D$28*G$12 -> 51024.15 | H21: ='fnd base rates'!$J111*$D$28*H$12 -> 43436.15 | I21: ='fnd base rates'!$J112*$D$28*I$12 -> 0 | J21: ='fnd base rates'!$J113*$D$28*J$12 -> 0 | L21: ='fnd base rates'!$J114*$D$28*L$12 -> 0 | M21: ='fnd base rates'!$J115*$D$28*M$12 -> 0 | N21: ='fnd base rates'!$J116*$D$28*N$12 -> 4230.16 | O21: ='fnd base rates'!$J117*$D$28*O$12 -> 432.72 | P21: ='fnd base rates'!$J118*$D$28*P$12 -> 0 | Q21: =VLOOKUP((VLOOKUP(VLOOKUP(orderCHA,charterinfo_a,3),rate_chafnd,18)+12),rate_basefnd,10)*$D$28*Q$12 -> 273951.2 | S21: 382945.9
A22: 9 | B22: Operations and Maintenance | C22: w | D22: ='fnd base rates'!$K107*$D$28*D$12 -> 0 | E22: ='fnd base rates'!$K108*$D$28*E$12 -> 0 | F22: ='fnd base rates'!$K109*$D$28*F$12 -> 94681.72 | G22: ='fnd base rates'!$K110*$D$28*G$12 -> 326330.2 | H22: ='fnd base rates'!$K111*$D$28*H$12 -> 184365.45 | I22: ='fnd base rates'!$K112*$D$28*I$12 -> 0 | J22: ='fnd base rates'!$K113*$D$28*J$12 -> 0 | L22: ='fnd base rates'!$K114*$D$28*L$12 -> 75100.59188 | M22: ='fnd base rates'!$K115*$D$28*M$12 -> 0 | N22: ='fnd base rates'!$K116*$D$28*N$12 -> 50743.52 | O22: ='fnd base rates'!$K117*$D$28*O$12 -> 5192.28 | P22: ='fnd base rates'!$K118*$D$28*P$12 -> 0 | Q22: =VLOOKUP((VLOOKUP(VLOOKUP(orderCHA,charterinfo_a,3),rate_chafnd,18)+12),rate_basefnd,11)*$D$28*Q$12 -> 0 | S22: 736413.7619
A23: 10 | B23: Employee Benefits & Fixed Charges | C23: nw | D23: ='fnd base rates'!$L107*D$12 -> 0 | E23: ='fnd base rates'!$L108*E$12 -> 0 | F23: ='fnd base rates'!$L109*F$12 -> 109120.26 | G23: ='fnd base rates'!$L110*G$12 -> 376108.3 | H23: ='fnd base rates'!$L111*H$12 -> 201847.95 | I23: ='fnd base rates'!$L112*I$12 -> 0 | J23: ='fnd base rates'!$L113*J$12 -> 0 | L23: ='fnd base rates'!$L114*L$12 -> 83880.2637 | M23: ='fnd base rates'!$L115*M$12 -> 0 | N23: ='fnd base rates'!$L116*N$12 -> 46513.36 | O23: ='fnd base rates'!$L117*O$12 -> 4759.56 | P23: ='fnd base rates'!$L118*P$12 -> 0 | Q23: =VLOOKUP((VLOOKUP(VLOOKUP(orderCHA,charterinfo_a,3),rate_chafnd,18)+12),rate_basefnd,12)*Q$12 -> 210606.63 | S23: 1032836.324
A24: 11 | B24: Special Ed Tuition | C24: nw | D24: ='fnd base rates'!$M107*D$12 -> 0 | E24: ='fnd base rates'!$M108*E$12 -> 0 | F24: ='fnd base rates'!$M109*F$12 -> 0 | G24: ='fnd base rates'!$M110*G$12 -> 0 | H24: ='fnd base rates'!$M111*H$12 -> 0 | I24: ='fnd base rates'!$M112*I$12 -> 0 | J24: ='fnd base rates'!$M113*J$12 -> 0 | L24: ='fnd base rates'!$M114*L$12 -> 0 | M24: ='fnd base rates'!$M115*M$12 -> 0 | N24: ='fnd base rates'!$M116*N$12 -> 0 | O24: ='fnd base rates'!$M117*O$12 -> 0 | P24: ='fnd base rates'!$M118*P$12 -> 0 | Q24: =VLOOKUP((VLOOKUP(VLOOKUP(orderCHA,charterinfo_a,3),rate_chafnd,18)+12),rate_basefnd,13)*Q$12 -> 0 | S24: 0
A26: 12 | B26: Total | D26: =SUM(D14:D24) -> 0 | E26: 0 | F26: 845276.71 | G26: 2930340.4 | H26: =SUM(H14:H24) -> 1463379.6 | I26: 0 | J26: 0 | K26: 0 | L26: 675236.135 | M26: 0 | N26: 427089.76 | O26: 43701.84 | P26: 0 | Q26: 2073603.26 | R26: =SUM(R14:R24) -> 0 | S26: =SUM(S14:S24) -> 8458627.705
A28: 13 | B28: Wage Adjustment Factor | D28: =VLOOKUP(orderCHA,charterinfo_a,8) -> 1 | Q28: F O U N D A T I O N T U I T I O N R A T E | S28: =IF(S12=0,0,ROUND(S26/S12,0)) -> 13155
A29: 14 | B29: Decile | D29: =VLOOKUP(orderCHA,charterinfo_a,9) -> 10
A31: C A V E A T S | L31: English Learners as a % of Total Full Rate and Budget | S31: =SUM(N26:P26)/S26 -> 0.05565815359
A32: - Charter schools do not send special education pupils to other districts or private programs. | L32: Economically Disadvantaged Proportion of Full Rate and Budget | S32: =Q26/S26 -> 0.2451465335
A33: The in-district special education increment uses an "assumed" enrollment percentage of 3.79.
A34: - Total foundation enrollment includes only the All Pupils section. Special Population Increments enrollment has already been counted in All Pupils cohorts.
A35: - Pre-kindergarten and half-time kindergarten pupils count as one-half in totals for ELL, EcoDis low income, and total foundation enrollment.
A36: - Each component of the foundation budget represents the enrollment on line 1 multiplied by the appropriate state-wide foundation allotment.
A37: - The wage adjustment factor is applied to the underlying base rates in all functions except instructional equipment, benefits, and special education.
A38: - October 2019 enrollment is being used to generate the FY21 rate.

Sheet fnd base rates (hidden)
A4: FY20 Foundation Base Rates
H5: Instruction- | I5: Guid- | K5: Opera- | L5: Employee | N5: Total
E6: Classroom | F6: Other | G6: Profess- | H6: al Materials, | I6: ance & | K6: tions & | L6: Benefits | N6: Opera-
C7: Admini- | D7: Instructional | E7: & Specialist | F7: Teaching | G7: ional Dev- | H7: Equipment & | I7: Psycho- | J7: Pupil | K7: Maint- | L7: & Fixed | M7: Sped | N7: ting Exp-
A8: Foundation Subsets | C8: stration | D8: Leadership | E8: Teachers | F8: Services | G8: elopment | H8: Technology | I8: logical | J8: Services | K8: enance | L8: Charges | M8: Tuition | N8: enditures
A10: 1 | B10: Pre-School | C10: 195.97 | D10: 353.93 | E10: 1622.88 | F10: 416.22 | G10: 64.18 | H10: 234.89 | I10: 118.08 | J10: 46.96 | K10: 450.66 | L10: 519.3835991 | N10: 4023.153599
A11: 2 | B11: Kindergarten-Half | C11: 195.97 | D11: 353.93 | E11: 1622.88 | F11: 416.22 | G11: 64.18 | H11: 234.89 | I11: 118.08 | J11: 46.96 | K11: 450.66 | L11: 519.3835991 | N11: 4023.153599
A12: 3 | B12: Kindergarten-Full | C12: 391.93 | D12: 707.86 | E12: 3245.76 | F12: 832.47 | G12: 128.42 | H12: 469.78 | I12: 236.19 | J12: 93.97 | K12: 901.3 | L12: 1038.750055 | N12: 8046.430055
A13: 4 | B13: Elementary | C13: 391.93 | D13: 707.86 | E13: 3245.72 | F13: 832.47 | G13: 128.44 | H13: 469.78 | I13: 236.19 | J13: 140.93 | K13: 901.3 | L13: 1038.784341 | N13: 8093.404341
A14: 5 | B14: Junior/Middle | C14: 391.93 | D14: 707.86 | E14: 2856.25 | F14: 599.25 | G14: 139.24 | H14: 469.78 | I14: 314.38 | J14: 230.21 | K14: 977.13 | L14: 1069.78529 | N14: 7755.81529
A15: 6 | B15: High School | C15: 391.93 | D15: 707.86 | E15: 4200.34 | F15: 498.88 | G15: 135.01 | H15: 751.65 | I15: 394.09 | J15: 530.85 | K15: 947.43 | L15: 967.8535567 | N15: 9525.893557
A16: 7 | B16: Vocational | C16: 391.93 | D16: 707.86 | E16: 7140.62 | F16: 498.88 | G16: 223.21 | H16: 1315.37 | I16: 394.09 | J16: 530.85 | K16: 1773.15 | L16: 1395.837255 | N16: 14371.79726
A17: 8 | B17: Special Ed-In School | C17: 2704.98 | D17: 0 | E17: 8925.75 | F17: 8333.85 | G17: 430.57 | H17: 375.82 | I17: 0 | J17: 0 | K17: 3021.59 | L17: 3374.832136 | M17: 0 | N17: 27167.39214
A18: 9 | B18: Special Ed-Tuitioned Out | C18: 2802.91 | D18: 0 | E18: 0 | F18: 42.82 | G18: 0 | H18: 0 | I18: 0 | J18: 0 | K18: 0 | L18: 0 | M18: 26612.12 | N18: 29457.85
A19: 10 | B19: EL PK-5 | C19: 90.14 | D19: 157.74 | E19: 1104.11 | F19: 157.74 | G19: 45.06 | H19: 112.66 | I19: 67.6 | J19: 22.54 | K19: 270.4 | L19: 247.86 | M19: 0 | N19: 2275.85
A20: 11 | B20: EL jr/middle | C20: 94.28 | D20: 164.99 | E20: 1154.9 | F20: 164.99 | G20: 47.13 | H20: 117.84 | I20: 70.71 | J20: 23.57 | K20: 282.83 | L20: 259.26 | M20: 0 | N20: 2380.5
A21: 12 | B21: EL high | C21: 73.59 | D21: 128.79 | E21: 901.48 | F21: 128.79 | G21: 36.79 | H21: 91.98 | I21: 55.19 | J21: 18.4 | K21: 220.77 | L21: 202.37 | M21: 0 | N21: 1858.15
A22: 13 | B22: Low Income 1 | C22: 50.98 | D22: 241.54 | E22: 2357.86 | F22: 0 | G22: 114.39 | H22: 17.54 | I22: 95.48 | J22: 496.13 | K22: 0 | L22: 381.4 | M22: 0 | N22: 3755.32
A23: 14 | B23: Low Income 2 | C23: 51.54 | D23: 244.2 | E23: 2383.92 | F23: 0 | G23: 115.66 | H23: 17.73 | I23: 96.53 | J23: 501.61 | K23: 0 | L23: 385.62 | M23: 0 | N23: 3796.81
A24: 15 | B24: Low Income 3 | C24: 52.1 | D24: 246.87 | E24: 2409.97 | F24: 0 | G24: 116.92 | H24: 17.92 | I24: 97.59 | J24: 507.09 | K24: 0 | L24: 389.83 | M24: 0 | N24: 3838.29
A25: 16 | B25: Low Income 4 | C25: 52.67 | D25: 249.54 | E25: 2436.03 | F25: 0 | G25: 118.18 | H25: 18.12 | I25: 98.64 | J25: 512.57 | K25: 0 | L25: 394.05 | M25: 0 | N25: 3879.8
A26: 17 | B26: Low Income 5 | C26: 53.23 | D26: 252.21 | E26: 2462.09 | F26: 0 | G26: 119.45 | H26: 18.31 | I26: 99.7 | J26: 518.06 | K26: 0 | L26: 398.26 | M26: 0 | N26: 3921.31
A27: 18 | B27: Low Income 6 | C27: 56.89 | D27: 269.52 | E27: 2631.09 | F27: 0 | G27: 127.65 | H27: 19.57 | I27: 106.54 | J27: 553.62 | K27: 0 | L27: 425.6 | M27: 0 | N27: 4190.48
A28: 19 | B28: Low Income 7 | C28: 58.24 | D28: 275.94 | E28: 2693.72 | F28: 0 | G28: 130.69 | H28: 20.03 | I28: 109.08 | J28: 566.8 | K28: 0 | L28: 435.73 | M28: 0 | N28: 4290.23
A29: 20 | B29: Low Income 8 | C29: 59.59 | D29: 282.36 | E29: 2756.36 | F29: 0 | G29: 133.72 | H29: 20.5 | I29: 111.61 | J29: 579.97 | K29: 0 | L29: 445.86 | M29: 0 | N29: 4389.97
A30: 21 | B30: Low Income 9 | C30: 60.95 | D30: 288.77 | E30: 2818.99 | F30: 0 | G30: 136.76 | H30: 20.96 | I30: 114.15 | J30: 593.15 | K30: 0 | L30: 455.99 | M30: 0 | N30: 4489.72
A31: 22 | B31: Low Income 10 | C31: 62.3 | D31: 295.19 | E31: 2881.62 | F31: 0 | G31: 139.8 | H31: 21.43 | I31: 116.69 | J31: 606.33 | K31: 0 | L31: 466.13 | M31: 0 | N31: 4589.49
A32: 23 | B32: blank | C32: 0 | D32: 0 | E32: 0 | F32: 0 | G32: 0 | H32: 0 | I32: 0 | J32: 0 | K32: 0 | L32: 0 | M32: 0 | N32: 0
B96: Inflation Adjustment
B97: FY20 inflation index | C97: 1
B98: FY21 inflation | C98: 0.0199
B99: FY21 adjustment | C99: =C97+C98 -> 1.0199
A101: FY21 Proposed Foundation Budget Rates
H102: Instruction- | I102: Guid- | K102: Opera- | L102: Employee | N102: Total | T102: 2020-08-10 | V102: 2020-07-02 | X102: 2020-01-07 | Y102: 43839 | Z102: 2020-01-09
E103: Classroom | F103: Other | G103: Profess- | H103: al Materials, | I103: ance & | K103: tions & | L103: Benefits | N103: Opera-
C104: Admini- | D104: Instructional | E104: & Specialist | F104: Teaching | G104: ional Dev- | H104: Equipment & | I104: Psycho- | J104: Pupil | K104: Maint- | L104: & Fixed | M104: Sped | N104: ting Exp- | P104: current | T104: DOR | V104: SWM | X104: House2 | Z104: House2
A105: Adjusted Foundation Budget | C105: stration | D105: Leadership | E105: Teachers | F105: Services | G105: elopment | H105: Technology | I105: logical | J105: Services | K105: enance | L105: Charges | M105: Tuition | N105: enditures | P105: diff | T105: rates | V105: rates | X105: rates | Z105: rates
C106: 3 | D106: 4 | E106: 5 | F106: 6 | G106: 7 | H106: 8 | I106: 9 | J106: 10 | K106: 11 | L106: 12 | M106: 13 | N106: 14
A107: 1 | B107: Pre-School | C107: =IF(C10>0,ROUND(C10*inflat,2),0) -> 199.87 | D107: =IF(D10>0,ROUND(D10*inflat,2),0) -> 360.97 | E107: 1655.18 | F107: 424.5 | G107: 65.46 | H107: 239.56 | I107: 120.43 | J107: 47.89 | K107: 459.63 | L107: 529.72 | M107: 0 | N107: =SUM(C107:M107) -> 4103.21 | P107: =T107-V107 -> 0 | T107: 4103.21 | V107: 4103.21 | X107: 4148.42 | Z107: 4148.42
A108: 2 | B108: Kindergarten-Half | C108: =IF(C11>0,ROUND(C11*inflat,2),0) -> 199.87 | D108: 360.97 | E108: 1655.18 | F108: 424.5 | G108: 65.46 | H108: 239.56 | I108: 120.43 | J108: 47.89 | K108: 459.63 | L108: 529.72 | M108: 0 | N108: =SUM(C108:M108) -> 4103.21 | P108: =T108-V108 -> 0 | T108: 4103.21 | V108: 4103.21 | X108: 4148.42 | Z108: 4148.42
A109: 3 | B109: Kindergarten-Full | C109: =IF(C12>0,ROUND(C12*inflat,2),0) -> 399.73 | D109: 721.95 | E109: 3310.35 | F109: 849.04 | G109: 130.98 | H109: 479.13 | I109: 240.89 | J109: 95.84 | K109: 919.24 | L109: 1059.42 | M109: 0 | N109: 8206.57 | P109: 0 | T109: 8206.57 | V109: 8206.57 | X109: 8296.99 | Z109: 8296.99
A110: 4 | B110: Elementary | C110: =IF(C13>0,ROUND(C13*inflat,2),0) -> 399.73 | D110: 721.95 | E110: 3310.31 | F110: 849.04 | G110: 131 | H110: 479.13 | I110: 240.89 | J110: 143.73 | K110: 919.24 | L110: 1059.46 | M110: 0 | N110: 8254.48 | P110: 0 | T110: 8254.48 | V110: 8254.48 | X110: 8344.89 | Z110: 8344.89
A111: 5 | B111: Junior/Middle | C111: =IF(C14>0,ROUND(C14*inflat,2),0) -> 399.73 | D111: 721.95 | E111: 2913.09 | F111: 611.18 | G111: 142.01 | H111: 479.13 | I111: 320.64 | J111: 234.79 | K111: 996.57 | L111: 1091.07 | M111: 0 | N111: 7910.16 | P111: 0 | T111: 7910.16 | V111: 7910.16 | X111: 8002.25 | Z111: 8002.25
A112: 6 | B112: High School | C112: =IF(C15>0,ROUND(C15*inflat,2),0) -> 399.73 | D112: 721.95 | E112: 4283.93 | F112: 508.81 | G112: 137.7 | H112: 766.61 | I112: 401.93 | J112: 541.41 | K112: 966.28 | L112: 987.11 | M112: 0 | N112: 9715.46 | P112: 0 | T112: 9715.46 | V112: 9715.46 | X112: 9785.25 | Z112: 9785.25
A113: 7 | B113: Vocational | C113: =IF(C16>0,ROUND(C16*inflat,2),0) -> 399.73 | D113: 721.95 | E113: 7282.72 | F113: 508.81 | G113: 227.65 | H113: 1341.55 | I113: 401.93 | J113: 541.41 | K113: 1808.44 | L113: 1423.61 | M113: 0 | N113: 14657.8 | P113: 0 | T113: 14657.8 | V113: 14657.8 | X113: 14954.65 | Z113: 14954.65
A114: 8 | B114: Special Ed-In School | C114: =IF(C17>0,ROUND(C17*inflat,2),0) -> 2758.81 | D114: 0 | E114: 9103.37 | F114: 8499.69 | G114: 439.14 | H114: 383.3 | I114: 0 | J114: 0 | K114: 3081.72 | L114: 3441.99 | M114: 0 | N114: 27708.02 | P114: 0 | T114: 27708.02 | V114: 27708.02 | X114: 27488.07 | Z114: 27488.07
A115: 9 | B115: Special Ed-Tuitioned Out | C115: =IF(C18>0,ROUND(C18*inflat,2),0) -> 2858.69 | D115: 0 | E115: 0 | F115: 43.67 | G115: 0 | H115: 0 | I115: 0 | J115: 0 | K115: 0 | L115: 0 | M115: 27141.7 | N115: 30044.06 | P115: 0 | T115: 30044.06 | V115: 30044.06 | X115: 31035.79 | Z115: 31035.79
A116: 10 | B116: EL PK-5 | C116: =IF(C19>0,ROUND(C19*inflat,2),0) -> 91.93 | D116: 160.88 | E116: 1126.08 | F116: 160.88 | G116: 45.96 | H116: 114.9 | I116: 68.95 | J116: 22.99 | K116: 275.78 | L116: 252.79 | M116: 0 | N116: 2321.14 | P116: 0 | T116: 2321.14 | V116: 2321.14 | X116: 2359.25 | Z116: 2359.25
A117: 11 | B117: EL jr/middle | C117: =IF(C20>0,ROUND(C20*inflat,2),0) -> 96.16 | D117: 168.27 | E117: 1177.88 | F117: 168.27 | G117: 48.07 | H117: 120.19 | I117: 72.12 | J117: 24.04 | K117: 288.46 | L117: 264.42 | M117: 0 | N117: 2427.88 | P117: 0 | T117: 2427.88 | V117: 2427.88 | X117: 2477.54 | Z117: 2477.54
A118: 12 | B118: EL high | C118: =IF(C21>0,ROUND(C21*inflat,2),0) -> 75.05 | D118: 131.35 | E118: 919.42 | F118: 131.35 | G118: 37.52 | H118: 93.81 | I118: 56.29 | J118: 18.77 | K118: 225.16 | L118: 206.4 | M118: 0 | N118: 1895.12 | P118: 0 | T118: 1895.12 | V118: 1895.12 | X118: 2100.21 | Z118: 2100.21
A119: 13 | B119: Low Income 1 | C119: =IF(C22>0,ROUND(C22*inflat,2),0) -> 51.99 | D119: 246.35 | E119: 2404.78 | F119: 0 | G119: 116.67 | H119: 17.89 | I119: 97.38 | J119: 506 | K119: 0 | L119: 388.99 | M119: 0 | N119: 3830.05 | P119: 0 | T119: 3830.05 | V119: 3830.05 | X119: 3827.63 | Z119: 3820.41
A120: 14 | B120: Low Income 2 | C120: =IF(C23>0,ROUND(C23*inflat,2),0) -> 52.57 | D120: 249.06 | E120: 2431.36 | F120: 0 | G120: 117.96 | H120: 18.08 | I120: 98.45 | J120: 511.59 | K120: 0 | L120: 393.29 | M120: 0 | N120: 3872.36 | P120: 0 | T120: 3872.36 | V120: 3872.36 | X120: 3871.78 | Z120: 3870.01
A121: 15 | B121: Low Income 3 | C121: =IF(C24>0,ROUND(C24*inflat,2),0) -> 53.14 | D121: 251.78 | E121: 2457.93 | F121: 0 | G121: 119.25 | H121: 18.28 | I121: 99.53 | J121: 517.18 | K121: 0 | L121: 397.59 | M121: 0 | N121: 3914.68 | P121: 0 | T121: 3914.68 | V121: 3914.68 | X121: 3915.93 | Z121: 3919.64
A122: 16 | B122: Low Income 4 | C122: =IF(C25>0,ROUND(C25*inflat,2),0) -> 53.72 | D122: 254.51 | E122: 2484.51 | F122: 0 | G122: 120.53 | H122: 18.48 | I122: 100.6 | J122: 522.77 | K122: 0 | L122: 401.89 | M122: 0 | N122: 3957.01 | P122: 0 | T122: 3957.01 | V122: 3957.01 | X122: 3960.05 | Z122: 3969.21
A123: 17 | B123: Low Income 5 | C123: =IF(C26>0,ROUND(C26*inflat,2),0) -> 54.29 | D123: 257.23 | E123: 2511.09 | F123: 0 | G123: 121.83 | H123: 18.67 | I123: 101.68 | J123: 528.37 | K123: 0 | L123: 406.19 | M123: 0 | N123: 3999.35 | P123: 0 | T123: 3999.35 | V123: 3999.35 | X123: 4004.23 | Z123: 4018.83
A124: 18 | B124: Low Income 6 | C124: =IF(C27>0,ROUND(C27*inflat,2),0) -> 58.02 | D124: 274.88 | E124: 2683.45 | F124: 0 | G124: 130.19 | H124: 19.96 | I124: 108.66 | J124: 564.64 | K124: 0 | L124: 434.07 | M124: 0 | N124: 4273.87 | P124: 0 | T124: 4273.87 | V124: 4273.87 | X124: 4281.37 | Z124: 4303.89
A125: 19 | B125: Low Income 7 | C125: =IF(C28>0,ROUND(C28*inflat,2),0) -> 59.4 | D125: 281.43 | E125: 2747.33 | F125: 0 | G125: 133.29 | H125: 20.43 | I125: 111.25 | J125: 578.08 | K125: 0 | L125: 444.4 | M125: 0 | N125: 4375.61 | P125: 0 | T125: 4375.61 | V125: 4375.61 | X125: 4387.47 | Z125: 4423.1
A126: 20 | B126: Low Income 8 | C126: =IF(C29>0,ROUND(C29*inflat,2),0) -> 60.78 | D126: 287.98 | E126: 2811.21 | F126: 0 | G126: 136.38 | H126: 20.91 | I126: 113.83 | J126: 591.51 | K126: 0 | L126: 454.73 | M126: 0 | N126: 4477.33 | P126: 0 | T126: 4477.33 | V126: 4477.33 | X126: 4493.58 | Z126: 4542.28
A127: 21 | B127: Low Income 9 | C127: =IF(C30>0,ROUND(C30*inflat,2),0) -> 62.16 | D127: 294.52 | E127: 2875.09 | F127: 0 | G127: 139.48 | H127: 21.38 | I127: 116.42 | J127: 604.95 | K127: 0 | L127: 465.06 | M127: 0 | N127: 4579.06 | P127: 0 | T127: 4579.06 | V127: 4579.06 | X127: 4599.69 | Z127: 4661.52
A128: 22 | B128: Low Income 10 | C128: =IF(C31>0,ROUND(C31*inflat,2),0) -> 63.54 | D128: 301.06 | E128: 2938.96 | F128: 0 | G128: 142.58 | H128: 21.86 | I128: 119.01 | J128: 618.4 | K128: 0 | L128: 475.41 | M128: 0 | N128: 4680.82 | P128: 0 | T128: 4680.82 | V128: 4680.82 | X128: 4705.8 | Z128: 4780.73
A129: 23 | B129: blank | C129: 0 | D129: 0 | E129: 0 | F129: 0 | G129: 0 | H129: 0 | I129: 0 | J129: 0 | K129: 0 | L129: 0 | M129: 0 | N129: 0
A130: 26 | B130: blank | C130: 0 | D130: 0 | E130: 0 | F130: 0 | G130: 0 | H130: 0 | I130: 0 | J130: 0 | K130: 0 | L130: 0 | M130: 0 | N130: 0
H298: Instruction- | I298: Guid- | K298: Opera- | L298: Employee | N298: Total
E299: Classroom | F299: Other | G299: Profess- | H299: al Materials, | I299: ance & | K299: tions & | L299: Benefits | N299: Opera-
C300: Admini- | D300: Instructional | E300: & Specialist | F300: Teaching | G300: ional Dev- | H300: Equipment & | I300: Psycho- | J300: Pupil | K300: Maint- | L300: & Fixed | M300: Sped | N300: ting Exp-
A301: Adjusted Foundation Budget | C301: stration | D301: Leadership | E301: Teachers | F301: Services | G301: elopment | H301: Technology | I301: logical | J301: Services | K301: enance | L301: Charges | M301: Tuition | N301: enditures
A302: =A107=A205 -> FALSE | B302: =B107=B205 -> FALSE | C302: =C107-C205 -> 199.87 | D302: =D107-D205 -> 360.97 | E302: 1655.18 | F302: 424.5 | G302: 65.46 | H302: 239.56 | I302: 120.43 | J302: 47.89 | K302: 459.63 | L302: 529.72 | M302: 0 | N302: 4103.21
A303: =A108=A206 -> FALSE | B303: =B108=B206 -> FALSE | C303: =C108-C206 -> 199.87 | D303: 360.97 | E303: 1655.18 | F303: 424.5 | G303: 65.46 | H303: 239.56 | I303: 120.43 | J303: 47.89 | K303: 459.63 | L303: 529.72 | M303: 0 | N303: 4103.21
A304: =A109=A207 -> FALSE | B304: =B109=B207 -> FALSE | C304: =C109-C207 -> 399.73 | D304: 721.95 | E304: 3310.35 | F304: 849.04 | G304: 130.98 | H304: 479.13 | I304: 240.89 | J304: 95.84 | K304: 919.24 | L304: 1059.42 | M304: 0 | N304: 8206.57
A305: =A110=A208 -> FALSE | B305: =B110=B208 -> FALSE | C305: =C110-C208 -> 399.73 | D305: 721.95 | E305: 3310.31 | F305: 849.04 | G305: 131 | H305: 479.13 | I305: 240.89 | J305: 143.73 | K305: 919.24 | L305: 1059.46 | M305: 0 | N305: 8254.48
A306: =A111=A209 -> FALSE | B306: =B111=B209 -> FALSE | C306: =C111-C209 -> 399.73 | D306: 721.95 | E306: 2913.09 | F306: 611.18 | G306: 142.01 | H306: 479.13 | I306: 320.64 | J306: 234.79 | K306: 996.57 | L306: 1091.07 | M306: 0 | N306: 7910.16
A307: =A112=A210 -> FALSE | B307: =B112=B210 -> FALSE | C307: =C112-C210 -> 399.73 | D307: 721.95 | E307: 4283.93 | F307: 508.81 | G307: 137.7 | H307: 766.61 | I307: 401.93 | J307: 541.41 | K307: 966.28 | L307: 987.11 | M307: 0 | N307: 9715.46
A308: =A113=A211 -> FALSE | B308: =B113=B211 -> FALSE | C308: =C113-C211 -> 399.73 | D308: 721.95 | E308: 7282.72 | F308: 508.81 | G308: 227.65 | H308: 1341.55 | I308: 401.93 | J308: 541.41 | K308: 1808.44 | L308: 1423.61 | M308: 0 | N308: 14657.8
A309: =A114=A212 -> FALSE | B309: =B114=B212 -> FALSE | C309: =C114-C212 -> 2758.81 | D309: 0 | E309: 9103.37 | F309: 8499.69 | G309: 439.14 | H309: 383.3 | I309: 0 | J309: 0 | K309: 3081.72 | L309: 3441.99 | M309: 0 | N309: 27708.02
A310: =A115=A213 -> FALSE | B310: =B115=B213 -> FALSE | C310: =C115-C213 -> 2858.69 | D310: 0 | E310: 0 | F310: 43.67 | G310: 0 | H310: 0 | I310: 0 | J310: 0 | K310: 0 | L310: 0 | M310: 27141.7 | N310: 30044.06
A311: =A116=A214 -> FALSE | B311: =B116=B214 -> FALSE | C311: =C116-C214 -> 91.93 | D311: 160.88 | E311: 1126.08 | F311: 160.88 | G311: 45.96 | H311: 114.9 | I311: 68.95 | J311: 22.99 | K311: 275.78 | L311: 252.79 | M311: 0 | N311: 2321.14
A312: =A117=A215 -> FALSE | B312: =B117=B215 -> FALSE | C312: =C117-C215 -> 96.16 | D312: 168.27 | E312: 1177.88 | F312: 168.27 | G312: 48.07 | H312: 120.19 | I312: 72.12 | J312: 24.04 | K312: 288.46 | L312: 264.42 | M312: 0 | N312: 2427.88
A313: =A118=A216 -> FALSE | B313: =B118=B216 -> FALSE | C313: =C118-C216 -> 75.05 | D313: 131.35 | E313: 919.42 | F313: 131.35 | G313: 37.52 | H313: 93.81 | I313: 56.29 | J313: 18.77 | K313: 225.16 | L313: 206.4 | M313: 0 | N313: 1895.12
A314: =A119=A217 -> FALSE | B314: =B119=B217 -> FALSE | C314: =C119-C217 -> 51.99 | D314: 246.35 | E314: 2404.78 | F314: 0 | G314: 116.67 | H314: 17.89 | I314: 97.38 | J314: 506 | K314: 0 | L314: 388.99 | M314: 0 | N314: 3830.05
A315: =A120=A218 -> FALSE | B315: =B120=B218 -> FALSE | C315: =C120-C218 -> 52.57 | D315: 249.06 | E315: 2431.36 | F315: 0 | G315: 117.96 | H315: 18.08 | I315: 98.45 | J315: 511.59 | K315: 0 | L315: 393.29 | M315: 0 | N315: 3872.36
A316: =A121=A219 -> FALSE | B316: =B121=B219 -> FALSE | C316: =C121-C219 -> 53.14 | D316: 251.78 | E316: 2457.93 | F316: 0 | G316: 119.25 | H316: 18.28 | I316: 99.53 | J316: 517.18 | K316: 0 | L316: 397.59 | M316: 0 | N316: 3914.68
A317: =A122=A220 -> FALSE | B317: =B122=B220 -> FALSE | C317: =C122-C220 -> 53.72 | D317: 254.51 | E317: 2484.51 | F317: 0 | G317: 120.53 | H317: 18.48 | I317: 100.6 | J317: 522.77 | K317: 0 | L317: 401.89 | M317: 0 | N317: 3957.01
A318: =A123=A221 -> FALSE | B318: =B123=B221 -> FALSE | C318: =C123-C221 -> 54.29 | D318: 257.23 | E318: 2511.09 | F318: 0 | G318: 121.83 | H318: 18.67 | I318: 101.68 | J318: 528.37 | K318: 0 | L318: 406.19 | M318: 0 | N318: 3999.35
A319: =A124=A222 -> FALSE | B319: =B124=B222 -> FALSE | C319: =C124-C222 -> 58.02 | D319: 274.88 | E319: 2683.45 | F319: 0 | G319: 130.19 | H319: 19.96 | I319: 108.66 | J319: 564.64 | K319: 0 | L319: 434.07 | M319: 0 | N319: 4273.87
A320: =A125=A223 -> FALSE | B320: =B125=B223 -> FALSE | C320: =C125-C223 -> 59.4 | D320: 281.43 | E320: 2747.33 | F320: 0 | G320: 133.29 | H320: 20.43 | I320: 111.25 | J320: 578.08 | K320: 0 | L320: 444.4 | M320: 0 | N320: 4375.61
A321: =A126=A224 -> FALSE | B321: =B126=B224 -> FALSE | C321: =C126-C224 -> 60.78 | D321: 287.98 | E321: 2811.21 | F321: 0 | G321: 136.38 | H321: 20.91 | I321: 113.83 | J321: 591.51 | K321: 0 | L321: 454.73 | M321: 0 | N321: 4477.33
A322: =A127=A225 -> FALSE | B322: =B127=B225 -> FALSE | C322: =C127-C225 -> 62.16 | D322: 294.52 | E322: 2875.09 | F322: 0 | G322: 139.48 | H322: 21.38 | I322: 116.42 | J322: 604.95 | K322: 0 | L322: 465.06 | M322: 0 | N322: 4579.06
A323: =A128=A226 -> FALSE | B323: =B128=B226 -> FALSE | C323: =C128-C226 -> 63.54 | D323: 301.06 | E323: 2938.96 | F323: 0 | G323: 142.58 | H323: 21.86 | I323: 119.01 | J323: 618.4 | K323: 0 | L323: 475.41 | M323: 0 | N323: 4680.82
A324: =A129=A227 -> FALSE | B324: =B129=B227 -> FALSE | C324: =C129-C227 -> 0 | D324: 0 | E324: 0 | F324: 0 | G324: 0 | H324: 0 | I324: 0 | J324: 0 | K324: 0 | L324: 0 | M324: 0 | N324: 0
A325: =A130=A228 -> FALSE | B325: =B130=B228 -> FALSE | C325: =C130-C228 -> 0 | D325: 0 | E325: 0 | F325: 0 | G325: 0 | H325: 0 | I325: 0 | J325: 0 | K325: 0 | L325: 0 | M325: 0 | N325: 0

Sheet pre fnd budg (hidden)
A1: a | B1: 1 | C1: 2 | D1: 3 | E1: 4 | F1: 5 | G1: 6 | H1: 7 | I1: 8 | J1: 9 | K1: 10 | L1: 11 | M1: 12 | N1: 13 | O1: 14 | P1: 15 | Q1: 16 | R1: 17 | S1: 18 | T1: 19 | U1: 20 | V1: 21 | W1: 22 | X1: 23 | Y1: 24 | Z1: 25 | AA1: 26 | AB1: 27 | AC1: 28 | AD1: 29 | AE1: 30 | AF1: 31 | AG1: 32 | AH1: 33 | AI1: 34 | AJ1: 35 | AK1: 36 | AL1: 37 | AM1: 38 | AN1: 39 | AO1: 40 | AP1: 41 | AQ1: 42 | AR1: 43 | AS1: # of rates | AT1: =COUNTA(AZ10:AZ1810) -> 966 | AU1: greater than 0 | AV1: =COUNTIF($AZ$10:$AZ$1810,">0") -> 13
AS2: less than $0 | AT2: =COUNTIF($BB$10:$BB$1810,"<0") -> 9 | AU2: = $0 | AV2: =COUNTIF($BB$10:$BB$1810,"=0") -> 930
B3: Insert chalocsend & school name from the FND ENRO sheet | U3: w | V3: w | W3: w | X3: w | Y3: w | Z3: nw | AA3: w | AB3: w | AC3: w | AD3: nw | AE3: nw | AS3: < $20 | AT3: =COUNTIF($BB$10:$BB$1810,"<0")-AT4-AT5-AT6-AT7 -> 9 | AU3: > $20 | AV3: =COUNTIF($BB$10:$BB$1810,">0")-AV4-AV5-AV6-AV7 -> 16
K4: =SUM(K10:K1810) -> 1682.9116 | O4: =SUM(M10:O1810) -> 5648 | P4: =SUM(P10:P1810) -> 22172 | AS4: < $50 | AT4: =COUNTIF($BB$10:$BB$1810,"<-49.999")-AT5-AT6-AT7 -> 0 | AU4: > $50 | AV4: =COUNTIF($BB$10:$BB$1810,">49.9999")-AV5-AV6-AV7 -> 5
Z5: Instruction- | AA5: Guid- | AC5: Opera- | AD5: Employee | AS5: < $100 | AT5: =COUNTIF($BB$10:$BB$1810,"<-99.9999")-AT6-AT7 -> 0 | AU5: > $100 | AV5: =COUNTIF($BB$10:$BB$1810,">99.9999")-AV6-AV7 -> 6
K6: Assumed | L6: Assumed | Q6: Total | W6: Classroom | X6: Other | Y6: Profess- | Z6: al Materials, | AA6: ance & | AC6: tions & | AD6: Benefits | AF6: Found- | AL6: wage | AM6: =SUM(AM10:AM1000899) -> 44693 | AS6: < $500 | AT6: =COUNTIF($BB$10:$BB$1810,"<-499.9999")-AT7 -> 0 | AU6: > $200 | AV6: =COUNTIF($BB$10:$BB$1810,">199.9999")-AV7 -> 0
H7: Junior | I7: High | K7: Special Ed | L7: Special Ed | M7: EL | N7: EL | O7: EL | P7: Ecodis | Q7: Found | R7: WAF | S7: lowinc | U7: Admini- | V7: Instructional | W7: & Specialist | X7: Teaching | Y7: s | Z7: Equipment & | AA7: Psycho- | AB7: Pupil | AC7: Maint- | AD7: & Fixed | AE7: Sped | AF7: ation | AI7: Cha | AJ7: Loc | AK7: Sending | AL7: fct check | AS7: < $1000 | AT7: =COUNTIF($BB$10:$BB$1810,"<-999.9999") -> 0 | AU7: > $500 | AV7: =COUNTIF($BB$10:$BB$1810,">299.9999") -> 0
A8: chalea | B8: chalocsend | C8: Charter | D8: PK | E8: KP | F8: KF | G8: Elem | H8: Middle | I8: School | J8: voke | K8: In School | L8: Tuitioned | M8: PK-5 | N8: 6-8 | O8: 9-12 | P8: Low Inc | Q8: Enro | R8: Adjusted | S8: group | U8: stration | V8: Leadership | W8: Teachers | X8: Services | Y8: elopment | Z8: Technology | AA8: logical | AB8: Services | AC8: enance | AD8: Charges | AE8: Tuition | AF8: Budget | AH8: chalocsend | AI8: LEA | AJ8: LEA | AK8: LEA | AL8: 1=good | AM8: enro | AN8: fnd budget | AO8: rate | AP8: diff | AQ8: rate check | AW8: PROJ a | AX8: diff | AY8: PROJ b | AZ8: diff | BA8: PROJ d | BB8: diff | BC8: PROJ e
AP9: x | AR9: x | AW9: 2020-01-07 | AX9: x | AY9: 2020-01-09 | AZ9: x | BB9: x
A10: 409 | B10: 409201003 | C10: ALMA DEL MAR | D10: ='fnd enro'!D10 -> 0 | E10: ='fnd enro'!E10 -> 0 | F10: ='fnd enro'!F10 -> 0 | G10: ='fnd enro'!G10 -> 1 | H10: ='fnd enro'!H10 -> 1 | I10: ='fnd enro'!I10 -> 0 | J10: ='fnd enro'!J10 -> 0 | K10: ='fnd enro'!K10 -> 0.0758 | L10: ='fnd enro'!L10 -> 0 | M10: ='fnd enro'!M10+'fnd enro'!N10 -> 0 | N10: ='fnd enro'!O10 -> 0 | O10: ='fnd enro'!P10 -> 0 | P10: ='fnd enro'!Q10 -> 0 | Q10: ='fnd enro'!S10 -> 2 | R10: =VLOOKUP(B10,charterinfo_b,6) -> 1 | S10: =VALUE('fnd enro'!R10) -> 6 | U10: =(($D10*'fnd base rates'!C$107) +($E10*'fnd base rates'!C$108) +($F10*'fnd base rates'!C$109) +($G10*'fnd base rates'!C$110) +($H10*'fnd base rates'!C$111) +($I10*'fnd base rates'!C$112) +($J10*'fnd base rates'!C$113) +($K10*'fnd base rates'!C$114) +($M10*'fnd base rates'!C$116) +($N10*'fnd base rates'!C$117) +($O10*'fnd base rates'!C$118) +($P10*VLOOKUP($S10+12,rate_basefnd,3))) *$R10 -> 1008.577798 | V10: =(($D10*'fnd base rates'!D$107) +($E10*'fnd base rates'!D$108) +($F10*'fnd base rates'!D$109) +($G10*'fnd base rates'!D$110) +($H10*'fnd base rates'!D$111) +($I10*'fnd base rates'!D$112) +($J10*'fnd base rates'!D$113) +($K10*'fnd base rates'!D$114) +($M10*'fnd base rates'!D$116) +($N10*'fnd base rates'!D$117) +($O10*'fnd base rates'!D$118) +($P10*VLOOKUP($S10+12,rate_basefnd,4))) *$R10 -> 1443.9 | W10: =(($D10*'fnd base rates'!E$107) +($E10*'fnd base rates'!E$108) +($F10*'fnd base rates'!E$109) +($G10*'fnd base rates'!E$110) +($H10*'fnd base rates'!E$111) +($I10*'fnd base rates'!E$112) +($J10*'fnd base rates'!E$113) +($K10*'fnd base rates'!E$114) +($M10*'fnd base rates'!E$116) +($N10*'fnd base rates'!E$117) +($O10*'fnd base rates'!E$118) +($P10*VLOOKUP($S10+12,rate_basefnd,5))) *$R10 -> 6913.435446 | X10: =(($D10*'fnd base rates'!F$107) +($E10*'fnd base rates'!F$108) +($F10*'fnd base rates'!F$109) +($G10*'fnd base rates'!F$110) +($H10*'fnd base rates'!F$111) +($I10*'fnd base rates'!F$112) +($J10*'fnd base rates'!F$113) +($K10*'fnd base rates'!F$114) +($M10*'fnd base rates'!F$116) +($N10*'fnd base rates'!F$117) +($O10*'fnd base rates'!F$118) +($P10*VLOOKUP($S10+12,rate_basefnd,6))) *$R10 -> 2104.496502 | Y10: =(($D10*'fnd base rates'!G$107) +($E10*'fnd base rates'!G$108) +($F10*'fnd base rates'!G$109) +($G10*'fnd base rates'!G$110) +($H10*'fnd base rates'!G$111) +($I10*'fnd base rates'!G$112) +($J10*'fnd base rates'!G$113) +($K10*'fnd base rates'!G$114) +($M10*'fnd base rates'!G$116) +($N10*'fnd base rates'!G$117) +($O10*'fnd base rates'!G$118) +($P10*VLOOKUP($S10+12,rate_basefnd,7))) *$R10 -> 306.296812 | Z10: =(($D10*'fnd base rates'!H$107) +($E10*'fnd base rates'!H$108) +($F10*'fnd base rates'!H$109) +($G10*'fnd base rates'!H$110) +($H10*'fnd base rates'!H$111) +($I10*'fnd base rates'!H$112) +($J10*'fnd base rates'!H$113) +($K10*'fnd base rates'!H$114) +($M10*'fnd base rates'!H$116) +($N10*'fnd base rates'!H$117) +($O10*'fnd base rates'!H$118) +($P10*VLOOKUP($S10+12,rate_basefnd,8))) -> 987.31414 | AA10: =(($D10*'fnd base rates'!I$107) +($E10*'fnd base rates'!I$108) +($F10*'fnd base rates'!I$109) +($G10*'fnd base rates'!I$110) +($H10*'fnd base rates'!I$111) +($I10*'fnd base rates'!I$112) +($J10*'fnd base rates'!I$113) +($K10*'fnd base rates'!I$114) +($M10*'fnd base rates'!I$116) +($N10*'fnd base rates'!I$117) +($O10*'fnd base rates'!I$118) +($P10*VLOOKUP($S10+12,rate_basefnd,9))) *$R10 -> 561.53 | AB10: =(($D10*'fnd base rates'!J$107) +($E10*'fnd base rates'!J$108) +($F10*'fnd base rates'!J$109) +($G10*'fnd base rates'!J$110) +($H10*'fnd base rates'!J$111) +($I10*'fnd base rates'!J$112) +($J10*'fnd base rates'!J$113) +($K10*'fnd base rates'!J$114) +($M10*'fnd base rates'!J$116) +($N10*'fnd base rates'!J$117) +($O10*'fnd base rates'!J$118) +($P10*VLOOKUP($S10+12,rate_basefnd,10))) *$R10 -> 378.52 | AC10: =(($D10*'fnd base rates'!K$107) +($E10*'fnd base rates'!K$108) +($F10*'fnd base rates'!K$109) +($G10*'fnd base rates'!K$110) +($H10*'fnd base rates'!K$111) +($I10*'fnd base rates'!K$112) +($J10*'fnd base rates'!K$113) +($K10*'fnd base rates'!K$114) +($M10*'fnd base rates'!K$116) +($N10*'fnd base rates'!K$117) +($O10*'fnd base rates'!K$118) +($P10*VLOOKUP($S10+12,rate_basefnd,11))) *$R10 -> 2149.404376 | AD10: =(($D10*'fnd base rates'!L$107) +($E10*'fnd base rates'!L$108) +($F10*'fnd base rates'!L$109) +($G10*'fnd base rates'!L$110) +($H10*'fnd base rates'!L$111) +($I10*'fnd base rates'!L$112) +($J10*'fnd base rates'!L$113) +($K10*'fnd base rates'!L$114) +($M10*'fnd base rates'!L$116) +($N10*'fnd base rates'!L$117) +($O10*'fnd base rates'!L$118) +($P10*VLOOKUP($S10+12,rate_basefnd,12))) -> 2411.432842 | AE10: =(($D10*'fnd base rates'!M$107) +($E10*'fnd base rates'!M$108) +($F10*'fnd base rates'!M$109) +($G10*'fnd base rates'!M$110) +($H10*'fnd base rates'!M$111) +($I10*'fnd base rates'!M$112) +($J10*'fnd base rates'!M$113) +($K10*'fnd base rates'!M$114) +($M10*'fnd base rates'!M$116) +($N10*'fnd base rates'!M$117) +($O10*'fnd base rates'!M$118) +($P10*VLOOKUP($S10+12,rate_basefnd,13))) -> 0 | AF10: =SUM(U10:AE10) -> 18264.90792 | AH10: =B10 -> 409201003 | AI10: =IF($B10<499999999,MID($B10,1,3),MID($B10,1,4)) -> 409 | AJ10: =IF($B10<499999999,MID($B10,4,3),MID($B10,5,3)) -> 201 | AK10: =IF($B10<499999999,MID($B10,7,3),MID($B10,8,3)) -> 003 | AL10: =IF(VLOOKUP(VALUE(IF(AH10<499999999,MID(AH10,4,3),MID(AH10,5,3))),distinfo,4)=R10,1,0) -> 1 | AM10: =enro -> 2 | AN10: =AF10 -> 18264.90792 | AO10: =IF(OR(AF10=0,AM10=0),0,ROUND(AN10/AM10,0)) -> 9132 | AP10: =AO10-AQ10 -> 0 | AQ10: 9132 | AW10: 9224 | AX10: =AY10-AW10 -> 0 | AY10: 9224 | AZ10: =BA10-AY10 -> -92 | BA10: 9132 | BB10: =BC10-BA10 -> 0 | BC10: 9132
A11: 409 | B11: 409201072 | C11: ALMA DEL MAR | D11: ='fnd enro'!D11 -> 0 | E11: ='fnd enro'!E11 -> 0 | F11: ='fnd enro'!F11 -> 0 | G11: ='fnd enro'!G11 -> 1 | H11: ='fnd enro'!H11 -> 0 | I11: ='fnd enro'!I11 -> 0 | J11: ='fnd enro'!J11 -> 0 | K11: ='fnd enro'!K11 -> 0.0379 | L11: ='fnd enro'!L11 -> 0 | M11: ='fnd enro'!M11+'fnd enro'!N11 -> 0 | N11: ='fnd enro'!O11 -> 0 | O11: ='fnd enro'!P11 -> 0 | P11: ='fnd enro'!Q11 -> 1 | Q11: ='fnd enro'!S11 -> 1 | R11: =VLOOKUP(B11,charterinfo_b,6) -> 1 | S11: =VALUE('fnd enro'!R11) -> 5 | U11: =(($D11*'fnd base rates'!C$107) +($E11*'fnd base rates'!C$108) +($F11*'fnd base rates'!C$109) +($G11*'fnd base rates'!C$110) +($H11*'fnd base rates'!C$111) +($I11*'fnd base rates'!C$112) +($J11*'fnd base rates'!C$113) +($K11*'fnd base rates'!C$114) +($M11*'fnd base rates'!C$116) +($N11*'fnd base rates'!C$117) +($O11*'fnd base rates'!C$118) +($P11*VLOOKUP($S11+12,rate_basefnd,3))) *$R11 -> 558.578899 | V11: =(($D11*'fnd base rates'!D$107) +($E11*'fnd base rates'!D$108) +($F11*'fnd base rates'!D$109) +($G11*'fnd base rates'!D$110) +($H11*'fnd base rates'!D$111) +($I11*'fnd base rates'!D$112) +($J11*'fnd base rates'!D$113) +($K11*'fnd base rates'!D$114) +($M11*'fnd base rates'!D$116) +($N11*'fnd base rates'!D$117) +($O11*'fnd base rates'!D$118) +($P11*VLOOKUP($S11+12,rate_basefnd,4))) *$R11 -> 979.18 | W11: =(($D11*'fnd base rates'!E$107) +($E11*'fnd base rates'!E$108) +($F11*'fnd base rates'!E$109) +($G11*'fnd base rates'!E$110) +($H11*'fnd base rates'!E$111) +($I11*'fnd base rates'!E$112) +($J11*'fnd base rates'!E$113) +($K11*'fnd base rates'!E$114) +($M11*'fnd base rates'!E$116) +($N11*'fnd base rates'!E$117) +($O11*'fnd base rates'!E$118) +($P11*VLOOKUP($S11+12,rate_basefnd,5))) *$R11 -> 6166.417723 | X11: =(($D11*'fnd base rates'!F$107) +($E11*'fnd base rates'!F$108) +($F11*'fnd base rates'!F$109) +($G11*'fnd base rates'!F$110) +($H11*'fnd base rates'!F$111) +($I11*'fnd base rates'!F$112) +($J11*'fnd base rates'!F$113) +($K11*'fnd base rates'!F$114) +($M11*'fnd base rates'!F$116) +($N11*'fnd base rates'!F$117) +($O11*'fnd base rates'!F$118) +($P11*VLOOKUP($S11+12,rate_basefnd,6))) *$R11 -> 1171.178251 | Y11: =(($D11*'fnd base rates'!G$107) +($E11*'fnd base rates'!G$108) +($F11*'fnd base rates'!G$109) +($G11*'fnd base rates'!G$110) +($H11*'fnd base rates'!G$111) +($I11*'fnd base rates'!G$112) +($J11*'fnd base rates'!G$113) +($K11*'fnd base rates'!G$114) +($M11*'fnd base rates'!G$116) +($N11*'fnd base rates'!G$117) +($O11*'fnd base rates'!G$118) +($P11*VLOOKUP($S11+12,rate_basefnd,7))) *$R11 -> 269.473406 | Z11: =(($D11*'fnd base rates'!H$107) +($E11*'fnd base rates'!H$108) +($F11*'fnd base rates'!H$109) +($G11*'fnd base rates'!H$110) +($H11*'fnd base rates'!H$111) +($I11*'fnd base rates'!H$112) +($J11*'fnd base rates'!H$113) +($K11*'fnd base rates'!H$114) +($M11*'fnd base rates'!H$116) +($N11*'fnd base rates'!H$117) +($O11*'fnd base rates'!H$118) +($P11*VLOOKUP($S11+12,rate_basefnd,8))) -> 512.32707 | AA11: =(($D11*'fnd base rates'!I$107) +($E11*'fnd base rates'!I$108) +($F11*'fnd base rates'!I$109) +($G11*'fnd base rates'!I$110) +($H11*'fnd base rates'!I$111) +($I11*'fnd base rates'!I$112) +($J11*'fnd base rates'!I$113) +($K11*'fnd base rates'!I$114) +($M11*'fnd base rates'!I$116) +($N11*'fnd base rates'!I$117) +($O11*'fnd base rates'!I$118) +($P11*VLOOKUP($S11+12,rate_basefnd,9))) *$R11 -> 342.57 | AB11: =(($D11*'fnd base rates'!J$107) +($E11*'fnd base rates'!J$108) +($F11*'fnd base rates'!J$109) +($G11*'fnd base rates'!J$110) +($H11*'fnd base rates'!J$111) +($I11*'fnd base rates'!J$112) +($J11*'fnd base rates'!J$113) +($K11*'fnd base rates'!J$114) +($M11*'fnd base rates'!J$116) +($N11*'fnd base rates'!J$117) +($O11*'fnd base rates'!J$118) +($P11*VLOOKUP($S11+12,rate_basefnd,10))) *$R11 -> 672.1 | AC11: =(($D11*'fnd base rates'!K$107) +($E11*'fnd base rates'!K$108) +($F11*'fnd base rates'!K$109) +($G11*'fnd base rates'!K$110) +($H11*'fnd base rates'!K$111) +($I11*'fnd base rates'!K$112) +($J11*'fnd base rates'!K$113) +($K11*'fnd base rates'!K$114) +($M11*'fnd base rates'!K$116) +($N11*'fnd base rates'!K$117) +($O11*'fnd base rates'!K$118) +($P11*VLOOKUP($S11+12,rate_basefnd,11))) *$R11 -> 1036.037188 | AD11: =(($D11*'fnd base rates'!L$107) +($E11*'fnd base rates'!L$108) +($F11*'fnd base rates'!L$109) +($G11*'fnd base rates'!L$110) +($H11*'fnd base rates'!L$111) +($I11*'fnd base rates'!L$112) +($J11*'fnd base rates'!L$113) +($K11*'fnd base rates'!L$114) +($M11*'fnd base rates'!L$116) +($N11*'fnd base rates'!L$117) +($O11*'fnd base rates'!L$118) +($P11*VLOOKUP($S11+12,rate_basefnd,12))) -> 1596.101421 | AE11: =(($D11*'fnd base rates'!M$107) +($E11*'fnd base rates'!M$108) +($F11*'fnd base rates'!M$109) +($G11*'fnd base rates'!M$110) +($H11*'fnd base rates'!M$111) +($I11*'fnd base rates'!M$112) +($J11*'fnd base rates'!M$113) +($K11*'fnd base rates'!M$114) +($M11*'fnd base rates'!M$116) +($N11*'fnd base rates'!M$117) +($O11*'fnd base rates'!M$118) +($P11*VLOOKUP($S11+12,rate_basefnd,13))) -> 0 | AF11: =SUM(U11:AE11) -> 13303.96396 | AH11: =B11 -> 409201072 | AI11: =IF($B11<499999999,MID($B11,1,3),MID($B11,1,4)) -> 409 | AJ11: =IF($B11<499999999,MID($B11,4,3),MID($B11,5,3)) -> 201 | AK11: =IF($B11<499999999,MID($B11,7,3),MID($B11,8,3)) -> 072 | AL11: =IF(VLOOKUP(VALUE(IF(AH11<499999999,MID(AH11,4,3),MID(AH11,5,3))),distinfo,4)=R11,1,0) -> 1 | AM11: 1 | AN11: =AF11 -> 13303.96396 | AO11: =IF(OR(AF11=0,AM11=0),0,ROUND(AN11/AM11,0)) -> 13304 | AP11: =AO11-AQ11 -> 0 | AQ11: 13304 | AW11: 13399 | AX11: =AY11-AW11 -> 15 | AY11: 13414 | AZ11: -110 | BA11: 13304 | BB11: 0 | BC11: 13304
A12: 409 | B12: 409201094 | C12: ALMA DEL MAR | D12: ='fnd enro'!D12 -> 0 | E12: ='fnd enro'!E12 -> 0 | F12: ='fnd enro'!F12 -> 0 | G12: ='fnd enro'!G12 -> 2 | H12: ='fnd enro'!H12 -> 1 | I12: ='fnd enro'!I12 -> 0 | J12: ='fnd enro'!J12 -> 0 | K12: ='fnd enro'!K12 -> 0.1137 | L12: ='fnd enro'!L12 -> 0 | M12: ='fnd enro'!M12+'fnd enro'!N12 -> 0 | N12: ='fnd enro'!O12 -> 0 | O12: ='fnd enro'!P12 -> 0 | P12: ='fnd enro'!Q12 -> 3 | Q12: ='fnd enro'!S12 -> 3 | R12: 1 | S12: =VALUE('fnd enro'!R12) -> 7 | U12: =(($D12*'fnd base rates'!C$107) +($E12*'fnd base rates'!C$108) +($F12*'fnd base rates'!C$109) +($G12*'fnd base rates'!C$110) +($H12*'fnd base rates'!C$111) +($I12*'fnd base rates'!C$112) +($J12*'fnd base rates'!C$113) +($K12*'fnd base rates'!C$114) +($M12*'fnd base rates'!C$116) +($N12*'fnd base rates'!C$117) +($O12*'fnd base rates'!C$118) +($P12*VLOOKUP($S12+12,rate_basefnd,3))) *$R12 -> 1691.066697 | V12: =(($D12*'fnd base rates'!D$107) +($E12*'fnd base rates'!D$108) +($F12*'fnd base rates'!D$109) +($G12*'fnd base rates'!D$110) +($H12*'fnd base rates'!D$111) +($I12*'fnd base rates'!D$112) +($J12*'fnd base rates'!D$113) +($K12*'fnd base rates'!D$114) +($M12*'fnd base rates'!D$116) +($N12*'fnd base rates'!D$117) +($O12*'fnd base rates'!D$118) +($P12*VLOOKUP($S12+12,rate_basefnd,4))) *$R12 -> 3010.14 | W12: =(($D12*'fnd base rates'!E$107) +($E12*'fnd base rates'!E$108) +($F12*'fnd base rates'!E$109) +($G12*'fnd base rates'!E$110) +($H12*'fnd base rates'!E$111) +($I12*'fnd base rates'!E$112) +($J12*'fnd base rates'!E$113) +($K12*'fnd base rates'!E$114) +($M12*'fnd base rates'!E$116) +($N12*'fnd base rates'!E$117) +($O12*'fnd base rates'!E$118) +($P12*VLOOKUP($S12+12,rate_basefnd,5))) *$R12 -> 18810.75317 | X12: =(($D12*'fnd base rates'!F$107) +($E12*'fnd base rates'!F$108) +($F12*'fnd base rates'!F$109) +($G12*'fnd base rates'!F$110) +($H12*'fnd base rates'!F$111) +($I12*'fnd base rates'!F$112) +($J12*'fnd base rates'!F$113) +($K12*'fnd base rates'!F$114) +($M12*'fnd base rates'!F$116) +($N12*'fnd base rates'!F$117) +($O12*'fnd base rates'!F$118) +($P12*VLOOKUP($S12+12,rate_basefnd,6))) *$R12 -> 3275.674753 | Y12: =(($D12*'fnd base rates'!G$107) +($E12*'fnd base rates'!G$108) +($F12*'fnd base rates'!G$109) +($G12*'fnd base rates'!G$110) +($H12*'fnd base rates'!G$111) +($I12*'fnd base rates'!G$112) +($J12*'fnd base rates'!G$113) +($K12*'fnd base rates'!G$114) +($M12*'fnd base rates'!G$116) +($N12*'fnd base rates'!G$117) +($O12*'fnd base rates'!G$118) +($P12*VLOOKUP($S12+12,rate_basefnd,7))) *$R12 -> 853.810218 | Z12: =(($D12*'fnd base rates'!H$107) +($E12*'fnd base rates'!H$108) +($F12*'fnd base rates'!H$109) +($G12*'fnd base rates'!H$110) +($H12*'fnd base rates'!H$111) +($I12*'fnd base rates'!H$112) +($J12*'fnd base rates'!H$113) +($K12*'fnd base rates'!H$114) +($M12*'fnd base rates'!H$116) +($N12*'fnd base rates'!H$117) +($O12*'fnd base rates'!H$118) +($P12*VLOOKUP($S12+12,rate_basefnd,8))) -> 1542.26121 | AA12: =(($D12*'fnd base rates'!I$107) +($E12*'fnd base rates'!I$108) +($F12*'fnd base rates'!I$109) +($G12*'fnd base rates'!I$110) +($H12*'fnd base rates'!I$111) +($I12*'fnd base rates'!I$112) +($J12*'fnd base rates'!I$113) +($K12*'fnd base rates'!I$114) +($M12*'fnd base rates'!I$116) +($N12*'fnd base rates'!I$117) +($O12*'fnd base rates'!I$118) +($P12*VLOOKUP($S12+12,rate_basefnd,9))) *$R12 -> 1136.17 | AB12: =(($D12*'fnd base rates'!J$107) +($E12*'fnd base rates'!J$108) +($F12*'fnd base rates'!J$109) +($G12*'fnd base rates'!J$110) +($H12*'fnd base rates'!J$111) +($I12*'fnd base rates'!J$112) +($J12*'fnd base rates'!J$113) +($K12*'fnd base rates'!J$114) +($M12*'fnd base rates'!J$116) +($N12*'fnd base rates'!J$117) +($O12*'fnd base rates'!J$118) +($P12*VLOOKUP($S12+12,rate_basefnd,10))) *$R12 -> 2256.49 | AC12: =(($D12*'fnd base rates'!K$107) +($E12*'fnd base rates'!K$108) +($F12*'fnd base rates'!K$109) +($G12*'fnd base rates'!K$110) +($H12*'fnd base rates'!K$111) +($I12*'fnd base rates'!K$112) +($J12*'fnd base rates'!K$113) +($K12*'fnd base rates'!K$114) +($M12*'fnd base rates'!K$116) +($N12*'fnd base rates'!K$117) +($O12*'fnd base rates'!K$118) +($P12*VLOOKUP($S12+12,rate_basefnd,11))) *$R12 -> 3185.441564 | AD12: =(($D12*'fnd base rates'!L$107) +($E12*'fnd base rates'!L$108) +($F12*'fnd base rates'!L$109) +($G12*'fnd base rates'!L$110) +($H12*'fnd base rates'!L$111) +($I12*'fnd base rates'!L$112) +($J12*'fnd base rates'!L$113) +($K12*'fnd base rates'!L$114) +($M12*'fnd base rates'!L$116) +($N12*'fnd base rates'!L$117) +($O12*'fnd base rates'!L$118) +($P12*VLOOKUP($S12+12,rate_basefnd,12))) -> 4934.544263 | AE12: =(($D12*'fnd base rates'!M$107) +($E12*'fnd base rates'!M$108) +($F12*'fnd base rates'!M$109) +($G12*'fnd base rates'!M$110) +($H12*'fnd base rates'!M$111) +($I12*'fnd base rates'!M$112) +($J12*'fnd base rates'!M$113) +($K12*'fnd base rates'!M$114) +($M12*'fnd base rates'!M$116) +($N12*'fnd base rates'!M$117) +($O12*'fnd base rates'!M$118) +($P12*VLOOKUP($S12+12,rate_basefnd,13))) -> 0 | AF12: 40696.35187 | AH12: 409201094 | AI12: 409 | AJ12: 201 | AK12: 094 | AL12: 1 | AM12: 3 | AN12: 40696.35187 | AO12: 13565 | AP12: 0 | AQ12: 13565 | AW12: 13562 | AX12: 23 | AY12: 13585 | AZ12: -20 | BA12: 13565 | BB12: 0 | BC12: 13565
A13: 409 | B13: 409201201 | C13: ALMA DEL MAR | D13: ='fnd enro'!D13 -> 0 | E13: ='fnd enro'!E13 -> 0 | F13: ='fnd enro'!F13 -> 103 | G13: ='fnd enro'!G13 -> 355 | H13: ='fnd enro'!H13 -> 185 | I13: ='fnd enro'!I13 -> 0 | J13: ='fnd enro'!J13 -> 0 | K13: ='fnd enro'!K13 -> 24.3697 | L13: ='fnd enro'!L13 -> 0 | M13: ='fnd enro'!M13+'fnd enro'!N13 -> 184 | N13: ='fnd enro'!O13 -> 18 | O13: ='fnd enro'!P13 -> 0 | P13: ='fnd enro'!Q13 -> 443 | Q13: ='fnd enro'!S13 -> 643 | R13: 1 | S13: =VALUE('fnd enro'!R13) -> 10 | U13: =(($D13*'fnd base rates'!C$107) +($E13*'fnd base rates'!C$108) +($F13*'fnd base rates'!C$109) +($G13*'fnd base rates'!C$110) +($H13*'fnd base rates'!C$111) +($I13*'fnd base rates'!C$112) +($J13*'fnd base rates'!C$113) +($K13*'fnd base rates'!C$114) +($M13*'fnd base rates'!C$116) +($N13*'fnd base rates'!C$117) +($O13*'fnd base rates'!C$118) +($P13*VLOOKUP($S13+12,rate_basefnd,3))) *$R13 -> 371051.9821 | V13: =(($D13*'fnd base rates'!D$107) +($E13*'fnd base rates'!D$108) +($F13*'fnd base rates'!D$109) +($G13*'fnd base rates'!D$110) +($H13*'fnd base rates'!D$111) +($I13*'fnd base rates'!D$112) +($J13*'fnd base rates'!D$113) +($K13*'fnd base rates'!D$114) +($M13*'fnd base rates'!D$116) +($N13*'fnd base rates'!D$117) +($O13*'fnd base rates'!D$118) +($P13*VLOOKUP($S13+12,rate_basefnd,4))) *$R13 -> 630214.21 | W13: =(($D13*'fnd base rates'!E$107) +($E13*'fnd base rates'!E$108) +($F13*'fnd base rates'!E$109) +($G13*'fnd base rates'!E$110) +($H13*'fnd base rates'!E$111) +($I13*'fnd base rates'!E$112) +($J13*'fnd base rates'!E$113) +($K13*'fnd base rates'!E$114) +($M13*'fnd base rates'!E$116) +($N13*'fnd base rates'!E$117) +($O13*'fnd base rates'!E$118) +($P13*VLOOKUP($S13+12,rate_basefnd,5))) *$R13 -> 3807253.986 | X13: =(($D13*'fnd base rates'!F$107) +($E13*'fnd base rates'!F$108) +($F13*'fnd base rates'!F$109) +($G13*'fnd base rates'!F$110) +($H13*'fnd base rates'!F$111) +($I13*'fnd base rates'!F$112) +($J13*'fnd base rates'!F$113) +($K13*'fnd base rates'!F$114) +($M13*'fnd base rates'!F$116) +($N13*'fnd base rates'!F$117) +($O13*'fnd base rates'!F$118) +($P13*VLOOKUP($S13+12,rate_basefnd,6))) *$R13 -> 741694.2954 | Y13: =(($D13*'fnd base rates'!G$107) +($E13*'fnd base rates'!G$108) +($F13*'fnd base rates'!G$109) +($G13*'fnd base rates'!G$110) +($H13*'fnd base rates'!G$111) +($I13*'fnd base rates'!G$112) +($J13*'fnd base rates'!G$113) +($K13*'fnd base rates'!G$114) +($M13*'fnd base rates'!G$116) +($N13*'fnd base rates'!G$117) +($O13*'fnd base rates'!G$118) +($P13*VLOOKUP($S13+12,rate_basefnd,7))) *$R13 -> 169454.3401 | Z13: =(($D13*'fnd base rates'!H$107) +($E13*'fnd base rates'!H$108) +($F13*'fnd base rates'!H$109) +($G13*'fnd base rates'!H$110) +($H13*'fnd base rates'!H$111) +($I13*'fnd base rates'!H$112) +($J13*'fnd base rates'!H$113) +($K13*'fnd base rates'!H$114) +($M13*'fnd base rates'!H$116) +($N13*'fnd base rates'!H$117) +($O13*'fnd base rates'!H$118) +($P13*VLOOKUP($S13+12,rate_basefnd,8))) -> 350410.496 | AA13: =(($D13*'fnd base rates'!I$107) +($E13*'fnd base rates'!I$108) +($F13*'fnd base rates'!I$109) +($G13*'fnd base rates'!I$110) +($H13*'fnd base rates'!I$111) +($I13*'fnd base rates'!I$112) +($J13*'fnd base rates'!I$113) +($K13*'fnd base rates'!I$114) +($M13*'fnd base rates'!I$116) +($N13*'fnd base rates'!I$117) +($O13*'fnd base rates'!I$118) +($P13*VLOOKUP($S13+12,rate_basefnd,9))) *$R13 -> 236352.41 | AB13: =(($D13*'fnd base rates'!J$107) +($E13*'fnd base rates'!J$108) +($F13*'fnd base rates'!J$109) +($G13*'fnd base rates'!J$110) +($H13*'fnd base rates'!J$111) +($I13*'fnd base rates'!J$112) +($J13*'fnd base rates'!J$113) +($K13*'fnd base rates'!J$114) +($M13*'fnd base rates'!J$116) +($N13*'fnd base rates'!J$117) +($O13*'fnd base rates'!J$118) +($P13*VLOOKUP($S13+12,rate_basefnd,10))) *$R13 -> 382945.9 | AC13: =(($D13*'fnd base rates'!K$107) +($E13*'fnd base rates'!K$108) +($F13*'fnd base rates'!K$109) +($G13*'fnd base rates'!K$110) +($H13*'fnd base rates'!K$111) +($I13*'fnd base rates'!K$112) +($J13*'fnd base rates'!K$113) +($K13*'fnd base rates'!K$114) +($M13*'fnd base rates'!K$116) +($N13*'fnd base rates'!K$117) +($O13*'fnd base rates'!K$118) +($P13*VLOOKUP($S13+12,rate_basefnd,11))) *$R13 -> 736413.7619 | AD13: =(($D13*'fnd base rates'!L$107) +($E13*'fnd base rates'!L$108) +($F13*'fnd base rates'!L$109) +($G13*'fnd base rates'!L$110) +($H13*'fnd base rates'!L$111) +($I13*'fnd base rates'!L$112) +($J13*'fnd base rates'!L$113) +($K13*'fnd base rates'!L$114) +($M13*'fnd base rates'!L$116) +($N13*'fnd base rates'!L$117) +($O13*'fnd base rates'!L$118) +($P13*VLOOKUP($S13+12,rate_basefnd,12))) -> 1032836.324 | AE13: =(($D13*'fnd base rates'!M$107) +($E13*'fnd base rates'!M$108) +($F13*'fnd base rates'!M$109) +($G13*'fnd base rates'!M$110) +($H13*'fnd base rates'!M$111) +($I13*'fnd base rates'!M$112) +($J13*'fnd base rates'!M$113) +($K13*'fnd base rates'!M$114) +($M13*'fnd base rates'!M$116) +($N13*'fnd base rates'!M$117) +($O13*'fnd base rates'!M$118) +($P13*VLOOKUP($S13+12,rate_basefnd,13))) -> 0 | AF13: 8458627.705 | AH13: 409201201 | AI13: 409 | AJ13: 201 | AK13: 201 | AL13: 1 | AM13: 643 | AN13: 8458627.705 | AO13: 13155 | AP13: 0 | AQ13: 13155 | AW13: 13758 | AX13: 81 | AY13: 13839 | AZ13: -684 | BA13: 13155 | BB13: 0 | BC13: 13155
A14: 409 | B14: 409201293 | C14: ALMA DEL MAR | D14: ='fnd enro'!D14 -> 0 | E14: ='fnd enro'!E14 -> 0 | F14: ='fnd enro'!F14 -> 0 | G14: ='fnd enro'!G14 -> 1 | H14: ='fnd enro'!H14 -> 0 | I14: ='fnd enro'!I14 -> 0 | J14: ='fnd enro'!J14 -> 0 | K14: ='fnd enro'!K14 -> 0.0379 | L14: ='fnd enro'!L14 -> 0 | M14: ='fnd enro'!M14+'fnd enro'!N14 -> 0 | N14: ='fnd enro'!O14 -> 0 | O14: ='fnd enro'!P14 -> 0 | P14: ='fnd enro'!Q14 -> 0 | Q14: ='fnd enro'!S14 -> 1 | R14: 1 | S14: =VALUE('fnd enro'!R14) -> 9 | U14: =(($D14*'fnd base rates'!C$107) +($E14*'fnd base rates'!C$108) +($F14*'fnd base rates'!C$109) +($G14*'fnd base rates'!C$110) +($H14*'fnd base rates'!C$111) +($I14*'fnd base rates'!C$112) +($J14*'fnd base rates'!C$113) +($K14*'fnd base rates'!C$114) +($M14*'fnd base rates'!C$116) +($N14*'fnd base rates'!C$117) +($O14*'fnd base rates'!C$118) +($P14*VLOOKUP($S14+12,rate_basefnd,3))) *$R14 -> 504.288899 | V14: =(($D14*'fnd base rates'!D$107) +($E14*'fnd base rates'!D$108) +($F14*'fnd base rates'!D$109) +($G14*'fnd base rates'!D$110) +($H14*'fnd base rates'!D$111) +($I14*'fnd base rates'!D$112) +($J14*'fnd base rates'!D$113) +($K14*'fnd base rates'!D$114) +($M14*'fnd base rates'!D$116) +($N14*'fnd base rates'!D$117) +($O14*'fnd base rates'!D$118) +($P14*VLOOKUP($S14+12,rate_basefnd,4))) *$R14 -> 721.95 | W14: =(($D14*'fnd base rates'!E$107) +($E14*'fnd base rates'!E$108) +($F14*'fnd base rates'!E$109) +($G14*'fnd base rates'!E$110) +($H14*'fnd base rates'!E$111) +($I14*'fnd base rates'!E$112) +($J14*'fnd base rates'!E$113) +($K14*'fnd base rates'!E$114) +($M14*'fnd base rates'!E$116) +($N14*'fnd base rates'!E$117) +($O14*'fnd base rates'!E$118) +($P14*VLOOKUP($S14+12,rate_basefnd,5))) *$R14 -> 3655.327723 | X14: =(($D14*'fnd base rates'!F$107) +($E14*'fnd base rates'!F$108) +($F14*'fnd base rates'!F$109) +($G14*'fnd base rates'!F$110) +($H14*'fnd base rates'!F$111) +($I14*'fnd base rates'!F$112) +($J14*'fnd base rates'!F$113) +($K14*'fnd base rates'!F$114) +($M14*'fnd base rates'!F$116) +($N14*'fnd base rates'!F$117) +($O14*'fnd base rates'!F$118) +($P14*VLOOKUP($S14+12,rate_basefnd,6))) *$R14 -> 1171.178251 | Y14: =(($D14*'fnd base rates'!G$107) +($E14*'fnd base rates'!G$108) +($F14*'fnd base rates'!G$109) +($G14*'fnd base rates'!G$110) +($H14*'fnd base rates'!G$111) +($I14*'fnd base rates'!G$112) +($J14*'fnd base rates'!G$113) +($K14*'fnd base rates'!G$114) +($M14*'fnd base rates'!G$116) +($N14*'fnd base rates'!G$117) +($O14*'fnd base rates'!G$118) +($P14*VLOOKUP($S14+12,rate_basefnd,7))) *$R14 -> 147.643406 | Z14: =(($D14*'fnd base rates'!H$107) +($E14*'fnd base rates'!H$108) +($F14*'fnd base rates'!H$109) +($G14*'fnd base rates'!H$110) +($H14*'fnd base rates'!H$111) +($I14*'fnd base rates'!H$112) +($J14*'fnd base rates'!H$113) +($K14*'fnd base rates'!H$114) +($M14*'fnd base rates'!H$116) +($N14*'fnd base rates'!H$117) +($O14*'fnd base rates'!H$118) +($P14*VLOOKUP($S14+12,rate_basefnd,8))) -> 493.65707 | AA14: =(($D14*'fnd base rates'!I$107) +($E14*'fnd base rates'!I$108) +($F14*'fnd base rates'!I$109) +($G14*'fnd base rates'!I$110) +($H14*'fnd base rates'!I$111) +($I14*'fnd base rates'!I$112) +($J14*'fnd base rates'!I$113) +($K14*'fnd base rates'!I$114) +($M14*'fnd base rates'!I$116) +($N14*'fnd base rates'!I$117) +($O14*'fnd base rates'!I$118) +($P14*VLOOKUP($S14+12,rate_basefnd,9))) *$R14 -> 240.89 | AB14: =(($D14*'fnd base rates'!J$107) +($E14*'fnd base rates'!J$108) +($F14*'fnd base rates'!J$109) +($G14*'fnd base rates'!J$110) +($H14*'fnd base rates'!J$111) +($I14*'fnd base rates'!J$112) +($J14*'fnd base rates'!J$113) +($K14*'fnd base rates'!J$114) +($M14*'fnd base rates'!J$116) +($N14*'fnd base rates'!J$117) +($O14*'fnd base rates'!J$118) +($P14*VLOOKUP($S14+12,rate_basefnd,10))) *$R14 -> 143.73 | AC14: =(($D14*'fnd base rates'!K$107) +($E14*'fnd base rates'!K$108) +($F14*'fnd base rates'!K$109) +($G14*'fnd base rates'!K$110) +($H14*'fnd base rates'!K$111) +($I14*'fnd base rates'!K$112) +($J14*'fnd base rates'!K$113) +($K14*'fnd base rates'!K$114) +($M14*'fnd base rates'!K$116) +($N14*'fnd base rates'!K$117) +($O14*'fnd base rates'!K$118) +($P14*VLOOKUP($S14+12,rate_basefnd,11))) *$R14 -> 1036.037188 | AD14: =(($D14*'fnd base rates'!L$107) +($E14*'fnd base rates'!L$108) +($F14*'fnd base rates'!L$109) +($G14*'fnd base rates'!L$110) +($H14*'fnd base rates'!L$111) +($I14*'fnd base rates'!L$112) +($J14*'fnd base rates'!L$113) +($K14*'fnd base rates'!L$114) +($M14*'fnd base rates'!L$116) +($N14*'fnd base rates'!L$117) +($O14*'fnd base rates'!L$118) +($P14*VLOOKUP($S14+12,rate_basefnd,12))) -> 1189.911421 | AE14: =(($D14*'fnd base rates'!M$107) +($E14*'fnd base rates'!M$108) +($F14*'fnd base rates'!M$109) +($G14*'fnd base rates'!M$110) +($H14*'fnd base rates'!M$111) +($I14*'fnd base rates'!M$112) +($J14*'fnd base rates'!M$113) +($K14*'fnd base rates'!M$114) +($M14*'fnd base rates'!M$116) +($N14*'fnd base rates'!M$117) +($O14*'fnd base rates'!M$118) +($P14*VLOOKUP($S14+12,rate_basefnd,13))) -> 0 | AF14: 9304.613958 | AH14: 409201293 | AI14: 409 | AJ14: 201 | AK14: 293 | AL14: 1 | AM14: 1 | AN14: 9304.613958 | AO14: 9305 | AP14: 0 | AQ14: 9305 | AW14: 13995 | AX14: 61 | AY14: 14056 | AZ14: -4751 | BA14: 9305 | BB14: 0 | BC14: 9305
A15: 409 | B15: 409201331 | C15: ALMA DEL MAR | D15: ='fnd enro'!D15 -> 0 | E15: ='fnd enro'!E15 -> 0 | F15: ='fnd enro'!F15 -> 0 | G15: ='fnd enro'!G15 -> 2 | H15: ='fnd enro'!H15 -> 1 | I15: ='fnd enro'!I15 -> 0 | J15: ='fnd enro'!J15 -> 0 | K15: ='fnd enro'!K15 -> 0.1137 | L15: ='fnd enro'!L15 -> 0 | M15: ='fnd enro'!M15+'fnd enro'!N15 -> 0 | N15: ='fnd enro'!O15 -> 0 | O15: ='fnd enro'!P15 -> 0 | P15: ='fnd enro'!Q15 -> 0 | Q15: ='fnd enro'!S15 -> 3 | R15: 1 | S15: =VALUE('fnd enro'!R15) -> 6 | U15: =(($D15*'fnd base rates'!C$107) +($E15*'fnd base rates'!C$108) +($F15*'fnd base rates'!C$109) +($G15*'fnd base rates'!C$110) +($H15*'fnd base rates'!C$111) +($I15*'fnd base rates'!C$112) +($J15*'fnd base rates'!C$113) +($K15*'fnd base rates'!C$114) +($M15*'fnd base rates'!C$116) +($N15*'fnd base rates'!C$117) +($O15*'fnd base rates'!C$118) +($P15*VLOOKUP($S15+12,rate_basefnd,3))) *$R15 -> 1512.866697 | V15: =(($D15*'fnd base rates'!D$107) +($E15*'fnd base rates'!D$108) +($F15*'fnd base rates'!D$109) +($G15*'fnd base rates'!D$110) +($H15*'fnd base rates'!D$111) +($I15*'fnd base rates'!D$112) +($J15*'fnd base rates'!D$113) +($K15*'fnd base rates'!D$114) +($M15*'fnd base rates'!D$116) +($N15*'fnd base rates'!D$117) +($O15*'fnd base rates'!D$118) +($P15*VLOOKUP($S15+12,rate_basefnd,4))) *$R15 -> 2165.85 | W15: =(($D15*'fnd base rates'!E$107) +($E15*'fnd base rates'!E$108) +($F15*'fnd base rates'!E$109) +($G15*'fnd base rates'!E$110) +($H15*'fnd base rates'!E$111) +($I15*'fnd base rates'!E$112) +($J15*'fnd base rates'!E$113) +($K15*'fnd base rates'!E$114) +($M15*'fnd base rates'!E$116) +($N15*'fnd base rates'!E$117) +($O15*'fnd base rates'!E$118) +($P15*VLOOKUP($S15+12,rate_basefnd,5))) *$R15 -> 10568.76317 | X15: =(($D15*'fnd base rates'!F$107) +($E15*'fnd base rates'!F$108) +($F15*'fnd base rates'!F$109) +($G15*'fnd base rates'!F$110) +($H15*'fnd base rates'!F$111) +($I15*'fnd base rates'!F$112) +($J15*'fnd base rates'!F$113) +($K15*'fnd base rates'!F$114) +($M15*'fnd base rates'!F$116) +($N15*'fnd base rates'!F$117) +($O15*'fnd base rates'!F$118) +($P15*VLOOKUP($S15+12,rate_basefnd,6))) *$R15 -> 3275.674753 | Y15: =(($D15*'fnd base rates'!G$107) +($E15*'fnd base rates'!G$108) +($F15*'fnd base rates'!G$109) +($G15*'fnd base rates'!G$110) +($H15*'fnd base rates'!G$111) +($I15*'fnd base rates'!G$112) +($J15*'fnd base rates'!G$113) +($K15*'fnd base rates'!G$114) +($M15*'fnd base rates'!G$116) +($N15*'fnd base rates'!G$117) +($O15*'fnd base rates'!G$118) +($P15*VLOOKUP($S15+12,rate_basefnd,7))) *$R15 -> 453.940218 | Z15: =(($D15*'fnd base rates'!H$107) +($E15*'fnd base rates'!H$108) +($F15*'fnd base rates'!H$109) +($G15*'fnd base rates'!H$110) +($H15*'fnd base rates'!H$111) +($I15*'fnd base rates'!H$112) +($J15*'fnd base rates'!H$113) +($K15*'fnd base rates'!H$114) +($M15*'fnd base rates'!H$116) +($N15*'fnd base rates'!H$117) +($O15*'fnd base rates'!H$118) +($P15*VLOOKUP($S15+12,rate_basefnd,8))) -> 1480.97121 | AA15: =(($D15*'fnd base rates'!I$107) +($E15*'fnd base rates'!I$108) +($F15*'fnd base rates'!I$109) +($G15*'fnd base rates'!I$110) +($H15*'fnd base rates'!I$111) +($I15*'fnd base rates'!I$112) +($J15*'fnd base rates'!I$113) +($K15*'fnd base rates'!I$114) +($M15*'fnd base rates'!I$116) +($N15*'fnd base rates'!I$117) +($O15*'fnd base rates'!I$118) +($P15*VLOOKUP($S15+12,rate_basefnd,9))) *$R15 -> 802.42 | AB15: =(($D15*'fnd base rates'!J$107) +($E15*'fnd base rates'!J$108) +($F15*'fnd base rates'!J$109) +($G15*'fnd base rates'!J$110) +($H15*'fnd base rates'!J$111) +($I15*'fnd base rates'!J$112) +($J15*'fnd base rates'!J$113) +($K15*'fnd base rates'!J$114) +($M15*'fnd base rates'!J$116) +($N15*'fnd base rates'!J$117) +($O15*'fnd base rates'!J$118) +($P15*VLOOKUP($S15+12,rate_basefnd,10))) *$R15 -> 522.25 | AC15: =(($D15*'fnd base rates'!K$107) +($E15*'fnd base rates'!K$108) +($F15*'fnd base rates'!K$109) +($G15*'fnd base rates'!K$110) +($H15*'fnd base rates'!K$111) +($I15*'fnd base rates'!K$112) +($J15*'fnd base rates'!K$113) +($K15*'fnd base rates'!K$114) +($M15*'fnd base rates'!K$116) +($N15*'fnd base rates'!K$117) +($O15*'fnd base rates'!K$118) +($P15*VLOOKUP($S15+12,rate_basefnd,11))) *$R15 -> 3185.441564 | AD15: =(($D15*'fnd base rates'!L$107) +($E15*'fnd base rates'!L$108) +($F15*'fnd base rates'!L$109) +($G15*'fnd base rates'!L$110) +($H15*'fnd base rates'!L$111) +($I15*'fnd base rates'!L$112) +($J15*'fnd base rates'!L$113) +($K15*'fnd base rates'!L$114) +($M15*'fnd base rates'!L$116) +($N15*'fnd base rates'!L$117) +($O15*'fnd base rates'!L$118) +($P15*VLOOKUP($S15+12,rate_basefnd,12))) -> 3601.344263 | AE15: =(($D15*'fnd base rates'!M$107) +($E15*'fnd base rates'!M$108) +($F15*'fnd base rates'!M$109) +($G15*'fnd base rates'!M$110) +($H15*'fnd base rates'!M$111) +($I15*'fnd base rates'!M$112) +($J15*'fnd base rates'!M$113) +($K15*'fnd base rates'!M$114) +($M15*'fnd base rates'!M$116) +($N15*'fnd base rates'!M$117) +($O15*'fnd base rates'!M$118) +($P15*VLOOKUP($S15+12,rate_basefnd,13))) -> 0 | AF15: 27569.52187 | AH15: 409201331 | AI15: 409 | AJ15: 201 | AK15: 331 | AL15: 1 | AM15: 3 | AN15: 27569.52187 | AO15: 9190 | AP15: 0 | AQ15: 9190 | AW15: 9281 | AX15: 0 | AY15: 9281 | AZ15: -91 | BA15: 9190 | BB15: 0 | BC15: 9190
A16: 410 | B16: 410035031 | C16: EXCEL ACADEMY | D16: ='fnd enro'!D16 -> 0 | E16: ='fnd enro'!E16 -> 0 | F16: ='fnd enro'!F16 -> 0 | G16: ='fnd enro'!G16 -> 0 | H16: ='fnd enro'!H16 -> 0 | I16: ='fnd enro'!I16 -> 1 | J16: ='fnd enro'!J16 -> 0 | K16: ='fnd enro'!K16 -> 0.0379 | L16: ='fnd enro'!L16 -> 0 | M16: ='fnd enro'!M16+'fnd enro'!N16 -> 0 | N16: ='fnd enro'!O16 -> 0 | O16: ='fnd enro'!P16 -> 0 | P16: ='fnd enro'!Q16 -> 0 | Q16: ='fnd enro'!S16 -> 1 | R16: 1.085 | S16: =VALUE('fnd enro'!R16) -> 4 | U16: =(($D16*'fnd base rates'!C$107) +($E16*'fnd base rates'!C$108) +($F16*'fnd base rates'!C$109) +($G16*'fnd base rates'!C$110) +($H16*'fnd base rates'!C$111) +($I16*'fnd base rates'!C$112) +($J16*'fnd base rates'!C$113) +($K16*'fnd base rates'!C$114) +($M16*'fnd base rates'!C$116) +($N16*'fnd base rates'!C$117) +($O16*'fnd base rates'!C$118) +($P16*VLOOKUP($S16+12,rate_basefnd,3))) *$R16 -> 547.1534554 | V16: =(($D16*'fnd base rates'!D$107) +($E16*'fnd base rates'!D$108) +($F16*'fnd base rates'!D$109) +($G16*'fnd base rates'!D$110) +($H16*'fnd base rates'!D$111) +($I16*'fnd base rates'!D$112) +($J16*'fnd base rates'!D$113) +($K16*'fnd base rates'!D$114) +($M16*'fnd base rates'!D$116) +($N16*'fnd base rates'!D$117) +($O16*'fnd base rates'!D$118) +($P16*VLOOKUP($S16+12,rate_basefnd,4))) *$R16 -> 783.31575 | W16: =(($D16*'fnd base rates'!E$107) +($E16*'fnd base rates'!E$108) +($F16*'fnd base rates'!E$109) +($G16*'fnd base rates'!E$110) +($H16*'fnd base rates'!E$111) +($I16*'fnd base rates'!E$112) +($J16*'fnd base rates'!E$113) +($K16*'fnd base rates'!E$114) +($M16*'fnd base rates'!E$116) +($N16*'fnd base rates'!E$117) +($O16*'fnd base rates'!E$118) +($P16*VLOOKUP($S16+12,rate_basefnd,5))) *$R16 -> 5022.408279 | X16: =(($D16*'fnd base rates'!F$107) +($E16*'fnd base rates'!F$108) +($F16*'fnd base rates'!F$109) +($G16*'fnd base rates'!F$110) +($H16*'fnd base rates'!F$111) +($I16*'fnd base rates'!F$112) +($J16*'fnd base rates'!F$113) +($K16*'fnd base rates'!F$114) +($M16*'fnd base rates'!F$116) +($N16*'fnd base rates'!F$117) +($O16*'fnd base rates'!F$118) +($P16*VLOOKUP($S16+12,rate_basefnd,6))) *$R16 -> 901.5788523 | Y16: =(($D16*'fnd base rates'!G$107) +($E16*'fnd base rates'!G$108) +($F16*'fnd base rates'!G$109) +($G16*'fnd base rates'!G$110) +($H16*'fnd base rates'!G$111) +($I16*'fnd base rates'!G$112) +($J16*'fnd base rates'!G$113) +($K16*'fnd base rates'!G$114) +($M16*'fnd base rates'!G$116) +($N16*'fnd base rates'!G$117) +($O16*'fnd base rates'!G$118) +($P16*VLOOKUP($S16+12,rate_basefnd,7))) *$R16 -> 167.4625955 | Z16: =(($D16*'fnd base rates'!H$107) +($E16*'fnd base rates'!H$108) +($F16*'fnd base rates'!H$109) +($G16*'fnd base rates'!H$110) +($H16*'fnd base rates'!H$111) +($I16*'fnd base rates'!H$112) +($J16*'fnd base rates'!H$113) +($K16*'fnd base rates'!H$114) +($M16*'fnd base rates'!H$116) +($N16*'fnd base rates'!H$117) +($O16*'fnd base rates'!H$118) +($P16*VLOOKUP($S16+12,rate_basefnd,8))) -> 781.13707 | AA16: =(($D16*'fnd base rates'!I$107) +($E16*'fnd base rates'!I$108) +($F16*'fnd base rates'!I$109) +($G16*'fnd base rates'!I$110) +($H16*'fnd base rates'!I$111) +($I16*'fnd base rates'!I$112) +($J16*'fnd base rates'!I$113) +($K16*'fnd base rates'!I$114) +($M16*'fnd base rates'!I$116) +($N16*'fnd base rates'!I$117) +($O16*'fnd base rates'!I$118) +($P16*VLOOKUP($S16+12,rate_basefnd,9))) *$R16 -> 436.09405 | AB16: =(($D16*'fnd base rates'!J$107) +($E16*'fnd base rates'!J$108) +($F16*'fnd base rates'!J$109) +($G16*'fnd base rates'!J$110) +($H16*'fnd base rates'!J$111) +($I16*'fnd base rates'!J$112) +($J16*'fnd base rates'!J$113) +($K16*'fnd base rates'!J$114) +($M16*'fnd base rates'!J$116) +($N16*'fnd base rates'!J$117) +($O16*'fnd base rates'!J$118) +($P16*VLOOKUP($S16+12,rate_basefnd,10))) *$R16 -> 587.42985 | AC16: =(($D16*'fnd base rates'!K$107) +($E16*'fnd base rates'!K$108) +($F16*'fnd base rates'!K$109) +($G16*'fnd base rates'!K$110) +($H16*'fnd base rates'!K$111) +($I16*'fnd base rates'!K$112) +($J16*'fnd base rates'!K$113) +($K16*'fnd base rates'!K$114) +($M16*'fnd base rates'!K$116) +($N16*'fnd base rates'!K$117) +($O16*'fnd base rates'!K$118) +($P16*VLOOKUP($S16+12,rate_basefnd,11))) *$R16 -> 1175.138749 | AD16: =(($D16*'fnd base rates'!L$107) +($E16*'fnd base rates'!L$108) +($F16*'fnd base rates'!L$109) +($G16*'fnd base rates'!L$110) +($H16*'fnd base rates'!L$111) +($I16*'fnd base rates'!L$112) +($J16*'fnd base rates'!L$113) +($K16*'fnd base rates'!L$114) +($M16*'fnd base rates'!L$116) +($N16*'fnd base rates'!L$117) +($O16*'fnd base rates'!L$118) +($P16*VLOOKUP($S16+12,rate_basefnd,12))) -> 1117.561421 | AE16: =(($D16*'fnd base rates'!M$107) +($E16*'fnd base rates'!M$108) +($F16*'fnd base rates'!M$109) +($G16*'fnd base rates'!M$110) +($H16*'fnd base rates'!M$111) +($I16*'fnd base rates'!M$112) +($J16*'fnd base rates'!M$113) +($K16*'fnd base rates'!M$114) +($M16*'fnd base rates'!M$116) +($N16*'fnd base rates'!M$117) +($O16*'fnd base rates'!M$118) +($P16*VLOOKUP($S16+12,rate_basefnd,13))) -> 0 | AF16: 11519.28007 | AH16: 410035031 | AI16: 410 | AJ16: 035 | AK16: 031 | AL16: 1 | AM16: 1 | AN16: 11519.28007 | AO16: 11519 | AP16: 0 | AQ16: 11519 | AW16: 11590 | AX16: 0 | AY16: 11590 | AZ16: -71 | BA16: 11519 | BB16: 0 | BC16: 11519
A17: 410 | B17: 410035035 | C17: EXCEL ACADEMY | D17: ='fnd enro'!D17 -> 0 | E17: ='fnd enro'!E17 -> 0 | F17: ='fnd enro'!F17 -> 0 | G17: ='fnd enro'!G17 -> 79 | H17: ='fnd enro'!H17 -> 250 | I17: ='fnd enro'!I17 -> 303 | J17: ='fnd enro'!J17 -> 0 | K17: ='fnd enro'!K17 -> 23.9528 | L17: ='fnd enro'!L17 -> 0 | M17: ='fnd enro'!M17+'fnd enro'!N17 -> 11 | N17: ='fnd enro'!O17 -> 18 | O17: ='fnd enro'!P17 -> 32 | P17: ='fnd enro'!Q17 -> 334 | Q17: ='fnd enro'!S17 -> 632 | R17: 1.085 | S17: =VALUE('fnd enro'!R17) -> 10 | U17: =(($D17*'fnd base rates'!C$107) +($E17*'fnd base rates'!C$108) +($F17*'fnd base rates'!C$109) +($G17*'fnd base rates'!C$110) +($H17*'fnd base rates'!C$111) +($I17*'fnd base rates'!C$112) +($J17*'fnd base rates'!C$113) +($K17*'fnd base rates'!C$114) +($M17*'fnd base rates'!C$116) +($N17*'fnd base rates'!C$117) +($O17*'fnd base rates'!C$118) +($P17*VLOOKUP($S17+12,rate_basefnd,3))) *$R17 -> 374408.1698 | V17: =(($D17*'fnd base rates'!D$107) +($E17*'fnd base rates'!D$108) +($F17*'fnd base rates'!D$109) +($G17*'fnd base rates'!D$110) +($H17*'fnd base rates'!D$111) +($I17*'fnd base rates'!D$112) +($J17*'fnd base rates'!D$113) +($K17*'fnd base rates'!D$114) +($M17*'fnd base rates'!D$116) +($N17*'fnd base rates'!D$117) +($O17*'fnd base rates'!D$118) +($P17*VLOOKUP($S17+12,rate_basefnd,4))) *$R17 -> 613923.5753 | W17: =(($D17*'fnd base rates'!E$107) +($E17*'fnd base rates'!E$108) +($F17*'fnd base rates'!E$109) +($G17*'fnd base rates'!E$110) +($H17*'fnd base rates'!E$111) +($I17*'fnd base rates'!E$112) +($J17*'fnd base rates'!E$113) +($K17*'fnd base rates'!E$114) +($M17*'fnd base rates'!E$116) +($N17*'fnd base rates'!E$117) +($O17*'fnd base rates'!E$118) +($P17*VLOOKUP($S17+12,rate_basefnd,5))) *$R17 -> 3852283.582 | X17: =(($D17*'fnd base rates'!F$107) +($E17*'fnd base rates'!F$108) +($F17*'fnd base rates'!F$109) +($G17*'fnd base rates'!F$110) +($H17*'fnd base rates'!F$111) +($I17*'fnd base rates'!F$112) +($J17*'fnd base rates'!F$113) +($K17*'fnd base rates'!F$114) +($M17*'fnd base rates'!F$116) +($N17*'fnd base rates'!F$117) +($O17*'fnd base rates'!F$118) +($P17*VLOOKUP($S17+12,rate_basefnd,6))) *$R17 -> 636495.3995 | Y17: =(($D17*'fnd base rates'!G$107) +($E17*'fnd base rates'!G$108) +($F17*'fnd base rates'!G$109) +($G17*'fnd base rates'!G$110) +($H17*'fnd base rates'!G$111) +($I17*'fnd base rates'!G$112) +($J17*'fnd base rates'!G$113) +($K17*'fnd base rates'!G$114) +($M17*'fnd base rates'!G$116) +($N17*'fnd base rates'!G$117) +($O17*'fnd base rates'!G$118) +($P17*VLOOKUP($S17+12,rate_basefnd,7))) *$R17 -> 160890.7577 | Z17: =(($D17*'fnd base rates'!H$107) +($E17*'fnd base rates'!H$108) +($F17*'fnd base rates'!H$109) +($G17*'fnd base rates'!H$110) +($H17*'fnd base rates'!H$111) +($I17*'fnd base rates'!H$112) +($J17*'fnd base rates'!H$113) +($K17*'fnd base rates'!H$114) +($M17*'fnd base rates'!H$116) +($N17*'fnd base rates'!H$117) +($O17*'fnd base rates'!H$118) +($P17*VLOOKUP($S17+12,rate_basefnd,8))) -> 412828.1882 | AA17: =(($D17*'fnd base rates'!I$107) +($E17*'fnd base rates'!I$108) +($F17*'fnd base rates'!I$109) +($G17*'fnd base rates'!I$110) +($H17*'fnd base rates'!I$111) +($I17*'fnd base rates'!I$112) +($J17*'fnd base rates'!I$113) +($K17*'fnd base rates'!I$114) +($M17*'fnd base rates'!I$116) +($N17*'fnd base rates'!I$117) +($O17*'fnd base rates'!I$118) +($P17*VLOOKUP($S17+12,rate_basefnd,9))) *$R17 -> 287071.8281 | AB17: =(($D17*'fnd base rates'!J$107) +($E17*'fnd base rates'!J$108) +($F17*'fnd base rates'!J$109) +($G17*'fnd base rates'!J$110) +($H17*'fnd base rates'!J$111) +($I17*'fnd base rates'!J$112) +($J17*'fnd base rates'!J$113) +($K17*'fnd base rates'!J$114) +($M17*'fnd base rates'!J$116) +($N17*'fnd base rates'!J$117) +($O17*'fnd base rates'!J$118) +($P17*VLOOKUP($S17+12,rate_basefnd,10))) *$R17 -> 479495.4062 | AC17: =(($D17*'fnd base rates'!K$107) +($E17*'fnd base rates'!K$108) +($F17*'fnd base rates'!K$109) +($G17*'fnd base rates'!K$110) +($H17*'fnd base rates'!K$111) +($I17*'fnd base rates'!K$112) +($J17*'fnd base rates'!K$113) +($K17*'fnd base rates'!K$114) +($M17*'fnd base rates'!K$116) +($N17*'fnd base rates'!K$117) +($O17*'fnd base rates'!K$118) +($P17*VLOOKUP($S17+12,rate_basefnd,11))) *$R17 -> 763614.4316 | AD17: =(($D17*'fnd base rates'!L$107) +($E17*'fnd base rates'!L$108) +($F17*'fnd base rates'!L$109) +($G17*'fnd base rates'!L$110) +($H17*'fnd base rates'!L$111) +($I17*'fnd base rates'!L$112) +($J17*'fnd base rates'!L$113) +($K17*'fnd base rates'!L$114) +($M17*'fnd base rates'!L$116) +($N17*'fnd base rates'!L$117) +($O17*'fnd base rates'!L$118) +($P17*VLOOKUP($S17+12,rate_basefnd,12))) -> 910936.4581 | AE17: =(($D17*'fnd base rates'!M$107) +($E17*'fnd base rates'!M$108) +($F17*'fnd base rates'!M$109) +($G17*'fnd base rates'!M$110) +($H17*'fnd base rates'!M$111) +($I17*'fnd base rates'!M$112) +($J17*'fnd base rates'!M$113) +($K17*'fnd base rates'!M$114) +($M17*'fnd base rates'!M$116) +($N17*'fnd base rates'!M$117) +($O17*'fnd base rates'!M$118) +($P17*VLOOKUP($S17+12,rate_basefnd,13))) -> 0 | AF17: 8491947.797 | AH17: 410035035 | AI17: 410 | AJ17: 035 | AK17: 035 | AL17: 1 | AM17: 632 | AN17: 8491947.797 | AO17: 13437 | AP17: 0 | AQ17: 13437 | AW17: 14876 | AX17: 86 | AY17: 14962 | AZ17: -1525 | BA17: 13437 | BB17: 0 | BC17: 13437
A18: 410 | B18: 410035057 | C18: EXCEL ACADEMY | D18: ='fnd enro'!D18 -> 0 | E18: ='fnd enro'!E18 -> 0 | F18: ='fnd enro'!F18 -> 0 | G18: ='fnd enro'!G18 -> 33 | H18: ='fnd enro'!H18 -> 85 | I18: ='fnd enro'!I18 -> 297 | J18: ='fnd enro'!J18 -> 0 | K18: ='fnd enro'!K18 -> 15.7285 | L18: ='fnd enro'!L18 -> 0 | M18: ='fnd enro'!M18+'fnd enro'!N18 -> 4 | N18: ='fnd enro'!O18 -> 4 | O18: ='fnd enro'!P18 -> 15 | P18: ='fnd enro'!Q18 -> 242 | Q18: ='fnd enro'!S18 -> 415 | R18: 1.085 | S18: =VALUE('fnd enro'!R18) -> 10 | U18: =(($D18*'fnd base rates'!C$107) +($E18*'fnd base rates'!C$108) +($F18*'fnd base rates'!C$109) +($G18*'fnd base rates'!C$110) +($H18*'fnd base rates'!C$111) +($I18*'fnd base rates'!C$112) +($J18*'fnd base rates'!C$113) +($K18*'fnd base rates'!C$114) +($M18*'fnd base rates'!C$116) +($N18*'fnd base rates'!C$117) +($O18*'fnd base rates'!C$118) +($P18*VLOOKUP($S18+12,rate_basefnd,3))) *$R18 -> 245790.1311 | V18: =(($D18*'fnd base rates'!D$107) +($E18*'fnd base rates'!D$108) +($F18*'fnd base rates'!D$109) +($G18*'fnd base rates'!D$110) +($H18*'fnd base rates'!D$111) +($I18*'fnd base rates'!D$112) +($J18*'fnd base rates'!D$113) +($K18*'fnd base rates'!D$114) +($M18*'fnd base rates'!D$116) +($N18*'fnd base rates'!D$117) +($O18*'fnd base rates'!D$118) +($P18*VLOOKUP($S18+12,rate_basefnd,4))) *$R18 -> 407691.5927 | W18: =(($D18*'fnd base rates'!E$107) +($E18*'fnd base rates'!E$108) +($F18*'fnd base rates'!E$109) +($G18*'fnd base rates'!E$110) +($H18*'fnd base rates'!E$111) +($I18*'fnd base rates'!E$112) +($J18*'fnd base rates'!E$113) +($K18*'fnd base rates'!E$114) +($M18*'fnd base rates'!E$116) +($N18*'fnd base rates'!E$117) +($O18*'fnd base rates'!E$118) +($P18*VLOOKUP($S18+12,rate_basefnd,5))) *$R18 -> 2719658.727 | X18: =(($D18*'fnd base rates'!F$107) +($E18*'fnd base rates'!F$108) +($F18*'fnd base rates'!F$109) +($G18*'fnd base rates'!F$110) +($H18*'fnd base rates'!F$111) +($I18*'fnd base rates'!F$112) +($J18*'fnd base rates'!F$113) +($K18*'fnd base rates'!F$114) +($M18*'fnd base rates'!F$116) +($N18*'fnd base rates'!F$117) +($O18*'fnd base rates'!F$118) +($P18*VLOOKUP($S18+12,rate_basefnd,6))) *$R18 -> 399344.4644 | Y18: =(($D18*'fnd base rates'!G$107) +($E18*'fnd base rates'!G$108) +($F18*'fnd base rates'!G$109) +($G18*'fnd base rates'!G$110) +($H18*'fnd base rates'!G$111) +($I18*'fnd base rates'!G$112) +($J18*'fnd base rates'!G$113) +($K18*'fnd base rates'!G$114) +($M18*'fnd base rates'!G$116) +($N18*'fnd base rates'!G$117) +($O18*'fnd base rates'!G$118) +($P18*VLOOKUP($S18+12,rate_basefnd,7))) *$R18 -> 108110.5322 | Z18: =(($D18*'fnd base rates'!H$107) +($E18*'fnd base rates'!H$108) +($F18*'fnd base rates'!H$109) +($G18*'fnd base rates'!H$110) +($H18*'fnd base rates'!H$111) +($I18*'fnd base rates'!H$112) +($J18*'fnd base rates'!H$113) +($K18*'fnd base rates'!H$114) +($M18*'fnd base rates'!H$116) +($N18*'fnd base rates'!H$117) +($O18*'fnd base rates'!H$118) +($P18*VLOOKUP($S18+12,rate_basefnd,8))) -> 297886.8741 | AA18: =(($D18*'fnd base rates'!I$107) +($E18*'fnd base rates'!I$108) +($F18*'fnd base rates'!I$109) +($G18*'fnd base rates'!I$110) +($H18*'fnd base rates'!I$111) +($I18*'fnd base rates'!I$112) +($J18*'fnd base rates'!I$113) +($K18*'fnd base rates'!I$114) +($M18*'fnd base rates'!I$116) +($N18*'fnd base rates'!I$117) +($O18*'fnd base rates'!I$118) +($P18*VLOOKUP($S18+12,rate_basefnd,9))) *$R18 -> 200492.8426 | AB18: =(($D18*'fnd base rates'!J$107) +($E18*'fnd base rates'!J$108) +($F18*'fnd base rates'!J$109) +($G18*'fnd base rates'!J$110) +($H18*'fnd base rates'!J$111) +($I18*'fnd base rates'!J$112) +($J18*'fnd base rates'!J$113) +($K18*'fnd base rates'!J$114) +($M18*'fnd base rates'!J$116) +($N18*'fnd base rates'!J$117) +($O18*'fnd base rates'!J$118) +($P18*VLOOKUP($S18+12,rate_basefnd,10))) *$R18 -> 364149.3058 | AC18: =(($D18*'fnd base rates'!K$107) +($E18*'fnd base rates'!K$108) +($F18*'fnd base rates'!K$109) +($G18*'fnd base rates'!K$110) +($H18*'fnd base rates'!K$111) +($I18*'fnd base rates'!K$112) +($J18*'fnd base rates'!K$113) +($K18*'fnd base rates'!K$114) +($M18*'fnd base rates'!K$116) +($N18*'fnd base rates'!K$117) +($O18*'fnd base rates'!K$118) +($P18*VLOOKUP($S18+12,rate_basefnd,11))) *$R18 -> 494905.0895 | AD18: =(($D18*'fnd base rates'!L$107) +($E18*'fnd base rates'!L$108) +($F18*'fnd base rates'!L$109) +($G18*'fnd base rates'!L$110) +($H18*'fnd base rates'!L$111) +($I18*'fnd base rates'!L$112) +($J18*'fnd base rates'!L$113) +($K18*'fnd base rates'!L$114) +($M18*'fnd base rates'!L$116) +($N18*'fnd base rates'!L$117) +($O18*'fnd base rates'!L$118) +($P18*VLOOKUP($S18+12,rate_basefnd,12))) -> 595226.1997 | AE18: =(($D18*'fnd base rates'!M$107) +($E18*'fnd base rates'!M$108) +($F18*'fnd base rates'!M$109) +($G18*'fnd base rates'!M$110) +($H18*'fnd base rates'!M$111) +($I18*'fnd base rates'!M$112) +($J18*'fnd base rates'!M$113) +($K18*'fnd base rates'!M$114) +($M18*'fnd base rates'!M$116) +($N18*'fnd base rates'!M$117) +($O18*'fnd base rates'!M$118) +($P18*VLOOKUP($S18+12,rate_basefnd,13))) -> 0 | AF18: 5833255.759 | AH18: 410035057 | AI18: 410 | AJ18: 035 | AK18: 057 | AL18: 1 | AM18: 415 | AN18: 5833255.759 | AO18: 14056 | AP18: 0 | AQ18: 14056 | AW18: 15014 | AX18: 104 | AY18: 15118 | AZ18: -1062 | BA18: 14056 | BB18: 0 | BC18: 14056
A19: 410 | B19: 410035093 | C19: EXCEL ACADEMY | D19: ='fnd enro'!D19 -> 0 | E19: ='fnd enro'!E19 -> 0 | F19: ='fnd enro'!F19 -> 0 | G19: ='fnd enro'!G19 -> 1 | H19: ='fnd enro'!H19 -> 0 | I19: ='fnd enro'!I19 -> 5 | J19: ='fnd enro'!J19 -> 0 | K19: ='fnd enro'!K19 -> 0.2274 | L19: ='fnd enro'!L19 -> 0 | M19: ='fnd enro'!M19+'fnd enro'!N19 -> 0 | N19: ='fnd enro'!O19 -> 0 | O19: ='fnd enro'!P19 -> 0 | P19: ='fnd enro'!Q19 -> 4 | Q19: ='fnd enro'!S19 -> 6 | R19: 1.085 | S19: =VALUE('fnd enro'!R19) -> 10 | U19: =(($D19*'fnd base rates'!C$107) +($E19*'fnd base rates'!C$108) +($F19*'fnd base rates'!C$109) +($G19*'fnd base rates'!C$110) +($H19*'fnd base rates'!C$111) +($I19*'fnd base rates'!C$112) +($J19*'fnd base rates'!C$113) +($K19*'fnd base rates'!C$114) +($M19*'fnd base rates'!C$116) +($N19*'fnd base rates'!C$117) +($O19*'fnd base rates'!C$118) +($P19*VLOOKUP($S19+12,rate_basefnd,3))) *$R19 -> 3558.684332 | V19: =(($D19*'fnd base rates'!D$107) +($E19*'fnd base rates'!D$108) +($F19*'fnd base rates'!D$109) +($G19*'fnd base rates'!D$110) +($H19*'fnd base rates'!D$111) +($I19*'fnd base rates'!D$112) +($J19*'fnd base rates'!D$113) +($K19*'fnd base rates'!D$114) +($M19*'fnd base rates'!D$116) +($N19*'fnd base rates'!D$117) +($O19*'fnd base rates'!D$118) +($P19*VLOOKUP($S19+12,rate_basefnd,4))) *$R19 -> 6006.4949 | W19: =(($D19*'fnd base rates'!E$107) +($E19*'fnd base rates'!E$108) +($F19*'fnd base rates'!E$109) +($G19*'fnd base rates'!E$110) +($H19*'fnd base rates'!E$111) +($I19*'fnd base rates'!E$112) +($J19*'fnd base rates'!E$113) +($K19*'fnd base rates'!E$114) +($M19*'fnd base rates'!E$116) +($N19*'fnd base rates'!E$117) +($O19*'fnd base rates'!E$118) +($P19*VLOOKUP($S19+12,rate_basefnd,5))) *$R19 -> 41833.15838 | X19: =(($D19*'fnd base rates'!F$107) +($E19*'fnd base rates'!F$108) +($F19*'fnd base rates'!F$109) +($G19*'fnd base rates'!F$110) +($H19*'fnd base rates'!F$111) +($I19*'fnd base rates'!F$112) +($J19*'fnd base rates'!F$113) +($K19*'fnd base rates'!F$114) +($M19*'fnd base rates'!F$116) +($N19*'fnd base rates'!F$117) +($O19*'fnd base rates'!F$118) +($P19*VLOOKUP($S19+12,rate_basefnd,6))) *$R19 -> 5778.622664 | Y19: =(($D19*'fnd base rates'!G$107) +($E19*'fnd base rates'!G$108) +($F19*'fnd base rates'!G$109) +($G19*'fnd base rates'!G$110) +($H19*'fnd base rates'!G$111) +($I19*'fnd base rates'!G$112) +($J19*'fnd base rates'!G$113) +($K19*'fnd base rates'!G$114) +($M19*'fnd base rates'!G$116) +($N19*'fnd base rates'!G$117) +($O19*'fnd base rates'!G$118) +($P19*VLOOKUP($S19+12,rate_basefnd,7))) *$R19 -> 1616.303273 | Z19: =(($D19*'fnd base rates'!H$107) +($E19*'fnd base rates'!H$108) +($F19*'fnd base rates'!H$109) +($G19*'fnd base rates'!H$110) +($H19*'fnd base rates'!H$111) +($I19*'fnd base rates'!H$112) +($J19*'fnd base rates'!H$113) +($K19*'fnd base rates'!H$114) +($M19*'fnd base rates'!H$116) +($N19*'fnd base rates'!H$117) +($O19*'fnd base rates'!H$118) +($P19*VLOOKUP($S19+12,rate_basefnd,8))) -> 4486.78242 | AA19: =(($D19*'fnd base rates'!I$107) +($E19*'fnd base rates'!I$108) +($F19*'fnd base rates'!I$109) +($G19*'fnd base rates'!I$110) +($H19*'fnd base rates'!I$111) +($I19*'fnd base rates'!I$112) +($J19*'fnd base rates'!I$113) +($K19*'fnd base rates'!I$114) +($M19*'fnd base rates'!I$116) +($N19*'fnd base rates'!I$117) +($O19*'fnd base rates'!I$118) +($P19*VLOOKUP($S19+12,rate_basefnd,9))) *$R19 -> 2958.3393 | AB19: =(($D19*'fnd base rates'!J$107) +($E19*'fnd base rates'!J$108) +($F19*'fnd base rates'!J$109) +($G19*'fnd base rates'!J$110) +($H19*'fnd base rates'!J$111) +($I19*'fnd base rates'!J$112) +($J19*'fnd base rates'!J$113) +($K19*'fnd base rates'!J$114) +($M19*'fnd base rates'!J$116) +($N19*'fnd base rates'!J$117) +($O19*'fnd base rates'!J$118) +($P19*VLOOKUP($S19+12,rate_basefnd,10))) *$R19 -> 5776.9523 | AC19: =(($D19*'fnd base rates'!K$107) +($E19*'fnd base rates'!K$108) +($F19*'fnd base rates'!K$109) +($G19*'fnd base rates'!K$110) +($H19*'fnd base rates'!K$111) +($I19*'fnd base rates'!K$112) +($J19*'fnd base rates'!K$113) +($K19*'fnd base rates'!K$114) +($M19*'fnd base rates'!K$116) +($N19*'fnd base rates'!K$117) +($O19*'fnd base rates'!K$118) +($P19*VLOOKUP($S19+12,rate_basefnd,11))) *$R19 -> 6999.794094 | AD19: =(($D19*'fnd base rates'!L$107) +($E19*'fnd base rates'!L$108) +($F19*'fnd base rates'!L$109) +($G19*'fnd base rates'!L$110) +($H19*'fnd base rates'!L$111) +($I19*'fnd base rates'!L$112) +($J19*'fnd base rates'!L$113) +($K19*'fnd base rates'!L$114) +($M19*'fnd base rates'!L$116) +($N19*'fnd base rates'!L$117) +($O19*'fnd base rates'!L$118) +($P19*VLOOKUP($S19+12,rate_basefnd,12))) -> 8679.358526 | AE19: =(($D19*'fnd base rates'!M$107) +($E19*'fnd base rates'!M$108) +($F19*'fnd base rates'!M$109) +($G19*'fnd base rates'!M$110) +($H19*'fnd base rates'!M$111) +($I19*'fnd base rates'!M$112) +($J19*'fnd base rates'!M$113) +($K19*'fnd base rates'!M$114) +($M19*'fnd base rates'!M$116) +($N19*'fnd base rates'!M$117) +($O19*'fnd base rates'!M$118) +($P19*VLOOKUP($S19+12,rate_basefnd,13))) -> 0 | AF19: 87694.49019 | AH19: 410035093 | AI19: 410 | AJ19: 035 | AK19: 093 | AL19: 1 | AM19: 6 | AN19: 87694.49019 | AO19: 14616 | AP19: 0 | AQ19: 14616 | AW19: 16405 | AX19: 110 | AY19: 16515 | AZ19: -1899 | BA19: 14616 | BB19: 0 | BC19: 14616
A20: 410 | B20: 410035163 | C20: EXCEL ACADEMY | D20: ='fnd enro'!D20 -> 0 | E20: ='fnd enro'!E20 -> 0 | F20: ='fnd enro'!F20 -> 0 | G20: ='fnd enro'!G20 -> 1 | H20: ='fnd enro'!H20 -> 3 | I20: ='fnd enro'!I20 -> 15 | J20: ='fnd enro'!J20 -> 0 | K20: ='fnd enro'!K20 -> 0.7201 | L20: ='fnd enro'!L20 -> 0 | M20: ='fnd enro'!M20+'fnd enro'!N20 -> 0 | N20: ='fnd enro'!O20 -> 0 | O20: ='fnd enro'!P20 -> 2 | P20: ='fnd enro'!Q20 -> 9 | Q20: ='fnd enro'!S20 -> 19 | R20: 1.085 | S20: =VALUE('fnd enro'!R20) -> 10 | U20: =(($D20*'fnd base rates'!C$107) +($E20*'fnd base rates'!C$108) +($F20*'fnd base rates'!C$109) +($G20*'fnd base rates'!C$110) +($H20*'fnd base rates'!C$111) +($I20*'fnd base rates'!C$112) +($J20*'fnd base rates'!C$113) +($K20*'fnd base rates'!C$114) +($M20*'fnd base rates'!C$116) +($N20*'fnd base rates'!C$117) +($O20*'fnd base rates'!C$118) +($P20*VLOOKUP($S20+12,rate_basefnd,3))) *$R20 -> 11179.24225 | V20: =(($D20*'fnd base rates'!D$107) +($E20*'fnd base rates'!D$108) +($F20*'fnd base rates'!D$109) +($G20*'fnd base rates'!D$110) +($H20*'fnd base rates'!D$111) +($I20*'fnd base rates'!D$112) +($J20*'fnd base rates'!D$113) +($K20*'fnd base rates'!D$114) +($M20*'fnd base rates'!D$116) +($N20*'fnd base rates'!D$117) +($O20*'fnd base rates'!D$118) +($P20*VLOOKUP($S20+12,rate_basefnd,4))) *$R20 -> 18107.87965 | W20: =(($D20*'fnd base rates'!E$107) +($E20*'fnd base rates'!E$108) +($F20*'fnd base rates'!E$109) +($G20*'fnd base rates'!E$110) +($H20*'fnd base rates'!E$111) +($I20*'fnd base rates'!E$112) +($J20*'fnd base rates'!E$113) +($K20*'fnd base rates'!E$114) +($M20*'fnd base rates'!E$116) +($N20*'fnd base rates'!E$117) +($O20*'fnd base rates'!E$118) +($P20*VLOOKUP($S20+12,rate_basefnd,5))) *$R20 -> 120601.3812 | X20: =(($D20*'fnd base rates'!F$107) +($E20*'fnd base rates'!F$108) +($F20*'fnd base rates'!F$109) +($G20*'fnd base rates'!F$110) +($H20*'fnd base rates'!F$111) +($I20*'fnd base rates'!F$112) +($J20*'fnd base rates'!F$113) +($K20*'fnd base rates'!F$114) +($M20*'fnd base rates'!F$116) +($N20*'fnd base rates'!F$117) +($O20*'fnd base rates'!F$118) +($P20*VLOOKUP($S20+12,rate_basefnd,6))) *$R20 -> 18117.39159 | Y20: =(($D20*'fnd base rates'!G$107) +($E20*'fnd base rates'!G$108) +($F20*'fnd base rates'!G$109) +($G20*'fnd base rates'!G$110) +($H20*'fnd base rates'!G$111) +($I20*'fnd base rates'!G$112) +($J20*'fnd base rates'!G$113) +($K20*'fnd base rates'!G$114) +($M20*'fnd base rates'!G$116) +($N20*'fnd base rates'!G$117) +($O20*'fnd base rates'!G$118) +($P20*VLOOKUP($S20+12,rate_basefnd,7))) *$R20 -> 4662.260965 | Z20: =(($D20*'fnd base rates'!H$107) +($E20*'fnd base rates'!H$108) +($F20*'fnd base rates'!H$109) +($G20*'fnd base rates'!H$110) +($H20*'fnd base rates'!H$111) +($I20*'fnd base rates'!H$112) +($J20*'fnd base rates'!H$113) +($K20*'fnd base rates'!H$114) +($M20*'fnd base rates'!H$116) +($N20*'fnd base rates'!H$117) +($O20*'fnd base rates'!H$118) +($P20*VLOOKUP($S20+12,rate_basefnd,8))) -> 14076.04433 | AA20: =(($D20*'fnd base rates'!I$107) +($E20*'fnd base rates'!I$108) +($F20*'fnd base rates'!I$109) +($G20*'fnd base rates'!I$110) +($H20*'fnd base rates'!I$111) +($I20*'fnd base rates'!I$112) +($J20*'fnd base rates'!I$113) +($K20*'fnd base rates'!I$114) +($M20*'fnd base rates'!I$116) +($N20*'fnd base rates'!I$117) +($O20*'fnd base rates'!I$118) +($P20*VLOOKUP($S20+12,rate_basefnd,9))) *$R20 -> 9130.74155 | AB20: =(($D20*'fnd base rates'!J$107) +($E20*'fnd base rates'!J$108) +($F20*'fnd base rates'!J$109) +($G20*'fnd base rates'!J$110) +($H20*'fnd base rates'!J$111) +($I20*'fnd base rates'!J$112) +($J20*'fnd base rates'!J$113) +($K20*'fnd base rates'!J$114) +($M20*'fnd base rates'!J$116) +($N20*'fnd base rates'!J$117) +($O20*'fnd base rates'!J$118) +($P20*VLOOKUP($S20+12,rate_basefnd,10))) *$R20 -> 15811.04315 | AC20: =(($D20*'fnd base rates'!K$107) +($E20*'fnd base rates'!K$108) +($F20*'fnd base rates'!K$109) +($G20*'fnd base rates'!K$110) +($H20*'fnd base rates'!K$111) +($I20*'fnd base rates'!K$112) +($J20*'fnd base rates'!K$113) +($K20*'fnd base rates'!K$114) +($M20*'fnd base rates'!K$116) +($N20*'fnd base rates'!K$117) +($O20*'fnd base rates'!K$118) +($P20*VLOOKUP($S20+12,rate_basefnd,11))) *$R20 -> 22863.78898 | AD20: =(($D20*'fnd base rates'!L$107) +($E20*'fnd base rates'!L$108) +($F20*'fnd base rates'!L$109) +($G20*'fnd base rates'!L$110) +($H20*'fnd base rates'!L$111) +($I20*'fnd base rates'!L$112) +($J20*'fnd base rates'!L$113) +($K20*'fnd base rates'!L$114) +($M20*'fnd base rates'!L$116) +($N20*'fnd base rates'!L$117) +($O20*'fnd base rates'!L$118) +($P20*VLOOKUP($S20+12,rate_basefnd,12))) -> 26309.387 | AE20: =(($D20*'fnd base rates'!M$107) +($E20*'fnd base rates'!M$108) +($F20*'fnd base rates'!M$109) +($G20*'fnd base rates'!M$110) +($H20*'fnd base rates'!M$111) +($I20*'fnd base rates'!M$112) +($J20*'fnd base rates'!M$113) +($K20*'fnd base rates'!M$114) +($M20*'fnd base rates'!M$116) +($N20*'fnd base rates'!M$117) +($O20*'fnd base rates'!M$118) +($P20*VLOOKUP($S20+12,rate_basefnd,13))) -> 0 | AF20: 260859.1607 | AH20: 410035163 | AI20: 410 | AJ20: 035 | AK20: 163 | AL20: 1 | AM20: 19 | AN20: 260859.1607 | AO20: 13729 | AP20: 0 | AQ20: 13729 | AW20: 14117 | AX20: 73 | AY20: 14190 | AZ20: -461 | BA20: 13729 | BB20: 0 | BC20: 13729
A21: 410 | B21: 410035165 | C21: EXCEL ACADEMY | D21: ='fnd enro'!D21 -> 0 | E21: ='fnd enro'!E21 -> 0 | F21: ='fnd enro'!F21 -> 0 | G21: ='fnd enro'!G21 -> 0 | H21: ='fnd enro'!H21 -> 1 | I21: ='fnd enro'!I21 -> 3 | J21: ='fnd enro'!J21 -> 0 | K21: ='fnd enro'!K21 -> 0.1516 | L21: ='fnd enro'!L21 -> 0 | M21: ='fnd enro'!M21+'fnd enro'!N21 -> 0 | N21: ='fnd enro'!O21 -> 0 | O21: ='fnd enro'!P21 -> 0 | P21: ='fnd enro'!Q21 -> 1 | Q21: ='fnd enro'!S21 -> 4 | R21: 1.085 | S21: =VALUE('fnd enro'!R21) -> 9 | U21: =(($D21*'fnd base rates'!C$107) +($E21*'fnd base rates'!C$108) +($F21*'fnd base rates'!C$109) +($G21*'fnd base rates'!C$110) +($H21*'fnd base rates'!C$111) +($I21*'fnd base rates'!C$112) +($J21*'fnd base rates'!C$113) +($K21*'fnd base rates'!C$114) +($M21*'fnd base rates'!C$116) +($N21*'fnd base rates'!C$117) +($O21*'fnd base rates'!C$118) +($P21*VLOOKUP($S21+12,rate_basefnd,3))) *$R21 -> 2256.057422 | V21: =(($D21*'fnd base rates'!D$107) +($E21*'fnd base rates'!D$108) +($F21*'fnd base rates'!D$109) +($G21*'fnd base rates'!D$110) +($H21*'fnd base rates'!D$111) +($I21*'fnd base rates'!D$112) +($J21*'fnd base rates'!D$113) +($K21*'fnd base rates'!D$114) +($M21*'fnd base rates'!D$116) +($N21*'fnd base rates'!D$117) +($O21*'fnd base rates'!D$118) +($P21*VLOOKUP($S21+12,rate_basefnd,4))) *$R21 -> 3452.8172 | W21: =(($D21*'fnd base rates'!E$107) +($E21*'fnd base rates'!E$108) +($F21*'fnd base rates'!E$109) +($G21*'fnd base rates'!E$110) +($H21*'fnd base rates'!E$111) +($I21*'fnd base rates'!E$112) +($J21*'fnd base rates'!E$113) +($K21*'fnd base rates'!E$114) +($M21*'fnd base rates'!E$116) +($N21*'fnd base rates'!E$117) +($O21*'fnd base rates'!E$118) +($P21*VLOOKUP($S21+12,rate_basefnd,5))) *$R21 -> 21721.74437 | X21: =(($D21*'fnd base rates'!F$107) +($E21*'fnd base rates'!F$108) +($F21*'fnd base rates'!F$109) +($G21*'fnd base rates'!F$110) +($H21*'fnd base rates'!F$111) +($I21*'fnd base rates'!F$112) +($J21*'fnd base rates'!F$113) +($K21*'fnd base rates'!F$114) +($M21*'fnd base rates'!F$116) +($N21*'fnd base rates'!F$117) +($O21*'fnd base rates'!F$118) +($P21*VLOOKUP($S21+12,rate_basefnd,6))) *$R21 -> 3717.386859 | Y21: =(($D21*'fnd base rates'!G$107) +($E21*'fnd base rates'!G$108) +($F21*'fnd base rates'!G$109) +($G21*'fnd base rates'!G$110) +($H21*'fnd base rates'!G$111) +($I21*'fnd base rates'!G$112) +($J21*'fnd base rates'!G$113) +($K21*'fnd base rates'!G$114) +($M21*'fnd base rates'!G$116) +($N21*'fnd base rates'!G$117) +($O21*'fnd base rates'!G$118) +($P21*VLOOKUP($S21+12,rate_basefnd,7))) *$R21 -> 825.862532 | Z21: =(($D21*'fnd base rates'!H$107) +($E21*'fnd base rates'!H$108) +($F21*'fnd base rates'!H$109) +($G21*'fnd base rates'!H$110) +($H21*'fnd base rates'!H$111) +($I21*'fnd base rates'!H$112) +($J21*'fnd base rates'!H$113) +($K21*'fnd base rates'!H$114) +($M21*'fnd base rates'!H$116) +($N21*'fnd base rates'!H$117) +($O21*'fnd base rates'!H$118) +($P21*VLOOKUP($S21+12,rate_basefnd,8))) -> 2858.44828 | AA21: =(($D21*'fnd base rates'!I$107) +($E21*'fnd base rates'!I$108) +($F21*'fnd base rates'!I$109) +($G21*'fnd base rates'!I$110) +($H21*'fnd base rates'!I$111) +($I21*'fnd base rates'!I$112) +($J21*'fnd base rates'!I$113) +($K21*'fnd base rates'!I$114) +($M21*'fnd base rates'!I$116) +($N21*'fnd base rates'!I$117) +($O21*'fnd base rates'!I$118) +($P21*VLOOKUP($S21+12,rate_basefnd,9))) *$R21 -> 1782.49225 | AB21: =(($D21*'fnd base rates'!J$107) +($E21*'fnd base rates'!J$108) +($F21*'fnd base rates'!J$109) +($G21*'fnd base rates'!J$110) +($H21*'fnd base rates'!J$111) +($I21*'fnd base rates'!J$112) +($J21*'fnd base rates'!J$113) +($K21*'fnd base rates'!J$114) +($M21*'fnd base rates'!J$116) +($N21*'fnd base rates'!J$117) +($O21*'fnd base rates'!J$118) +($P21*VLOOKUP($S21+12,rate_basefnd,10))) *$R21 -> 2673.40745 | AC21: =(($D21*'fnd base rates'!K$107) +($E21*'fnd base rates'!K$108) +($F21*'fnd base rates'!K$109) +($G21*'fnd base rates'!K$110) +($H21*'fnd base rates'!K$111) +($I21*'fnd base rates'!K$112) +($J21*'fnd base rates'!K$113) +($K21*'fnd base rates'!K$114) +($M21*'fnd base rates'!K$116) +($N21*'fnd base rates'!K$117) +($O21*'fnd base rates'!K$118) +($P21*VLOOKUP($S21+12,rate_basefnd,11))) *$R21 -> 4733.419646 | AD21: =(($D21*'fnd base rates'!L$107) +($E21*'fnd base rates'!L$108) +($F21*'fnd base rates'!L$109) +($G21*'fnd base rates'!L$110) +($H21*'fnd base rates'!L$111) +($I21*'fnd base rates'!L$112) +($J21*'fnd base rates'!L$113) +($K21*'fnd base rates'!L$114) +($M21*'fnd base rates'!L$116) +($N21*'fnd base rates'!L$117) +($O21*'fnd base rates'!L$118) +($P21*VLOOKUP($S21+12,rate_basefnd,12))) -> 5039.265684 | AE21: =(($D21*'fnd base rates'!M$107) +($E21*'fnd base rates'!M$108) +($F21*'fnd base rates'!M$109) +($G21*'fnd base rates'!M$110) +($H21*'fnd base rates'!M$111) +($I21*'fnd base rates'!M$112) +($J21*'fnd base rates'!M$113) +($K21*'fnd base rates'!M$114) +($M21*'fnd base rates'!M$116) +($N21*'fnd base rates'!M$117) +($O21*'fnd base rates'!M$118) +($P21*VLOOKUP($S21+12,rate_basefnd,13))) -> 0 | AF21: 49060.90169 | AH21: 410035165 | AI21: 410 | AJ21: 035 | AK21: 165 | AL21: 1 | AM21: 4 | AN21: 49060.90169 | AO21: 12265 | AP21: 0 | AQ21: 12265 | AW21: 13641 | AX21: 41 | AY21: 13682 | AZ21: -1417 | BA21: 12265 | BB21: 0 | BC21: 12265
A22: 410 | B22: 410035176 | C22: EXCEL ACADEMY | D22: ='fnd enro'!D22 -> 0 | E22: ='fnd enro'!E22 -> 0 | F22: ='fnd enro'!F22 -> 0 | G22: ='fnd enro'!G22 -> 0 | H22: ='fnd enro'!H22 -> 0 | I22: ='fnd enro'!I22 -> 1 | J22: ='fnd enro'!J22 -> 0 | K22: ='fnd enro'!K22 -> 0.0379 | L22: ='fnd enro'!L22 -> 0 | M22: ='fnd enro'!M22+'fnd enro'!N22 -> 0 | N22: ='fnd enro'!O22 -> 0 | O22: ='fnd enro'!P22 -> 0 | P22: ='fnd enro'!Q22 -> 1 | Q22: ='fnd enro'!S22 -> 1 | R22: 1.085 | S22: =VALUE('fnd enro'!R22) -> 7 | U22: =(($D22*'fnd base rates'!C$107) +($E22*'fnd base rates'!C$108) +($F22*'fnd base rates'!C$109) +($G22*'fnd base rates'!C$110) +($H22*'fnd base rates'!C$111) +($I22*'fnd base rates'!C$112) +($J22*'fnd base rates'!C$113) +($K22*'fnd base rates'!C$114) +($M22*'fnd base rates'!C$116) +($N22*'fnd base rates'!C$117) +($O22*'fnd base rates'!C$118) +($P22*VLOOKUP($S22+12,rate_basefnd,3))) *$R22 -> 611.6024554 | V22: =(($D22*'fnd base rates'!D$107) +($E22*'fnd base rates'!D$108) +($F22*'fnd base rates'!D$109) +($G22*'fnd base rates'!D$110) +($H22*'fnd base rates'!D$111) +($I22*'fnd base rates'!D$112) +($J22*'fnd base rates'!D$113) +($K22*'fnd base rates'!D$114) +($M22*'fnd base rates'!D$116) +($N22*'fnd base rates'!D$117) +($O22*'fnd base rates'!D$118) +($P22*VLOOKUP($S22+12,rate_basefnd,4))) *$R22 -> 1088.6673 | W22: =(($D22*'fnd base rates'!E$107) +($E22*'fnd base rates'!E$108) +($F22*'fnd base rates'!E$109) +($G22*'fnd base rates'!E$110) +($H22*'fnd base rates'!E$111) +($I22*'fnd base rates'!E$112) +($J22*'fnd base rates'!E$113) +($K22*'fnd base rates'!E$114) +($M22*'fnd base rates'!E$116) +($N22*'fnd base rates'!E$117) +($O22*'fnd base rates'!E$118) +($P22*VLOOKUP($S22+12,rate_basefnd,5))) *$R22 -> 8003.261329 | X22: =(($D22*'fnd base rates'!F$107) +($E22*'fnd base rates'!F$108) +($F22*'fnd base rates'!F$109) +($G22*'fnd base rates'!F$110) +($H22*'fnd base rates'!F$111) +($I22*'fnd base rates'!F$112) +($J22*'fnd base rates'!F$113) +($K22*'fnd base rates'!F$114) +($M22*'fnd base rates'!F$116) +($N22*'fnd base rates'!F$117) +($O22*'fnd base rates'!F$118) +($P22*VLOOKUP($S22+12,rate_basefnd,6))) *$R22 -> 901.5788523 | Y22: =(($D22*'fnd base rates'!G$107) +($E22*'fnd base rates'!G$108) +($F22*'fnd base rates'!G$109) +($G22*'fnd base rates'!G$110) +($H22*'fnd base rates'!G$111) +($I22*'fnd base rates'!G$112) +($J22*'fnd base rates'!G$113) +($K22*'fnd base rates'!G$114) +($M22*'fnd base rates'!G$116) +($N22*'fnd base rates'!G$117) +($O22*'fnd base rates'!G$118) +($P22*VLOOKUP($S22+12,rate_basefnd,7))) *$R22 -> 312.0822455 | Z22: =(($D22*'fnd base rates'!H$107) +($E22*'fnd base rates'!H$108) +($F22*'fnd base rates'!H$109) +($G22*'fnd base rates'!H$110) +($H22*'fnd base rates'!H$111) +($I22*'fnd base rates'!H$112) +($J22*'fnd base rates'!H$113) +($K22*'fnd base rates'!H$114) +($M22*'fnd base rates'!H$116) +($N22*'fnd base rates'!H$117) +($O22*'fnd base rates'!H$118) +($P22*VLOOKUP($S22+12,rate_basefnd,8))) -> 801.56707 | AA22: =(($D22*'fnd base rates'!I$107) +($E22*'fnd base rates'!I$108) +($F22*'fnd base rates'!I$109) +($G22*'fnd base rates'!I$110) +($H22*'fnd base rates'!I$111) +($I22*'fnd base rates'!I$112) +($J22*'fnd base rates'!I$113) +($K22*'fnd base rates'!I$114) +($M22*'fnd base rates'!I$116) +($N22*'fnd base rates'!I$117) +($O22*'fnd base rates'!I$118) +($P22*VLOOKUP($S22+12,rate_basefnd,9))) *$R22 -> 556.8003 | AB22: =(($D22*'fnd base rates'!J$107) +($E22*'fnd base rates'!J$108) +($F22*'fnd base rates'!J$109) +($G22*'fnd base rates'!J$110) +($H22*'fnd base rates'!J$111) +($I22*'fnd base rates'!J$112) +($J22*'fnd base rates'!J$113) +($K22*'fnd base rates'!J$114) +($M22*'fnd base rates'!J$116) +($N22*'fnd base rates'!J$117) +($O22*'fnd base rates'!J$118) +($P22*VLOOKUP($S22+12,rate_basefnd,10))) *$R22 -> 1214.64665 | AC22: =(($D22*'fnd base rates'!K$107) +($E22*'fnd base rates'!K$108) +($F22*'fnd base rates'!K$109) +($G22*'fnd base rates'!K$110) +($H22*'fnd base rates'!K$111) +($I22*'fnd base rates'!K$112) +($J22*'fnd base rates'!K$113) +($K22*'fnd base rates'!K$114) +($M22*'fnd base rates'!K$116) +($N22*'fnd base rates'!K$117) +($O22*'fnd base rates'!K$118) +($P22*VLOOKUP($S22+12,rate_basefnd,11))) *$R22 -> 1175.138749 | AD22: =(($D22*'fnd base rates'!L$107) +($E22*'fnd base rates'!L$108) +($F22*'fnd base rates'!L$109) +($G22*'fnd base rates'!L$110) +($H22*'fnd base rates'!L$111) +($I22*'fnd base rates'!L$112) +($J22*'fnd base rates'!L$113) +($K22*'fnd base rates'!L$114) +($M22*'fnd base rates'!L$116) +($N22*'fnd base rates'!L$117) +($O22*'fnd base rates'!L$118) +($P22*VLOOKUP($S22+12,rate_basefnd,12))) -> 1561.961421 | AE22: =(($D22*'fnd base rates'!M$107) +($E22*'fnd base rates'!M$108) +($F22*'fnd base rates'!M$109) +($G22*'fnd base rates'!M$110) +($H22*'fnd base rates'!M$111) +($I22*'fnd base rates'!M$112) +($J22*'fnd base rates'!M$113) +($K22*'fnd base rates'!M$114) +($M22*'fnd base rates'!M$116) +($N22*'fnd base rates'!M$117) +($O22*'fnd base rates'!M$118) +($P22*VLOOKUP($S22+12,rate_basefnd,13))) -> 0 | AF22: 16227.30637 | AH22: 410035176 | AI22: 410 | AJ22: 035 | AK22: 176 | AL22: 1 | AM22: 1 | AN22: 16227.30637 | AO22: 16227 | AP22: 0 | AQ22: 16227 | AW22: 16310 | AX22: 39 | AY22: 16349 | AZ22: -122 | BA22: 16227 | BB22: 0 | BC22: 16227
A23: 410 | B23: 410035217 | C23: EXCEL ACADEMY | D23: ='fnd enro'!D23 -> 0 | E23: ='fnd enro'!E23 -> 0 | F23: ='fnd enro'!F23 -> 0 | G23: ='fnd enro'!G23 -> 0 | H23: ='fnd enro'!H23 -> 0 | I23: ='fnd enro'!I23 -> 1 | J23: ='fnd enro'!J23 -> 0 | K23: ='fnd enro'!K23 -> 0.0379 | L23: ='fnd enro'!L23 -> 0 | M23: ='fnd enro'!M23+'fnd enro'!N23 -> 0 | N23: ='fnd enro'!O23 -> 0 | O23: ='fnd enro'!P23 -> 0 | P23: ='fnd enro'!Q23 -> 0 | Q23: ='fnd enro'!S23 -> 1 | R23: 1.085 | S23: =VALUE('fnd enro'!R23) -> 2 | U23: =(($D23*'fnd base rates'!C$107) +($E23*'fnd base rates'!C$108) +($F23*'fnd base rates'!C$109) +($G23*'fnd base rates'!C$110) +($H23*'fnd base rates'!C$111) +($I23*'fnd base rates'!C$112) +($J23*'fnd base rates'!C$113) +($K23*'fnd base rates'!C$114) +($M23*'fnd base rates'!C$116) +($N23*'fnd base rates'!C$117) +($O23*'fnd base rates'!C$118) +($P23*VLOOKUP($S23+12,rate_basefnd,3))) *$R23 -> 547.1534554 | V23: =(($D23*'fnd base rates'!D$107) +($E23*'fnd base rates'!D$108) +($F23*'fnd base rates'!D$109) +($G23*'fnd base rates'!D$110) +($H23*'fnd base rates'!D$111) +($I23*'fnd base rates'!D$112) +($J23*'fnd base rates'!D$113) +($K23*'fnd base rates'!D$114) +($M23*'fnd base rates'!D$116) +($N23*'fnd base rates'!D$117) +($O23*'fnd base rates'!D$118) +($P23*VLOOKUP($S23+12,rate_basefnd,4))) *$R23 -> 783.31575 | W23: =(($D23*'fnd base rates'!E$107) +($E23*'fnd base rates'!E$108) +($F23*'fnd base rates'!E$109) +($G23*'fnd base rates'!E$110) +($H23*'fnd base rates'!E$111) +($I23*'fnd base rates'!E$112) +($J23*'fnd base rates'!E$113) +($K23*'fnd base rates'!E$114) +($M23*'fnd base rates'!E$116) +($N23*'fnd base rates'!E$117) +($O23*'fnd base rates'!E$118) +($P23*VLOOKUP($S23+12,rate_basefnd,5))) *$R23 -> 5022.408279 | X23: =(($D23*'fnd base rates'!F$107) +($E23*'fnd base rates'!F$108) +($F23*'fnd base rates'!F$109) +($G23*'fnd base rates'!F$110) +($H23*'fnd base rates'!F$111) +($I23*'fnd base rates'!F$112) +($J23*'fnd base rates'!F$113) +($K23*'fnd base rates'!F$114) +($M23*'fnd base rates'!F$116) +($N23*'fnd base rates'!F$117) +($O23*'fnd base rates'!F$118) +($P23*VLOOKUP($S23+12,rate_basefnd,6))) *$R23 -> 901.5788523 | Y23: =(($D23*'fnd base rates'!G$107) +($E23*'fnd base rates'!G$108) +($F23*'fnd base rates'!G$109) +($G23*'fnd base rates'!G$110) +($H23*'fnd base rates'!G$111) +($I23*'fnd base rates'!G$112) +($J23*'fnd base rates'!G$113) +($K23*'fnd base rates'!G$114) +($M23*'fnd base rates'!G$116) +($N23*'fnd base rates'!G$117) +($O23*'fnd base rates'!G$118) +($P23*VLOOKUP($S23+12,rate_basefnd,7))) *$R23 -> 167.4625955 | Z23: =(($D23*'fnd base rates'!H$107) +($E23*'fnd base rates'!H$108) +($F23*'fnd base rates'!H$109) +($G23*'fnd base rates'!H$110) +($H23*'fnd base rates'!H$111) +($I23*'fnd base rates'!H$112) +($J23*'fnd base rates'!H$113) +($K23*'fnd base rates'!H$114) +($M23*'fnd base rates'!H$116) +($N23*'fnd base rates'!H$117) +($O23*'fnd base rates'!H$118) +($P23*VLOOKUP($S23+12,rate_basefnd,8))) -> 781.13707 | AA23: =(($D23*'fnd base rates'!I$107) +($E23*'fnd base rates'!I$108) +($F23*'fnd base rates'!I$109) +($G23*'fnd base rates'!I$110) +($H23*'fnd base rates'!I$111) +($I23*'fnd base rates'!I$112) +($J23*'fnd base rates'!I$113) +($K23*'fnd base rates'!I$114) +($M23*'fnd base rates'!I$116) +($N23*'fnd base rates'!I$117) +($O23*'fnd base rates'!I$118) +($P23*VLOOKUP($S23+12,rate_basefnd,9))) *$R23 -> 436.09405 | AB23: =(($D23*'fnd base rates'!J$107) +($E23*'fnd base rates'!J$108) +($F23*'fnd base rates'!J$109) +($G23*'fnd base rates'!J$110) +($H23*'fnd base rates'!J$111) +($I23*'fnd base rates'!J$112) +($J23*'fnd base rates'!J$113) +($K23*'fnd base rates'!J$114) +($M23*'fnd base rates'!J$116) +($N23*'fnd base rates'!J$117) +($O23*'fnd base rates'!J$118) +($P23*VLOOKUP($S23+12,rate_basefnd,10))) *$R23 -> 587.42985 | AC23: =(($D23*'fnd base rates'!K$107) +($E23*'fnd base rates'!K$108) +($F23*'fnd base rates'!K$109) +($G23*'fnd base rates'!K$110) +($H23*'fnd base rates'!K$111) +($I23*'fnd base rates'!K$112) +($J23*'fnd base rates'!K$113) +($K23*'fnd base rates'!K$114) +($M23*'fnd base rates'!K$116) +($N23*'fnd base rates'!K$117) +($O23*'fnd base rates'!K$118) +($P23*VLOOKUP($S23+12,rate_basefnd,11))) *$R23 -> 1175.138749 | AD23: =(($D23*'fnd base rates'!L$107) +($E23*'fnd base rates'!L$108) +($F23*'fnd base rates'!L$109) +($G23*'fnd base rates'!L$110) +($H23*'fnd base rates'!L$111) +($I23*'fnd base rates'!L$112) +($J23*'fnd base rates'!L$113) +($K23*'fnd base rates'!L$114) +($M23*'fnd base rates'!L$116) +($N23*'fnd base rates'!L$117) +($O23*'fnd base rates'!L$118) +($P23*VLOOKUP($S23+12,rate_basefnd,12))) -> 1117.561421 | AE23: =(($D23*'fnd base rates'!M$107) +($E23*'fnd base rates'!M$108) +($F23*'fnd base rates'!M$109) +($G23*'fnd base rates'!M$110) +($H23*'fnd base rates'!M$111) +($I23*'fnd base rates'!M$112) +($J23*'fnd base rates'!M$113) +($K23*'fnd base rates'!M$114) +($M23*'fnd base rates'!M$116) +($N23*'fnd base rates'!M$117) +($O23*'fnd base rates'!M$118) +($P23*VLOOKUP($S23+12,rate_basefnd,13))) -> 0 | AF23: 11519.28007 | AH23: 410035217 | AI23: 410 | AJ23: 035 | AK23: 217 | AL23: 1 | AM23: 1 | AN23: 11519.28007 | AO23: 11519 | AP23: 0 | AQ23: 11519 | AW23: 11590 | AX23: 0 | AY23: 11590 | AZ23: -71 | BA23: 11519 | BB23: 0 | BC23: 11519
A24: 410 | B24: 410035248 | C24: EXCEL ACADEMY | D24: ='fnd enro'!D24 -> 0 | E24: ='fnd enro'!E24 -> 0 | F24: ='fnd enro'!F24 -> 0 | G24: ='fnd enro'!G24 -> 1 | H24: ='fnd enro'!H24 -> 12 | I24: ='fnd enro'!I24 -> 30 | J24: ='fnd enro'!J24 -> 0 | K24: ='fnd enro'!K24 -> 1.6297 | L24: ='fnd enro'!L24 -> 0 | M24: ='fnd enro'!M24+'fnd enro'!N24 -> 0 | N24: ='fnd enro'!O24 -> 3 | O24: ='fnd enro'!P24 -> 3 | P24: ='fnd enro'!Q24 -> 23 | Q24: ='fnd enro'!S24 -> 43 | R24: 1.085 | S24: =VALUE('fnd enro'!R24) -> 10 | U24: =(($D24*'fnd base rates'!C$107) +($E24*'fnd base rates'!C$108) +($F24*'fnd base rates'!C$109) +($G24*'fnd base rates'!C$110) +($H24*'fnd base rates'!C$111) +($I24*'fnd base rates'!C$112) +($J24*'fnd base rates'!C$113) +($K24*'fnd base rates'!C$114) +($M24*'fnd base rates'!C$116) +($N24*'fnd base rates'!C$117) +($O24*'fnd base rates'!C$118) +($P24*VLOOKUP($S24+12,rate_basefnd,3))) *$R24 -> 25670.52783 | V24: =(($D24*'fnd base rates'!D$107) +($E24*'fnd base rates'!D$108) +($F24*'fnd base rates'!D$109) +($G24*'fnd base rates'!D$110) +($H24*'fnd base rates'!D$111) +($I24*'fnd base rates'!D$112) +($J24*'fnd base rates'!D$113) +($K24*'fnd base rates'!D$114) +($M24*'fnd base rates'!D$116) +($N24*'fnd base rates'!D$117) +($O24*'fnd base rates'!D$118) +($P24*VLOOKUP($S24+12,rate_basefnd,4))) *$R24 -> 42170.79265 | W24: =(($D24*'fnd base rates'!E$107) +($E24*'fnd base rates'!E$108) +($F24*'fnd base rates'!E$109) +($G24*'fnd base rates'!E$110) +($H24*'fnd base rates'!E$111) +($I24*'fnd base rates'!E$112) +($J24*'fnd base rates'!E$113) +($K24*'fnd base rates'!E$114) +($M24*'fnd base rates'!E$116) +($N24*'fnd base rates'!E$117) +($O24*'fnd base rates'!E$118) +($P24*VLOOKUP($S24+12,rate_basefnd,5))) *$R24 -> 277227.2998 | X24: =(($D24*'fnd base rates'!F$107) +($E24*'fnd base rates'!F$108) +($F24*'fnd base rates'!F$109) +($G24*'fnd base rates'!F$110) +($H24*'fnd base rates'!F$111) +($I24*'fnd base rates'!F$112) +($J24*'fnd base rates'!F$113) +($K24*'fnd base rates'!F$114) +($M24*'fnd base rates'!F$116) +($N24*'fnd base rates'!F$117) +($O24*'fnd base rates'!F$118) +($P24*VLOOKUP($S24+12,rate_basefnd,6))) *$R24 -> 41445.1607 | Y24: =(($D24*'fnd base rates'!G$107) +($E24*'fnd base rates'!G$108) +($F24*'fnd base rates'!G$109) +($G24*'fnd base rates'!G$110) +($H24*'fnd base rates'!G$111) +($I24*'fnd base rates'!G$112) +($J24*'fnd base rates'!G$113) +($K24*'fnd base rates'!G$114) +($M24*'fnd base rates'!G$116) +($N24*'fnd base rates'!G$117) +($O24*'fnd base rates'!G$118) +($P24*VLOOKUP($S24+12,rate_basefnd,7))) *$R24 -> 11086.41766 | Z24: =(($D24*'fnd base rates'!H$107) +($E24*'fnd base rates'!H$108) +($F24*'fnd base rates'!H$109) +($G24*'fnd base rates'!H$110) +($H24*'fnd base rates'!H$111) +($I24*'fnd base rates'!H$112) +($J24*'fnd base rates'!H$113) +($K24*'fnd base rates'!H$114) +($M24*'fnd base rates'!H$116) +($N24*'fnd base rates'!H$117) +($O24*'fnd base rates'!H$118) +($P24*VLOOKUP($S24+12,rate_basefnd,8))) -> 30996.43401 | AA24: =(($D24*'fnd base rates'!I$107) +($E24*'fnd base rates'!I$108) +($F24*'fnd base rates'!I$109) +($G24*'fnd base rates'!I$110) +($H24*'fnd base rates'!I$111) +($I24*'fnd base rates'!I$112) +($J24*'fnd base rates'!I$113) +($K24*'fnd base rates'!I$114) +($M24*'fnd base rates'!I$116) +($N24*'fnd base rates'!I$117) +($O24*'fnd base rates'!I$118) +($P24*VLOOKUP($S24+12,rate_basefnd,9))) *$R24 -> 20906.78905 | AB24: =(($D24*'fnd base rates'!J$107) +($E24*'fnd base rates'!J$108) +($F24*'fnd base rates'!J$109) +($G24*'fnd base rates'!J$110) +($H24*'fnd base rates'!J$111) +($I24*'fnd base rates'!J$112) +($J24*'fnd base rates'!J$113) +($K24*'fnd base rates'!J$114) +($M24*'fnd base rates'!J$116) +($N24*'fnd base rates'!J$117) +($O24*'fnd base rates'!J$118) +($P24*VLOOKUP($S24+12,rate_basefnd,10))) *$R24 -> 36407.3269 | AC24: =(($D24*'fnd base rates'!K$107) +($E24*'fnd base rates'!K$108) +($F24*'fnd base rates'!K$109) +($G24*'fnd base rates'!K$110) +($H24*'fnd base rates'!K$111) +($I24*'fnd base rates'!K$112) +($J24*'fnd base rates'!K$113) +($K24*'fnd base rates'!K$114) +($M24*'fnd base rates'!K$116) +($N24*'fnd base rates'!K$117) +($O24*'fnd base rates'!K$118) +($P24*VLOOKUP($S24+12,rate_basefnd,11))) *$R24 -> 52546.13671 | AD24: =(($D24*'fnd base rates'!L$107) +($E24*'fnd base rates'!L$108) +($F24*'fnd base rates'!L$109) +($G24*'fnd base rates'!L$110) +($H24*'fnd base rates'!L$111) +($I24*'fnd base rates'!L$112) +($J24*'fnd base rates'!L$113) +($K24*'fnd base rates'!L$114) +($M24*'fnd base rates'!L$116) +($N24*'fnd base rates'!L$117) +($O24*'fnd base rates'!L$118) +($P24*VLOOKUP($S24+12,rate_basefnd,12))) -> 61721.9011 | AE24: =(($D24*'fnd base rates'!M$107) +($E24*'fnd base rates'!M$108) +($F24*'fnd base rates'!M$109) +($G24*'fnd base rates'!M$110) +($H24*'fnd base rates'!M$111) +($I24*'fnd base rates'!M$112) +($J24*'fnd base rates'!M$113) +($K24*'fnd base rates'!M$114) +($M24*'fnd base rates'!M$116) +($N24*'fnd base rates'!M$117) +($O24*'fnd base rates'!M$118) +($P24*VLOOKUP($S24+12,rate_basefnd,13))) -> 0 | AF24: 600178.7864 | AH24: 410035248 | AI24: 410 | AJ24: 035 | AK24: 248 | AL24: 1 | AM24: 43 | AN24: 600178.7864 | AO24: 13958 | AP24: 0 | AQ24: 13958 | AW24: 14781 | AX24: 74 | AY24: 14855 | AZ24: -897 | BA24: 13958 | BB24: 0 | BC24: 13958
A25: 410 | B25: 410035262 | C25: EXCEL ACADEMY | D25: ='fnd enro'!D25 -> 0 | E25: ='fnd enro'!E25 -> 0 | F25: ='fnd enro'!F25 -> 0 | G25: ='fnd enro'!G25 -> 0 | H25: ='fnd enro'!H25 -> 1 | I25: ='fnd enro'!I25 -> 4 | J25: ='fnd enro'!J25 -> 0 | K25: ='fnd enro'!K25 -> 0.1895 | L25: ='fnd enro'!L25 -> 0 | M25: ='fnd enro'!M25+'fnd enro'!N25 -> 0 | N25: ='fnd enro'!O25 -> 0 | O25: ='fnd enro'!P25 -> 0 | P25: ='fnd enro'!Q25 -> 3 | Q25: ='fnd enro'!S25 -> 5 | R25: 1.085 | S25: =VALUE('fnd enro'!R25) -> 8 | U25: =(($D25*'fnd base rates'!C$107) +($E25*'fnd base rates'!C$108) +($F25*'fnd base rates'!C$109) +($G25*'fnd base rates'!C$110) +($H25*'fnd base rates'!C$111) +($I25*'fnd base rates'!C$112) +($J25*'fnd base rates'!C$113) +($K25*'fnd base rates'!C$114) +($M25*'fnd base rates'!C$116) +($N25*'fnd base rates'!C$117) +($O25*'fnd base rates'!C$118) +($P25*VLOOKUP($S25+12,rate_basefnd,3))) *$R25 -> 2933.606177 | V25: =(($D25*'fnd base rates'!D$107) +($E25*'fnd base rates'!D$108) +($F25*'fnd base rates'!D$109) +($G25*'fnd base rates'!D$110) +($H25*'fnd base rates'!D$111) +($I25*'fnd base rates'!D$112) +($J25*'fnd base rates'!D$113) +($K25*'fnd base rates'!D$114) +($M25*'fnd base rates'!D$116) +($N25*'fnd base rates'!D$117) +($O25*'fnd base rates'!D$118) +($P25*VLOOKUP($S25+12,rate_basefnd,4))) *$R25 -> 4853.95365 | W25: =(($D25*'fnd base rates'!E$107) +($E25*'fnd base rates'!E$108) +($F25*'fnd base rates'!E$109) +($G25*'fnd base rates'!E$110) +($H25*'fnd base rates'!E$111) +($I25*'fnd base rates'!E$112) +($J25*'fnd base rates'!E$113) +($K25*'fnd base rates'!E$114) +($M25*'fnd base rates'!E$116) +($N25*'fnd base rates'!E$117) +($O25*'fnd base rates'!E$118) +($P25*VLOOKUP($S25+12,rate_basefnd,5))) *$R25 -> 32775.16855 | X25: =(($D25*'fnd base rates'!F$107) +($E25*'fnd base rates'!F$108) +($F25*'fnd base rates'!F$109) +($G25*'fnd base rates'!F$110) +($H25*'fnd base rates'!F$111) +($I25*'fnd base rates'!F$112) +($J25*'fnd base rates'!F$113) +($K25*'fnd base rates'!F$114) +($M25*'fnd base rates'!F$116) +($N25*'fnd base rates'!F$117) +($O25*'fnd base rates'!F$118) +($P25*VLOOKUP($S25+12,rate_basefnd,6))) *$R25 -> 4618.965712 | Y25: =(($D25*'fnd base rates'!G$107) +($E25*'fnd base rates'!G$108) +($F25*'fnd base rates'!G$109) +($G25*'fnd base rates'!G$110) +($H25*'fnd base rates'!G$111) +($I25*'fnd base rates'!G$112) +($J25*'fnd base rates'!G$113) +($K25*'fnd base rates'!G$114) +($M25*'fnd base rates'!G$116) +($N25*'fnd base rates'!G$117) +($O25*'fnd base rates'!G$118) +($P25*VLOOKUP($S25+12,rate_basefnd,7))) *$R25 -> 1285.906228 | Z25: =(($D25*'fnd base rates'!H$107) +($E25*'fnd base rates'!H$108) +($F25*'fnd base rates'!H$109) +($G25*'fnd base rates'!H$110) +($H25*'fnd base rates'!H$111) +($I25*'fnd base rates'!H$112) +($J25*'fnd base rates'!H$113) +($K25*'fnd base rates'!H$114) +($M25*'fnd base rates'!H$116) +($N25*'fnd base rates'!H$117) +($O25*'fnd base rates'!H$118) +($P25*VLOOKUP($S25+12,rate_basefnd,8))) -> 3680.93535 | AA25: =(($D25*'fnd base rates'!I$107) +($E25*'fnd base rates'!I$108) +($F25*'fnd base rates'!I$109) +($G25*'fnd base rates'!I$110) +($H25*'fnd base rates'!I$111) +($I25*'fnd base rates'!I$112) +($J25*'fnd base rates'!I$113) +($K25*'fnd base rates'!I$114) +($M25*'fnd base rates'!I$116) +($N25*'fnd base rates'!I$117) +($O25*'fnd base rates'!I$118) +($P25*VLOOKUP($S25+12,rate_basefnd,9))) *$R25 -> 2462.78725 | AB25: =(($D25*'fnd base rates'!J$107) +($E25*'fnd base rates'!J$108) +($F25*'fnd base rates'!J$109) +($G25*'fnd base rates'!J$110) +($H25*'fnd base rates'!J$111) +($I25*'fnd base rates'!J$112) +($J25*'fnd base rates'!J$113) +($K25*'fnd base rates'!J$114) +($M25*'fnd base rates'!J$116) +($N25*'fnd base rates'!J$117) +($O25*'fnd base rates'!J$118) +($P25*VLOOKUP($S25+12,rate_basefnd,10))) *$R25 -> 4529.8316 | AC25: =(($D25*'fnd base rates'!K$107) +($E25*'fnd base rates'!K$108) +($F25*'fnd base rates'!K$109) +($G25*'fnd base rates'!K$110) +($H25*'fnd base rates'!K$111) +($I25*'fnd base rates'!K$112) +($J25*'fnd base rates'!K$113) +($K25*'fnd base rates'!K$114) +($M25*'fnd base rates'!K$116) +($N25*'fnd base rates'!K$117) +($O25*'fnd base rates'!K$118) +($P25*VLOOKUP($S25+12,rate_basefnd,11))) *$R25 -> 5908.558395 | AD25: =(($D25*'fnd base rates'!L$107) +($E25*'fnd base rates'!L$108) +($F25*'fnd base rates'!L$109) +($G25*'fnd base rates'!L$110) +($H25*'fnd base rates'!L$111) +($I25*'fnd base rates'!L$112) +($J25*'fnd base rates'!L$113) +($K25*'fnd base rates'!L$114) +($M25*'fnd base rates'!L$116) +($N25*'fnd base rates'!L$117) +($O25*'fnd base rates'!L$118) +($P25*VLOOKUP($S25+12,rate_basefnd,12))) -> 7055.957105 | AE25: =(($D25*'fnd base rates'!M$107) +($E25*'fnd base rates'!M$108) +($F25*'fnd base rates'!M$109) +($G25*'fnd base rates'!M$110) +($H25*'fnd base rates'!M$111) +($I25*'fnd base rates'!M$112) +($J25*'fnd base rates'!M$113) +($K25*'fnd base rates'!M$114) +($M25*'fnd base rates'!M$116) +($N25*'fnd base rates'!M$117) +($O25*'fnd base rates'!M$118) +($P25*VLOOKUP($S25+12,rate_basefnd,13))) -> 0 | AF25: 70105.67001 | AH25: 410035262 | AI25: 410 | AJ25: 035 | AK25: 262 | AL25: 1 | AM25: 5 | AN25: 70105.67001 | AO25: 14021 | AP25: 0 | AQ25: 14021 | AW25: 14038 | AX25: 23 | AY25: 14061 | AZ25: -40 | BA25: 14021 | BB25: 0 | BC25: 14021
A26: 410 | B26: 410035346 | C26: EXCEL ACADEMY | D26: ='fnd enro'!D26 -> 0 | E26: ='fnd enro'!E26 -> 0 | F26: ='fnd enro'!F26 -> 0 | G26: ='fnd enro'!G26 -> 0 | H26: ='fnd enro'!H26 -> 1 | I26: ='fnd enro'!I26 -> 6 | J26: ='fnd enro'!J26 -> 0 | K26: ='fnd enro'!K26 -> 0.2653 | L26: ='fnd enro'!L26 -> 0 | M26: ='fnd enro'!M26+'fnd enro'!N26 -> 0 | N26: ='fnd enro'!O26 -> 0 | O26: ='fnd enro'!P26 -> 1 | P26: ='fnd enro'!Q26 -> 3 | Q26: ='fnd enro'!S26 -> 7 | R26: 1.085 | S26: =VALUE('fnd enro'!R26) -> 7 | U26: =(($D26*'fnd base rates'!C$107) +($E26*'fnd base rates'!C$108) +($F26*'fnd base rates'!C$109) +($G26*'fnd base rates'!C$110) +($H26*'fnd base rates'!C$111) +($I26*'fnd base rates'!C$112) +($J26*'fnd base rates'!C$113) +($K26*'fnd base rates'!C$114) +($M26*'fnd base rates'!C$116) +($N26*'fnd base rates'!C$117) +($O26*'fnd base rates'!C$118) +($P26*VLOOKUP($S26+12,rate_basefnd,3))) *$R26 -> 4104.850438 | V26: =(($D26*'fnd base rates'!D$107) +($E26*'fnd base rates'!D$108) +($F26*'fnd base rates'!D$109) +($G26*'fnd base rates'!D$110) +($H26*'fnd base rates'!D$111) +($I26*'fnd base rates'!D$112) +($J26*'fnd base rates'!D$113) +($K26*'fnd base rates'!D$114) +($M26*'fnd base rates'!D$116) +($N26*'fnd base rates'!D$117) +($O26*'fnd base rates'!D$118) +($P26*VLOOKUP($S26+12,rate_basefnd,4))) *$R26 -> 6541.77965 | W26: =(($D26*'fnd base rates'!E$107) +($E26*'fnd base rates'!E$108) +($F26*'fnd base rates'!E$109) +($G26*'fnd base rates'!E$110) +($H26*'fnd base rates'!E$111) +($I26*'fnd base rates'!E$112) +($J26*'fnd base rates'!E$113) +($K26*'fnd base rates'!E$114) +($M26*'fnd base rates'!E$116) +($N26*'fnd base rates'!E$117) +($O26*'fnd base rates'!E$118) +($P26*VLOOKUP($S26+12,rate_basefnd,5))) *$R26 -> 43609.62641 | X26: =(($D26*'fnd base rates'!F$107) +($E26*'fnd base rates'!F$108) +($F26*'fnd base rates'!F$109) +($G26*'fnd base rates'!F$110) +($H26*'fnd base rates'!F$111) +($I26*'fnd base rates'!F$112) +($J26*'fnd base rates'!F$113) +($K26*'fnd base rates'!F$114) +($M26*'fnd base rates'!F$116) +($N26*'fnd base rates'!F$117) +($O26*'fnd base rates'!F$118) +($P26*VLOOKUP($S26+12,rate_basefnd,6))) *$R26 -> 6564.638166 | Y26: =(($D26*'fnd base rates'!G$107) +($E26*'fnd base rates'!G$108) +($F26*'fnd base rates'!G$109) +($G26*'fnd base rates'!G$110) +($H26*'fnd base rates'!G$111) +($I26*'fnd base rates'!G$112) +($J26*'fnd base rates'!G$113) +($K26*'fnd base rates'!G$114) +($M26*'fnd base rates'!G$116) +($N26*'fnd base rates'!G$117) +($O26*'fnd base rates'!G$118) +($P26*VLOOKUP($S26+12,rate_basefnd,7))) *$R26 -> 1651.482669 | Z26: =(($D26*'fnd base rates'!H$107) +($E26*'fnd base rates'!H$108) +($F26*'fnd base rates'!H$109) +($G26*'fnd base rates'!H$110) +($H26*'fnd base rates'!H$111) +($I26*'fnd base rates'!H$112) +($J26*'fnd base rates'!H$113) +($K26*'fnd base rates'!H$114) +($M26*'fnd base rates'!H$116) +($N26*'fnd base rates'!H$117) +($O26*'fnd base rates'!H$118) +($P26*VLOOKUP($S26+12,rate_basefnd,8))) -> 5335.57949 | AA26: =(($D26*'fnd base rates'!I$107) +($E26*'fnd base rates'!I$108) +($F26*'fnd base rates'!I$109) +($G26*'fnd base rates'!I$110) +($H26*'fnd base rates'!I$111) +($I26*'fnd base rates'!I$112) +($J26*'fnd base rates'!I$113) +($K26*'fnd base rates'!I$114) +($M26*'fnd base rates'!I$116) +($N26*'fnd base rates'!I$117) +($O26*'fnd base rates'!I$118) +($P26*VLOOKUP($S26+12,rate_basefnd,9))) *$R26 -> 3387.6521 | AB26: =(($D26*'fnd base rates'!J$107) +($E26*'fnd base rates'!J$108) +($F26*'fnd base rates'!J$109) +($G26*'fnd base rates'!J$110) +($H26*'fnd base rates'!J$111) +($I26*'fnd base rates'!J$112) +($J26*'fnd base rates'!J$113) +($K26*'fnd base rates'!J$114) +($M26*'fnd base rates'!J$116) +($N26*'fnd base rates'!J$117) +($O26*'fnd base rates'!J$118) +($P26*VLOOKUP($S26+12,rate_basefnd,10))) *$R26 -> 5681.3421 | AC26: =(($D26*'fnd base rates'!K$107) +($E26*'fnd base rates'!K$108) +($F26*'fnd base rates'!K$109) +($G26*'fnd base rates'!K$110) +($H26*'fnd base rates'!K$111) +($I26*'fnd base rates'!K$112) +($J26*'fnd base rates'!K$113) +($K26*'fnd base rates'!K$114) +($M26*'fnd base rates'!K$116) +($N26*'fnd base rates'!K$117) +($O26*'fnd base rates'!K$118) +($P26*VLOOKUP($S26+12,rate_basefnd,11))) *$R26 -> 8503.134493 | AD26: =(($D26*'fnd base rates'!L$107) +($E26*'fnd base rates'!L$108) +($F26*'fnd base rates'!L$109) +($G26*'fnd base rates'!L$110) +($H26*'fnd base rates'!L$111) +($I26*'fnd base rates'!L$112) +($J26*'fnd base rates'!L$113) +($K26*'fnd base rates'!L$114) +($M26*'fnd base rates'!L$116) +($N26*'fnd base rates'!L$117) +($O26*'fnd base rates'!L$118) +($P26*VLOOKUP($S26+12,rate_basefnd,12))) -> 9466.489947 | AE26: =(($D26*'fnd base rates'!M$107) +($E26*'fnd base rates'!M$108) +($F26*'fnd base rates'!M$109) +($G26*'fnd base rates'!M$110) +($H26*'fnd base rates'!M$111) +($I26*'fnd base rates'!M$112) +($J26*'fnd base rates'!M$113) +($K26*'fnd base rates'!M$114) +($M26*'fnd base rates'!M$116) +($N26*'fnd base rates'!M$117) +($O26*'fnd base rates'!M$118) +($P26*VLOOKUP($S26+12,rate_basefnd,13))) -> 0 | AF26: 94846.57546 | AH26: 410035346 | AI26: 410 | AJ26: 035 | AK26: 346 | AL26: 1 | AM26: 7 | AN26: 94846.57546 | AO26: 13550 | AP26: 0 | AQ26: 13550 | AW26: 13611 | AX26: 10 | AY26: 13621 | AZ26: -71 | BA26: 13550 | BB26: 0 | BC26: 13550
A27: 410 | B27: 410057035 | C27: EXCEL ACADEMY | D27: ='fnd enro'!D27 -> 0 | E27: ='fnd enro'!E27 -> 0 | F27: ='fnd enro'!F27 -> 0 | G27: ='fnd enro'!G27 -> 0 | H27: ='fnd enro'!H27 -> 9 | I27: ='fnd enro'!I27 -> 0 | J27: ='fnd enro'!J27 -> 0 | K27: ='fnd enro'!K27 -> 0.3411 | L27: ='fnd enro'!L27 -> 0 | M27: ='fnd enro'!M27+'fnd enro'!N27 -> 0 | N27: ='fnd enro'!O27 -> 4 | O27: ='fnd enro'!P27 -> 0 | P27: ='fnd enro'!Q27 -> 7 | Q27: ='fnd enro'!S27 -> 9 | R27: 1.038 | S27: =VALUE('fnd enro'!R27) -> 10 | U27: =(($D27*'fnd base rates'!C$107) +($E27*'fnd base rates'!C$108) +($F27*'fnd base rates'!C$109) +($G27*'fnd base rates'!C$110) +($H27*'fnd base rates'!C$111) +($I27*'fnd base rates'!C$112) +($J27*'fnd base rates'!C$113) +($K27*'fnd base rates'!C$114) +($M27*'fnd base rates'!C$116) +($N27*'fnd base rates'!C$117) +($O27*'fnd base rates'!C$118) +($P27*VLOOKUP($S27+12,rate_basefnd,3))) *$R27 -> 5572.004854 | V27: =(($D27*'fnd base rates'!D$107) +($E27*'fnd base rates'!D$108) +($F27*'fnd base rates'!D$109) +($G27*'fnd base rates'!D$110) +($H27*'fnd base rates'!D$111) +($I27*'fnd base rates'!D$112) +($J27*'fnd base rates'!D$113) +($K27*'fnd base rates'!D$114) +($M27*'fnd base rates'!D$116) +($N27*'fnd base rates'!D$117) +($O27*'fnd base rates'!D$118) +($P27*VLOOKUP($S27+12,rate_basefnd,4))) *$R27 -> 9630.6159 | W27: =(($D27*'fnd base rates'!E$107) +($E27*'fnd base rates'!E$108) +($F27*'fnd base rates'!E$109) +($G27*'fnd base rates'!E$110) +($H27*'fnd base rates'!E$111) +($I27*'fnd base rates'!E$112) +($J27*'fnd base rates'!E$113) +($K27*'fnd base rates'!E$114) +($M27*'fnd base rates'!E$116) +($N27*'fnd base rates'!E$117) +($O27*'fnd base rates'!E$118) +($P27*VLOOKUP($S27+12,rate_basefnd,5))) *$R27 -> 56682.28347 | X27: =(($D27*'fnd base rates'!F$107) +($E27*'fnd base rates'!F$108) +($F27*'fnd base rates'!F$109) +($G27*'fnd base rates'!F$110) +($H27*'fnd base rates'!F$111) +($I27*'fnd base rates'!F$112) +($J27*'fnd base rates'!F$113) +($K27*'fnd base rates'!F$114) +($M27*'fnd base rates'!F$116) +($N27*'fnd base rates'!F$117) +($O27*'fnd base rates'!F$118) +($P27*VLOOKUP($S27+12,rate_basefnd,6))) *$R27 -> 9417.716141 | Y27: =(($D27*'fnd base rates'!G$107) +($E27*'fnd base rates'!G$108) +($F27*'fnd base rates'!G$109) +($G27*'fnd base rates'!G$110) +($H27*'fnd base rates'!G$111) +($I27*'fnd base rates'!G$112) +($J27*'fnd base rates'!G$113) +($K27*'fnd base rates'!G$114) +($M27*'fnd base rates'!G$116) +($N27*'fnd base rates'!G$117) +($O27*'fnd base rates'!G$118) +($P27*VLOOKUP($S27+12,rate_basefnd,7))) *$R27 -> 2717.713039 | Z27: =(($D27*'fnd base rates'!H$107) +($E27*'fnd base rates'!H$108) +($F27*'fnd base rates'!H$109) +($G27*'fnd base rates'!H$110) +($H27*'fnd base rates'!H$111) +($I27*'fnd base rates'!H$112) +($J27*'fnd base rates'!H$113) +($K27*'fnd base rates'!H$114) +($M27*'fnd base rates'!H$116) +($N27*'fnd base rates'!H$117) +($O27*'fnd base rates'!H$118) +($P27*VLOOKUP($S27+12,rate_basefnd,8))) -> 5076.69363 | AA27: =(($D27*'fnd base rates'!I$107) +($E27*'fnd base rates'!I$108) +($F27*'fnd base rates'!I$109) +($G27*'fnd base rates'!I$110) +($H27*'fnd base rates'!I$111) +($I27*'fnd base rates'!I$112) +($J27*'fnd base rates'!I$113) +($K27*'fnd base rates'!I$114) +($M27*'fnd base rates'!I$116) +($N27*'fnd base rates'!I$117) +($O27*'fnd base rates'!I$118) +($P27*VLOOKUP($S27+12,rate_basefnd,9))) *$R27 -> 4159.58778 | AB27: =(($D27*'fnd base rates'!J$107) +($E27*'fnd base rates'!J$108) +($F27*'fnd base rates'!J$109) +($G27*'fnd base rates'!J$110) +($H27*'fnd base rates'!J$111) +($I27*'fnd base rates'!J$112) +($J27*'fnd base rates'!J$113) +($K27*'fnd base rates'!J$114) +($M27*'fnd base rates'!J$116) +($N27*'fnd base rates'!J$117) +($O27*'fnd base rates'!J$118) +($P27*VLOOKUP($S27+12,rate_basefnd,10))) *$R27 -> 6786.51666 | AC27: =(($D27*'fnd base rates'!K$107) +($E27*'fnd base rates'!K$108) +($F27*'fnd base rates'!K$109) +($G27*'fnd base rates'!K$110) +($H27*'fnd base rates'!K$111) +($I27*'fnd base rates'!K$112) +($J27*'fnd base rates'!K$113) +($K27*'fnd base rates'!K$114) +($M27*'fnd base rates'!K$116) +($N27*'fnd base rates'!K$117) +($O27*'fnd base rates'!K$118) +($P27*VLOOKUP($S27+12,rate_basefnd,11))) *$R27 -> 11598.76219 | AD27: =(($D27*'fnd base rates'!L$107) +($E27*'fnd base rates'!L$108) +($F27*'fnd base rates'!L$109) +($G27*'fnd base rates'!L$110) +($H27*'fnd base rates'!L$111) +($I27*'fnd base rates'!L$112) +($J27*'fnd base rates'!L$113) +($K27*'fnd base rates'!L$114) +($M27*'fnd base rates'!L$116) +($N27*'fnd base rates'!L$117) +($O27*'fnd base rates'!L$118) +($P27*VLOOKUP($S27+12,rate_basefnd,12))) -> 15379.24279 | AE27: =(($D27*'fnd base rates'!M$107) +($E27*'fnd base rates'!M$108) +($F27*'fnd base rates'!M$109) +($G27*'fnd base rates'!M$110) +($H27*'fnd base rates'!M$111) +($I27*'fnd base rates'!M$112) +($J27*'fnd base rates'!M$113) +($K27*'fnd base rates'!M$114) +($M27*'fnd base rates'!M$116) +($N27*'fnd base rates'!M$117) +($O27*'fnd base rates'!M$118) +($P27*VLOOKUP($S27+12,rate_basefnd,13))) -> 0 | AF27: 127021.1365 | AH27: 410057035 | AI27: 410 | AJ27: 057 | AK27: 035 | AL27: 1 | AM27: 9 | AN27: 127021.1365 | AO27: 14113 | AP27: 0 | AQ27: 14113 | AW27: 14256 | AX27: 82 | AY27: 14338 | AZ27: -225 | BA27: 14113 | BB27: 0 | BC27: 14113
A28: 410 | B28: 410057057 | C28: EXCEL ACADEMY | D28: ='fnd enro'!D28 -> 0 | E28: ='fnd enro'!E28 -> 0 | F28: ='fnd enro'!F28 -> 0 | G28: ='fnd enro'!G28 -> 57 | H28: ='fnd enro'!H28 -> 151 | I28: ='fnd enro'!I28 -> 0 | J28: ='fnd enro'!J28 -> 0 | K28: ='fnd enro'!K28 -> 7.8832 | L28: ='fnd enro'!L28 -> 0 | M28: ='fnd enro'!M28+'fnd enro'!N28 -> 5 | N28: ='fnd enro'!O28 -> 17 | O28: ='fnd enro'!P28 -> 0 | P28: ='fnd enro'!Q28 -> 133 | Q28: ='fnd enro'!S28 -> 208 | R28: 1.038 | S28: =VALUE('fnd enro'!R28) -> 10 | U28: =(($D28*'fnd base rates'!C$107) +($E28*'fnd base rates'!C$108) +($F28*'fnd base rates'!C$109) +($G28*'fnd base rates'!C$110) +($H28*'fnd base rates'!C$111) +($I28*'fnd base rates'!C$112) +($J28*'fnd base rates'!C$113) +($K28*'fnd base rates'!C$114) +($M28*'fnd base rates'!C$116) +($N28*'fnd base rates'!C$117) +($O28*'fnd base rates'!C$118) +($P28*VLOOKUP($S28+12,rate_basefnd,3))) *$R28 -> 119823.8977 | V28: =(($D28*'fnd base rates'!D$107) +($E28*'fnd base rates'!D$108) +($F28*'fnd base rates'!D$109) +($G28*'fnd base rates'!D$110) +($H28*'fnd base rates'!D$111) +($I28*'fnd base rates'!D$112) +($J28*'fnd base rates'!D$113) +($K28*'fnd base rates'!D$114) +($M28*'fnd base rates'!D$116) +($N28*'fnd base rates'!D$117) +($O28*'fnd base rates'!D$118) +($P28*VLOOKUP($S28+12,rate_basefnd,4))) *$R28 -> 201238.6897 | W28: =(($D28*'fnd base rates'!E$107) +($E28*'fnd base rates'!E$108) +($F28*'fnd base rates'!E$109) +($G28*'fnd base rates'!E$110) +($H28*'fnd base rates'!E$111) +($I28*'fnd base rates'!E$112) +($J28*'fnd base rates'!E$113) +($K28*'fnd base rates'!E$114) +($M28*'fnd base rates'!E$116) +($N28*'fnd base rates'!E$117) +($O28*'fnd base rates'!E$118) +($P28*VLOOKUP($S28+12,rate_basefnd,5))) *$R28 -> 1159304.818 | X28: =(($D28*'fnd base rates'!F$107) +($E28*'fnd base rates'!F$108) +($F28*'fnd base rates'!F$109) +($G28*'fnd base rates'!F$110) +($H28*'fnd base rates'!F$111) +($I28*'fnd base rates'!F$112) +($J28*'fnd base rates'!F$113) +($K28*'fnd base rates'!F$114) +($M28*'fnd base rates'!F$116) +($N28*'fnd base rates'!F$117) +($O28*'fnd base rates'!F$118) +($P28*VLOOKUP($S28+12,rate_basefnd,6))) *$R28 -> 219384.628 | Y28: =(($D28*'fnd base rates'!G$107) +($E28*'fnd base rates'!G$108) +($F28*'fnd base rates'!G$109) +($G28*'fnd base rates'!G$110) +($H28*'fnd base rates'!G$111) +($I28*'fnd base rates'!G$112) +($J28*'fnd base rates'!G$113) +($K28*'fnd base rates'!G$114) +($M28*'fnd base rates'!G$116) +($N28*'fnd base rates'!G$117) +($O28*'fnd base rates'!G$118) +($P28*VLOOKUP($S28+12,rate_basefnd,7))) *$R28 -> 54373.00225 | Z28: =(($D28*'fnd base rates'!H$107) +($E28*'fnd base rates'!H$108) +($F28*'fnd base rates'!H$109) +($G28*'fnd base rates'!H$110) +($H28*'fnd base rates'!H$111) +($I28*'fnd base rates'!H$112) +($J28*'fnd base rates'!H$113) +($K28*'fnd base rates'!H$114) +($M28*'fnd base rates'!H$116) +($N28*'fnd base rates'!H$117) +($O28*'fnd base rates'!H$118) +($P28*VLOOKUP($S28+12,rate_basefnd,8))) -> 108205.7806 | AA28: =(($D28*'fnd base rates'!I$107) +($E28*'fnd base rates'!I$108) +($F28*'fnd base rates'!I$109) +($G28*'fnd base rates'!I$110) +($H28*'fnd base rates'!I$111) +($I28*'fnd base rates'!I$112) +($J28*'fnd base rates'!I$113) +($K28*'fnd base rates'!I$114) +($M28*'fnd base rates'!I$116) +($N28*'fnd base rates'!I$117) +($O28*'fnd base rates'!I$118) +($P28*VLOOKUP($S28+12,rate_basefnd,9))) *$R28 -> 82569.25662 | AB28: =(($D28*'fnd base rates'!J$107) +($E28*'fnd base rates'!J$108) +($F28*'fnd base rates'!J$109) +($G28*'fnd base rates'!J$110) +($H28*'fnd base rates'!J$111) +($I28*'fnd base rates'!J$112) +($J28*'fnd base rates'!J$113) +($K28*'fnd base rates'!J$114) +($M28*'fnd base rates'!J$116) +($N28*'fnd base rates'!J$117) +($O28*'fnd base rates'!J$118) +($P28*VLOOKUP($S28+12,rate_basefnd,10))) *$R28 -> 131220.5657 | AC28: =(($D28*'fnd base rates'!K$107) +($E28*'fnd base rates'!K$108) +($F28*'fnd base rates'!K$109) +($G28*'fnd base rates'!K$110) +($H28*'fnd base rates'!K$111) +($I28*'fnd base rates'!K$112) +($J28*'fnd base rates'!K$113) +($K28*'fnd base rates'!K$114) +($M28*'fnd base rates'!K$116) +($N28*'fnd base rates'!K$117) +($O28*'fnd base rates'!K$118) +($P28*VLOOKUP($S28+12,rate_basefnd,11))) *$R28 -> 242326.5859 | AD28: =(($D28*'fnd base rates'!L$107) +($E28*'fnd base rates'!L$108) +($F28*'fnd base rates'!L$109) +($G28*'fnd base rates'!L$110) +($H28*'fnd base rates'!L$111) +($I28*'fnd base rates'!L$112) +($J28*'fnd base rates'!L$113) +($K28*'fnd base rates'!L$114) +($M28*'fnd base rates'!L$116) +($N28*'fnd base rates'!L$117) +($O28*'fnd base rates'!L$118) +($P28*VLOOKUP($S28+12,rate_basefnd,12))) -> 321263.3056 | AE28: =(($D28*'fnd base rates'!M$107) +($E28*'fnd base rates'!M$108) +($F28*'fnd base rates'!M$109) +($G28*'fnd base rates'!M$110) +($H28*'fnd base rates'!M$111) +($I28*'fnd base rates'!M$112) +($J28*'fnd base rates'!M$113) +($K28*'fnd base rates'!M$114) +($M28*'fnd base rates'!M$116) +($N28*'fnd base rates'!M$117) +($O28*'fnd base rates'!M$118) +($P28*VLOOKUP($S28+12,rate_basefnd,13))) -> 0 | AF28: 2639710.53 | AH28: 410057057 | AI28: 410 | AJ28: 057 | AK28: 057 | AL28: 1 | AM28: 208 | AN28: 2639710.53 | AO28: 12691 | AP28: 0 | AQ28: 12691 | AW28: 13756 | AX28: 111 | AY28: 13867 | AZ28: -1176 | BA28: 12691 | BB28: 0 | BC28: 12691
A29: 410 | B29: 410057093 | C29: EXCEL ACADEMY | D29: ='fnd enro'!D29 -> 0 | E29: ='fnd enro'!E29 -> 0 | F29: ='fnd enro'!F29 -> 0 | G29: ='fnd enro'!G29 -> 0 | H29: ='fnd enro'!H29 -> 6 | I29: ='fnd enro'!I29 -> 0 | J29: ='fnd enro'!J29 -> 0 | K29: ='fnd enro'!K29 -> 0.2274 | L29: ='fnd enro'!L29 -> 0 | M29: ='fnd enro'!M29+'fnd enro'!N29 -> 0 | N29: ='fnd enro'!O29 -> 0 | O29: ='fnd enro'!P29 -> 0 | P29: ='fnd enro'!Q29 -> 3 | Q29: ='fnd enro'!S29 -> 6 | R29: 1.038 | S29: =VALUE('fnd enro'!R29) -> 10 | U29: =(($D29*'fnd base rates'!C$107) +($E29*'fnd base rates'!C$108) +($F29*'fnd base rates'!C$109) +($G29*'fnd base rates'!C$110) +($H29*'fnd base rates'!C$111) +($I29*'fnd base rates'!C$112) +($J29*'fnd base rates'!C$113) +($K29*'fnd base rates'!C$114) +($M29*'fnd base rates'!C$116) +($N29*'fnd base rates'!C$117) +($O29*'fnd base rates'!C$118) +($P29*VLOOKUP($S29+12,rate_basefnd,3))) *$R29 -> 3338.574823 | V29: =(($D29*'fnd base rates'!D$107) +($E29*'fnd base rates'!D$108) +($F29*'fnd base rates'!D$109) +($G29*'fnd base rates'!D$110) +($H29*'fnd base rates'!D$111) +($I29*'fnd base rates'!D$112) +($J29*'fnd base rates'!D$113) +($K29*'fnd base rates'!D$114) +($M29*'fnd base rates'!D$116) +($N29*'fnd base rates'!D$117) +($O29*'fnd base rates'!D$118) +($P29*VLOOKUP($S29+12,rate_basefnd,4))) *$R29 -> 5433.80544 | W29: =(($D29*'fnd base rates'!E$107) +($E29*'fnd base rates'!E$108) +($F29*'fnd base rates'!E$109) +($G29*'fnd base rates'!E$110) +($H29*'fnd base rates'!E$111) +($I29*'fnd base rates'!E$112) +($J29*'fnd base rates'!E$113) +($K29*'fnd base rates'!E$114) +($M29*'fnd base rates'!E$116) +($N29*'fnd base rates'!E$117) +($O29*'fnd base rates'!E$118) +($P29*VLOOKUP($S29+12,rate_basefnd,5))) *$R29 -> 29443.41634 | X29: =(($D29*'fnd base rates'!F$107) +($E29*'fnd base rates'!F$108) +($F29*'fnd base rates'!F$109) +($G29*'fnd base rates'!F$110) +($H29*'fnd base rates'!F$111) +($I29*'fnd base rates'!F$112) +($J29*'fnd base rates'!F$113) +($K29*'fnd base rates'!F$114) +($M29*'fnd base rates'!F$116) +($N29*'fnd base rates'!F$117) +($O29*'fnd base rates'!F$118) +($P29*VLOOKUP($S29+12,rate_basefnd,6))) *$R29 -> 5812.706067 | Y29: =(($D29*'fnd base rates'!G$107) +($E29*'fnd base rates'!G$108) +($F29*'fnd base rates'!G$109) +($G29*'fnd base rates'!G$110) +($H29*'fnd base rates'!G$111) +($I29*'fnd base rates'!G$112) +($J29*'fnd base rates'!G$113) +($K29*'fnd base rates'!G$114) +($M29*'fnd base rates'!G$116) +($N29*'fnd base rates'!G$117) +($O29*'fnd base rates'!G$118) +($P29*VLOOKUP($S29+12,rate_basefnd,7))) *$R29 -> 1432.087533 | Z29: =(($D29*'fnd base rates'!H$107) +($E29*'fnd base rates'!H$108) +($F29*'fnd base rates'!H$109) +($G29*'fnd base rates'!H$110) +($H29*'fnd base rates'!H$111) +($I29*'fnd base rates'!H$112) +($J29*'fnd base rates'!H$113) +($K29*'fnd base rates'!H$114) +($M29*'fnd base rates'!H$116) +($N29*'fnd base rates'!H$117) +($O29*'fnd base rates'!H$118) +($P29*VLOOKUP($S29+12,rate_basefnd,8))) -> 3027.52242 | AA29: =(($D29*'fnd base rates'!I$107) +($E29*'fnd base rates'!I$108) +($F29*'fnd base rates'!I$109) +($G29*'fnd base rates'!I$110) +($H29*'fnd base rates'!I$111) +($I29*'fnd base rates'!I$112) +($J29*'fnd base rates'!I$113) +($K29*'fnd base rates'!I$114) +($M29*'fnd base rates'!I$116) +($N29*'fnd base rates'!I$117) +($O29*'fnd base rates'!I$118) +($P29*VLOOKUP($S29+12,rate_basefnd,9))) *$R29 -> 2367.54306 | AB29: =(($D29*'fnd base rates'!J$107) +($E29*'fnd base rates'!J$108) +($F29*'fnd base rates'!J$109) +($G29*'fnd base rates'!J$110) +($H29*'fnd base rates'!J$111) +($I29*'fnd base rates'!J$112) +($J29*'fnd base rates'!J$113) +($K29*'fnd base rates'!J$114) +($M29*'fnd base rates'!J$116) +($N29*'fnd base rates'!J$117) +($O29*'fnd base rates'!J$118) +($P29*VLOOKUP($S29+12,rate_basefnd,10))) *$R29 -> 3387.96972 | AC29: =(($D29*'fnd base rates'!K$107) +($E29*'fnd base rates'!K$108) +($F29*'fnd base rates'!K$109) +($G29*'fnd base rates'!K$110) +($H29*'fnd base rates'!K$111) +($I29*'fnd base rates'!K$112) +($J29*'fnd base rates'!K$113) +($K29*'fnd base rates'!K$114) +($M29*'fnd base rates'!K$116) +($N29*'fnd base rates'!K$117) +($O29*'fnd base rates'!K$118) +($P29*VLOOKUP($S29+12,rate_basefnd,11))) *$R29 -> 6934.050847 | AD29: =(($D29*'fnd base rates'!L$107) +($E29*'fnd base rates'!L$108) +($F29*'fnd base rates'!L$109) +($G29*'fnd base rates'!L$110) +($H29*'fnd base rates'!L$111) +($I29*'fnd base rates'!L$112) +($J29*'fnd base rates'!L$113) +($K29*'fnd base rates'!L$114) +($M29*'fnd base rates'!L$116) +($N29*'fnd base rates'!L$117) +($O29*'fnd base rates'!L$118) +($P29*VLOOKUP($S29+12,rate_basefnd,12))) -> 8755.358526 | AE29: =(($D29*'fnd base rates'!M$107) +($E29*'fnd base rates'!M$108) +($F29*'fnd base rates'!M$109) +($G29*'fnd base rates'!M$110) +($H29*'fnd base rates'!M$111) +($I29*'fnd base rates'!M$112) +($J29*'fnd base rates'!M$113) +($K29*'fnd base rates'!M$114) +($M29*'fnd base rates'!M$116) +($N29*'fnd base rates'!M$117) +($O29*'fnd base rates'!M$118) +($P29*VLOOKUP($S29+12,rate_basefnd,13))) -> 0 | AF29: 69933.03477 | AH29: 410057093 | AI29: 410 | AJ29: 057 | AK29: 093 | AL29: 1 | AM29: 6 | AN29: 69933.03477 | AO29: 11656 | AP29: 0 | AQ29: 11656 | AW29: 14203 | AX29: 105 | AY29: 14308 | AZ29: -2652 | BA29: 11656 | BB29: 0 | BC29: 11656
A30: 410 | B30: 410057163 | C30: EXCEL ACADEMY | D30: ='fnd enro'!D30 -> 0 | E30: ='fnd enro'!E30 -> 0 | F30: ='fnd enro'!F30 -> 0 | G30: ='fnd enro'!G30 -> 1 | H30: ='fnd enro'!H30 -> 2 | I30: ='fnd enro'!I30 -> 0 | J30: ='fnd enro'!J30 -> 0 | K30: ='fnd enro'!K30 -> 0.1137 | L30: ='fnd enro'!L30 -> 0 | M30: ='fnd enro'!M30+'fnd enro'!N30 -> 0 | N30: ='fnd enro'!O30 -> 0 | O30: ='fnd enro'!P30 -> 0 | P30: ='fnd enro'!Q30 -> 2 | Q30: ='fnd enro'!S30 -> 3 | R30: 1.038 | S30: =VALUE('fnd enro'!R30) -> 10 | U30: =(($D30*'fnd base rates'!C$107) +($E30*'fnd base rates'!C$108) +($F30*'fnd base rates'!C$109) +($G30*'fnd base rates'!C$110) +($H30*'fnd base rates'!C$111) +($I30*'fnd base rates'!C$112) +($J30*'fnd base rates'!C$113) +($K30*'fnd base rates'!C$114) +($M30*'fnd base rates'!C$116) +($N30*'fnd base rates'!C$117) +($O30*'fnd base rates'!C$118) +($P30*VLOOKUP($S30+12,rate_basefnd,3))) *$R30 -> 1702.264671 | V30: =(($D30*'fnd base rates'!D$107) +($E30*'fnd base rates'!D$108) +($F30*'fnd base rates'!D$109) +($G30*'fnd base rates'!D$110) +($H30*'fnd base rates'!D$111) +($I30*'fnd base rates'!D$112) +($J30*'fnd base rates'!D$113) +($K30*'fnd base rates'!D$114) +($M30*'fnd base rates'!D$116) +($N30*'fnd base rates'!D$117) +($O30*'fnd base rates'!D$118) +($P30*VLOOKUP($S30+12,rate_basefnd,4))) *$R30 -> 2873.15286 | W30: =(($D30*'fnd base rates'!E$107) +($E30*'fnd base rates'!E$108) +($F30*'fnd base rates'!E$109) +($G30*'fnd base rates'!E$110) +($H30*'fnd base rates'!E$111) +($I30*'fnd base rates'!E$112) +($J30*'fnd base rates'!E$113) +($K30*'fnd base rates'!E$114) +($M30*'fnd base rates'!E$116) +($N30*'fnd base rates'!E$117) +($O30*'fnd base rates'!E$118) +($P30*VLOOKUP($S30+12,rate_basefnd,5))) *$R30 -> 16659.34277 | X30: =(($D30*'fnd base rates'!F$107) +($E30*'fnd base rates'!F$108) +($F30*'fnd base rates'!F$109) +($G30*'fnd base rates'!F$110) +($H30*'fnd base rates'!F$111) +($I30*'fnd base rates'!F$112) +($J30*'fnd base rates'!F$113) +($K30*'fnd base rates'!F$114) +($M30*'fnd base rates'!F$116) +($N30*'fnd base rates'!F$117) +($O30*'fnd base rates'!F$118) +($P30*VLOOKUP($S30+12,rate_basefnd,6))) *$R30 -> 3153.251714 | Y30: =(($D30*'fnd base rates'!G$107) +($E30*'fnd base rates'!G$108) +($F30*'fnd base rates'!G$109) +($G30*'fnd base rates'!G$110) +($H30*'fnd base rates'!G$111) +($I30*'fnd base rates'!G$112) +($J30*'fnd base rates'!G$113) +($K30*'fnd base rates'!G$114) +($M30*'fnd base rates'!G$116) +($N30*'fnd base rates'!G$117) +($O30*'fnd base rates'!G$118) +($P30*VLOOKUP($S30+12,rate_basefnd,7))) *$R30 -> 778.6144063 | Z30: =(($D30*'fnd base rates'!H$107) +($E30*'fnd base rates'!H$108) +($F30*'fnd base rates'!H$109) +($G30*'fnd base rates'!H$110) +($H30*'fnd base rates'!H$111) +($I30*'fnd base rates'!H$112) +($J30*'fnd base rates'!H$113) +($K30*'fnd base rates'!H$114) +($M30*'fnd base rates'!H$116) +($N30*'fnd base rates'!H$117) +($O30*'fnd base rates'!H$118) +($P30*VLOOKUP($S30+12,rate_basefnd,8))) -> 1524.69121 | AA30: =(($D30*'fnd base rates'!I$107) +($E30*'fnd base rates'!I$108) +($F30*'fnd base rates'!I$109) +($G30*'fnd base rates'!I$110) +($H30*'fnd base rates'!I$111) +($I30*'fnd base rates'!I$112) +($J30*'fnd base rates'!I$113) +($K30*'fnd base rates'!I$114) +($M30*'fnd base rates'!I$116) +($N30*'fnd base rates'!I$117) +($O30*'fnd base rates'!I$118) +($P30*VLOOKUP($S30+12,rate_basefnd,9))) *$R30 -> 1162.75722 | AB30: =(($D30*'fnd base rates'!J$107) +($E30*'fnd base rates'!J$108) +($F30*'fnd base rates'!J$109) +($G30*'fnd base rates'!J$110) +($H30*'fnd base rates'!J$111) +($I30*'fnd base rates'!J$112) +($J30*'fnd base rates'!J$113) +($K30*'fnd base rates'!J$114) +($M30*'fnd base rates'!J$116) +($N30*'fnd base rates'!J$117) +($O30*'fnd base rates'!J$118) +($P30*VLOOKUP($S30+12,rate_basefnd,10))) *$R30 -> 1920.41418 | AC30: =(($D30*'fnd base rates'!K$107) +($E30*'fnd base rates'!K$108) +($F30*'fnd base rates'!K$109) +($G30*'fnd base rates'!K$110) +($H30*'fnd base rates'!K$111) +($I30*'fnd base rates'!K$112) +($J30*'fnd base rates'!K$113) +($K30*'fnd base rates'!K$114) +($M30*'fnd base rates'!K$116) +($N30*'fnd base rates'!K$117) +($O30*'fnd base rates'!K$118) +($P30*VLOOKUP($S30+12,rate_basefnd,11))) *$R30 -> 3386.756883 | AD30: =(($D30*'fnd base rates'!L$107) +($E30*'fnd base rates'!L$108) +($F30*'fnd base rates'!L$109) +($G30*'fnd base rates'!L$110) +($H30*'fnd base rates'!L$111) +($I30*'fnd base rates'!L$112) +($J30*'fnd base rates'!L$113) +($K30*'fnd base rates'!L$114) +($M30*'fnd base rates'!L$116) +($N30*'fnd base rates'!L$117) +($O30*'fnd base rates'!L$118) +($P30*VLOOKUP($S30+12,rate_basefnd,12))) -> 4583.774263 | AE30: =(($D30*'fnd base rates'!M$107) +($E30*'fnd base rates'!M$108) +($F30*'fnd base rates'!M$109) +($G30*'fnd base rates'!M$110) +($H30*'fnd base rates'!M$111) +($I30*'fnd base rates'!M$112) +($J30*'fnd base rates'!M$113) +($K30*'fnd base rates'!M$114) +($M30*'fnd base rates'!M$116) +($N30*'fnd base rates'!M$117) +($O30*'fnd base rates'!M$118) +($P30*VLOOKUP($S30+12,rate_basefnd,13))) -> 0 | AF30: 37745.02018 | AH30: 410057163 | AI30: 410 | AJ30: 057 | AK30: 163 | AL30: 1 | AM30: 3 | AN30: 37745.02018 | AO30: 12582 | AP30: 0 | AQ30: 12582 | AW30: 12703 | AX30: 89 | AY30: 12792 | AZ30: -210 | BA30: 12582 | BB30: 0 | BC30: 12582
A31: 410 | B31: 410057176 | C31: EXCEL ACADEMY | D31: ='fnd enro'!D31 -> 0 | E31: ='fnd enro'!E31 -> 0 | F31: ='fnd enro'!F31 -> 0 | G31: ='fnd enro'!G31 -> 0 | H31: ='fnd enro'!H31 -> 1 | I31: ='fnd enro'!I31 -> 0 | J31: ='fnd enro'!J31 -> 0 | K31: ='fnd enro'!K31 -> 0.0379 | L31: ='fnd enro'!L31 -> 0 | M31: ='fnd enro'!M31+'fnd enro'!N31 -> 0 | N31: ='fnd enro'!O31 -> 0 | O31: ='fnd enro'!P31 -> 0 | P31: ='fnd enro'!Q31 -> 1 | Q31: ='fnd enro'!S31 -> 1 | R31: 1.038 | S31: =VALUE('fnd enro'!R31) -> 7 | U31: =(($D31*'fnd base rates'!C$107) +($E31*'fnd base rates'!C$108) +($F31*'fnd base rates'!C$109) +($G31*'fnd base rates'!C$110) +($H31*'fnd base rates'!C$111) +($I31*'fnd base rates'!C$112) +($J31*'fnd base rates'!C$113) +($K31*'fnd base rates'!C$114) +($M31*'fnd base rates'!C$116) +($N31*'fnd base rates'!C$117) +($O31*'fnd base rates'!C$118) +($P31*VLOOKUP($S31+12,rate_basefnd,3))) *$R31 -> 585.1090772 | V31: =(($D31*'fnd base rates'!D$107) +($E31*'fnd base rates'!D$108) +($F31*'fnd base rates'!D$109) +($G31*'fnd base rates'!D$110) +($H31*'fnd base rates'!D$111) +($I31*'fnd base rates'!D$112) +($J31*'fnd base rates'!D$113) +($K31*'fnd base rates'!D$114) +($M31*'fnd base rates'!D$116) +($N31*'fnd base rates'!D$117) +($O31*'fnd base rates'!D$118) +($P31*VLOOKUP($S31+12,rate_basefnd,4))) *$R31 -> 1041.50844 | W31: =(($D31*'fnd base rates'!E$107) +($E31*'fnd base rates'!E$108) +($F31*'fnd base rates'!E$109) +($G31*'fnd base rates'!E$110) +($H31*'fnd base rates'!E$111) +($I31*'fnd base rates'!E$112) +($J31*'fnd base rates'!E$113) +($K31*'fnd base rates'!E$114) +($M31*'fnd base rates'!E$116) +($N31*'fnd base rates'!E$117) +($O31*'fnd base rates'!E$118) +($P31*VLOOKUP($S31+12,rate_basefnd,5))) *$R31 -> 6233.644356 | X31: =(($D31*'fnd base rates'!F$107) +($E31*'fnd base rates'!F$108) +($F31*'fnd base rates'!F$109) +($G31*'fnd base rates'!F$110) +($H31*'fnd base rates'!F$111) +($I31*'fnd base rates'!F$112) +($J31*'fnd base rates'!F$113) +($K31*'fnd base rates'!F$114) +($M31*'fnd base rates'!F$116) +($N31*'fnd base rates'!F$117) +($O31*'fnd base rates'!F$118) +($P31*VLOOKUP($S31+12,rate_basefnd,6))) *$R31 -> 968.7843445 | Y31: =(($D31*'fnd base rates'!G$107) +($E31*'fnd base rates'!G$108) +($F31*'fnd base rates'!G$109) +($G31*'fnd base rates'!G$110) +($H31*'fnd base rates'!G$111) +($I31*'fnd base rates'!G$112) +($J31*'fnd base rates'!G$113) +($K31*'fnd base rates'!G$114) +($M31*'fnd base rates'!G$116) +($N31*'fnd base rates'!G$117) +($O31*'fnd base rates'!G$118) +($P31*VLOOKUP($S31+12,rate_basefnd,7))) *$R31 -> 303.0372554 | Z31: =(($D31*'fnd base rates'!H$107) +($E31*'fnd base rates'!H$108) +($F31*'fnd base rates'!H$109) +($G31*'fnd base rates'!H$110) +($H31*'fnd base rates'!H$111) +($I31*'fnd base rates'!H$112) +($J31*'fnd base rates'!H$113) +($K31*'fnd base rates'!H$114) +($M31*'fnd base rates'!H$116) +($N31*'fnd base rates'!H$117) +($O31*'fnd base rates'!H$118) +($P31*VLOOKUP($S31+12,rate_basefnd,8))) -> 514.08707 | AA31: =(($D31*'fnd base rates'!I$107) +($E31*'fnd base rates'!I$108) +($F31*'fnd base rates'!I$109) +($G31*'fnd base rates'!I$110) +($H31*'fnd base rates'!I$111) +($I31*'fnd base rates'!I$112) +($J31*'fnd base rates'!I$113) +($K31*'fnd base rates'!I$114) +($M31*'fnd base rates'!I$116) +($N31*'fnd base rates'!I$117) +($O31*'fnd base rates'!I$118) +($P31*VLOOKUP($S31+12,rate_basefnd,9))) *$R31 -> 448.30182 | AB31: =(($D31*'fnd base rates'!J$107) +($E31*'fnd base rates'!J$108) +($F31*'fnd base rates'!J$109) +($G31*'fnd base rates'!J$110) +($H31*'fnd base rates'!J$111) +($I31*'fnd base rates'!J$112) +($J31*'fnd base rates'!J$113) +($K31*'fnd base rates'!J$114) +($M31*'fnd base rates'!J$116) +($N31*'fnd base rates'!J$117) +($O31*'fnd base rates'!J$118) +($P31*VLOOKUP($S31+12,rate_basefnd,10))) *$R31 -> 843.75906 | AC31: =(($D31*'fnd base rates'!K$107) +($E31*'fnd base rates'!K$108) +($F31*'fnd base rates'!K$109) +($G31*'fnd base rates'!K$110) +($H31*'fnd base rates'!K$111) +($I31*'fnd base rates'!K$112) +($J31*'fnd base rates'!K$113) +($K31*'fnd base rates'!K$114) +($M31*'fnd base rates'!K$116) +($N31*'fnd base rates'!K$117) +($O31*'fnd base rates'!K$118) +($P31*VLOOKUP($S31+12,rate_basefnd,11))) *$R31 -> 1155.675141 | AD31: =(($D31*'fnd base rates'!L$107) +($E31*'fnd base rates'!L$108) +($F31*'fnd base rates'!L$109) +($G31*'fnd base rates'!L$110) +($H31*'fnd base rates'!L$111) +($I31*'fnd base rates'!L$112) +($J31*'fnd base rates'!L$113) +($K31*'fnd base rates'!L$114) +($M31*'fnd base rates'!L$116) +($N31*'fnd base rates'!L$117) +($O31*'fnd base rates'!L$118) +($P31*VLOOKUP($S31+12,rate_basefnd,12))) -> 1665.921421 | AE31: =(($D31*'fnd base rates'!M$107) +($E31*'fnd base rates'!M$108) +($F31*'fnd base rates'!M$109) +($G31*'fnd base rates'!M$110) +($H31*'fnd base rates'!M$111) +($I31*'fnd base rates'!M$112) +($J31*'fnd base rates'!M$113) +($K31*'fnd base rates'!M$114) +($M31*'fnd base rates'!M$116) +($N31*'fnd base rates'!M$117) +($O31*'fnd base rates'!M$118) +($P31*VLOOKUP($S31+12,rate_basefnd,13))) -> 0 | AF31: 13759.82799 | AH31: 410057176 | AI31: 410 | AJ31: 057 | AK31: 176 | AL31: 1 | AM31: 1 | AN31: 13759.82799 | AO31: 13760 | AP31: 0 | AQ31: 13760 | AW31: 13865 | AX31: 37 | AY31: 13902 | AZ31: -142 | BA31: 13760 | BB31: 0 | BC31: 13760
A32: 410 | B32: 410057248 | C32: EXCEL ACADEMY | D32: ='fnd enro'!D32 -> 0 | E32: ='fnd enro'!E32 -> 0 | F32: ='fnd enro'!F32 -> 0 | G32: ='fnd enro'!G32 -> 3 | H32: ='fnd enro'!H32 -> 5 | I32: ='fnd enro'!I32 -> 0 | J32: ='fnd enro'!J32 -> 0 | K32: ='fnd enro'!K32 -> 0.3032 | L32: ='fnd enro'!L32 -> 0 | M32: ='fnd enro'!M32+'fnd enro'!N32 -> 0 | N32: ='fnd enro'!O32 -> 1 | O32: ='fnd enro'!P32 -> 0 | P32: ='fnd enro'!Q32 -> 3 | Q32: ='fnd enro'!S32 -> 8 | R32: 1.038 | S32: =VALUE('fnd enro'!R32) -> 10 | U32: =(($D32*'fnd base rates'!C$107) +($E32*'fnd base rates'!C$108) +($F32*'fnd base rates'!C$109) +($G32*'fnd base rates'!C$110) +($H32*'fnd base rates'!C$111) +($I32*'fnd base rates'!C$112) +($J32*'fnd base rates'!C$113) +($K32*'fnd base rates'!C$114) +($M32*'fnd base rates'!C$116) +($N32*'fnd base rates'!C$117) +($O32*'fnd base rates'!C$118) +($P32*VLOOKUP($S32+12,rate_basefnd,3))) *$R32 -> 4485.292657 | V32: =(($D32*'fnd base rates'!D$107) +($E32*'fnd base rates'!D$108) +($F32*'fnd base rates'!D$109) +($G32*'fnd base rates'!D$110) +($H32*'fnd base rates'!D$111) +($I32*'fnd base rates'!D$112) +($J32*'fnd base rates'!D$113) +($K32*'fnd base rates'!D$114) +($M32*'fnd base rates'!D$116) +($N32*'fnd base rates'!D$117) +($O32*'fnd base rates'!D$118) +($P32*VLOOKUP($S32+12,rate_basefnd,4))) *$R32 -> 7107.2379 | W32: =(($D32*'fnd base rates'!E$107) +($E32*'fnd base rates'!E$108) +($F32*'fnd base rates'!E$109) +($G32*'fnd base rates'!E$110) +($H32*'fnd base rates'!E$111) +($I32*'fnd base rates'!E$112) +($J32*'fnd base rates'!E$113) +($K32*'fnd base rates'!E$114) +($M32*'fnd base rates'!E$116) +($N32*'fnd base rates'!E$117) +($O32*'fnd base rates'!E$118) +($P32*VLOOKUP($S32+12,rate_basefnd,5))) *$R32 -> 38666.83049 | X32: =(($D32*'fnd base rates'!F$107) +($E32*'fnd base rates'!F$108) +($F32*'fnd base rates'!F$109) +($G32*'fnd base rates'!F$110) +($H32*'fnd base rates'!F$111) +($I32*'fnd base rates'!F$112) +($J32*'fnd base rates'!F$113) +($K32*'fnd base rates'!F$114) +($M32*'fnd base rates'!F$116) +($N32*'fnd base rates'!F$117) +($O32*'fnd base rates'!F$118) +($P32*VLOOKUP($S32+12,rate_basefnd,6))) *$R32 -> 8665.635056 | Y32: =(($D32*'fnd base rates'!G$107) +($E32*'fnd base rates'!G$108) +($F32*'fnd base rates'!G$109) +($G32*'fnd base rates'!G$110) +($H32*'fnd base rates'!G$111) +($I32*'fnd base rates'!G$112) +($J32*'fnd base rates'!G$113) +($K32*'fnd base rates'!G$114) +($M32*'fnd base rates'!G$116) +($N32*'fnd base rates'!G$117) +($O32*'fnd base rates'!G$118) +($P32*VLOOKUP($S32+12,rate_basefnd,7))) *$R32 -> 1777.063523 | Z32: =(($D32*'fnd base rates'!H$107) +($E32*'fnd base rates'!H$108) +($F32*'fnd base rates'!H$109) +($G32*'fnd base rates'!H$110) +($H32*'fnd base rates'!H$111) +($I32*'fnd base rates'!H$112) +($J32*'fnd base rates'!H$113) +($K32*'fnd base rates'!H$114) +($M32*'fnd base rates'!H$116) +($N32*'fnd base rates'!H$117) +($O32*'fnd base rates'!H$118) +($P32*VLOOKUP($S32+12,rate_basefnd,8))) -> 4135.02656 | AA32: =(($D32*'fnd base rates'!I$107) +($E32*'fnd base rates'!I$108) +($F32*'fnd base rates'!I$109) +($G32*'fnd base rates'!I$110) +($H32*'fnd base rates'!I$111) +($I32*'fnd base rates'!I$112) +($J32*'fnd base rates'!I$113) +($K32*'fnd base rates'!I$114) +($M32*'fnd base rates'!I$116) +($N32*'fnd base rates'!I$117) +($O32*'fnd base rates'!I$118) +($P32*VLOOKUP($S32+12,rate_basefnd,9))) *$R32 -> 2859.71076 | AB32: =(($D32*'fnd base rates'!J$107) +($E32*'fnd base rates'!J$108) +($F32*'fnd base rates'!J$109) +($G32*'fnd base rates'!J$110) +($H32*'fnd base rates'!J$111) +($I32*'fnd base rates'!J$112) +($J32*'fnd base rates'!J$113) +($K32*'fnd base rates'!J$114) +($M32*'fnd base rates'!J$116) +($N32*'fnd base rates'!J$117) +($O32*'fnd base rates'!J$118) +($P32*VLOOKUP($S32+12,rate_basefnd,10))) *$R32 -> 3616.78644 | AC32: =(($D32*'fnd base rates'!K$107) +($E32*'fnd base rates'!K$108) +($F32*'fnd base rates'!K$109) +($G32*'fnd base rates'!K$110) +($H32*'fnd base rates'!K$111) +($I32*'fnd base rates'!K$112) +($J32*'fnd base rates'!K$113) +($K32*'fnd base rates'!K$114) +($M32*'fnd base rates'!K$116) +($N32*'fnd base rates'!K$117) +($O32*'fnd base rates'!K$118) +($P32*VLOOKUP($S32+12,rate_basefnd,11))) *$R32 -> 9304.016989 | AD32: =(($D32*'fnd base rates'!L$107) +($E32*'fnd base rates'!L$108) +($F32*'fnd base rates'!L$109) +($G32*'fnd base rates'!L$110) +($H32*'fnd base rates'!L$111) +($I32*'fnd base rates'!L$112) +($J32*'fnd base rates'!L$113) +($K32*'fnd base rates'!L$114) +($M32*'fnd base rates'!L$116) +($N32*'fnd base rates'!L$117) +($O32*'fnd base rates'!L$118) +($P32*VLOOKUP($S32+12,rate_basefnd,12))) -> 11367.99137 | AE32: =(($D32*'fnd base rates'!M$107) +($E32*'fnd base rates'!M$108) +($F32*'fnd base rates'!M$109) +($G32*'fnd base rates'!M$110) +($H32*'fnd base rates'!M$111) +($I32*'fnd base rates'!M$112) +($J32*'fnd base rates'!M$113) +($K32*'fnd base rates'!M$114) +($M32*'fnd base rates'!M$116) +($N32*'fnd base rates'!M$117) +($O32*'fnd base rates'!M$118) +($P32*VLOOKUP($S32+12,rate_basefnd,13))) -> 0 | AF32: 91985.59175 | AH32: 410057248 | AI32: 410 | AJ32: 057 | AK32: 248 | AL32: 1 | AM32: 8 | AN32: 91985.59175 | AO32: 11498 | AP32: 0 | AQ32: 11498 | AW32: 14657 | AX32: 105 | AY32: 14762 | AZ32: -3264 | BA32: 11498 | BB32: 0 | BC32: 11498
A33: 410 | B33: 410057262 | C33: EXCEL ACADEMY | D33: ='fnd enro'!D33 -> 0 | E33: ='fnd enro'!E33 -> 0 | F33: ='fnd enro'!F33 -> 0 | G33: ='fnd enro'!G33 -> 0 | H33: ='fnd enro'!H33 -> 1 | I33: ='fnd enro'!I33 -> 0 | J33: ='fnd enro'!J33 -> 0 | K33: ='fnd enro'!K33 -> 0.0379 | L33: ='fnd enro'!L33 -> 0 | M33: ='fnd enro'!M33+'fnd enro'!N33 -> 0 | N33: ='fnd enro'!O33 -> 0 | O33: ='fnd enro'!P33 -> 0 | P33: ='fnd enro'!Q33 -> 0 | Q33: ='fnd enro'!S33 -> 1 | R33: 1.038 | S33: =VALUE('fnd enro'!R33) -> 8 | U33: =(($D33*'fnd base rates'!C$107) +($E33*'fnd base rates'!C$108) +($F33*'fnd base rates'!C$109) +($G33*'fnd base rates'!C$110) +($H33*'fnd base rates'!C$111) +($I33*'fnd base rates'!C$112) +($J33*'fnd base rates'!C$113) +($K33*'fnd base rates'!C$114) +($M33*'fnd base rates'!C$116) +($N33*'fnd base rates'!C$117) +($O33*'fnd base rates'!C$118) +($P33*VLOOKUP($S33+12,rate_basefnd,3))) *$R33 -> 523.4518772 | V33: =(($D33*'fnd base rates'!D$107) +($E33*'fnd base rates'!D$108) +($F33*'fnd base rates'!D$109) +($G33*'fnd base rates'!D$110) +($H33*'fnd base rates'!D$111) +($I33*'fnd base rates'!D$112) +($J33*'fnd base rates'!D$113) +($K33*'fnd base rates'!D$114) +($M33*'fnd base rates'!D$116) +($N33*'fnd base rates'!D$117) +($O33*'fnd base rates'!D$118) +($P33*VLOOKUP($S33+12,rate_basefnd,4))) *$R33 -> 749.3841 | W33: =(($D33*'fnd base rates'!E$107) +($E33*'fnd base rates'!E$108) +($F33*'fnd base rates'!E$109) +($G33*'fnd base rates'!E$110) +($H33*'fnd base rates'!E$111) +($I33*'fnd base rates'!E$112) +($J33*'fnd base rates'!E$113) +($K33*'fnd base rates'!E$114) +($M33*'fnd base rates'!E$116) +($N33*'fnd base rates'!E$117) +($O33*'fnd base rates'!E$118) +($P33*VLOOKUP($S33+12,rate_basefnd,5))) *$R33 -> 3381.915816 | X33: =(($D33*'fnd base rates'!F$107) +($E33*'fnd base rates'!F$108) +($F33*'fnd base rates'!F$109) +($G33*'fnd base rates'!F$110) +($H33*'fnd base rates'!F$111) +($I33*'fnd base rates'!F$112) +($J33*'fnd base rates'!F$113) +($K33*'fnd base rates'!F$114) +($M33*'fnd base rates'!F$116) +($N33*'fnd base rates'!F$117) +($O33*'fnd base rates'!F$118) +($P33*VLOOKUP($S33+12,rate_basefnd,6))) *$R33 -> 968.7843445 | Y33: =(($D33*'fnd base rates'!G$107) +($E33*'fnd base rates'!G$108) +($F33*'fnd base rates'!G$109) +($G33*'fnd base rates'!G$110) +($H33*'fnd base rates'!G$111) +($I33*'fnd base rates'!G$112) +($J33*'fnd base rates'!G$113) +($K33*'fnd base rates'!G$114) +($M33*'fnd base rates'!G$116) +($N33*'fnd base rates'!G$117) +($O33*'fnd base rates'!G$118) +($P33*VLOOKUP($S33+12,rate_basefnd,7))) *$R33 -> 164.6822354 | Z33: =(($D33*'fnd base rates'!H$107) +($E33*'fnd base rates'!H$108) +($F33*'fnd base rates'!H$109) +($G33*'fnd base rates'!H$110) +($H33*'fnd base rates'!H$111) +($I33*'fnd base rates'!H$112) +($J33*'fnd base rates'!H$113) +($K33*'fnd base rates'!H$114) +($M33*'fnd base rates'!H$116) +($N33*'fnd base rates'!H$117) +($O33*'fnd base rates'!H$118) +($P33*VLOOKUP($S33+12,rate_basefnd,8))) -> 493.65707 | AA33: =(($D33*'fnd base rates'!I$107) +($E33*'fnd base rates'!I$108) +($F33*'fnd base rates'!I$109) +($G33*'fnd base rates'!I$110) +($H33*'fnd base rates'!I$111) +($I33*'fnd base rates'!I$112) +($J33*'fnd base rates'!I$113) +($K33*'fnd base rates'!I$114) +($M33*'fnd base rates'!I$116) +($N33*'fnd base rates'!I$117) +($O33*'fnd base rates'!I$118) +($P33*VLOOKUP($S33+12,rate_basefnd,9))) *$R33 -> 332.82432 | AB33: =(($D33*'fnd base rates'!J$107) +($E33*'fnd base rates'!J$108) +($F33*'fnd base rates'!J$109) +($G33*'fnd base rates'!J$110) +($H33*'fnd base rates'!J$111) +($I33*'fnd base rates'!J$112) +($J33*'fnd base rates'!J$113) +($K33*'fnd base rates'!J$114) +($M33*'fnd base rates'!J$116) +($N33*'fnd base rates'!J$117) +($O33*'fnd base rates'!J$118) +($P33*VLOOKUP($S33+12,rate_basefnd,10))) *$R33 -> 243.71202 | AC33: =(($D33*'fnd base rates'!K$107) +($E33*'fnd base rates'!K$108) +($F33*'fnd base rates'!K$109) +($G33*'fnd base rates'!K$110) +($H33*'fnd base rates'!K$111) +($I33*'fnd base rates'!K$112) +($J33*'fnd base rates'!K$113) +($K33*'fnd base rates'!K$114) +($M33*'fnd base rates'!K$116) +($N33*'fnd base rates'!K$117) +($O33*'fnd base rates'!K$118) +($P33*VLOOKUP($S33+12,rate_basefnd,11))) *$R33 -> 1155.675141 | AD33: =(($D33*'fnd base rates'!L$107) +($E33*'fnd base rates'!L$108) +($F33*'fnd base rates'!L$109) +($G33*'fnd base rates'!L$110) +($H33*'fnd base rates'!L$111) +($I33*'fnd base rates'!L$112) +($J33*'fnd base rates'!L$113) +($K33*'fnd base rates'!L$114) +($M33*'fnd base rates'!L$116) +($N33*'fnd base rates'!L$117) +($O33*'fnd base rates'!L$118) +($P33*VLOOKUP($S33+12,rate_basefnd,12))) -> 1221.521421 | AE33: =(($D33*'fnd base rates'!M$107) +($E33*'fnd base rates'!M$108) +($F33*'fnd base rates'!M$109) +($G33*'fnd base rates'!M$110) +($H33*'fnd base rates'!M$111) +($I33*'fnd base rates'!M$112) +($J33*'fnd base rates'!M$113) +($K33*'fnd base rates'!M$114) +($M33*'fnd base rates'!M$116) +($N33*'fnd base rates'!M$117) +($O33*'fnd base rates'!M$118) +($P33*VLOOKUP($S33+12,rate_basefnd,13))) -> 0 | AF33: 9235.608346 | AH33: 410057262 | AI33: 410 | AJ33: 057 | AK33: 262 | AL33: 1 | AM33: 1 | AN33: 9235.608346 | AO33: 9236 | AP33: 0 | AQ33: 9236 | AW33: 9328 | AX33: 0 | AY33: 9328 | AZ33: -92 | BA33: 9236 | BB33: 0 | BC33: 9236
A34: 412 | B34: 412035035 | C34: ACADEMY OF THE PACIFIC RIM | D34: ='fnd enro'!D34 -> 0 | E34: ='fnd enro'!E34 -> 0 | F34: ='fnd enro'!F34 -> 0 | G34: ='fnd enro'!G34 -> 66 | H34: ='fnd enro'!H34 -> 216 | I34: ='fnd enro'!I34 -> 215 | J34: ='fnd enro'!J34 -> 0 | K34: ='fnd enro'!K34 -> 18.8363 | L34: ='fnd enro'!L34 -> 0 | M34: ='fnd enro'!M34+'fnd enro'!N34 -> 17 | N34: ='fnd enro'!O34 -> 23 | O34: ='fnd enro'!P34 -> 18 | P34: ='fnd enro'!Q34 -> 248 | Q34: ='fnd enro'!S34 -> 497 | R34: 1.085 | S34: =VALUE('fnd enro'!R34) -> 10 | U34: =(($D34*'fnd base rates'!C$107) +($E34*'fnd base rates'!C$108) +($F34*'fnd base rates'!C$109) +($G34*'fnd base rates'!C$110) +($H34*'fnd base rates'!C$111) +($I34*'fnd base rates'!C$112) +($J34*'fnd base rates'!C$113) +($K34*'fnd base rates'!C$114) +($M34*'fnd base rates'!C$116) +($N34*'fnd base rates'!C$117) +($O34*'fnd base rates'!C$118) +($P34*VLOOKUP($S34+12,rate_basefnd,3))) *$R34 -> 294593.6587 | V34: =(($D34*'fnd base rates'!D$107) +($E34*'fnd base rates'!D$108) +($F34*'fnd base rates'!D$109) +($G34*'fnd base rates'!D$110) +($H34*'fnd base rates'!D$111) +($I34*'fnd base rates'!D$112) +($J34*'fnd base rates'!D$113) +($K34*'fnd base rates'!D$114) +($M34*'fnd base rates'!D$116) +($N34*'fnd base rates'!D$117) +($O34*'fnd base rates'!D$118) +($P34*VLOOKUP($S34+12,rate_basefnd,4))) *$R34 -> 480049.0275 | W34: =(($D34*'fnd base rates'!E$107) +($E34*'fnd base rates'!E$108) +($F34*'fnd base rates'!E$109) +($G34*'fnd base rates'!E$110) +($H34*'fnd base rates'!E$111) +($I34*'fnd base rates'!E$112) +($J34*'fnd base rates'!E$113) +($K34*'fnd base rates'!E$114) +($M34*'fnd base rates'!E$116) +($N34*'fnd base rates'!E$117) +($O34*'fnd base rates'!E$118) +($P34*VLOOKUP($S34+12,rate_basefnd,5))) *$R34 -> 2964082.095 | X34: =(($D34*'fnd base rates'!F$107) +($E34*'fnd base rates'!F$108) +($F34*'fnd base rates'!F$109) +($G34*'fnd base rates'!F$110) +($H34*'fnd base rates'!F$111) +($I34*'fnd base rates'!F$112) +($J34*'fnd base rates'!F$113) +($K34*'fnd base rates'!F$114) +($M34*'fnd base rates'!F$116) +($N34*'fnd base rates'!F$117) +($O34*'fnd base rates'!F$118) +($P34*VLOOKUP($S34+12,rate_basefnd,6))) *$R34 -> 506171.8681 | Y34: =(($D34*'fnd base rates'!G$107) +($E34*'fnd base rates'!G$108) +($F34*'fnd base rates'!G$109) +($G34*'fnd base rates'!G$110) +($H34*'fnd base rates'!G$111) +($I34*'fnd base rates'!G$112) +($J34*'fnd base rates'!G$113) +($K34*'fnd base rates'!G$114) +($M34*'fnd base rates'!G$116) +($N34*'fnd base rates'!G$117) +($O34*'fnd base rates'!G$118) +($P34*VLOOKUP($S34+12,rate_basefnd,7))) *$R34 -> 124904.7256 | Z34: =(($D34*'fnd base rates'!H$107) +($E34*'fnd base rates'!H$108) +($F34*'fnd base rates'!H$109) +($G34*'fnd base rates'!H$110) +($H34*'fnd base rates'!H$111) +($I34*'fnd base rates'!H$112) +($J34*'fnd base rates'!H$113) +($K34*'fnd base rates'!H$114) +($M34*'fnd base rates'!H$116) +($N34*'fnd base rates'!H$117) +($O34*'fnd base rates'!H$118) +($P34*VLOOKUP($S34+12,rate_basefnd,8))) -> 318983.2938 | AA34: =(($D34*'fnd base rates'!I$107) +($E34*'fnd base rates'!I$108) +($F34*'fnd base rates'!I$109) +($G34*'fnd base rates'!I$110) +($H34*'fnd base rates'!I$111) +($I34*'fnd base rates'!I$112) +($J34*'fnd base rates'!I$113) +($K34*'fnd base rates'!I$114) +($M34*'fnd base rates'!I$116) +($N34*'fnd base rates'!I$117) +($O34*'fnd base rates'!I$118) +($P34*VLOOKUP($S34+12,rate_basefnd,9))) *$R34 -> 222349.6359 | AB34: =(($D34*'fnd base rates'!J$107) +($E34*'fnd base rates'!J$108) +($F34*'fnd base rates'!J$109) +($G34*'fnd base rates'!J$110) +($H34*'fnd base rates'!J$111) +($I34*'fnd base rates'!J$112) +($J34*'fnd base rates'!J$113) +($K34*'fnd base rates'!J$114) +($M34*'fnd base rates'!J$116) +($N34*'fnd base rates'!J$117) +($O34*'fnd base rates'!J$118) +($P34*VLOOKUP($S34+12,rate_basefnd,10))) *$R34 -> 359404.9263 | AC34: =(($D34*'fnd base rates'!K$107) +($E34*'fnd base rates'!K$108) +($F34*'fnd base rates'!K$109) +($G34*'fnd base rates'!K$110) +($H34*'fnd base rates'!K$111) +($I34*'fnd base rates'!K$112) +($J34*'fnd base rates'!K$113) +($K34*'fnd base rates'!K$114) +($M34*'fnd base rates'!K$116) +($N34*'fnd base rates'!K$117) +($O34*'fnd base rates'!K$118) +($P34*VLOOKUP($S34+12,rate_basefnd,11))) *$R34 -> 604456.8444 | AD34: =(($D34*'fnd base rates'!L$107) +($E34*'fnd base rates'!L$108) +($F34*'fnd base rates'!L$109) +($G34*'fnd base rates'!L$110) +($H34*'fnd base rates'!L$111) +($I34*'fnd base rates'!L$112) +($J34*'fnd base rates'!L$113) +($K34*'fnd base rates'!L$114) +($M34*'fnd base rates'!L$116) +($N34*'fnd base rates'!L$117) +($O34*'fnd base rates'!L$118) +($P34*VLOOKUP($S34+12,rate_basefnd,12))) -> 714654.4562 | AE34: =(($D34*'fnd base rates'!M$107) +($E34*'fnd base rates'!M$108) +($F34*'fnd base rates'!M$109) +($G34*'fnd base rates'!M$110) +($H34*'fnd base rates'!M$111) +($I34*'fnd base rates'!M$112) +($J34*'fnd base rates'!M$113) +($K34*'fnd base rates'!M$114) +($M34*'fnd base rates'!M$116) +($N34*'fnd base rates'!M$117) +($O34*'fnd base rates'!M$118) +($P34*VLOOKUP($S34+12,rate_basefnd,13))) -> 0 | AF34: 6589650.531 | AH34: 412035035 | AI34: 412 | AJ34: 035 | AK34: 035 | AL34: 1 | AM34: 497 | AN34: 6589650.531 | AO34: 13259 | AP34: 0 | AQ34: 13259 | AW34: 13699 | AX34: 62 | AY34: 13761 | AZ34: -502 | BA34: 13259 | BB34: 0 | BC34: 13259
A35: 412 | B35: 412035044 | C35: ACADEMY OF THE PACIFIC RIM | D35: ='fnd enro'!D35 -> 0 | E35: ='fnd enro'!E35 -> 0 | F35: ='fnd enro'!F35 -> 0 | G35: ='fnd enro'!G35 -> 0 | H35: ='fnd enro'!H35 -> 1 | I35: ='fnd enro'!I35 -> 6 | J35: ='fnd enro'!J35 -> 0 | K35: ='fnd enro'!K35 -> 0.2653 | L35: ='fnd enro'!L35 -> 0 | M35: ='fnd enro'!M35+'fnd enro'!N35 -> 0 | N35: ='fnd enro'!O35 -> 0 | O35: ='fnd enro'!P35 -> 0 | P35: ='fnd enro'!Q35 -> 3 | Q35: ='fnd enro'!S35 -> 7 | R35: 1.085 | S35: =VALUE('fnd enro'!R35) -> 10 | U35: =(($D35*'fnd base rates'!C$107) +($E35*'fnd base rates'!C$108) +($F35*'fnd base rates'!C$109) +($G35*'fnd base rates'!C$110) +($H35*'fnd base rates'!C$111) +($I35*'fnd base rates'!C$112) +($J35*'fnd base rates'!C$113) +($K35*'fnd base rates'!C$114) +($M35*'fnd base rates'!C$116) +($N35*'fnd base rates'!C$117) +($O35*'fnd base rates'!C$118) +($P35*VLOOKUP($S35+12,rate_basefnd,3))) *$R35 -> 4036.896888 | V35: =(($D35*'fnd base rates'!D$107) +($E35*'fnd base rates'!D$108) +($F35*'fnd base rates'!D$109) +($G35*'fnd base rates'!D$110) +($H35*'fnd base rates'!D$111) +($I35*'fnd base rates'!D$112) +($J35*'fnd base rates'!D$113) +($K35*'fnd base rates'!D$114) +($M35*'fnd base rates'!D$116) +($N35*'fnd base rates'!D$117) +($O35*'fnd base rates'!D$118) +($P35*VLOOKUP($S35+12,rate_basefnd,4))) *$R35 -> 6463.16055 | W35: =(($D35*'fnd base rates'!E$107) +($E35*'fnd base rates'!E$108) +($F35*'fnd base rates'!E$109) +($G35*'fnd base rates'!E$110) +($H35*'fnd base rates'!E$111) +($I35*'fnd base rates'!E$112) +($J35*'fnd base rates'!E$113) +($K35*'fnd base rates'!E$114) +($M35*'fnd base rates'!E$116) +($N35*'fnd base rates'!E$117) +($O35*'fnd base rates'!E$118) +($P35*VLOOKUP($S35+12,rate_basefnd,5))) *$R35 -> 43235.81136 | X35: =(($D35*'fnd base rates'!F$107) +($E35*'fnd base rates'!F$108) +($F35*'fnd base rates'!F$109) +($G35*'fnd base rates'!F$110) +($H35*'fnd base rates'!F$111) +($I35*'fnd base rates'!F$112) +($J35*'fnd base rates'!F$113) +($K35*'fnd base rates'!F$114) +($M35*'fnd base rates'!F$116) +($N35*'fnd base rates'!F$117) +($O35*'fnd base rates'!F$118) +($P35*VLOOKUP($S35+12,rate_basefnd,6))) *$R35 -> 6422.123416 | Y35: =(($D35*'fnd base rates'!G$107) +($E35*'fnd base rates'!G$108) +($F35*'fnd base rates'!G$109) +($G35*'fnd base rates'!G$110) +($H35*'fnd base rates'!G$111) +($I35*'fnd base rates'!G$112) +($J35*'fnd base rates'!G$113) +($K35*'fnd base rates'!G$114) +($M35*'fnd base rates'!G$116) +($N35*'fnd base rates'!G$117) +($O35*'fnd base rates'!G$118) +($P35*VLOOKUP($S35+12,rate_basefnd,7))) *$R35 -> 1641.012419 | Z35: =(($D35*'fnd base rates'!H$107) +($E35*'fnd base rates'!H$108) +($F35*'fnd base rates'!H$109) +($G35*'fnd base rates'!H$110) +($H35*'fnd base rates'!H$111) +($I35*'fnd base rates'!H$112) +($J35*'fnd base rates'!H$113) +($K35*'fnd base rates'!H$114) +($M35*'fnd base rates'!H$116) +($N35*'fnd base rates'!H$117) +($O35*'fnd base rates'!H$118) +($P35*VLOOKUP($S35+12,rate_basefnd,8))) -> 5246.05949 | AA35: =(($D35*'fnd base rates'!I$107) +($E35*'fnd base rates'!I$108) +($F35*'fnd base rates'!I$109) +($G35*'fnd base rates'!I$110) +($H35*'fnd base rates'!I$111) +($I35*'fnd base rates'!I$112) +($J35*'fnd base rates'!I$113) +($K35*'fnd base rates'!I$114) +($M35*'fnd base rates'!I$116) +($N35*'fnd base rates'!I$117) +($O35*'fnd base rates'!I$118) +($P35*VLOOKUP($S35+12,rate_basefnd,9))) *$R35 -> 3351.83625 | AB35: =(($D35*'fnd base rates'!J$107) +($E35*'fnd base rates'!J$108) +($F35*'fnd base rates'!J$109) +($G35*'fnd base rates'!J$110) +($H35*'fnd base rates'!J$111) +($I35*'fnd base rates'!J$112) +($J35*'fnd base rates'!J$113) +($K35*'fnd base rates'!J$114) +($M35*'fnd base rates'!J$116) +($N35*'fnd base rates'!J$117) +($O35*'fnd base rates'!J$118) +($P35*VLOOKUP($S35+12,rate_basefnd,10))) *$R35 -> 5792.21825 | AC35: =(($D35*'fnd base rates'!K$107) +($E35*'fnd base rates'!K$108) +($F35*'fnd base rates'!K$109) +($G35*'fnd base rates'!K$110) +($H35*'fnd base rates'!K$111) +($I35*'fnd base rates'!K$112) +($J35*'fnd base rates'!K$113) +($K35*'fnd base rates'!K$114) +($M35*'fnd base rates'!K$116) +($N35*'fnd base rates'!K$117) +($O35*'fnd base rates'!K$118) +($P35*VLOOKUP($S35+12,rate_basefnd,11))) *$R35 -> 8258.835893 | AD35: =(($D35*'fnd base rates'!L$107) +($E35*'fnd base rates'!L$108) +($F35*'fnd base rates'!L$109) +($G35*'fnd base rates'!L$110) +($H35*'fnd base rates'!L$111) +($I35*'fnd base rates'!L$112) +($J35*'fnd base rates'!L$113) +($K35*'fnd base rates'!L$114) +($M35*'fnd base rates'!L$116) +($N35*'fnd base rates'!L$117) +($O35*'fnd base rates'!L$118) +($P35*VLOOKUP($S35+12,rate_basefnd,12))) -> 9353.119947 | AE35: =(($D35*'fnd base rates'!M$107) +($E35*'fnd base rates'!M$108) +($F35*'fnd base rates'!M$109) +($G35*'fnd base rates'!M$110) +($H35*'fnd base rates'!M$111) +($I35*'fnd base rates'!M$112) +($J35*'fnd base rates'!M$113) +($K35*'fnd base rates'!M$114) +($M35*'fnd base rates'!M$116) +($N35*'fnd base rates'!M$117) +($O35*'fnd base rates'!M$118) +($P35*VLOOKUP($S35+12,rate_basefnd,13))) -> 0 | AF35: 93801.07446 | AH35: 412035044 | AI35: 412 | AJ35: 035 | AK35: 044 | AL35: 1 | AM35: 7 | AN35: 93801.07446 | AO35: 13400 | AP35: 0 | AQ35: 13400 | AW35: 16398 | AX35: 138 | AY35: 16536 | AZ35: -3136 | BA35: 13400 | BB35: 0 | BC35: 13400
A36: 412 | B36: 412035073 | C36: ACADEMY OF THE PACIFIC RIM | D36: ='fnd enro'!D36 -> 0 | E36: ='fnd enro'!E36 -> 0 | F36: ='fnd enro'!F36 -> 0 | G36: ='fnd enro'!G36 -> 0 | H36: ='fnd enro'!H36 -> 0 | I36: ='fnd enro'!I36 -> 1 | J36: ='fnd enro'!J36 -> 0 | K36: ='fnd enro'!K36 -> 0.0379 | L36: ='fnd enro'!L36 -> 0 | M36: ='fnd enro'!M36+'fnd enro'!N36 -> 0 | N36: ='fnd enro'!O36 -> 0 | O36: ='fnd enro'!P36 -> 0 | P36: ='fnd enro'!Q36 -> 1 | Q36: ='fnd enro'!S36 -> 1 | R36: 1.085 | S36: =VALUE('fnd enro'!R36) -> 5 | U36: =(($D36*'fnd base rates'!C$107) +($E36*'fnd base rates'!C$108) +($F36*'fnd base rates'!C$109) +($G36*'fnd base rates'!C$110) +($H36*'fnd base rates'!C$111) +($I36*'fnd base rates'!C$112) +($J36*'fnd base rates'!C$113) +($K36*'fnd base rates'!C$114) +($M36*'fnd base rates'!C$116) +($N36*'fnd base rates'!C$117) +($O36*'fnd base rates'!C$118) +($P36*VLOOKUP($S36+12,rate_basefnd,3))) *$R36 -> 606.0581054 | V36: =(($D36*'fnd base rates'!D$107) +($E36*'fnd base rates'!D$108) +($F36*'fnd base rates'!D$109) +($G36*'fnd base rates'!D$110) +($H36*'fnd base rates'!D$111) +($I36*'fnd base rates'!D$112) +($J36*'fnd base rates'!D$113) +($K36*'fnd base rates'!D$114) +($M36*'fnd base rates'!D$116) +($N36*'fnd base rates'!D$117) +($O36*'fnd base rates'!D$118) +($P36*VLOOKUP($S36+12,rate_basefnd,4))) *$R36 -> 1062.4103 | W36: =(($D36*'fnd base rates'!E$107) +($E36*'fnd base rates'!E$108) +($F36*'fnd base rates'!E$109) +($G36*'fnd base rates'!E$110) +($H36*'fnd base rates'!E$111) +($I36*'fnd base rates'!E$112) +($J36*'fnd base rates'!E$113) +($K36*'fnd base rates'!E$114) +($M36*'fnd base rates'!E$116) +($N36*'fnd base rates'!E$117) +($O36*'fnd base rates'!E$118) +($P36*VLOOKUP($S36+12,rate_basefnd,5))) *$R36 -> 7746.940929 | X36: =(($D36*'fnd base rates'!F$107) +($E36*'fnd base rates'!F$108) +($F36*'fnd base rates'!F$109) +($G36*'fnd base rates'!F$110) +($H36*'fnd base rates'!F$111) +($I36*'fnd base rates'!F$112) +($J36*'fnd base rates'!F$113) +($K36*'fnd base rates'!F$114) +($M36*'fnd base rates'!F$116) +($N36*'fnd base rates'!F$117) +($O36*'fnd base rates'!F$118) +($P36*VLOOKUP($S36+12,rate_basefnd,6))) *$R36 -> 901.5788523 | Y36: =(($D36*'fnd base rates'!G$107) +($E36*'fnd base rates'!G$108) +($F36*'fnd base rates'!G$109) +($G36*'fnd base rates'!G$110) +($H36*'fnd base rates'!G$111) +($I36*'fnd base rates'!G$112) +($J36*'fnd base rates'!G$113) +($K36*'fnd base rates'!G$114) +($M36*'fnd base rates'!G$116) +($N36*'fnd base rates'!G$117) +($O36*'fnd base rates'!G$118) +($P36*VLOOKUP($S36+12,rate_basefnd,7))) *$R36 -> 299.6481455 | Z36: =(($D36*'fnd base rates'!H$107) +($E36*'fnd base rates'!H$108) +($F36*'fnd base rates'!H$109) +($G36*'fnd base rates'!H$110) +($H36*'fnd base rates'!H$111) +($I36*'fnd base rates'!H$112) +($J36*'fnd base rates'!H$113) +($K36*'fnd base rates'!H$114) +($M36*'fnd base rates'!H$116) +($N36*'fnd base rates'!H$117) +($O36*'fnd base rates'!H$118) +($P36*VLOOKUP($S36+12,rate_basefnd,8))) -> 799.80707 | AA36: =(($D36*'fnd base rates'!I$107) +($E36*'fnd base rates'!I$108) +($F36*'fnd base rates'!I$109) +($G36*'fnd base rates'!I$110) +($H36*'fnd base rates'!I$111) +($I36*'fnd base rates'!I$112) +($J36*'fnd base rates'!I$113) +($K36*'fnd base rates'!I$114) +($M36*'fnd base rates'!I$116) +($N36*'fnd base rates'!I$117) +($O36*'fnd base rates'!I$118) +($P36*VLOOKUP($S36+12,rate_basefnd,9))) *$R36 -> 546.41685 | AB36: =(($D36*'fnd base rates'!J$107) +($E36*'fnd base rates'!J$108) +($F36*'fnd base rates'!J$109) +($G36*'fnd base rates'!J$110) +($H36*'fnd base rates'!J$111) +($I36*'fnd base rates'!J$112) +($J36*'fnd base rates'!J$113) +($K36*'fnd base rates'!J$114) +($M36*'fnd base rates'!J$116) +($N36*'fnd base rates'!J$117) +($O36*'fnd base rates'!J$118) +($P36*VLOOKUP($S36+12,rate_basefnd,10))) *$R36 -> 1160.7113 | AC36: =(($D36*'fnd base rates'!K$107) +($E36*'fnd base rates'!K$108) +($F36*'fnd base rates'!K$109) +($G36*'fnd base rates'!K$110) +($H36*'fnd base rates'!K$111) +($I36*'fnd base rates'!K$112) +($J36*'fnd base rates'!K$113) +($K36*'fnd base rates'!K$114) +($M36*'fnd base rates'!K$116) +($N36*'fnd base rates'!K$117) +($O36*'fnd base rates'!K$118) +($P36*VLOOKUP($S36+12,rate_basefnd,11))) *$R36 -> 1175.138749 | AD36: =(($D36*'fnd base rates'!L$107) +($E36*'fnd base rates'!L$108) +($F36*'fnd base rates'!L$109) +($G36*'fnd base rates'!L$110) +($H36*'fnd base rates'!L$111) +($I36*'fnd base rates'!L$112) +($J36*'fnd base rates'!L$113) +($K36*'fnd base rates'!L$114) +($M36*'fnd base rates'!L$116) +($N36*'fnd base rates'!L$117) +($O36*'fnd base rates'!L$118) +($P36*VLOOKUP($S36+12,rate_basefnd,12))) -> 1523.751421 | AE36: =(($D36*'fnd base rates'!M$107) +($E36*'fnd base rates'!M$108) +($F36*'fnd base rates'!M$109) +($G36*'fnd base rates'!M$110) +($H36*'fnd base rates'!M$111) +($I36*'fnd base rates'!M$112) +($J36*'fnd base rates'!M$113) +($K36*'fnd base rates'!M$114) +($M36*'fnd base rates'!M$116) +($N36*'fnd base rates'!M$117) +($O36*'fnd base rates'!M$118) +($P36*VLOOKUP($S36+12,rate_basefnd,13))) -> 0 | AF36: 15822.46172 | AH36: 412035073 | AI36: 412 | AJ36: 035 | AK36: 073 | AL36: 1 | AM36: 1 | AN36: 15822.46172 | AO36: 15822 | AP36: 0 | AQ36: 15822 | AW36: 15898 | AX36: 16 | AY36: 15914 | AZ36: -92 | BA36: 15822 | BB36: 0 | BC36: 15822
A37: 412 | B37: 412035220 | C37: ACADEMY OF THE PACIFIC RIM | D37: ='fnd enro'!D37 -> 0 | E37: ='fnd enro'!E37 -> 0 | F37: ='fnd enro'!F37 -> 0 | G37: ='fnd enro'!G37 -> 0 | H37: ='fnd enro'!H37 -> 2 | I37: ='fnd enro'!I37 -> 1 | J37: ='fnd enro'!J37 -> 0 | K37: ='fnd enro'!K37 -> 0.1137 | L37: ='fnd enro'!L37 -> 0 | M37: ='fnd enro'!M37+'fnd enro'!N37 -> 0 | N37: ='fnd enro'!O37 -> 1 | O37: ='fnd enro'!P37 -> 0 | P37: ='fnd enro'!Q37 -> 1 | Q37: ='fnd enro'!S37 -> 3 | R37: 1.085 | S37: =VALUE('fnd enro'!R37) -> 6 | U37: =(($D37*'fnd base rates'!C$107) +($E37*'fnd base rates'!C$108) +($F37*'fnd base rates'!C$109) +($G37*'fnd base rates'!C$110) +($H37*'fnd base rates'!C$111) +($I37*'fnd base rates'!C$112) +($J37*'fnd base rates'!C$113) +($K37*'fnd base rates'!C$114) +($M37*'fnd base rates'!C$116) +($N37*'fnd base rates'!C$117) +($O37*'fnd base rates'!C$118) +($P37*VLOOKUP($S37+12,rate_basefnd,3))) *$R37 -> 1808.745666 | V37: =(($D37*'fnd base rates'!D$107) +($E37*'fnd base rates'!D$108) +($F37*'fnd base rates'!D$109) +($G37*'fnd base rates'!D$110) +($H37*'fnd base rates'!D$111) +($I37*'fnd base rates'!D$112) +($J37*'fnd base rates'!D$113) +($K37*'fnd base rates'!D$114) +($M37*'fnd base rates'!D$116) +($N37*'fnd base rates'!D$117) +($O37*'fnd base rates'!D$118) +($P37*VLOOKUP($S37+12,rate_basefnd,4))) *$R37 -> 2830.765 | W37: =(($D37*'fnd base rates'!E$107) +($E37*'fnd base rates'!E$108) +($F37*'fnd base rates'!E$109) +($G37*'fnd base rates'!E$110) +($H37*'fnd base rates'!E$111) +($I37*'fnd base rates'!E$112) +($J37*'fnd base rates'!E$113) +($K37*'fnd base rates'!E$114) +($M37*'fnd base rates'!E$116) +($N37*'fnd base rates'!E$117) +($O37*'fnd base rates'!E$118) +($P37*VLOOKUP($S37+12,rate_basefnd,5))) *$R37 -> 16282.04509 | X37: =(($D37*'fnd base rates'!F$107) +($E37*'fnd base rates'!F$108) +($F37*'fnd base rates'!F$109) +($G37*'fnd base rates'!F$110) +($H37*'fnd base rates'!F$111) +($I37*'fnd base rates'!F$112) +($J37*'fnd base rates'!F$113) +($K37*'fnd base rates'!F$114) +($M37*'fnd base rates'!F$116) +($N37*'fnd base rates'!F$117) +($O37*'fnd base rates'!F$118) +($P37*VLOOKUP($S37+12,rate_basefnd,6))) *$R37 -> 3109.452407 | Y37: =(($D37*'fnd base rates'!G$107) +($E37*'fnd base rates'!G$108) +($F37*'fnd base rates'!G$109) +($G37*'fnd base rates'!G$110) +($H37*'fnd base rates'!G$111) +($I37*'fnd base rates'!G$112) +($J37*'fnd base rates'!G$113) +($K37*'fnd base rates'!G$114) +($M37*'fnd base rates'!G$116) +($N37*'fnd base rates'!G$117) +($O37*'fnd base rates'!G$118) +($P37*VLOOKUP($S37+12,rate_basefnd,7))) *$R37 -> 705.1525865 | Z37: =(($D37*'fnd base rates'!H$107) +($E37*'fnd base rates'!H$108) +($F37*'fnd base rates'!H$109) +($G37*'fnd base rates'!H$110) +($H37*'fnd base rates'!H$111) +($I37*'fnd base rates'!H$112) +($J37*'fnd base rates'!H$113) +($K37*'fnd base rates'!H$114) +($M37*'fnd base rates'!H$116) +($N37*'fnd base rates'!H$117) +($O37*'fnd base rates'!H$118) +($P37*VLOOKUP($S37+12,rate_basefnd,8))) -> 1908.60121 | AA37: =(($D37*'fnd base rates'!I$107) +($E37*'fnd base rates'!I$108) +($F37*'fnd base rates'!I$109) +($G37*'fnd base rates'!I$110) +($H37*'fnd base rates'!I$111) +($I37*'fnd base rates'!I$112) +($J37*'fnd base rates'!I$113) +($K37*'fnd base rates'!I$114) +($M37*'fnd base rates'!I$116) +($N37*'fnd base rates'!I$117) +($O37*'fnd base rates'!I$118) +($P37*VLOOKUP($S37+12,rate_basefnd,9))) *$R37 -> 1328.02915 | AB37: =(($D37*'fnd base rates'!J$107) +($E37*'fnd base rates'!J$108) +($F37*'fnd base rates'!J$109) +($G37*'fnd base rates'!J$110) +($H37*'fnd base rates'!J$111) +($I37*'fnd base rates'!J$112) +($J37*'fnd base rates'!J$113) +($K37*'fnd base rates'!J$114) +($M37*'fnd base rates'!J$116) +($N37*'fnd base rates'!J$117) +($O37*'fnd base rates'!J$118) +($P37*VLOOKUP($S37+12,rate_basefnd,10))) *$R37 -> 1735.64195 | AC37: =(($D37*'fnd base rates'!K$107) +($E37*'fnd base rates'!K$108) +($F37*'fnd base rates'!K$109) +($G37*'fnd base rates'!K$110) +($H37*'fnd base rates'!K$111) +($I37*'fnd base rates'!K$112) +($J37*'fnd base rates'!K$113) +($K37*'fnd base rates'!K$114) +($M37*'fnd base rates'!K$116) +($N37*'fnd base rates'!K$117) +($O37*'fnd base rates'!K$118) +($P37*VLOOKUP($S37+12,rate_basefnd,11))) *$R37 -> 3904.124647 | AD37: =(($D37*'fnd base rates'!L$107) +($E37*'fnd base rates'!L$108) +($F37*'fnd base rates'!L$109) +($G37*'fnd base rates'!L$110) +($H37*'fnd base rates'!L$111) +($I37*'fnd base rates'!L$112) +($J37*'fnd base rates'!L$113) +($K37*'fnd base rates'!L$114) +($M37*'fnd base rates'!L$116) +($N37*'fnd base rates'!L$117) +($O37*'fnd base rates'!L$118) +($P37*VLOOKUP($S37+12,rate_basefnd,12))) -> 4259.094263 | AE37: =(($D37*'fnd base rates'!M$107) +($E37*'fnd base rates'!M$108) +($F37*'fnd base rates'!M$109) +($G37*'fnd base rates'!M$110) +($H37*'fnd base rates'!M$111) +($I37*'fnd base rates'!M$112) +($J37*'fnd base rates'!M$113) +($K37*'fnd base rates'!M$114) +($M37*'fnd base rates'!M$116) +($N37*'fnd base rates'!M$117) +($O37*'fnd base rates'!M$118) +($P37*VLOOKUP($S37+12,rate_basefnd,13))) -> 0 | AF37: 37871.65197 | AH37: 412035220 | AI37: 412 | AJ37: 035 | AK37: 220 | AL37: 1 | AM37: 3 | AN37: 37871.65197 | AO37: 12624 | AP37: 0 | AQ37: 12624 | AW37: 15801 | AX37: 24 | AY37: 15825 | AZ37: -3201 | BA37: 12624 | BB37: 0 | BC37: 12624
A38: 412 | B38: 412035244 | C38: ACADEMY OF THE PACIFIC RIM | D38: ='fnd enro'!D38 -> 0 | E38: ='fnd enro'!E38 -> 0 | F38: ='fnd enro'!F38 -> 0 | G38: ='fnd enro'!G38 -> 0 | H38: ='fnd enro'!H38 -> 1 | I38: ='fnd enro'!I38 -> 6 | J38: ='fnd enro'!J38 -> 0 | K38: ='fnd enro'!K38 -> 0.2653 | L38: ='fnd enro'!L38 -> 0 | M38: ='fnd enro'!M38+'fnd enro'!N38 -> 0 | N38: ='fnd enro'!O38 -> 0 | O38: ='fnd enro'!P38 -> 0 | P38: ='fnd enro'!Q38 -> 3 | Q38: ='fnd enro'!S38 -> 7 | R38: 1.085 | S38: =VALUE('fnd enro'!R38) -> 9 | U38: =(($D38*'fnd base rates'!C$107) +($E38*'fnd base rates'!C$108) +($F38*'fnd base rates'!C$109) +($G38*'fnd base rates'!C$110) +($H38*'fnd base rates'!C$111) +($I38*'fnd base rates'!C$112) +($J38*'fnd base rates'!C$113) +($K38*'fnd base rates'!C$114) +($M38*'fnd base rates'!C$116) +($N38*'fnd base rates'!C$117) +($O38*'fnd base rates'!C$118) +($P38*VLOOKUP($S38+12,rate_basefnd,3))) *$R38 -> 4032.404988 | V38: =(($D38*'fnd base rates'!D$107) +($E38*'fnd base rates'!D$108) +($F38*'fnd base rates'!D$109) +($G38*'fnd base rates'!D$110) +($H38*'fnd base rates'!D$111) +($I38*'fnd base rates'!D$112) +($J38*'fnd base rates'!D$113) +($K38*'fnd base rates'!D$114) +($M38*'fnd base rates'!D$116) +($N38*'fnd base rates'!D$117) +($O38*'fnd base rates'!D$118) +($P38*VLOOKUP($S38+12,rate_basefnd,4))) *$R38 -> 6441.87285 | W38: =(($D38*'fnd base rates'!E$107) +($E38*'fnd base rates'!E$108) +($F38*'fnd base rates'!E$109) +($G38*'fnd base rates'!E$110) +($H38*'fnd base rates'!E$111) +($I38*'fnd base rates'!E$112) +($J38*'fnd base rates'!E$113) +($K38*'fnd base rates'!E$114) +($M38*'fnd base rates'!E$116) +($N38*'fnd base rates'!E$117) +($O38*'fnd base rates'!E$118) +($P38*VLOOKUP($S38+12,rate_basefnd,5))) *$R38 -> 43027.91451 | X38: =(($D38*'fnd base rates'!F$107) +($E38*'fnd base rates'!F$108) +($F38*'fnd base rates'!F$109) +($G38*'fnd base rates'!F$110) +($H38*'fnd base rates'!F$111) +($I38*'fnd base rates'!F$112) +($J38*'fnd base rates'!F$113) +($K38*'fnd base rates'!F$114) +($M38*'fnd base rates'!F$116) +($N38*'fnd base rates'!F$117) +($O38*'fnd base rates'!F$118) +($P38*VLOOKUP($S38+12,rate_basefnd,6))) *$R38 -> 6422.123416 | Y38: =(($D38*'fnd base rates'!G$107) +($E38*'fnd base rates'!G$108) +($F38*'fnd base rates'!G$109) +($G38*'fnd base rates'!G$110) +($H38*'fnd base rates'!G$111) +($I38*'fnd base rates'!G$112) +($J38*'fnd base rates'!G$113) +($K38*'fnd base rates'!G$114) +($M38*'fnd base rates'!G$116) +($N38*'fnd base rates'!G$117) +($O38*'fnd base rates'!G$118) +($P38*VLOOKUP($S38+12,rate_basefnd,7))) *$R38 -> 1630.921919 | Z38: =(($D38*'fnd base rates'!H$107) +($E38*'fnd base rates'!H$108) +($F38*'fnd base rates'!H$109) +($G38*'fnd base rates'!H$110) +($H38*'fnd base rates'!H$111) +($I38*'fnd base rates'!H$112) +($J38*'fnd base rates'!H$113) +($K38*'fnd base rates'!H$114) +($M38*'fnd base rates'!H$116) +($N38*'fnd base rates'!H$117) +($O38*'fnd base rates'!H$118) +($P38*VLOOKUP($S38+12,rate_basefnd,8))) -> 5244.61949 | AA38: =(($D38*'fnd base rates'!I$107) +($E38*'fnd base rates'!I$108) +($F38*'fnd base rates'!I$109) +($G38*'fnd base rates'!I$110) +($H38*'fnd base rates'!I$111) +($I38*'fnd base rates'!I$112) +($J38*'fnd base rates'!I$113) +($K38*'fnd base rates'!I$114) +($M38*'fnd base rates'!I$116) +($N38*'fnd base rates'!I$117) +($O38*'fnd base rates'!I$118) +($P38*VLOOKUP($S38+12,rate_basefnd,9))) *$R38 -> 3343.4058 | AB38: =(($D38*'fnd base rates'!J$107) +($E38*'fnd base rates'!J$108) +($F38*'fnd base rates'!J$109) +($G38*'fnd base rates'!J$110) +($H38*'fnd base rates'!J$111) +($I38*'fnd base rates'!J$112) +($J38*'fnd base rates'!J$113) +($K38*'fnd base rates'!J$114) +($M38*'fnd base rates'!J$116) +($N38*'fnd base rates'!J$117) +($O38*'fnd base rates'!J$118) +($P38*VLOOKUP($S38+12,rate_basefnd,10))) *$R38 -> 5748.4385 | AC38: =(($D38*'fnd base rates'!K$107) +($E38*'fnd base rates'!K$108) +($F38*'fnd base rates'!K$109) +($G38*'fnd base rates'!K$110) +($H38*'fnd base rates'!K$111) +($I38*'fnd base rates'!K$112) +($J38*'fnd base rates'!K$113) +($K38*'fnd base rates'!K$114) +($M38*'fnd base rates'!K$116) +($N38*'fnd base rates'!K$117) +($O38*'fnd base rates'!K$118) +($P38*VLOOKUP($S38+12,rate_basefnd,11))) *$R38 -> 8258.835893 | AD38: =(($D38*'fnd base rates'!L$107) +($E38*'fnd base rates'!L$108) +($F38*'fnd base rates'!L$109) +($G38*'fnd base rates'!L$110) +($H38*'fnd base rates'!L$111) +($I38*'fnd base rates'!L$112) +($J38*'fnd base rates'!L$113) +($K38*'fnd base rates'!L$114) +($M38*'fnd base rates'!L$116) +($N38*'fnd base rates'!L$117) +($O38*'fnd base rates'!L$118) +($P38*VLOOKUP($S38+12,rate_basefnd,12))) -> 9322.069947 | AE38: =(($D38*'fnd base rates'!M$107) +($E38*'fnd base rates'!M$108) +($F38*'fnd base rates'!M$109) +($G38*'fnd base rates'!M$110) +($H38*'fnd base rates'!M$111) +($I38*'fnd base rates'!M$112) +($J38*'fnd base rates'!M$113) +($K38*'fnd base rates'!M$114) +($M38*'fnd base rates'!M$116) +($N38*'fnd base rates'!M$117) +($O38*'fnd base rates'!M$118) +($P38*VLOOKUP($S38+12,rate_basefnd,13))) -> 0 | AF38: 93472.60731 | AH38: 412035244 | AI38: 412 | AJ38: 035 | AK38: 244 | AL38: 1 | AM38: 7 | AN38: 93472.60731 | AO38: 13353 | AP38: 0 | AQ38: 13353 | AW38: 14932 | AX38: 58 | AY38: 14990 | AZ38: -1637 | BA38: 13353 | BB38: 0 | BC38: 13353
A39: 412 | B39: 412035285 | C39: ACADEMY OF THE PACIFIC RIM | D39: ='fnd enro'!D39 -> 0 | E39: ='fnd enro'!E39 -> 0 | F39: ='fnd enro'!F39 -> 0 | G39: ='fnd enro'!G39 -> 0 | H39: ='fnd enro'!H39 -> 2 | I39: ='fnd enro'!I39 -> 5 | J39: ='fnd enro'!J39 -> 0 | K39: ='fnd enro'!K39 -> 0.2653 | L39: ='fnd enro'!L39 -> 0 | M39: ='fnd enro'!M39+'fnd enro'!N39 -> 0 | N39: ='fnd enro'!O39 -> 0 | O39: ='fnd enro'!P39 -> 0 | P39: ='fnd enro'!Q39 -> 0 | Q39: ='fnd enro'!S39 -> 7 | R39: 1.085 | S39: =VALUE('fnd enro'!R39) -> 7 | U39: =(($D39*'fnd base rates'!C$107) +($E39*'fnd base rates'!C$108) +($F39*'fnd base rates'!C$109) +($G39*'fnd base rates'!C$110) +($H39*'fnd base rates'!C$111) +($I39*'fnd base rates'!C$112) +($J39*'fnd base rates'!C$113) +($K39*'fnd base rates'!C$114) +($M39*'fnd base rates'!C$116) +($N39*'fnd base rates'!C$117) +($O39*'fnd base rates'!C$118) +($P39*VLOOKUP($S39+12,rate_basefnd,3))) *$R39 -> 3830.074188 | V39: =(($D39*'fnd base rates'!D$107) +($E39*'fnd base rates'!D$108) +($F39*'fnd base rates'!D$109) +($G39*'fnd base rates'!D$110) +($H39*'fnd base rates'!D$111) +($I39*'fnd base rates'!D$112) +($J39*'fnd base rates'!D$113) +($K39*'fnd base rates'!D$114) +($M39*'fnd base rates'!D$116) +($N39*'fnd base rates'!D$117) +($O39*'fnd base rates'!D$118) +($P39*VLOOKUP($S39+12,rate_basefnd,4))) *$R39 -> 5483.21025 | W39: =(($D39*'fnd base rates'!E$107) +($E39*'fnd base rates'!E$108) +($F39*'fnd base rates'!E$109) +($G39*'fnd base rates'!E$110) +($H39*'fnd base rates'!E$111) +($I39*'fnd base rates'!E$112) +($J39*'fnd base rates'!E$113) +($K39*'fnd base rates'!E$114) +($M39*'fnd base rates'!E$116) +($N39*'fnd base rates'!E$117) +($O39*'fnd base rates'!E$118) +($P39*VLOOKUP($S39+12,rate_basefnd,5))) *$R39 -> 32182.13516 | X39: =(($D39*'fnd base rates'!F$107) +($E39*'fnd base rates'!F$108) +($F39*'fnd base rates'!F$109) +($G39*'fnd base rates'!F$110) +($H39*'fnd base rates'!F$111) +($I39*'fnd base rates'!F$112) +($J39*'fnd base rates'!F$113) +($K39*'fnd base rates'!F$114) +($M39*'fnd base rates'!F$116) +($N39*'fnd base rates'!F$117) +($O39*'fnd base rates'!F$118) +($P39*VLOOKUP($S39+12,rate_basefnd,6))) *$R39 -> 6533.194866 | Y39: =(($D39*'fnd base rates'!G$107) +($E39*'fnd base rates'!G$108) +($F39*'fnd base rates'!G$109) +($G39*'fnd base rates'!G$110) +($H39*'fnd base rates'!G$111) +($I39*'fnd base rates'!G$112) +($J39*'fnd base rates'!G$113) +($K39*'fnd base rates'!G$114) +($M39*'fnd base rates'!G$116) +($N39*'fnd base rates'!G$117) +($O39*'fnd base rates'!G$118) +($P39*VLOOKUP($S39+12,rate_basefnd,7))) *$R39 -> 1181.590869 | Z39: =(($D39*'fnd base rates'!H$107) +($E39*'fnd base rates'!H$108) +($F39*'fnd base rates'!H$109) +($G39*'fnd base rates'!H$110) +($H39*'fnd base rates'!H$111) +($I39*'fnd base rates'!H$112) +($J39*'fnd base rates'!H$113) +($K39*'fnd base rates'!H$114) +($M39*'fnd base rates'!H$116) +($N39*'fnd base rates'!H$117) +($O39*'fnd base rates'!H$118) +($P39*VLOOKUP($S39+12,rate_basefnd,8))) -> 4892.99949 | AA39: =(($D39*'fnd base rates'!I$107) +($E39*'fnd base rates'!I$108) +($F39*'fnd base rates'!I$109) +($G39*'fnd base rates'!I$110) +($H39*'fnd base rates'!I$111) +($I39*'fnd base rates'!I$112) +($J39*'fnd base rates'!I$113) +($K39*'fnd base rates'!I$114) +($M39*'fnd base rates'!I$116) +($N39*'fnd base rates'!I$117) +($O39*'fnd base rates'!I$118) +($P39*VLOOKUP($S39+12,rate_basefnd,9))) *$R39 -> 2876.25905 | AB39: =(($D39*'fnd base rates'!J$107) +($E39*'fnd base rates'!J$108) +($F39*'fnd base rates'!J$109) +($G39*'fnd base rates'!J$110) +($H39*'fnd base rates'!J$111) +($I39*'fnd base rates'!J$112) +($J39*'fnd base rates'!J$113) +($K39*'fnd base rates'!J$114) +($M39*'fnd base rates'!J$116) +($N39*'fnd base rates'!J$117) +($O39*'fnd base rates'!J$118) +($P39*VLOOKUP($S39+12,rate_basefnd,10))) *$R39 -> 3446.64355 | AC39: =(($D39*'fnd base rates'!K$107) +($E39*'fnd base rates'!K$108) +($F39*'fnd base rates'!K$109) +($G39*'fnd base rates'!K$110) +($H39*'fnd base rates'!K$111) +($I39*'fnd base rates'!K$112) +($J39*'fnd base rates'!K$113) +($K39*'fnd base rates'!K$114) +($M39*'fnd base rates'!K$116) +($N39*'fnd base rates'!K$117) +($O39*'fnd base rates'!K$118) +($P39*VLOOKUP($S39+12,rate_basefnd,11))) *$R39 -> 8291.700543 | AD39: =(($D39*'fnd base rates'!L$107) +($E39*'fnd base rates'!L$108) +($F39*'fnd base rates'!L$109) +($G39*'fnd base rates'!L$110) +($H39*'fnd base rates'!L$111) +($I39*'fnd base rates'!L$112) +($J39*'fnd base rates'!L$113) +($K39*'fnd base rates'!L$114) +($M39*'fnd base rates'!L$116) +($N39*'fnd base rates'!L$117) +($O39*'fnd base rates'!L$118) +($P39*VLOOKUP($S39+12,rate_basefnd,12))) -> 8030.849947 | AE39: =(($D39*'fnd base rates'!M$107) +($E39*'fnd base rates'!M$108) +($F39*'fnd base rates'!M$109) +($G39*'fnd base rates'!M$110) +($H39*'fnd base rates'!M$111) +($I39*'fnd base rates'!M$112) +($J39*'fnd base rates'!M$113) +($K39*'fnd base rates'!M$114) +($M39*'fnd base rates'!M$116) +($N39*'fnd base rates'!M$117) +($O39*'fnd base rates'!M$118) +($P39*VLOOKUP($S39+12,rate_basefnd,13))) -> 0 | AF39: 76748.65791 | AH39: 412035285 | AI39: 412 | AJ39: 035 | AK39: 285 | AL39: 1 | AM39: 7 | AN39: 76748.65791 | AO39: 10964 | AP39: 0 | AQ39: 10964 | AW39: 11041 | AX39: 0 | AY39: 11041 | AZ39: -77 | BA39: 10964 | BB39: 0 | BC39: 10964
A40: 412 | B40: 412035293 | C40: ACADEMY OF THE PACIFIC RIM | D40: ='fnd enro'!D40 -> 0 | E40: ='fnd enro'!E40 -> 0 | F40: ='fnd enro'!F40 -> 0 | G40: ='fnd enro'!G40 -> 0 | H40: ='fnd enro'!H40 -> 2 | I40: ='fnd enro'!I40 -> 0 | J40: ='fnd enro'!J40 -> 0 | K40: ='fnd enro'!K40 -> 0.0758 | L40: ='fnd enro'!L40 -> 0 | M40: ='fnd enro'!M40+'fnd enro'!N40 -> 0 | N40: ='fnd enro'!O40 -> 1 | O40: ='fnd enro'!P40 -> 0 | P40: ='fnd enro'!Q40 -> 0 | Q40: ='fnd enro'!S40 -> 2 | R40: 1.085 | S40: =VALUE('fnd enro'!R40) -> 9 | U40: =(($D40*'fnd base rates'!C$107) +($E40*'fnd base rates'!C$108) +($F40*'fnd base rates'!C$109) +($G40*'fnd base rates'!C$110) +($H40*'fnd base rates'!C$111) +($I40*'fnd base rates'!C$112) +($J40*'fnd base rates'!C$113) +($K40*'fnd base rates'!C$114) +($M40*'fnd base rates'!C$116) +($N40*'fnd base rates'!C$117) +($O40*'fnd base rates'!C$118) +($P40*VLOOKUP($S40+12,rate_basefnd,3))) *$R40 -> 1198.640511 | V40: =(($D40*'fnd base rates'!D$107) +($E40*'fnd base rates'!D$108) +($F40*'fnd base rates'!D$109) +($G40*'fnd base rates'!D$110) +($H40*'fnd base rates'!D$111) +($I40*'fnd base rates'!D$112) +($J40*'fnd base rates'!D$113) +($K40*'fnd base rates'!D$114) +($M40*'fnd base rates'!D$116) +($N40*'fnd base rates'!D$117) +($O40*'fnd base rates'!D$118) +($P40*VLOOKUP($S40+12,rate_basefnd,4))) *$R40 -> 1749.20445 | W40: =(($D40*'fnd base rates'!E$107) +($E40*'fnd base rates'!E$108) +($F40*'fnd base rates'!E$109) +($G40*'fnd base rates'!E$110) +($H40*'fnd base rates'!E$111) +($I40*'fnd base rates'!E$112) +($J40*'fnd base rates'!E$113) +($K40*'fnd base rates'!E$114) +($M40*'fnd base rates'!E$116) +($N40*'fnd base rates'!E$117) +($O40*'fnd base rates'!E$118) +($P40*VLOOKUP($S40+12,rate_basefnd,5))) *$R40 -> 8348.093559 | X40: =(($D40*'fnd base rates'!F$107) +($E40*'fnd base rates'!F$108) +($F40*'fnd base rates'!F$109) +($G40*'fnd base rates'!F$110) +($H40*'fnd base rates'!F$111) +($I40*'fnd base rates'!F$112) +($J40*'fnd base rates'!F$113) +($K40*'fnd base rates'!F$114) +($M40*'fnd base rates'!F$116) +($N40*'fnd base rates'!F$117) +($O40*'fnd base rates'!F$118) +($P40*VLOOKUP($S40+12,rate_basefnd,6))) *$R40 -> 2207.873555 | Y40: =(($D40*'fnd base rates'!G$107) +($E40*'fnd base rates'!G$108) +($F40*'fnd base rates'!G$109) +($G40*'fnd base rates'!G$110) +($H40*'fnd base rates'!G$111) +($I40*'fnd base rates'!G$112) +($J40*'fnd base rates'!G$113) +($K40*'fnd base rates'!G$114) +($M40*'fnd base rates'!G$116) +($N40*'fnd base rates'!G$117) +($O40*'fnd base rates'!G$118) +($P40*VLOOKUP($S40+12,rate_basefnd,7))) *$R40 -> 396.433841 | Z40: =(($D40*'fnd base rates'!H$107) +($E40*'fnd base rates'!H$108) +($F40*'fnd base rates'!H$109) +($G40*'fnd base rates'!H$110) +($H40*'fnd base rates'!H$111) +($I40*'fnd base rates'!H$112) +($J40*'fnd base rates'!H$113) +($K40*'fnd base rates'!H$114) +($M40*'fnd base rates'!H$116) +($N40*'fnd base rates'!H$117) +($O40*'fnd base rates'!H$118) +($P40*VLOOKUP($S40+12,rate_basefnd,8))) -> 1107.50414 | AA40: =(($D40*'fnd base rates'!I$107) +($E40*'fnd base rates'!I$108) +($F40*'fnd base rates'!I$109) +($G40*'fnd base rates'!I$110) +($H40*'fnd base rates'!I$111) +($I40*'fnd base rates'!I$112) +($J40*'fnd base rates'!I$113) +($K40*'fnd base rates'!I$114) +($M40*'fnd base rates'!I$116) +($N40*'fnd base rates'!I$117) +($O40*'fnd base rates'!I$118) +($P40*VLOOKUP($S40+12,rate_basefnd,9))) *$R40 -> 774.039 | AB40: =(($D40*'fnd base rates'!J$107) +($E40*'fnd base rates'!J$108) +($F40*'fnd base rates'!J$109) +($G40*'fnd base rates'!J$110) +($H40*'fnd base rates'!J$111) +($I40*'fnd base rates'!J$112) +($J40*'fnd base rates'!J$113) +($K40*'fnd base rates'!J$114) +($M40*'fnd base rates'!J$116) +($N40*'fnd base rates'!J$117) +($O40*'fnd base rates'!J$118) +($P40*VLOOKUP($S40+12,rate_basefnd,10))) *$R40 -> 535.5777 | AC40: =(($D40*'fnd base rates'!K$107) +($E40*'fnd base rates'!K$108) +($F40*'fnd base rates'!K$109) +($G40*'fnd base rates'!K$110) +($H40*'fnd base rates'!K$111) +($I40*'fnd base rates'!K$112) +($J40*'fnd base rates'!K$113) +($K40*'fnd base rates'!K$114) +($M40*'fnd base rates'!K$116) +($N40*'fnd base rates'!K$117) +($O40*'fnd base rates'!K$118) +($P40*VLOOKUP($S40+12,rate_basefnd,11))) *$R40 -> 2728.985898 | AD40: =(($D40*'fnd base rates'!L$107) +($E40*'fnd base rates'!L$108) +($F40*'fnd base rates'!L$109) +($G40*'fnd base rates'!L$110) +($H40*'fnd base rates'!L$111) +($I40*'fnd base rates'!L$112) +($J40*'fnd base rates'!L$113) +($K40*'fnd base rates'!L$114) +($M40*'fnd base rates'!L$116) +($N40*'fnd base rates'!L$117) +($O40*'fnd base rates'!L$118) +($P40*VLOOKUP($S40+12,rate_basefnd,12))) -> 2707.462842 | AE40: =(($D40*'fnd base rates'!M$107) +($E40*'fnd base rates'!M$108) +($F40*'fnd base rates'!M$109) +($G40*'fnd base rates'!M$110) +($H40*'fnd base rates'!M$111) +($I40*'fnd base rates'!M$112) +($J40*'fnd base rates'!M$113) +($K40*'fnd base rates'!M$114) +($M40*'fnd base rates'!M$116) +($N40*'fnd base rates'!M$117) +($O40*'fnd base rates'!M$118) +($P40*VLOOKUP($S40+12,rate_basefnd,13))) -> 0 | AF40: 21753.8155 | AH40: 412035293 | AI40: 412 | AJ40: 035 | AK40: 293 | AL40: 1 | AM40: 2 | AN40: 21753.8155 | AO40: 10877 | AP40: 0 | AQ40: 10877 | AW40: 13471 | AX40: 34 | AY40: 13505 | AZ40: -2628 | BA40: 10877 | BB40: 0 | BC40: 10877
A41: 412 | B41: 412035314 | C41: ACADEMY OF THE PACIFIC RIM | D41: ='fnd enro'!D41 -> 0 | E41: ='fnd enro'!E41 -> 0 | F41: ='fnd enro'!F41 -> 0 | G41: ='fnd enro'!G41 -> 0 | H41: ='fnd enro'!H41 -> 0 | I41: ='fnd enro'!I41 -> 1 | J41: ='fnd enro'!J41 -> 0 | K41: ='fnd enro'!K41 -> 0.0379 | L41: ='fnd enro'!L41 -> 0 | M41: ='fnd enro'!M41+'fnd enro'!N41 -> 0 | N41: ='fnd enro'!O41 -> 0 | O41: ='fnd enro'!P41 -> 0 | P41: ='fnd enro'!Q41 -> 0 | Q41: ='fnd enro'!S41 -> 1 | R41: 1.085 | S41: =VALUE('fnd enro'!R41) -> 7 | U41: =(($D41*'fnd base rates'!C$107) +($E41*'fnd base rates'!C$108) +($F41*'fnd base rates'!C$109) +($G41*'fnd base rates'!C$110) +($H41*'fnd base rates'!C$111) +($I41*'fnd base rates'!C$112) +($J41*'fnd base rates'!C$113) +($K41*'fnd base rates'!C$114) +($M41*'fnd base rates'!C$116) +($N41*'fnd base rates'!C$117) +($O41*'fnd base rates'!C$118) +($P41*VLOOKUP($S41+12,rate_basefnd,3))) *$R41 -> 547.1534554 | V41: =(($D41*'fnd base rates'!D$107) +($E41*'fnd base rates'!D$108) +($F41*'fnd base rates'!D$109) +($G41*'fnd base rates'!D$110) +($H41*'fnd base rates'!D$111) +($I41*'fnd base rates'!D$112) +($J41*'fnd base rates'!D$113) +($K41*'fnd base rates'!D$114) +($M41*'fnd base rates'!D$116) +($N41*'fnd base rates'!D$117) +($O41*'fnd base rates'!D$118) +($P41*VLOOKUP($S41+12,rate_basefnd,4))) *$R41 -> 783.31575 | W41: =(($D41*'fnd base rates'!E$107) +($E41*'fnd base rates'!E$108) +($F41*'fnd base rates'!E$109) +($G41*'fnd base rates'!E$110) +($H41*'fnd base rates'!E$111) +($I41*'fnd base rates'!E$112) +($J41*'fnd base rates'!E$113) +($K41*'fnd base rates'!E$114) +($M41*'fnd base rates'!E$116) +($N41*'fnd base rates'!E$117) +($O41*'fnd base rates'!E$118) +($P41*VLOOKUP($S41+12,rate_basefnd,5))) *$R41 -> 5022.408279 | X41: =(($D41*'fnd base rates'!F$107) +($E41*'fnd base rates'!F$108) +($F41*'fnd base rates'!F$109) +($G41*'fnd base rates'!F$110) +($H41*'fnd base rates'!F$111) +($I41*'fnd base rates'!F$112) +($J41*'fnd base rates'!F$113) +($K41*'fnd base rates'!F$114) +($M41*'fnd base rates'!F$116) +($N41*'fnd base rates'!F$117) +($O41*'fnd base rates'!F$118) +($P41*VLOOKUP($S41+12,rate_basefnd,6))) *$R41 -> 901.5788523 | Y41: =(($D41*'fnd base rates'!G$107) +($E41*'fnd base rates'!G$108) +($F41*'fnd base rates'!G$109) +($G41*'fnd base rates'!G$110) +($H41*'fnd base rates'!G$111) +($I41*'fnd base rates'!G$112) +($J41*'fnd base rates'!G$113) +($K41*'fnd base rates'!G$114) +($M41*'fnd base rates'!G$116) +($N41*'fnd base rates'!G$117) +($O41*'fnd base rates'!G$118) +($P41*VLOOKUP($S41+12,rate_basefnd,7))) *$R41 -> 167.4625955 | Z41: =(($D41*'fnd base rates'!H$107) +($E41*'fnd base rates'!H$108) +($F41*'fnd base rates'!H$109) +($G41*'fnd base rates'!H$110) +($H41*'fnd base rates'!H$111) +($I41*'fnd base rates'!H$112) +($J41*'fnd base rates'!H$113) +($K41*'fnd base rates'!H$114) +($M41*'fnd base rates'!H$116) +($N41*'fnd base rates'!H$117) +($O41*'fnd base rates'!H$118) +($P41*VLOOKUP($S41+12,rate_basefnd,8))) -> 781.13707 | AA41: =(($D41*'fnd base rates'!I$107) +($E41*'fnd base rates'!I$108) +($F41*'fnd base rates'!I$109) +($G41*'fnd base rates'!I$110) +($H41*'fnd base rates'!I$111) +($I41*'fnd base rates'!I$112) +($J41*'fnd base rates'!I$113) +($K41*'fnd base rates'!I$114) +($M41*'fnd base rates'!I$116) +($N41*'fnd base rates'!I$117) +($O41*'fnd base rates'!I$118) +($P41*VLOOKUP($S41+12,rate_basefnd,9))) *$R41 -> 436.09405 | AB41: =(($D41*'fnd base rates'!J$107) +($E41*'fnd base rates'!J$108) +($F41*'fnd base rates'!J$109) +($G41*'fnd base rates'!J$110) +($H41*'fnd base rates'!J$111) +($I41*'fnd base rates'!J$112) +($J41*'fnd base rates'!J$113) +($K41*'fnd base rates'!J$114) +($M41*'fnd base rates'!J$116) +($N41*'fnd base rates'!J$117) +($O41*'fnd base rates'!J$118) +($P41*VLOOKUP($S41+12,rate_basefnd,10))) *$R41 -> 587.42985 | AC41: =(($D41*'fnd base rates'!K$107) +($E41*'fnd base rates'!K$108) +($F41*'fnd base rates'!K$109) +($G41*'fnd base rates'!K$110) +($H41*'fnd base rates'!K$111) +($I41*'fnd base rates'!K$112) +($J41*'fnd base rates'!K$113) +($K41*'fnd base rates'!K$114) +($M41*'fnd base rates'!K$116) +($N41*'fnd base rates'!K$117) +($O41*'fnd base rates'!K$118) +($P41*VLOOKUP($S41+12,rate_basefnd,11))) *$R41 -> 1175.138749 | AD41: =(($D41*'fnd base rates'!L$107) +($E41*'fnd base rates'!L$108) +($F41*'fnd base rates'!L$109) +($G41*'fnd base rates'!L$110) +($H41*'fnd base rates'!L$111) +($I41*'fnd base rates'!L$112) +($J41*'fnd base rates'!L$113) +($K41*'fnd base rates'!L$114) +($M41*'fnd base rates'!L$116) +($N41*'fnd base rates'!L$117) +($O41*'fnd base rates'!L$118) +($P41*VLOOKUP($S41+12,rate_basefnd,12))) -> 1117.561421 | AE41: =(($D41*'fnd base rates'!M$107) +($E41*'fnd base rates'!M$108) +($F41*'fnd base rates'!M$109) +($G41*'fnd base rates'!M$110) +($H41*'fnd base rates'!M$111) +($I41*'fnd base rates'!M$112) +($J41*'fnd base rates'!M$113) +($K41*'fnd base rates'!M$114) +($M41*'fnd base rates'!M$116) +($N41*'fnd base rates'!M$117) +($O41*'fnd base rates'!M$118) +($P41*VLOOKUP($S41+12,rate_basefnd,13))) -> 0 | AF41: 11519.28007 | AH41: 412035314 | AI41: 412 | AJ41: 035 | AK41: 314 | AL41: 1 | AM41: 1 | AN41: 11519.28007 | AO41: 11519 | AP41: 0 | AQ41: 11519 | AW41: 16196 | AX41: 24 | AY41: 16220 | AZ41: -4701 | BA41: 11519 | BB41: 0 | BC41: 11519
A42: 412 | B42: 412035335 | C42: ACADEMY OF THE PACIFIC RIM | D42: ='fnd enro'!D42 -> 0 | E42: ='fnd enro'!E42 -> 0 | F42: ='fnd enro'!F42 -> 0 | G42: ='fnd enro'!G42 -> 0 | H42: ='fnd enro'!H42 -> 0 | I42: ='fnd enro'!I42 -> 1 | J42: ='fnd enro'!J42 -> 0 | K42: ='fnd enro'!K42 -> 0.0379 | L42: ='fnd enro'!L42 -> 0 | M42: ='fnd enro'!M42+'fnd enro'!N42 -> 0 | N42: ='fnd enro'!O42 -> 0 | O42: ='fnd enro'!P42 -> 0 | P42: ='fnd enro'!Q42 -> 0 | Q42: ='fnd enro'!S42 -> 1 | R42: 1.085 | S42: =VALUE('fnd enro'!R42) -> 1 | U42: =(($D42*'fnd base rates'!C$107) +($E42*'fnd base rates'!C$108) +($F42*'fnd base rates'!C$109) +($G42*'fnd base rates'!C$110) +($H42*'fnd base rates'!C$111) +($I42*'fnd base rates'!C$112) +($J42*'fnd base rates'!C$113) +($K42*'fnd base rates'!C$114) +($M42*'fnd base rates'!C$116) +($N42*'fnd base rates'!C$117) +($O42*'fnd base rates'!C$118) +($P42*VLOOKUP($S42+12,rate_basefnd,3))) *$R42 -> 547.1534554 | V42: =(($D42*'fnd base rates'!D$107) +($E42*'fnd base rates'!D$108) +($F42*'fnd base rates'!D$109) +($G42*'fnd base rates'!D$110) +($H42*'fnd base rates'!D$111) +($I42*'fnd base rates'!D$112) +($J42*'fnd base rates'!D$113) +($K42*'fnd base rates'!D$114) +($M42*'fnd base rates'!D$116) +($N42*'fnd base rates'!D$117) +($O42*'fnd base rates'!D$118) +($P42*VLOOKUP($S42+12,rate_basefnd,4))) *$R42 -> 783.31575 | W42: =(($D42*'fnd base rates'!E$107) +($E42*'fnd base rates'!E$108) +($F42*'fnd base rates'!E$109) +($G42*'fnd base rates'!E$110) +($H42*'fnd base rates'!E$111) +($I42*'fnd base rates'!E$112) +($J42*'fnd base rates'!E$113) +($K42*'fnd base rates'!E$114) +($M42*'fnd base rates'!E$116) +($N42*'fnd base rates'!E$117) +($O42*'fnd base rates'!E$118) +($P42*VLOOKUP($S42+12,rate_basefnd,5))) *$R42 -> 5022.408279 | X42: =(($D42*'fnd base rates'!F$107) +($E42*'fnd base rates'!F$108) +($F42*'fnd base rates'!F$109) +($G42*'fnd base rates'!F$110) +($H42*'fnd base rates'!F$111) +($I42*'fnd base rates'!F$112) +($J42*'fnd base rates'!F$113) +($K42*'fnd base rates'!F$114) +($M42*'fnd base rates'!F$116) +($N42*'fnd base rates'!F$117) +($O42*'fnd base rates'!F$118) +($P42*VLOOKUP($S42+12,rate_basefnd,6))) *$R42 -> 901.5788523 | Y42: =(($D42*'fnd base rates'!G$107) +($E42*'fnd base rates'!G$108) +($F42*'fnd base rates'!G$109) +($G42*'fnd base rates'!G$110) +($H42*'fnd base rates'!G$111) +($I42*'fnd base rates'!G$112) +($J42*'fnd base rates'!G$113) +($K42*'fnd base rates'!G$114) +($M42*'fnd base rates'!G$116) +($N42*'fnd base rates'!G$117) +($O42*'fnd base rates'!G$118) +($P42*VLOOKUP($S42+12,rate_basefnd,7))) *$R42 -> 167.4625955 | Z42: =(($D42*'fnd base rates'!H$107) +($E42*'fnd base rates'!H$108) +($F42*'fnd base rates'!H$109) +($G42*'fnd base rates'!H$110) +($H42*'fnd base rates'!H$111) +($I42*'fnd base rates'!H$112) +($J42*'fnd base rates'!H$113) +($K42*'fnd base rates'!H$114) +($M42*'fnd base rates'!H$116) +($N42*'fnd base rates'!H$117) +($O42*'fnd base rates'!H$118) +($P42*VLOOKUP($S42+12,rate_basefnd,8))) -> 781.13707 | AA42: =(($D42*'fnd base rates'!I$107) +($E42*'fnd base rates'!I$108) +($F42*'fnd base rates'!I$109) +($G42*'fnd base rates'!I$110) +($H42*'fnd base rates'!I$111) +($I42*'fnd base rates'!I$112) +($J42*'fnd base rates'!I$113) +($K42*'fnd base rates'!I$114) +($M42*'fnd base rates'!I$116) +($N42*'fnd base rates'!I$117) +($O42*'fnd base rates'!I$118) +($P42*VLOOKUP($S42+12,rate_basefnd,9))) *$R42 -> 436.09405 | AB42: =(($D42*'fnd base rates'!J$107) +($E42*'fnd base rates'!J$108) +($F42*'fnd base rates'!J$109) +($G42*'fnd base rates'!J$110) +($H42*'fnd base rates'!J$111) +($I42*'fnd base rates'!J$112) +($J42*'fnd base rates'!J$113) +($K42*'fnd base rates'!J$114) +($M42*'fnd base rates'!J$116) +($N42*'fnd base rates'!J$117) +($O42*'fnd base rates'!J$118) +($P42*VLOOKUP($S42+12,rate_basefnd,10))) *$R42 -> 587.42985 | AC42: =(($D42*'fnd base rates'!K$107) +($E42*'fnd base rates'!K$108) +($F42*'fnd base rates'!K$109) +($G42*'fnd base rates'!K$110) +($H42*'fnd base rates'!K$111) +($I42*'fnd base rates'!K$112) +($J42*'fnd base rates'!K$113) +($K42*'fnd base rates'!K$114) +($M42*'fnd base rates'!K$116) +($N42*'fnd base rates'!K$117) +($O42*'fnd base rates'!K$118) +($P42*VLOOKUP($S42+12,rate_basefnd,11))) *$R42 -> 1175.138749 | AD42: =(($D42*'fnd base rates'!L$107) +($E42*'fnd base rates'!L$108) +($F42*'fnd base rates'!L$109) +($G42*'fnd base rates'!L$110) +($H42*'fnd base rates'!L$111) +($I42*'fnd base rates'!L$112) +($J42*'fnd base rates'!L$113) +($K42*'fnd base rates'!L$114) +($M42*'fnd base rates'!L$116) +($N42*'fnd base rates'!L$117) +($O42*'fnd base rates'!L$118) +($P42*VLOOKUP($S42+12,rate_basefnd,12))) -> 1117.561421 | AE42: =(($D42*'fnd base rates'!M$107) +($E42*'fnd base rates'!M$108) +($F42*'fnd base rates'!M$109) +($G42*'fnd base rates'!M$110) +($H42*'fnd base rates'!M$111) +($I42*'fnd base rates'!M$112) +($J42*'fnd base rates'!M$113) +($K42*'fnd base rates'!M$114) +($M42*'fnd base rates'!M$116) +($N42*'fnd base rates'!M$117) +($O42*'fnd base rates'!M$118) +($P42*VLOOKUP($S42+12,rate_basefnd,13))) -> 0 | AF42: 11519.28007 | AH42: 412035335 | AI42: 412 | AJ42: 035 | AK42: 335 | AL42: 1 | AM42: 1 | AN42: 11519.28007 | AO42: 11519 | AP42: 0 | AQ42: 11519 | AW42: 11590 | AX42: 0 | AY42: 11590 | AZ42: -71 | BA42: 11519 | BB42: 0 | BC42: 11519
A43: 412 | B43: 412035336 | C43: ACADEMY OF THE PACIFIC RIM | D43: ='fnd enro'!D43 -> 0 | E43: ='fnd enro'!E43 -> 0 | F43: ='fnd enro'!F43 -> 0 | G43: ='fnd enro'!G43 -> 0 | H43: ='fnd enro'!H43 -> 0 | I43: ='fnd enro'!I43 -> 1 | J43: ='fnd enro'!J43 -> 0 | K43: ='fnd enro'!K43 -> 0.0379 | L43: ='fnd enro'!L43 -> 0 | M43: ='fnd enro'!M43+'fnd enro'!N43 -> 0 | N43: ='fnd enro'!O43 -> 0 | O43: ='fnd enro'!P43 -> 0 | P43: ='fnd enro'!Q43 -> 0 | Q43: ='fnd enro'!S43 -> 1 | R43: 1.085 | S43: =VALUE('fnd enro'!R43) -> 7 | U43: =(($D43*'fnd base rates'!C$107) +($E43*'fnd base rates'!C$108) +($F43*'fnd base rates'!C$109) +($G43*'fnd base rates'!C$110) +($H43*'fnd base rates'!C$111) +($I43*'fnd base rates'!C$112) +($J43*'fnd base rates'!C$113) +($K43*'fnd base rates'!C$114) +($M43*'fnd base rates'!C$116) +($N43*'fnd base rates'!C$117) +($O43*'fnd base rates'!C$118) +($P43*VLOOKUP($S43+12,rate_basefnd,3))) *$R43 -> 547.1534554 | V43: =(($D43*'fnd base rates'!D$107) +($E43*'fnd base rates'!D$108) +($F43*'fnd base rates'!D$109) +($G43*'fnd base rates'!D$110) +($H43*'fnd base rates'!D$111) +($I43*'fnd base rates'!D$112) +($J43*'fnd base rates'!D$113) +($K43*'fnd base rates'!D$114) +($M43*'fnd base rates'!D$116) +($N43*'fnd base rates'!D$117) +($O43*'fnd base rates'!D$118) +($P43*VLOOKUP($S43+12,rate_basefnd,4))) *$R43 -> 783.31575 | W43: =(($D43*'fnd base rates'!E$107) +($E43*'fnd base rates'!E$108) +($F43*'fnd base rates'!E$109) +($G43*'fnd base rates'!E$110) +($H43*'fnd base rates'!E$111) +($I43*'fnd base rates'!E$112) +($J43*'fnd base rates'!E$113) +($K43*'fnd base rates'!E$114) +($M43*'fnd base rates'!E$116) +($N43*'fnd base rates'!E$117) +($O43*'fnd base rates'!E$118) +($P43*VLOOKUP($S43+12,rate_basefnd,5))) *$R43 -> 5022.408279 | X43: =(($D43*'fnd base rates'!F$107) +($E43*'fnd base rates'!F$108) +($F43*'fnd base rates'!F$109) +($G43*'fnd base rates'!F$110) +($H43*'fnd base rates'!F$111) +($I43*'fnd base rates'!F$112) +($J43*'fnd base rates'!F$113) +($K43*'fnd base rates'!F$114) +($M43*'fnd base rates'!F$116) +($N43*'fnd base rates'!F$117) +($O43*'fnd base rates'!F$118) +($P43*VLOOKUP($S43+12,rate_basefnd,6))) *$R43 -> 901.5788523 | Y43: =(($D43*'fnd base rates'!G$107) +($E43*'fnd base rates'!G$108) +($F43*'fnd base rates'!G$109) +($G43*'fnd base rates'!G$110) +($H43*'fnd base rates'!G$111) +($I43*'fnd base rates'!G$112) +($J43*'fnd base rates'!G$113) +($K43*'fnd base rates'!G$114) +($M43*'fnd base rates'!G$116) +($N43*'fnd base rates'!G$117) +($O43*'fnd base rates'!G$118) +($P43*VLOOKUP($S43+12,rate_basefnd,7))) *$R43 -> 167.4625955 | Z43: =(($D43*'fnd base rates'!H$107) +($E43*'fnd base rates'!H$108) +($F43*'fnd base rates'!H$109) +($G43*'fnd base rates'!H$110) +($H43*'fnd base rates'!H$111) +($I43*'fnd base rates'!H$112) +($J43*'fnd base rates'!H$113) +($K43*'fnd base rates'!H$114) +($M43*'fnd base rates'!H$116) +($N43*'fnd base rates'!H$117) +($O43*'fnd base rates'!H$118) +($P43*VLOOKUP($S43+12,rate_basefnd,8))) -> 781.13707 | AA43: =(($D43*'fnd base rates'!I$107) +($E43*'fnd base rates'!I$108) +($F43*'fnd base rates'!I$109) +($G43*'fnd base rates'!I$110) +($H43*'fnd base rates'!I$111) +($I43*'fnd base rates'!I$112) +($J43*'fnd base rates'!I$113) +($K43*'fnd base rates'!I$114) +($M43*'fnd base rates'!I$116) +($N43*'fnd base rates'!I$117) +($O43*'fnd base rates'!I$118) +($P43*VLOOKUP($S43+12,rate_basefnd,9))) *$R43 -> 436.09405 | AB43: =(($D43*'fnd base rates'!J$107) +($E43*'fnd base rates'!J$108) +($F43*'fnd base rates'!J$109) +($G43*'fnd base rates'!J$110) +($H43*'fnd base rates'!J$111) +($I43*'fnd base rates'!J$112) +($J43*'fnd base rates'!J$113) +($K43*'fnd base rates'!J$114) +($M43*'fnd base rates'!J$116) +($N43*'fnd base rates'!J$117) +($O43*'fnd base rates'!J$118) +($P43*VLOOKUP($S43+12,rate_basefnd,10))) *$R43 -> 587.42985 | AC43: =(($D43*'fnd base rates'!K$107) +($E43*'fnd base rates'!K$108) +($F43*'fnd base rates'!K$109) +($G43*'fnd base rates'!K$110) +($H43*'fnd base rates'!K$111) +($I43*'fnd base rates'!K$112) +($J43*'fnd base rates'!K$113) +($K43*'fnd base rates'!K$114) +($M43*'fnd base rates'!K$116) +($N43*'fnd base rates'!K$117) +($O43*'fnd base rates'!K$118) +($P43*VLOOKUP($S43+12,rate_basefnd,11))) *$R43 -> 1175.138749 | AD43: =(($D43*'fnd base rates'!L$107) +($E43*'fnd base rates'!L$108) +($F43*'fnd base rates'!L$109) +($G43*'fnd base rates'!L$110) +($H43*'fnd base rates'!L$111) +($I43*'fnd base rates'!L$112) +($J43*'fnd base rates'!L$113) +($K43*'fnd base rates'!L$114) +($M43*'fnd base rates'!L$116) +($N43*'fnd base rates'!L$117) +($O43*'fnd base rates'!L$118) +($P43*VLOOKUP($S43+12,rate_basefnd,12))) -> 1117.561421 | AE43: =(($D43*'fnd base rates'!M$107) +($E43*'fnd base rates'!M$108) +($F43*'fnd base rates'!M$109) +($G43*'fnd base rates'!M$110) +($H43*'fnd base rates'!M$111) +($I43*'fnd base rates'!M$112) +($J43*'fnd base rates'!M$113) +($K43*'fnd base rates'!M$114) +($M43*'fnd base rates'!M$116) +($N43*'fnd base rates'!M$117) +($O43*'fnd base rates'!M$118) +($P43*VLOOKUP($S43+12,rate_basefnd,13))) -> 0 | AF43: 11519.28007 | AH43: 412035336 | AI43: 412 | AJ43: 035 | AK43: 336 | AL43: 1 | AM43: 1 | AN43: 11519.28007 | AO43: 11519 | AP43: 0 | AQ43: 11519 | AW43: 11590 | AX43: 0 | AY43: 11590 | AZ43: -71 | BA43: 11519 | BB43: 0 | BC43: 11519
A44: 413 | B44: 413114091 | C44: FOUR RIVERS | D44: ='fnd enro'!D44 -> 0 | E44: ='fnd enro'!E44 -> 0 | F44: ='fnd enro'!F44 -> 0 | G44: ='fnd enro'!G44 -> 0 | H44: ='fnd enro'!H44 -> 0 | I44: ='fnd enro'!I44 -> 2 | J44: ='fnd enro'!J44 -> 0 | K44: ='fnd enro'!K44 -> 0.0758 | L44: ='fnd enro'!L44 -> 0 | M44: ='fnd enro'!M44+'fnd enro'!N44 -> 0 | N44: ='fnd enro'!O44 -> 0 | O44: ='fnd enro'!P44 -> 0 | P44: ='fnd enro'!Q44 -> 1 | Q44: ='fnd enro'!S44 -> 2 | R44: 1 | S44: =VALUE('fnd enro'!R44) -> 7 | U44: =(($D44*'fnd base rates'!C$107) +($E44*'fnd base rates'!C$108) +($F44*'fnd base rates'!C$109) +($G44*'fnd base rates'!C$110) +($H44*'fnd base rates'!C$111) +($I44*'fnd base rates'!C$112) +($J44*'fnd base rates'!C$113) +($K44*'fnd base rates'!C$114) +($M44*'fnd base rates'!C$116) +($N44*'fnd base rates'!C$117) +($O44*'fnd base rates'!C$118) +($P44*VLOOKUP($S44+12,rate_basefnd,3))) *$R44 -> 1067.977798 | V44: =(($D44*'fnd base rates'!D$107) +($E44*'fnd base rates'!D$108) +($F44*'fnd base rates'!D$109) +($G44*'fnd base rates'!D$110) +($H44*'fnd base rates'!D$111) +($I44*'fnd base rates'!D$112) +($J44*'fnd base rates'!D$113) +($K44*'fnd base rates'!D$114) +($M44*'fnd base rates'!D$116) +($N44*'fnd base rates'!D$117) +($O44*'fnd base rates'!D$118) +($P44*VLOOKUP($S44+12,rate_basefnd,4))) *$R44 -> 1725.33 | W44: =(($D44*'fnd base rates'!E$107) +($E44*'fnd base rates'!E$108) +($F44*'fnd base rates'!E$109) +($G44*'fnd base rates'!E$110) +($H44*'fnd base rates'!E$111) +($I44*'fnd base rates'!E$112) +($J44*'fnd base rates'!E$113) +($K44*'fnd base rates'!E$114) +($M44*'fnd base rates'!E$116) +($N44*'fnd base rates'!E$117) +($O44*'fnd base rates'!E$118) +($P44*VLOOKUP($S44+12,rate_basefnd,5))) *$R44 -> 12005.22545 | X44: =(($D44*'fnd base rates'!F$107) +($E44*'fnd base rates'!F$108) +($F44*'fnd base rates'!F$109) +($G44*'fnd base rates'!F$110) +($H44*'fnd base rates'!F$111) +($I44*'fnd base rates'!F$112) +($J44*'fnd base rates'!F$113) +($K44*'fnd base rates'!F$114) +($M44*'fnd base rates'!F$116) +($N44*'fnd base rates'!F$117) +($O44*'fnd base rates'!F$118) +($P44*VLOOKUP($S44+12,rate_basefnd,6))) *$R44 -> 1661.896502 | Y44: =(($D44*'fnd base rates'!G$107) +($E44*'fnd base rates'!G$108) +($F44*'fnd base rates'!G$109) +($G44*'fnd base rates'!G$110) +($H44*'fnd base rates'!G$111) +($I44*'fnd base rates'!G$112) +($J44*'fnd base rates'!G$113) +($K44*'fnd base rates'!G$114) +($M44*'fnd base rates'!G$116) +($N44*'fnd base rates'!G$117) +($O44*'fnd base rates'!G$118) +($P44*VLOOKUP($S44+12,rate_basefnd,7))) *$R44 -> 441.976812 | Z44: =(($D44*'fnd base rates'!H$107) +($E44*'fnd base rates'!H$108) +($F44*'fnd base rates'!H$109) +($G44*'fnd base rates'!H$110) +($H44*'fnd base rates'!H$111) +($I44*'fnd base rates'!H$112) +($J44*'fnd base rates'!H$113) +($K44*'fnd base rates'!H$114) +($M44*'fnd base rates'!H$116) +($N44*'fnd base rates'!H$117) +($O44*'fnd base rates'!H$118) +($P44*VLOOKUP($S44+12,rate_basefnd,8))) -> 1582.70414 | AA44: =(($D44*'fnd base rates'!I$107) +($E44*'fnd base rates'!I$108) +($F44*'fnd base rates'!I$109) +($G44*'fnd base rates'!I$110) +($H44*'fnd base rates'!I$111) +($I44*'fnd base rates'!I$112) +($J44*'fnd base rates'!I$113) +($K44*'fnd base rates'!I$114) +($M44*'fnd base rates'!I$116) +($N44*'fnd base rates'!I$117) +($O44*'fnd base rates'!I$118) +($P44*VLOOKUP($S44+12,rate_basefnd,9))) *$R44 -> 915.11 | AB44: =(($D44*'fnd base rates'!J$107) +($E44*'fnd base rates'!J$108) +($F44*'fnd base rates'!J$109) +($G44*'fnd base rates'!J$110) +($H44*'fnd base rates'!J$111) +($I44*'fnd base rates'!J$112) +($J44*'fnd base rates'!J$113) +($K44*'fnd base rates'!J$114) +($M44*'fnd base rates'!J$116) +($N44*'fnd base rates'!J$117) +($O44*'fnd base rates'!J$118) +($P44*VLOOKUP($S44+12,rate_basefnd,10))) *$R44 -> 1660.9 | AC44: =(($D44*'fnd base rates'!K$107) +($E44*'fnd base rates'!K$108) +($F44*'fnd base rates'!K$109) +($G44*'fnd base rates'!K$110) +($H44*'fnd base rates'!K$111) +($I44*'fnd base rates'!K$112) +($J44*'fnd base rates'!K$113) +($K44*'fnd base rates'!K$114) +($M44*'fnd base rates'!K$116) +($N44*'fnd base rates'!K$117) +($O44*'fnd base rates'!K$118) +($P44*VLOOKUP($S44+12,rate_basefnd,11))) *$R44 -> 2166.154376 | AD44: =(($D44*'fnd base rates'!L$107) +($E44*'fnd base rates'!L$108) +($F44*'fnd base rates'!L$109) +($G44*'fnd base rates'!L$110) +($H44*'fnd base rates'!L$111) +($I44*'fnd base rates'!L$112) +($J44*'fnd base rates'!L$113) +($K44*'fnd base rates'!L$114) +($M44*'fnd base rates'!L$116) +($N44*'fnd base rates'!L$117) +($O44*'fnd base rates'!L$118) +($P44*VLOOKUP($S44+12,rate_basefnd,12))) -> 2679.522842 | AE44: =(($D44*'fnd base rates'!M$107) +($E44*'fnd base rates'!M$108) +($F44*'fnd base rates'!M$109) +($G44*'fnd base rates'!M$110) +($H44*'fnd base rates'!M$111) +($I44*'fnd base rates'!M$112) +($J44*'fnd base rates'!M$113) +($K44*'fnd base rates'!M$114) +($M44*'fnd base rates'!M$116) +($N44*'fnd base rates'!M$117) +($O44*'fnd base rates'!M$118) +($P44*VLOOKUP($S44+12,rate_basefnd,13))) -> 0 | AF44: 25906.79792 | AH44: 413114091 | AI44: 413 | AJ44: 114 | AK44: 091 | AL44: 1 | AM44: 2 | AN44: 25906.79792 | AO44: 12953 | AP44: 0 | AQ44: 12953 | AW44: 13082 | AX44: 24 | AY44: 13106 | AZ44: -153 | BA44: 12953 | BB44: 0 | BC44: 12953
A45: 413 | B45: 413114114 | C45: FOUR RIVERS | D45: ='fnd enro'!D45 -> 0 | E45: ='fnd enro'!E45 -> 0 | F45: ='fnd enro'!F45 -> 0 | G45: ='fnd enro'!G45 -> 0 | H45: ='fnd enro'!H45 -> 30 | I45: ='fnd enro'!I45 -> 40 | J45: ='fnd enro'!J45 -> 0 | K45: ='fnd enro'!K45 -> 2.653 | L45: ='fnd enro'!L45 -> 0 | M45: ='fnd enro'!M45+'fnd enro'!N45 -> 0 | N45: ='fnd enro'!O45 -> 0 | O45: ='fnd enro'!P45 -> 0 | P45: ='fnd enro'!Q45 -> 25 | Q45: ='fnd enro'!S45 -> 70 | R45: 1 | S45: =VALUE('fnd enro'!R45) -> 10 | U45: =(($D45*'fnd base rates'!C$107) +($E45*'fnd base rates'!C$108) +($F45*'fnd base rates'!C$109) +($G45*'fnd base rates'!C$110) +($H45*'fnd base rates'!C$111) +($I45*'fnd base rates'!C$112) +($J45*'fnd base rates'!C$113) +($K45*'fnd base rates'!C$114) +($M45*'fnd base rates'!C$116) +($N45*'fnd base rates'!C$117) +($O45*'fnd base rates'!C$118) +($P45*VLOOKUP($S45+12,rate_basefnd,3))) *$R45 -> 36888.72293 | V45: =(($D45*'fnd base rates'!D$107) +($E45*'fnd base rates'!D$108) +($F45*'fnd base rates'!D$109) +($G45*'fnd base rates'!D$110) +($H45*'fnd base rates'!D$111) +($I45*'fnd base rates'!D$112) +($J45*'fnd base rates'!D$113) +($K45*'fnd base rates'!D$114) +($M45*'fnd base rates'!D$116) +($N45*'fnd base rates'!D$117) +($O45*'fnd base rates'!D$118) +($P45*VLOOKUP($S45+12,rate_basefnd,4))) *$R45 -> 58063 | W45: =(($D45*'fnd base rates'!E$107) +($E45*'fnd base rates'!E$108) +($F45*'fnd base rates'!E$109) +($G45*'fnd base rates'!E$110) +($H45*'fnd base rates'!E$111) +($I45*'fnd base rates'!E$112) +($J45*'fnd base rates'!E$113) +($K45*'fnd base rates'!E$114) +($M45*'fnd base rates'!E$116) +($N45*'fnd base rates'!E$117) +($O45*'fnd base rates'!E$118) +($P45*VLOOKUP($S45+12,rate_basefnd,5))) *$R45 -> 356375.1406 | X45: =(($D45*'fnd base rates'!F$107) +($E45*'fnd base rates'!F$108) +($F45*'fnd base rates'!F$109) +($G45*'fnd base rates'!F$110) +($H45*'fnd base rates'!F$111) +($I45*'fnd base rates'!F$112) +($J45*'fnd base rates'!F$113) +($K45*'fnd base rates'!F$114) +($M45*'fnd base rates'!F$116) +($N45*'fnd base rates'!F$117) +($O45*'fnd base rates'!F$118) +($P45*VLOOKUP($S45+12,rate_basefnd,6))) *$R45 -> 61237.47757 | Y45: =(($D45*'fnd base rates'!G$107) +($E45*'fnd base rates'!G$108) +($F45*'fnd base rates'!G$109) +($G45*'fnd base rates'!G$110) +($H45*'fnd base rates'!G$111) +($I45*'fnd base rates'!G$112) +($J45*'fnd base rates'!G$113) +($K45*'fnd base rates'!G$114) +($M45*'fnd base rates'!G$116) +($N45*'fnd base rates'!G$117) +($O45*'fnd base rates'!G$118) +($P45*VLOOKUP($S45+12,rate_basefnd,7))) *$R45 -> 14497.83842 | Z45: =(($D45*'fnd base rates'!H$107) +($E45*'fnd base rates'!H$108) +($F45*'fnd base rates'!H$109) +($G45*'fnd base rates'!H$110) +($H45*'fnd base rates'!H$111) +($I45*'fnd base rates'!H$112) +($J45*'fnd base rates'!H$113) +($K45*'fnd base rates'!H$114) +($M45*'fnd base rates'!H$116) +($N45*'fnd base rates'!H$117) +($O45*'fnd base rates'!H$118) +($P45*VLOOKUP($S45+12,rate_basefnd,8))) -> 46601.6949 | AA45: =(($D45*'fnd base rates'!I$107) +($E45*'fnd base rates'!I$108) +($F45*'fnd base rates'!I$109) +($G45*'fnd base rates'!I$110) +($H45*'fnd base rates'!I$111) +($I45*'fnd base rates'!I$112) +($J45*'fnd base rates'!I$113) +($K45*'fnd base rates'!I$114) +($M45*'fnd base rates'!I$116) +($N45*'fnd base rates'!I$117) +($O45*'fnd base rates'!I$118) +($P45*VLOOKUP($S45+12,rate_basefnd,9))) *$R45 -> 28671.65 | AB45: =(($D45*'fnd base rates'!J$107) +($E45*'fnd base rates'!J$108) +($F45*'fnd base rates'!J$109) +($G45*'fnd base rates'!J$110) +($H45*'fnd base rates'!J$111) +($I45*'fnd base rates'!J$112) +($J45*'fnd base rates'!J$113) +($K45*'fnd base rates'!J$114) +($M45*'fnd base rates'!J$116) +($N45*'fnd base rates'!J$117) +($O45*'fnd base rates'!J$118) +($P45*VLOOKUP($S45+12,rate_basefnd,10))) *$R45 -> 44160.1 | AC45: =(($D45*'fnd base rates'!K$107) +($E45*'fnd base rates'!K$108) +($F45*'fnd base rates'!K$109) +($G45*'fnd base rates'!K$110) +($H45*'fnd base rates'!K$111) +($I45*'fnd base rates'!K$112) +($J45*'fnd base rates'!K$113) +($K45*'fnd base rates'!K$114) +($M45*'fnd base rates'!K$116) +($N45*'fnd base rates'!K$117) +($O45*'fnd base rates'!K$118) +($P45*VLOOKUP($S45+12,rate_basefnd,11))) *$R45 -> 76724.10316 | AD45: =(($D45*'fnd base rates'!L$107) +($E45*'fnd base rates'!L$108) +($F45*'fnd base rates'!L$109) +($G45*'fnd base rates'!L$110) +($H45*'fnd base rates'!L$111) +($I45*'fnd base rates'!L$112) +($J45*'fnd base rates'!L$113) +($K45*'fnd base rates'!L$114) +($M45*'fnd base rates'!L$116) +($N45*'fnd base rates'!L$117) +($O45*'fnd base rates'!L$118) +($P45*VLOOKUP($S45+12,rate_basefnd,12))) -> 93233.34947 | AE45: =(($D45*'fnd base rates'!M$107) +($E45*'fnd base rates'!M$108) +($F45*'fnd base rates'!M$109) +($G45*'fnd base rates'!M$110) +($H45*'fnd base rates'!M$111) +($I45*'fnd base rates'!M$112) +($J45*'fnd base rates'!M$113) +($K45*'fnd base rates'!M$114) +($M45*'fnd base rates'!M$116) +($N45*'fnd base rates'!M$117) +($O45*'fnd base rates'!M$118) +($P45*VLOOKUP($S45+12,rate_basefnd,13))) -> 0 | AF45: 816453.0771 | AH45: 413114114 | AI45: 413 | AJ45: 114 | AK45: 114 | AL45: 1 | AM45: 70 | AN45: 816453.0771 | AO45: 11664 | AP45: 0 | AQ45: 11664 | AW45: 11819 | AX45: 28 | AY45: 11847 | AZ45: -183 | BA45: 11664 | BB45: 0 | BC45: 11664
A46: 413 | B46: 413114127 | C46: FOUR RIVERS | D46: ='fnd enro'!D46 -> 0 | E46: ='fnd enro'!E46 -> 0 | F46: ='fnd enro'!F46 -> 0 | G46: ='fnd enro'!G46 -> 0 | H46: ='fnd enro'!H46 -> 0 | I46: ='fnd enro'!I46 -> 1 | J46: ='fnd enro'!J46 -> 0 | K46: ='fnd enro'!K46 -> 0.0379 | L46: ='fnd enro'!L46 -> 0 | M46: ='fnd enro'!M46+'fnd enro'!N46 -> 0 | N46: ='fnd enro'!O46 -> 0 | O46: ='fnd enro'!P46 -> 0 | P46: ='fnd enro'!Q46 -> 0 | Q46: ='fnd enro'!S46 -> 1 | R46: 1 | S46: =VALUE('fnd enro'!R46) -> 4 | U46: =(($D46*'fnd base rates'!C$107) +($E46*'fnd base rates'!C$108) +($F46*'fnd base rates'!C$109) +($G46*'fnd base rates'!C$110) +($H46*'fnd base rates'!C$111) +($I46*'fnd base rates'!C$112) +($J46*'fnd base rates'!C$113) +($K46*'fnd base rates'!C$114) +($M46*'fnd base rates'!C$116) +($N46*'fnd base rates'!C$117) +($O46*'fnd base rates'!C$118) +($P46*VLOOKUP($S46+12,rate_basefnd,3))) *$R46 -> 504.288899 | V46: =(($D46*'fnd base rates'!D$107) +($E46*'fnd base rates'!D$108) +($F46*'fnd base rates'!D$109) +($G46*'fnd base rates'!D$110) +($H46*'fnd base rates'!D$111) +($I46*'fnd base rates'!D$112) +($J46*'fnd base rates'!D$113) +($K46*'fnd base rates'!D$114) +($M46*'fnd base rates'!D$116) +($N46*'fnd base rates'!D$117) +($O46*'fnd base rates'!D$118) +($P46*VLOOKUP($S46+12,rate_basefnd,4))) *$R46 -> 721.95 | W46: =(($D46*'fnd base rates'!E$107) +($E46*'fnd base rates'!E$108) +($F46*'fnd base rates'!E$109) +($G46*'fnd base rates'!E$110) +($H46*'fnd base rates'!E$111) +($I46*'fnd base rates'!E$112) +($J46*'fnd base rates'!E$113) +($K46*'fnd base rates'!E$114) +($M46*'fnd base rates'!E$116) +($N46*'fnd base rates'!E$117) +($O46*'fnd base rates'!E$118) +($P46*VLOOKUP($S46+12,rate_basefnd,5))) *$R46 -> 4628.947723 | X46: =(($D46*'fnd base rates'!F$107) +($E46*'fnd base rates'!F$108) +($F46*'fnd base rates'!F$109) +($G46*'fnd base rates'!F$110) +($H46*'fnd base rates'!F$111) +($I46*'fnd base rates'!F$112) +($J46*'fnd base rates'!F$113) +($K46*'fnd base rates'!F$114) +($M46*'fnd base rates'!F$116) +($N46*'fnd base rates'!F$117) +($O46*'fnd base rates'!F$118) +($P46*VLOOKUP($S46+12,rate_basefnd,6))) *$R46 -> 830.948251 | Y46: =(($D46*'fnd base rates'!G$107) +($E46*'fnd base rates'!G$108) +($F46*'fnd base rates'!G$109) +($G46*'fnd base rates'!G$110) +($H46*'fnd base rates'!G$111) +($I46*'fnd base rates'!G$112) +($J46*'fnd base rates'!G$113) +($K46*'fnd base rates'!G$114) +($M46*'fnd base rates'!G$116) +($N46*'fnd base rates'!G$117) +($O46*'fnd base rates'!G$118) +($P46*VLOOKUP($S46+12,rate_basefnd,7))) *$R46 -> 154.343406 | Z46: =(($D46*'fnd base rates'!H$107) +($E46*'fnd base rates'!H$108) +($F46*'fnd base rates'!H$109) +($G46*'fnd base rates'!H$110) +($H46*'fnd base rates'!H$111) +($I46*'fnd base rates'!H$112) +($J46*'fnd base rates'!H$113) +($K46*'fnd base rates'!H$114) +($M46*'fnd base rates'!H$116) +($N46*'fnd base rates'!H$117) +($O46*'fnd base rates'!H$118) +($P46*VLOOKUP($S46+12,rate_basefnd,8))) -> 781.13707 | AA46: =(($D46*'fnd base rates'!I$107) +($E46*'fnd base rates'!I$108) +($F46*'fnd base rates'!I$109) +($G46*'fnd base rates'!I$110) +($H46*'fnd base rates'!I$111) +($I46*'fnd base rates'!I$112) +($J46*'fnd base rates'!I$113) +($K46*'fnd base rates'!I$114) +($M46*'fnd base rates'!I$116) +($N46*'fnd base rates'!I$117) +($O46*'fnd base rates'!I$118) +($P46*VLOOKUP($S46+12,rate_basefnd,9))) *$R46 -> 401.93 | AB46: =(($D46*'fnd base rates'!J$107) +($E46*'fnd base rates'!J$108) +($F46*'fnd base rates'!J$109) +($G46*'fnd base rates'!J$110) +($H46*'fnd base rates'!J$111) +($I46*'fnd base rates'!J$112) +($J46*'fnd base rates'!J$113) +($K46*'fnd base rates'!J$114) +($M46*'fnd base rates'!J$116) +($N46*'fnd base rates'!J$117) +($O46*'fnd base rates'!J$118) +($P46*VLOOKUP($S46+12,rate_basefnd,10))) *$R46 -> 541.41 | AC46: =(($D46*'fnd base rates'!K$107) +($E46*'fnd base rates'!K$108) +($F46*'fnd base rates'!K$109) +($G46*'fnd base rates'!K$110) +($H46*'fnd base rates'!K$111) +($I46*'fnd base rates'!K$112) +($J46*'fnd base rates'!K$113) +($K46*'fnd base rates'!K$114) +($M46*'fnd base rates'!K$116) +($N46*'fnd base rates'!K$117) +($O46*'fnd base rates'!K$118) +($P46*VLOOKUP($S46+12,rate_basefnd,11))) *$R46 -> 1083.077188 | AD46: =(($D46*'fnd base rates'!L$107) +($E46*'fnd base rates'!L$108) +($F46*'fnd base rates'!L$109) +($G46*'fnd base rates'!L$110) +($H46*'fnd base rates'!L$111) +($I46*'fnd base rates'!L$112) +($J46*'fnd base rates'!L$113) +($K46*'fnd base rates'!L$114) +($M46*'fnd base rates'!L$116) +($N46*'fnd base rates'!L$117) +($O46*'fnd base rates'!L$118) +($P46*VLOOKUP($S46+12,rate_basefnd,12))) -> 1117.561421 | AE46: =(($D46*'fnd base rates'!M$107) +($E46*'fnd base rates'!M$108) +($F46*'fnd base rates'!M$109) +($G46*'fnd base rates'!M$110) +($H46*'fnd base rates'!M$111) +($I46*'fnd base rates'!M$112) +($J46*'fnd base rates'!M$113) +($K46*'fnd base rates'!M$114) +($M46*'fnd base rates'!M$116) +($N46*'fnd base rates'!M$117) +($O46*'fnd base rates'!M$118) +($P46*VLOOKUP($S46+12,rate_basefnd,13))) -> 0 | AF46: 10765.59396 | AH46: 413114127 | AI46: 413 | AJ46: 114 | AK46: 127 | AL46: 1 | AM46: 1 | AN46: 10765.59396 | AO46: 10766 | AP46: 0 | AQ46: 10766 | AW46: 10835 | AX46: 0 | AY46: 10835 | AZ46: -69 | BA46: 10766 | BB46: 0 | BC46: 10766
A47: 413 | B47: 413114253 | C47: FOUR RIVERS | D47: ='fnd enro'!D47 -> 0 | E47: ='fnd enro'!E47 -> 0 | F47: ='fnd enro'!F47 -> 0 | G47: ='fnd enro'!G47 -> 0 | H47: ='fnd enro'!H47 -> 1 | I47: ='fnd enro'!I47 -> 0 | J47: ='fnd enro'!J47 -> 0 | K47: ='fnd enro'!K47 -> 0.0379 | L47: ='fnd enro'!L47 -> 0 | M47: ='fnd enro'!M47+'fnd enro'!N47 -> 0 | N47: ='fnd enro'!O47 -> 0 | O47: ='fnd enro'!P47 -> 0 | P47: ='fnd enro'!Q47 -> 0 | Q47: ='fnd enro'!S47 -> 1 | R47: 1 | S47: =VALUE('fnd enro'!R47) -> 9 | U47: =(($D47*'fnd base rates'!C$107) +($E47*'fnd base rates'!C$108) +($F47*'fnd base rates'!C$109) +($G47*'fnd base rates'!C$110) +($H47*'fnd base rates'!C$111) +($I47*'fnd base rates'!C$112) +($J47*'fnd base rates'!C$113) +($K47*'fnd base rates'!C$114) +($M47*'fnd base rates'!C$116) +($N47*'fnd base rates'!C$117) +($O47*'fnd base rates'!C$118) +($P47*VLOOKUP($S47+12,rate_basefnd,3))) *$R47 -> 504.288899 | V47: =(($D47*'fnd base rates'!D$107) +($E47*'fnd base rates'!D$108) +($F47*'fnd base rates'!D$109) +($G47*'fnd base rates'!D$110) +($H47*'fnd base rates'!D$111) +($I47*'fnd base rates'!D$112) +($J47*'fnd base rates'!D$113) +($K47*'fnd base rates'!D$114) +($M47*'fnd base rates'!D$116) +($N47*'fnd base rates'!D$117) +($O47*'fnd base rates'!D$118) +($P47*VLOOKUP($S47+12,rate_basefnd,4))) *$R47 -> 721.95 | W47: =(($D47*'fnd base rates'!E$107) +($E47*'fnd base rates'!E$108) +($F47*'fnd base rates'!E$109) +($G47*'fnd base rates'!E$110) +($H47*'fnd base rates'!E$111) +($I47*'fnd base rates'!E$112) +($J47*'fnd base rates'!E$113) +($K47*'fnd base rates'!E$114) +($M47*'fnd base rates'!E$116) +($N47*'fnd base rates'!E$117) +($O47*'fnd base rates'!E$118) +($P47*VLOOKUP($S47+12,rate_basefnd,5))) *$R47 -> 3258.107723 | X47: =(($D47*'fnd base rates'!F$107) +($E47*'fnd base rates'!F$108) +($F47*'fnd base rates'!F$109) +($G47*'fnd base rates'!F$110) +($H47*'fnd base rates'!F$111) +($I47*'fnd base rates'!F$112) +($J47*'fnd base rates'!F$113) +($K47*'fnd base rates'!F$114) +($M47*'fnd base rates'!F$116) +($N47*'fnd base rates'!F$117) +($O47*'fnd base rates'!F$118) +($P47*VLOOKUP($S47+12,rate_basefnd,6))) *$R47 -> 933.318251 | Y47: =(($D47*'fnd base rates'!G$107) +($E47*'fnd base rates'!G$108) +($F47*'fnd base rates'!G$109) +($G47*'fnd base rates'!G$110) +($H47*'fnd base rates'!G$111) +($I47*'fnd base rates'!G$112) +($J47*'fnd base rates'!G$113) +($K47*'fnd base rates'!G$114) +($M47*'fnd base rates'!G$116) +($N47*'fnd base rates'!G$117) +($O47*'fnd base rates'!G$118) +($P47*VLOOKUP($S47+12,rate_basefnd,7))) *$R47 -> 158.653406 | Z47: =(($D47*'fnd base rates'!H$107) +($E47*'fnd base rates'!H$108) +($F47*'fnd base rates'!H$109) +($G47*'fnd base rates'!H$110) +($H47*'fnd base rates'!H$111) +($I47*'fnd base rates'!H$112) +($J47*'fnd base rates'!H$113) +($K47*'fnd base rates'!H$114) +($M47*'fnd base rates'!H$116) +($N47*'fnd base rates'!H$117) +($O47*'fnd base rates'!H$118) +($P47*VLOOKUP($S47+12,rate_basefnd,8))) -> 493.65707 | AA47: =(($D47*'fnd base rates'!I$107) +($E47*'fnd base rates'!I$108) +($F47*'fnd base rates'!I$109) +($G47*'fnd base rates'!I$110) +($H47*'fnd base rates'!I$111) +($I47*'fnd base rates'!I$112) +($J47*'fnd base rates'!I$113) +($K47*'fnd base rates'!I$114) +($M47*'fnd base rates'!I$116) +($N47*'fnd base rates'!I$117) +($O47*'fnd base rates'!I$118) +($P47*VLOOKUP($S47+12,rate_basefnd,9))) *$R47 -> 320.64 | AB47: =(($D47*'fnd base rates'!J$107) +($E47*'fnd base rates'!J$108) +($F47*'fnd base rates'!J$109) +($G47*'fnd base rates'!J$110) +($H47*'fnd base rates'!J$111) +($I47*'fnd base rates'!J$112) +($J47*'fnd base rates'!J$113) +($K47*'fnd base rates'!J$114) +($M47*'fnd base rates'!J$116) +($N47*'fnd base rates'!J$117) +($O47*'fnd base rates'!J$118) +($P47*VLOOKUP($S47+12,rate_basefnd,10))) *$R47 -> 234.79 | AC47: =(($D47*'fnd base rates'!K$107) +($E47*'fnd base rates'!K$108) +($F47*'fnd base rates'!K$109) +($G47*'fnd base rates'!K$110) +($H47*'fnd base rates'!K$111) +($I47*'fnd base rates'!K$112) +($J47*'fnd base rates'!K$113) +($K47*'fnd base rates'!K$114) +($M47*'fnd base rates'!K$116) +($N47*'fnd base rates'!K$117) +($O47*'fnd base rates'!K$118) +($P47*VLOOKUP($S47+12,rate_basefnd,11))) *$R47 -> 1113.367188 | AD47: =(($D47*'fnd base rates'!L$107) +($E47*'fnd base rates'!L$108) +($F47*'fnd base rates'!L$109) +($G47*'fnd base rates'!L$110) +($H47*'fnd base rates'!L$111) +($I47*'fnd base rates'!L$112) +($J47*'fnd base rates'!L$113) +($K47*'fnd base rates'!L$114) +($M47*'fnd base rates'!L$116) +($N47*'fnd base rates'!L$117) +($O47*'fnd base rates'!L$118) +($P47*VLOOKUP($S47+12,rate_basefnd,12))) -> 1221.521421 | AE47: =(($D47*'fnd base rates'!M$107) +($E47*'fnd base rates'!M$108) +($F47*'fnd base rates'!M$109) +($G47*'fnd base rates'!M$110) +($H47*'fnd base rates'!M$111) +($I47*'fnd base rates'!M$112) +($J47*'fnd base rates'!M$113) +($K47*'fnd base rates'!M$114) +($M47*'fnd base rates'!M$116) +($N47*'fnd base rates'!M$117) +($O47*'fnd base rates'!M$118) +($P47*VLOOKUP($S47+12,rate_basefnd,13))) -> 0 | AF47: 8960.293958 | AH47: 413114253 | AI47: 413 | AJ47: 114 | AK47: 253 | AL47: 1 | AM47: 1 | AN47: 8960.293958 | AO47: 8960 | AP47: 0 | AQ47: 8960 | AW47: 9052 | AX47: 0 | AY47: 9052 | AZ47: -92 | BA47: 8960 | BB47: 0 | BC47: 8960
A48: 413 | B48: 413114605 | C48: FOUR RIVERS | D48: ='fnd enro'!D48 -> 0 | E48: ='fnd enro'!E48 -> 0 | F48: ='fnd enro'!F48 -> 0 | G48: ='fnd enro'!G48 -> 0 | H48: ='fnd enro'!H48 -> 0 | I48: ='fnd enro'!I48 -> 1 | J48: ='fnd enro'!J48 -> 0 | K48: ='fnd enro'!K48 -> 0.0379 | L48: ='fnd enro'!L48 -> 0 | M48: ='fnd enro'!M48+'fnd enro'!N48 -> 0 | N48: ='fnd enro'!O48 -> 0 | O48: ='fnd enro'!P48 -> 0 | P48: ='fnd enro'!Q48 -> 1 | Q48: ='fnd enro'!S48 -> 1 | R48: 1 | S48: =VALUE('fnd enro'!R48) -> 6 | U48: =(($D48*'fnd base rates'!C$107) +($E48*'fnd base rates'!C$108) +($F48*'fnd base rates'!C$109) +($G48*'fnd base rates'!C$110) +($H48*'fnd base rates'!C$111) +($I48*'fnd base rates'!C$112) +($J48*'fnd base rates'!C$113) +($K48*'fnd base rates'!C$114) +($M48*'fnd base rates'!C$116) +($N48*'fnd base rates'!C$117) +($O48*'fnd base rates'!C$118) +($P48*VLOOKUP($S48+12,rate_basefnd,3))) *$R48 -> 562.308899 | V48: =(($D48*'fnd base rates'!D$107) +($E48*'fnd base rates'!D$108) +($F48*'fnd base rates'!D$109) +($G48*'fnd base rates'!D$110) +($H48*'fnd base rates'!D$111) +($I48*'fnd base rates'!D$112) +($J48*'fnd base rates'!D$113) +($K48*'fnd base rates'!D$114) +($M48*'fnd base rates'!D$116) +($N48*'fnd base rates'!D$117) +($O48*'fnd base rates'!D$118) +($P48*VLOOKUP($S48+12,rate_basefnd,4))) *$R48 -> 996.83 | W48: =(($D48*'fnd base rates'!E$107) +($E48*'fnd base rates'!E$108) +($F48*'fnd base rates'!E$109) +($G48*'fnd base rates'!E$110) +($H48*'fnd base rates'!E$111) +($I48*'fnd base rates'!E$112) +($J48*'fnd base rates'!E$113) +($K48*'fnd base rates'!E$114) +($M48*'fnd base rates'!E$116) +($N48*'fnd base rates'!E$117) +($O48*'fnd base rates'!E$118) +($P48*VLOOKUP($S48+12,rate_basefnd,5))) *$R48 -> 7312.397723 | X48: =(($D48*'fnd base rates'!F$107) +($E48*'fnd base rates'!F$108) +($F48*'fnd base rates'!F$109) +($G48*'fnd base rates'!F$110) +($H48*'fnd base rates'!F$111) +($I48*'fnd base rates'!F$112) +($J48*'fnd base rates'!F$113) +($K48*'fnd base rates'!F$114) +($M48*'fnd base rates'!F$116) +($N48*'fnd base rates'!F$117) +($O48*'fnd base rates'!F$118) +($P48*VLOOKUP($S48+12,rate_basefnd,6))) *$R48 -> 830.948251 | Y48: =(($D48*'fnd base rates'!G$107) +($E48*'fnd base rates'!G$108) +($F48*'fnd base rates'!G$109) +($G48*'fnd base rates'!G$110) +($H48*'fnd base rates'!G$111) +($I48*'fnd base rates'!G$112) +($J48*'fnd base rates'!G$113) +($K48*'fnd base rates'!G$114) +($M48*'fnd base rates'!G$116) +($N48*'fnd base rates'!G$117) +($O48*'fnd base rates'!G$118) +($P48*VLOOKUP($S48+12,rate_basefnd,7))) *$R48 -> 284.533406 | Z48: =(($D48*'fnd base rates'!H$107) +($E48*'fnd base rates'!H$108) +($F48*'fnd base rates'!H$109) +($G48*'fnd base rates'!H$110) +($H48*'fnd base rates'!H$111) +($I48*'fnd base rates'!H$112) +($J48*'fnd base rates'!H$113) +($K48*'fnd base rates'!H$114) +($M48*'fnd base rates'!H$116) +($N48*'fnd base rates'!H$117) +($O48*'fnd base rates'!H$118) +($P48*VLOOKUP($S48+12,rate_basefnd,8))) -> 801.09707 | AA48: =(($D48*'fnd base rates'!I$107) +($E48*'fnd base rates'!I$108) +($F48*'fnd base rates'!I$109) +($G48*'fnd base rates'!I$110) +($H48*'fnd base rates'!I$111) +($I48*'fnd base rates'!I$112) +($J48*'fnd base rates'!I$113) +($K48*'fnd base rates'!I$114) +($M48*'fnd base rates'!I$116) +($N48*'fnd base rates'!I$117) +($O48*'fnd base rates'!I$118) +($P48*VLOOKUP($S48+12,rate_basefnd,9))) *$R48 -> 510.59 | AB48: =(($D48*'fnd base rates'!J$107) +($E48*'fnd base rates'!J$108) +($F48*'fnd base rates'!J$109) +($G48*'fnd base rates'!J$110) +($H48*'fnd base rates'!J$111) +($I48*'fnd base rates'!J$112) +($J48*'fnd base rates'!J$113) +($K48*'fnd base rates'!J$114) +($M48*'fnd base rates'!J$116) +($N48*'fnd base rates'!J$117) +($O48*'fnd base rates'!J$118) +($P48*VLOOKUP($S48+12,rate_basefnd,10))) *$R48 -> 1106.05 | AC48: =(($D48*'fnd base rates'!K$107) +($E48*'fnd base rates'!K$108) +($F48*'fnd base rates'!K$109) +($G48*'fnd base rates'!K$110) +($H48*'fnd base rates'!K$111) +($I48*'fnd base rates'!K$112) +($J48*'fnd base rates'!K$113) +($K48*'fnd base rates'!K$114) +($M48*'fnd base rates'!K$116) +($N48*'fnd base rates'!K$117) +($O48*'fnd base rates'!K$118) +($P48*VLOOKUP($S48+12,rate_basefnd,11))) *$R48 -> 1083.077188 | AD48: =(($D48*'fnd base rates'!L$107) +($E48*'fnd base rates'!L$108) +($F48*'fnd base rates'!L$109) +($G48*'fnd base rates'!L$110) +($H48*'fnd base rates'!L$111) +($I48*'fnd base rates'!L$112) +($J48*'fnd base rates'!L$113) +($K48*'fnd base rates'!L$114) +($M48*'fnd base rates'!L$116) +($N48*'fnd base rates'!L$117) +($O48*'fnd base rates'!L$118) +($P48*VLOOKUP($S48+12,rate_basefnd,12))) -> 1551.631421 | AE48: =(($D48*'fnd base rates'!M$107) +($E48*'fnd base rates'!M$108) +($F48*'fnd base rates'!M$109) +($G48*'fnd base rates'!M$110) +($H48*'fnd base rates'!M$111) +($I48*'fnd base rates'!M$112) +($J48*'fnd base rates'!M$113) +($K48*'fnd base rates'!M$114) +($M48*'fnd base rates'!M$116) +($N48*'fnd base rates'!M$117) +($O48*'fnd base rates'!M$118) +($P48*VLOOKUP($S48+12,rate_basefnd,13))) -> 0 | AF48: 15039.46396 | AH48: 413114605 | AI48: 413 | AJ48: 114 | AK48: 605 | AL48: 1 | AM48: 1 | AN48: 15039.46396 | AO48: 15039 | AP48: 0 | AQ48: 15039 | AW48: 14840 | AX48: 14 | AY48: 14854 | AZ48: 185 | BA48: 15039 | BB48: 0 | BC48: 15039
A49: 413 | B49: 413114670 | C49: FOUR RIVERS | D49: ='fnd enro'!D49 -> 0 | E49: ='fnd enro'!E49 -> 0 | F49: ='fnd enro'!F49 -> 0 | G49: ='fnd enro'!G49 -> 0 | H49: ='fnd enro'!H49 -> 7 | I49: ='fnd enro'!I49 -> 21 | J49: ='fnd enro'!J49 -> 0 | K49: ='fnd enro'!K49 -> 1.0612 | L49: ='fnd enro'!L49 -> 0 | M49: ='fnd enro'!M49+'fnd enro'!N49 -> 0 | N49: ='fnd enro'!O49 -> 0 | O49: ='fnd enro'!P49 -> 0 | P49: ='fnd enro'!Q49 -> 3 | Q49: ='fnd enro'!S49 -> 28 | R49: 1 | S49: =VALUE('fnd enro'!R49) -> 4 | U49: =(($D49*'fnd base rates'!C$107) +($E49*'fnd base rates'!C$108) +($F49*'fnd base rates'!C$109) +($G49*'fnd base rates'!C$110) +($H49*'fnd base rates'!C$111) +($I49*'fnd base rates'!C$112) +($J49*'fnd base rates'!C$113) +($K49*'fnd base rates'!C$114) +($M49*'fnd base rates'!C$116) +($N49*'fnd base rates'!C$117) +($O49*'fnd base rates'!C$118) +($P49*VLOOKUP($S49+12,rate_basefnd,3))) *$R49 -> 14281.24917 | V49: =(($D49*'fnd base rates'!D$107) +($E49*'fnd base rates'!D$108) +($F49*'fnd base rates'!D$109) +($G49*'fnd base rates'!D$110) +($H49*'fnd base rates'!D$111) +($I49*'fnd base rates'!D$112) +($J49*'fnd base rates'!D$113) +($K49*'fnd base rates'!D$114) +($M49*'fnd base rates'!D$116) +($N49*'fnd base rates'!D$117) +($O49*'fnd base rates'!D$118) +($P49*VLOOKUP($S49+12,rate_basefnd,4))) *$R49 -> 20978.13 | W49: =(($D49*'fnd base rates'!E$107) +($E49*'fnd base rates'!E$108) +($F49*'fnd base rates'!E$109) +($G49*'fnd base rates'!E$110) +($H49*'fnd base rates'!E$111) +($I49*'fnd base rates'!E$112) +($J49*'fnd base rates'!E$113) +($K49*'fnd base rates'!E$114) +($M49*'fnd base rates'!E$116) +($N49*'fnd base rates'!E$117) +($O49*'fnd base rates'!E$118) +($P49*VLOOKUP($S49+12,rate_basefnd,5))) *$R49 -> 127468.1862 | X49: =(($D49*'fnd base rates'!F$107) +($E49*'fnd base rates'!F$108) +($F49*'fnd base rates'!F$109) +($G49*'fnd base rates'!F$110) +($H49*'fnd base rates'!F$111) +($I49*'fnd base rates'!F$112) +($J49*'fnd base rates'!F$113) +($K49*'fnd base rates'!F$114) +($M49*'fnd base rates'!F$116) +($N49*'fnd base rates'!F$117) +($O49*'fnd base rates'!F$118) +($P49*VLOOKUP($S49+12,rate_basefnd,6))) *$R49 -> 23983.14103 | Y49: =(($D49*'fnd base rates'!G$107) +($E49*'fnd base rates'!G$108) +($F49*'fnd base rates'!G$109) +($G49*'fnd base rates'!G$110) +($H49*'fnd base rates'!G$111) +($I49*'fnd base rates'!G$112) +($J49*'fnd base rates'!G$113) +($K49*'fnd base rates'!G$114) +($M49*'fnd base rates'!G$116) +($N49*'fnd base rates'!G$117) +($O49*'fnd base rates'!G$118) +($P49*VLOOKUP($S49+12,rate_basefnd,7))) *$R49 -> 4713.375368 | Z49: =(($D49*'fnd base rates'!H$107) +($E49*'fnd base rates'!H$108) +($F49*'fnd base rates'!H$109) +($G49*'fnd base rates'!H$110) +($H49*'fnd base rates'!H$111) +($I49*'fnd base rates'!H$112) +($J49*'fnd base rates'!H$113) +($K49*'fnd base rates'!H$114) +($M49*'fnd base rates'!H$116) +($N49*'fnd base rates'!H$117) +($O49*'fnd base rates'!H$118) +($P49*VLOOKUP($S49+12,rate_basefnd,8))) -> 19914.91796 | AA49: =(($D49*'fnd base rates'!I$107) +($E49*'fnd base rates'!I$108) +($F49*'fnd base rates'!I$109) +($G49*'fnd base rates'!I$110) +($H49*'fnd base rates'!I$111) +($I49*'fnd base rates'!I$112) +($J49*'fnd base rates'!I$113) +($K49*'fnd base rates'!I$114) +($M49*'fnd base rates'!I$116) +($N49*'fnd base rates'!I$117) +($O49*'fnd base rates'!I$118) +($P49*VLOOKUP($S49+12,rate_basefnd,9))) *$R49 -> 10986.81 | AB49: =(($D49*'fnd base rates'!J$107) +($E49*'fnd base rates'!J$108) +($F49*'fnd base rates'!J$109) +($G49*'fnd base rates'!J$110) +($H49*'fnd base rates'!J$111) +($I49*'fnd base rates'!J$112) +($J49*'fnd base rates'!J$113) +($K49*'fnd base rates'!J$114) +($M49*'fnd base rates'!J$116) +($N49*'fnd base rates'!J$117) +($O49*'fnd base rates'!J$118) +($P49*VLOOKUP($S49+12,rate_basefnd,10))) *$R49 -> 14581.45 | AC49: =(($D49*'fnd base rates'!K$107) +($E49*'fnd base rates'!K$108) +($F49*'fnd base rates'!K$109) +($G49*'fnd base rates'!K$110) +($H49*'fnd base rates'!K$111) +($I49*'fnd base rates'!K$112) +($J49*'fnd base rates'!K$113) +($K49*'fnd base rates'!K$114) +($M49*'fnd base rates'!K$116) +($N49*'fnd base rates'!K$117) +($O49*'fnd base rates'!K$118) +($P49*VLOOKUP($S49+12,rate_basefnd,11))) *$R49 -> 30538.19126 | AD49: =(($D49*'fnd base rates'!L$107) +($E49*'fnd base rates'!L$108) +($F49*'fnd base rates'!L$109) +($G49*'fnd base rates'!L$110) +($H49*'fnd base rates'!L$111) +($I49*'fnd base rates'!L$112) +($J49*'fnd base rates'!L$113) +($K49*'fnd base rates'!L$114) +($M49*'fnd base rates'!L$116) +($N49*'fnd base rates'!L$117) +($O49*'fnd base rates'!L$118) +($P49*VLOOKUP($S49+12,rate_basefnd,12))) -> 33225.10979 | AE49: =(($D49*'fnd base rates'!M$107) +($E49*'fnd base rates'!M$108) +($F49*'fnd base rates'!M$109) +($G49*'fnd base rates'!M$110) +($H49*'fnd base rates'!M$111) +($I49*'fnd base rates'!M$112) +($J49*'fnd base rates'!M$113) +($K49*'fnd base rates'!M$114) +($M49*'fnd base rates'!M$116) +($N49*'fnd base rates'!M$117) +($O49*'fnd base rates'!M$118) +($P49*VLOOKUP($S49+12,rate_basefnd,13))) -> 0 | AF49: 300670.5608 | AH49: 413114670 | AI49: 413 | AJ49: 114 | AK49: 670 | AL49: 1 | AM49: 28 | AN49: 300670.5608 | AO49: 10738 | AP49: 0 | AQ49: 10738 | AW49: 11662 | AX49: 3 | AY49: 11665 | AZ49: -927 | BA49: 10738 | BB49: 0 | BC49: 10738
A50: 413 | B50: 413114674 | C50: FOUR RIVERS | D50: ='fnd enro'!D50 -> 0 | E50: ='fnd enro'!E50 -> 0 | F50: ='fnd enro'!F50 -> 0 | G50: ='fnd enro'!G50 -> 0 | H50: ='fnd enro'!H50 -> 15 | I50: ='fnd enro'!I50 -> 27 | J50: ='fnd enro'!J50 -> 0 | K50: ='fnd enro'!K50 -> 1.5918 | L50: ='fnd enro'!L50 -> 0 | M50: ='fnd enro'!M50+'fnd enro'!N50 -> 0 | N50: ='fnd enro'!O50 -> 0 | O50: ='fnd enro'!P50 -> 0 | P50: ='fnd enro'!Q50 -> 14 | Q50: ='fnd enro'!S50 -> 42 | R50: 1 | S50: =VALUE('fnd enro'!R50) -> 10 | U50: =(($D50*'fnd base rates'!C$107) +($E50*'fnd base rates'!C$108) +($F50*'fnd base rates'!C$109) +($G50*'fnd base rates'!C$110) +($H50*'fnd base rates'!C$111) +($I50*'fnd base rates'!C$112) +($J50*'fnd base rates'!C$113) +($K50*'fnd base rates'!C$114) +($M50*'fnd base rates'!C$116) +($N50*'fnd base rates'!C$117) +($O50*'fnd base rates'!C$118) +($P50*VLOOKUP($S50+12,rate_basefnd,3))) *$R50 -> 22069.69376 | V50: =(($D50*'fnd base rates'!D$107) +($E50*'fnd base rates'!D$108) +($F50*'fnd base rates'!D$109) +($G50*'fnd base rates'!D$110) +($H50*'fnd base rates'!D$111) +($I50*'fnd base rates'!D$112) +($J50*'fnd base rates'!D$113) +($K50*'fnd base rates'!D$114) +($M50*'fnd base rates'!D$116) +($N50*'fnd base rates'!D$117) +($O50*'fnd base rates'!D$118) +($P50*VLOOKUP($S50+12,rate_basefnd,4))) *$R50 -> 34536.74 | W50: =(($D50*'fnd base rates'!E$107) +($E50*'fnd base rates'!E$108) +($F50*'fnd base rates'!E$109) +($G50*'fnd base rates'!E$110) +($H50*'fnd base rates'!E$111) +($I50*'fnd base rates'!E$112) +($J50*'fnd base rates'!E$113) +($K50*'fnd base rates'!E$114) +($M50*'fnd base rates'!E$116) +($N50*'fnd base rates'!E$117) +($O50*'fnd base rates'!E$118) +($P50*VLOOKUP($S50+12,rate_basefnd,5))) *$R50 -> 214998.6444 | X50: =(($D50*'fnd base rates'!F$107) +($E50*'fnd base rates'!F$108) +($F50*'fnd base rates'!F$109) +($G50*'fnd base rates'!F$110) +($H50*'fnd base rates'!F$111) +($I50*'fnd base rates'!F$112) +($J50*'fnd base rates'!F$113) +($K50*'fnd base rates'!F$114) +($M50*'fnd base rates'!F$116) +($N50*'fnd base rates'!F$117) +($O50*'fnd base rates'!F$118) +($P50*VLOOKUP($S50+12,rate_basefnd,6))) *$R50 -> 36435.37654 | Y50: =(($D50*'fnd base rates'!G$107) +($E50*'fnd base rates'!G$108) +($F50*'fnd base rates'!G$109) +($G50*'fnd base rates'!G$110) +($H50*'fnd base rates'!G$111) +($I50*'fnd base rates'!G$112) +($J50*'fnd base rates'!G$113) +($K50*'fnd base rates'!G$114) +($M50*'fnd base rates'!G$116) +($N50*'fnd base rates'!G$117) +($O50*'fnd base rates'!G$118) +($P50*VLOOKUP($S50+12,rate_basefnd,7))) *$R50 -> 8543.193052 | Z50: =(($D50*'fnd base rates'!H$107) +($E50*'fnd base rates'!H$108) +($F50*'fnd base rates'!H$109) +($G50*'fnd base rates'!H$110) +($H50*'fnd base rates'!H$111) +($I50*'fnd base rates'!H$112) +($J50*'fnd base rates'!H$113) +($K50*'fnd base rates'!H$114) +($M50*'fnd base rates'!H$116) +($N50*'fnd base rates'!H$117) +($O50*'fnd base rates'!H$118) +($P50*VLOOKUP($S50+12,rate_basefnd,8))) -> 28801.59694 | AA50: =(($D50*'fnd base rates'!I$107) +($E50*'fnd base rates'!I$108) +($F50*'fnd base rates'!I$109) +($G50*'fnd base rates'!I$110) +($H50*'fnd base rates'!I$111) +($I50*'fnd base rates'!I$112) +($J50*'fnd base rates'!I$113) +($K50*'fnd base rates'!I$114) +($M50*'fnd base rates'!I$116) +($N50*'fnd base rates'!I$117) +($O50*'fnd base rates'!I$118) +($P50*VLOOKUP($S50+12,rate_basefnd,9))) *$R50 -> 17327.85 | AB50: =(($D50*'fnd base rates'!J$107) +($E50*'fnd base rates'!J$108) +($F50*'fnd base rates'!J$109) +($G50*'fnd base rates'!J$110) +($H50*'fnd base rates'!J$111) +($I50*'fnd base rates'!J$112) +($J50*'fnd base rates'!J$113) +($K50*'fnd base rates'!J$114) +($M50*'fnd base rates'!J$116) +($N50*'fnd base rates'!J$117) +($O50*'fnd base rates'!J$118) +($P50*VLOOKUP($S50+12,rate_basefnd,10))) *$R50 -> 26797.52 | AC50: =(($D50*'fnd base rates'!K$107) +($E50*'fnd base rates'!K$108) +($F50*'fnd base rates'!K$109) +($G50*'fnd base rates'!K$110) +($H50*'fnd base rates'!K$111) +($I50*'fnd base rates'!K$112) +($J50*'fnd base rates'!K$113) +($K50*'fnd base rates'!K$114) +($M50*'fnd base rates'!K$116) +($N50*'fnd base rates'!K$117) +($O50*'fnd base rates'!K$118) +($P50*VLOOKUP($S50+12,rate_basefnd,11))) *$R50 -> 45943.5919 | AD50: =(($D50*'fnd base rates'!L$107) +($E50*'fnd base rates'!L$108) +($F50*'fnd base rates'!L$109) +($G50*'fnd base rates'!L$110) +($H50*'fnd base rates'!L$111) +($I50*'fnd base rates'!L$112) +($J50*'fnd base rates'!L$113) +($K50*'fnd base rates'!L$114) +($M50*'fnd base rates'!L$116) +($N50*'fnd base rates'!L$117) +($O50*'fnd base rates'!L$118) +($P50*VLOOKUP($S50+12,rate_basefnd,12))) -> 55152.71968 | AE50: =(($D50*'fnd base rates'!M$107) +($E50*'fnd base rates'!M$108) +($F50*'fnd base rates'!M$109) +($G50*'fnd base rates'!M$110) +($H50*'fnd base rates'!M$111) +($I50*'fnd base rates'!M$112) +($J50*'fnd base rates'!M$113) +($K50*'fnd base rates'!M$114) +($M50*'fnd base rates'!M$116) +($N50*'fnd base rates'!M$117) +($O50*'fnd base rates'!M$118) +($P50*VLOOKUP($S50+12,rate_basefnd,13))) -> 0 | AF50: 490606.9262 | AH50: 413114674 | AI50: 413 | AJ50: 114 | AK50: 674 | AL50: 1 | AM50: 42 | AN50: 490606.9262 | AO50: 11681 | AP50: 0 | AQ50: 11681 | AW50: 11767 | AX50: 25 | AY50: 11792 | AZ50: -145 | BA50: 11647 | BB50: 34 | BC50: 11681
A51: 413 | B51: 413114683 | C51: FOUR RIVERS | D51: ='fnd enro'!D51 -> 0 | E51: ='fnd enro'!E51 -> 0 | F51: ='fnd enro'!F51 -> 0 | G51: ='fnd enro'!G51 -> 0 | H51: ='fnd enro'!H51 -> 0 | I51: ='fnd enro'!I51 -> 1 | J51: ='fnd enro'!J51 -> 0 | K51: ='fnd enro'!K51 -> 0.0379 | L51: ='fnd enro'!L51 -> 0 | M51: ='fnd enro'!M51+'fnd enro'!N51 -> 0 | N51: ='fnd enro'!O51 -> 0 | O51: ='fnd enro'!P51 -> 0 | P51: ='fnd enro'!Q51 -> 0 | Q51: ='fnd enro'!S51 -> 1 | R51: 1 | S51: =VALUE('fnd enro'!R51) -> 4 | U51: =(($D51*'fnd base rates'!C$107) +($E51*'fnd base rates'!C$108) +($F51*'fnd base rates'!C$109) +($G51*'fnd base rates'!C$110) +($H51*'fnd base rates'!C$111) +($I51*'fnd base rates'!C$112) +($J51*'fnd base rates'!C$113) +($K51*'fnd base rates'!C$114) +($M51*'fnd base rates'!C$116) +($N51*'fnd base rates'!C$117) +($O51*'fnd base rates'!C$118) +($P51*VLOOKUP($S51+12,rate_basefnd,3))) *$R51 -> 504.288899 | V51: =(($D51*'fnd base rates'!D$107) +($E51*'fnd base rates'!D$108) +($F51*'fnd base rates'!D$109) +($G51*'fnd base rates'!D$110) +($H51*'fnd base rates'!D$111) +($I51*'fnd base rates'!D$112) +($J51*'fnd base rates'!D$113) +($K51*'fnd base rates'!D$114) +($M51*'fnd base rates'!D$116) +($N51*'fnd base rates'!D$117) +($O51*'fnd base rates'!D$118) +($P51*VLOOKUP($S51+12,rate_basefnd,4))) *$R51 -> 721.95 | W51: =(($D51*'fnd base rates'!E$107) +($E51*'fnd base rates'!E$108) +($F51*'fnd base rates'!E$109) +($G51*'fnd base rates'!E$110) +($H51*'fnd base rates'!E$111) +($I51*'fnd base rates'!E$112) +($J51*'fnd base rates'!E$113) +($K51*'fnd base rates'!E$114) +($M51*'fnd base rates'!E$116) +($N51*'fnd base rates'!E$117) +($O51*'fnd base rates'!E$118) +($P51*VLOOKUP($S51+12,rate_basefnd,5))) *$R51 -> 4628.947723 | X51: =(($D51*'fnd base rates'!F$107) +($E51*'fnd base rates'!F$108) +($F51*'fnd base rates'!F$109) +($G51*'fnd base rates'!F$110) +($H51*'fnd base rates'!F$111) +($I51*'fnd base rates'!F$112) +($J51*'fnd base rates'!F$113) +($K51*'fnd base rates'!F$114) +($M51*'fnd base rates'!F$116) +($N51*'fnd base rates'!F$117) +($O51*'fnd base rates'!F$118) +($P51*VLOOKUP($S51+12,rate_basefnd,6))) *$R51 -> 830.948251 | Y51: =(($D51*'fnd base rates'!G$107) +($E51*'fnd base rates'!G$108) +($F51*'fnd base rates'!G$109) +($G51*'fnd base rates'!G$110) +($H51*'fnd base rates'!G$111) +($I51*'fnd base rates'!G$112) +($J51*'fnd base rates'!G$113) +($K51*'fnd base rates'!G$114) +($M51*'fnd base rates'!G$116) +($N51*'fnd base rates'!G$117) +($O51*'fnd base rates'!G$118) +($P51*VLOOKUP($S51+12,rate_basefnd,7))) *$R51 -> 154.343406 | Z51: =(($D51*'fnd base rates'!H$107) +($E51*'fnd base rates'!H$108) +($F51*'fnd base rates'!H$109) +($G51*'fnd base rates'!H$110) +($H51*'fnd base rates'!H$111) +($I51*'fnd base rates'!H$112) +($J51*'fnd base rates'!H$113) +($K51*'fnd base rates'!H$114) +($M51*'fnd base rates'!H$116) +($N51*'fnd base rates'!H$117) +($O51*'fnd base rates'!H$118) +($P51*VLOOKUP($S51+12,rate_basefnd,8))) -> 781.13707 | AA51: =(($D51*'fnd base rates'!I$107) +($E51*'fnd base rates'!I$108) +($F51*'fnd base rates'!I$109) +($G51*'fnd base rates'!I$110) +($H51*'fnd base rates'!I$111) +($I51*'fnd base rates'!I$112) +($J51*'fnd base rates'!I$113) +($K51*'fnd base rates'!I$114) +($M51*'fnd base rates'!I$116) +($N51*'fnd base rates'!I$117) +($O51*'fnd base rates'!I$118) +($P51*VLOOKUP($S51+12,rate_basefnd,9))) *$R51 -> 401.93 | AB51: =(($D51*'fnd base rates'!J$107) +($E51*'fnd base rates'!J$108) +($F51*'fnd base rates'!J$109) +($G51*'fnd base rates'!J$110) +($H51*'fnd base rates'!J$111) +($I51*'fnd base rates'!J$112) +($J51*'fnd base rates'!J$113) +($K51*'fnd base rates'!J$114) +($M51*'fnd base rates'!J$116) +($N51*'fnd base rates'!J$117) +($O51*'fnd base rates'!J$118) +($P51*VLOOKUP($S51+12,rate_basefnd,10))) *$R51 -> 541.41 | AC51: =(($D51*'fnd base rates'!K$107) +($E51*'fnd base rates'!K$108) +($F51*'fnd base rates'!K$109) +($G51*'fnd base rates'!K$110) +($H51*'fnd base rates'!K$111) +($I51*'fnd base rates'!K$112) +($J51*'fnd base rates'!K$113) +($K51*'fnd base rates'!K$114) +($M51*'fnd base rates'!K$116) +($N51*'fnd base rates'!K$117) +($O51*'fnd base rates'!K$118) +($P51*VLOOKUP($S51+12,rate_basefnd,11))) *$R51 -> 1083.077188 | AD51: =(($D51*'fnd base rates'!L$107) +($E51*'fnd base rates'!L$108) +($F51*'fnd base rates'!L$109) +($G51*'fnd base rates'!L$110) +($H51*'fnd base rates'!L$111) +($I51*'fnd base rates'!L$112) +($J51*'fnd base rates'!L$113) +($K51*'fnd base rates'!L$114) +($M51*'fnd base rates'!L$116) +($N51*'fnd base rates'!L$117) +($O51*'fnd base rates'!L$118) +($P51*VLOOKUP($S51+12,rate_basefnd,12))) -> 1117.561421 | AE51: =(($D51*'fnd base rates'!M$107) +($E51*'fnd base rates'!M$108) +($F51*'fnd base rates'!M$109) +($G51*'fnd base rates'!M$110) +($H51*'fnd base rates'!M$111) +($I51*'fnd base rates'!M$112) +($J51*'fnd base rates'!M$113) +($K51*'fnd base rates'!M$114) +($M51*'fnd base rates'!M$116) +($N51*'fnd base rates'!M$117) +($O51*'fnd base rates'!M$118) +($P51*VLOOKUP($S51+12,rate_basefnd,13))) -> 0 | AF51: 10765.59396 | AH51: 413114683 | AI51: 413 | AJ51: 114 | AK51: 683 | AL51: 1 | AM51: 1 | AN51: 10765.59396 | AO51: 10766 | AP51: 0 | AQ51: 10766 | AW51: 10835 | AX51: 0 | AY51: 10835 | AZ51: -69 | BA51: 10766 | BB51: 0 | BC51: 10766
A52: 413 | B52: 413114717 | C52: FOUR RIVERS | D52: ='fnd enro'!D52 -> 0 | E52: ='fnd enro'!E52 -> 0 | F52: ='fnd enro'!F52 -> 0 | G52: ='fnd enro'!G52 -> 0 | H52: ='fnd enro'!H52 -> 13 | I52: ='fnd enro'!I52 -> 31 | J52: ='fnd enro'!J52 -> 0 | K52: ='fnd enro'!K52 -> 1.6676 | L52: ='fnd enro'!L52 -> 0 | M52: ='fnd enro'!M52+'fnd enro'!N52 -> 0 | N52: ='fnd enro'!O52 -> 0 | O52: ='fnd enro'!P52 -> 0 | P52: ='fnd enro'!Q52 -> 17 | Q52: ='fnd enro'!S52 -> 44 | R52: 1 | S52: =VALUE('fnd enro'!R52) -> 8 | U52: =(($D52*'fnd base rates'!C$107) +($E52*'fnd base rates'!C$108) +($F52*'fnd base rates'!C$109) +($G52*'fnd base rates'!C$110) +($H52*'fnd base rates'!C$111) +($I52*'fnd base rates'!C$112) +($J52*'fnd base rates'!C$113) +($K52*'fnd base rates'!C$114) +($M52*'fnd base rates'!C$116) +($N52*'fnd base rates'!C$117) +($O52*'fnd base rates'!C$118) +($P52*VLOOKUP($S52+12,rate_basefnd,3))) *$R52 -> 23221.97156 | V52: =(($D52*'fnd base rates'!D$107) +($E52*'fnd base rates'!D$108) +($F52*'fnd base rates'!D$109) +($G52*'fnd base rates'!D$110) +($H52*'fnd base rates'!D$111) +($I52*'fnd base rates'!D$112) +($J52*'fnd base rates'!D$113) +($K52*'fnd base rates'!D$114) +($M52*'fnd base rates'!D$116) +($N52*'fnd base rates'!D$117) +($O52*'fnd base rates'!D$118) +($P52*VLOOKUP($S52+12,rate_basefnd,4))) *$R52 -> 36661.46 | W52: =(($D52*'fnd base rates'!E$107) +($E52*'fnd base rates'!E$108) +($F52*'fnd base rates'!E$109) +($G52*'fnd base rates'!E$110) +($H52*'fnd base rates'!E$111) +($I52*'fnd base rates'!E$112) +($J52*'fnd base rates'!E$113) +($K52*'fnd base rates'!E$114) +($M52*'fnd base rates'!E$116) +($N52*'fnd base rates'!E$117) +($O52*'fnd base rates'!E$118) +($P52*VLOOKUP($S52+12,rate_basefnd,5))) *$R52 -> 233643.3498 | X52: =(($D52*'fnd base rates'!F$107) +($E52*'fnd base rates'!F$108) +($F52*'fnd base rates'!F$109) +($G52*'fnd base rates'!F$110) +($H52*'fnd base rates'!F$111) +($I52*'fnd base rates'!F$112) +($J52*'fnd base rates'!F$113) +($K52*'fnd base rates'!F$114) +($M52*'fnd base rates'!F$116) +($N52*'fnd base rates'!F$117) +($O52*'fnd base rates'!F$118) +($P52*VLOOKUP($S52+12,rate_basefnd,6))) *$R52 -> 37892.53304 | Y52: =(($D52*'fnd base rates'!G$107) +($E52*'fnd base rates'!G$108) +($F52*'fnd base rates'!G$109) +($G52*'fnd base rates'!G$110) +($H52*'fnd base rates'!G$111) +($I52*'fnd base rates'!G$112) +($J52*'fnd base rates'!G$113) +($K52*'fnd base rates'!G$114) +($M52*'fnd base rates'!G$116) +($N52*'fnd base rates'!G$117) +($O52*'fnd base rates'!G$118) +($P52*VLOOKUP($S52+12,rate_basefnd,7))) *$R52 -> 9165.599864 | Z52: =(($D52*'fnd base rates'!H$107) +($E52*'fnd base rates'!H$108) +($F52*'fnd base rates'!H$109) +($G52*'fnd base rates'!H$110) +($H52*'fnd base rates'!H$111) +($I52*'fnd base rates'!H$112) +($J52*'fnd base rates'!H$113) +($K52*'fnd base rates'!H$114) +($M52*'fnd base rates'!H$116) +($N52*'fnd base rates'!H$117) +($O52*'fnd base rates'!H$118) +($P52*VLOOKUP($S52+12,rate_basefnd,8))) -> 30988.26108 | AA52: =(($D52*'fnd base rates'!I$107) +($E52*'fnd base rates'!I$108) +($F52*'fnd base rates'!I$109) +($G52*'fnd base rates'!I$110) +($H52*'fnd base rates'!I$111) +($I52*'fnd base rates'!I$112) +($J52*'fnd base rates'!I$113) +($K52*'fnd base rates'!I$114) +($M52*'fnd base rates'!I$116) +($N52*'fnd base rates'!I$117) +($O52*'fnd base rates'!I$118) +($P52*VLOOKUP($S52+12,rate_basefnd,9))) *$R52 -> 18563.26 | AB52: =(($D52*'fnd base rates'!J$107) +($E52*'fnd base rates'!J$108) +($F52*'fnd base rates'!J$109) +($G52*'fnd base rates'!J$110) +($H52*'fnd base rates'!J$111) +($I52*'fnd base rates'!J$112) +($J52*'fnd base rates'!J$113) +($K52*'fnd base rates'!J$114) +($M52*'fnd base rates'!J$116) +($N52*'fnd base rates'!J$117) +($O52*'fnd base rates'!J$118) +($P52*VLOOKUP($S52+12,rate_basefnd,10))) *$R52 -> 29891.65 | AC52: =(($D52*'fnd base rates'!K$107) +($E52*'fnd base rates'!K$108) +($F52*'fnd base rates'!K$109) +($G52*'fnd base rates'!K$110) +($H52*'fnd base rates'!K$111) +($I52*'fnd base rates'!K$112) +($J52*'fnd base rates'!K$113) +($K52*'fnd base rates'!K$114) +($M52*'fnd base rates'!K$116) +($N52*'fnd base rates'!K$117) +($O52*'fnd base rates'!K$118) +($P52*VLOOKUP($S52+12,rate_basefnd,11))) *$R52 -> 48049.16627 | AD52: =(($D52*'fnd base rates'!L$107) +($E52*'fnd base rates'!L$108) +($F52*'fnd base rates'!L$109) +($G52*'fnd base rates'!L$110) +($H52*'fnd base rates'!L$111) +($I52*'fnd base rates'!L$112) +($J52*'fnd base rates'!L$113) +($K52*'fnd base rates'!L$114) +($M52*'fnd base rates'!L$116) +($N52*'fnd base rates'!L$117) +($O52*'fnd base rates'!L$118) +($P52*VLOOKUP($S52+12,rate_basefnd,12))) -> 58254.59252 | AE52: =(($D52*'fnd base rates'!M$107) +($E52*'fnd base rates'!M$108) +($F52*'fnd base rates'!M$109) +($G52*'fnd base rates'!M$110) +($H52*'fnd base rates'!M$111) +($I52*'fnd base rates'!M$112) +($J52*'fnd base rates'!M$113) +($K52*'fnd base rates'!M$114) +($M52*'fnd base rates'!M$116) +($N52*'fnd base rates'!M$117) +($O52*'fnd base rates'!M$118) +($P52*VLOOKUP($S52+12,rate_basefnd,13))) -> 0 | AF52: 526331.8442 | AH52: 413114717 | AI52: 413 | AJ52: 114 | AK52: 717 | AL52: 1 | AM52: 44 | AN52: 526331.8442 | AO52: 11962 | AP52: 0 | AQ52: 11962 | AW52: 12004 | AX52: 13 | AY52: 12017 | AZ52: -55 | BA52: 11962 | BB52: 0 | BC52: 11962
A53: 413 | B53: 413114750 | C53: FOUR RIVERS | D53: ='fnd enro'!D53 -> 0 | E53: ='fnd enro'!E53 -> 0 | F53: ='fnd enro'!F53 -> 0 | G53: ='fnd enro'!G53 -> 0 | H53: ='fnd enro'!H53 -> 6 | I53: ='fnd enro'!I53 -> 16 | J53: ='fnd enro'!J53 -> 0 | K53: ='fnd enro'!K53 -> 0.8338 | L53: ='fnd enro'!L53 -> 0 | M53: ='fnd enro'!M53+'fnd enro'!N53 -> 0 | N53: ='fnd enro'!O53 -> 0 | O53: ='fnd enro'!P53 -> 0 | P53: ='fnd enro'!Q53 -> 3 | Q53: ='fnd enro'!S53 -> 22 | R53: 1 | S53: =VALUE('fnd enro'!R53) -> 6 | U53: =(($D53*'fnd base rates'!C$107) +($E53*'fnd base rates'!C$108) +($F53*'fnd base rates'!C$109) +($G53*'fnd base rates'!C$110) +($H53*'fnd base rates'!C$111) +($I53*'fnd base rates'!C$112) +($J53*'fnd base rates'!C$113) +($K53*'fnd base rates'!C$114) +($M53*'fnd base rates'!C$116) +($N53*'fnd base rates'!C$117) +($O53*'fnd base rates'!C$118) +($P53*VLOOKUP($S53+12,rate_basefnd,3))) *$R53 -> 11268.41578 | V53: =(($D53*'fnd base rates'!D$107) +($E53*'fnd base rates'!D$108) +($F53*'fnd base rates'!D$109) +($G53*'fnd base rates'!D$110) +($H53*'fnd base rates'!D$111) +($I53*'fnd base rates'!D$112) +($J53*'fnd base rates'!D$113) +($K53*'fnd base rates'!D$114) +($M53*'fnd base rates'!D$116) +($N53*'fnd base rates'!D$117) +($O53*'fnd base rates'!D$118) +($P53*VLOOKUP($S53+12,rate_basefnd,4))) *$R53 -> 16707.54 | W53: =(($D53*'fnd base rates'!E$107) +($E53*'fnd base rates'!E$108) +($F53*'fnd base rates'!E$109) +($G53*'fnd base rates'!E$110) +($H53*'fnd base rates'!E$111) +($I53*'fnd base rates'!E$112) +($J53*'fnd base rates'!E$113) +($K53*'fnd base rates'!E$114) +($M53*'fnd base rates'!E$116) +($N53*'fnd base rates'!E$117) +($O53*'fnd base rates'!E$118) +($P53*VLOOKUP($S53+12,rate_basefnd,5))) *$R53 -> 101662.1599 | X53: =(($D53*'fnd base rates'!F$107) +($E53*'fnd base rates'!F$108) +($F53*'fnd base rates'!F$109) +($G53*'fnd base rates'!F$110) +($H53*'fnd base rates'!F$111) +($I53*'fnd base rates'!F$112) +($J53*'fnd base rates'!F$113) +($K53*'fnd base rates'!F$114) +($M53*'fnd base rates'!F$116) +($N53*'fnd base rates'!F$117) +($O53*'fnd base rates'!F$118) +($P53*VLOOKUP($S53+12,rate_basefnd,6))) *$R53 -> 18895.08152 | Y53: =(($D53*'fnd base rates'!G$107) +($E53*'fnd base rates'!G$108) +($F53*'fnd base rates'!G$109) +($G53*'fnd base rates'!G$110) +($H53*'fnd base rates'!G$111) +($I53*'fnd base rates'!G$112) +($J53*'fnd base rates'!G$113) +($K53*'fnd base rates'!G$114) +($M53*'fnd base rates'!G$116) +($N53*'fnd base rates'!G$117) +($O53*'fnd base rates'!G$118) +($P53*VLOOKUP($S53+12,rate_basefnd,7))) *$R53 -> 3811.984932 | Z53: =(($D53*'fnd base rates'!H$107) +($E53*'fnd base rates'!H$108) +($F53*'fnd base rates'!H$109) +($G53*'fnd base rates'!H$110) +($H53*'fnd base rates'!H$111) +($I53*'fnd base rates'!H$112) +($J53*'fnd base rates'!H$113) +($K53*'fnd base rates'!H$114) +($M53*'fnd base rates'!H$116) +($N53*'fnd base rates'!H$117) +($O53*'fnd base rates'!H$118) +($P53*VLOOKUP($S53+12,rate_basefnd,8))) -> 15520.01554 | AA53: =(($D53*'fnd base rates'!I$107) +($E53*'fnd base rates'!I$108) +($F53*'fnd base rates'!I$109) +($G53*'fnd base rates'!I$110) +($H53*'fnd base rates'!I$111) +($I53*'fnd base rates'!I$112) +($J53*'fnd base rates'!I$113) +($K53*'fnd base rates'!I$114) +($M53*'fnd base rates'!I$116) +($N53*'fnd base rates'!I$117) +($O53*'fnd base rates'!I$118) +($P53*VLOOKUP($S53+12,rate_basefnd,9))) *$R53 -> 8680.7 | AB53: =(($D53*'fnd base rates'!J$107) +($E53*'fnd base rates'!J$108) +($F53*'fnd base rates'!J$109) +($G53*'fnd base rates'!J$110) +($H53*'fnd base rates'!J$111) +($I53*'fnd base rates'!J$112) +($J53*'fnd base rates'!J$113) +($K53*'fnd base rates'!J$114) +($M53*'fnd base rates'!J$116) +($N53*'fnd base rates'!J$117) +($O53*'fnd base rates'!J$118) +($P53*VLOOKUP($S53+12,rate_basefnd,10))) *$R53 -> 11765.22 | AC53: =(($D53*'fnd base rates'!K$107) +($E53*'fnd base rates'!K$108) +($F53*'fnd base rates'!K$109) +($G53*'fnd base rates'!K$110) +($H53*'fnd base rates'!K$111) +($I53*'fnd base rates'!K$112) +($J53*'fnd base rates'!K$113) +($K53*'fnd base rates'!K$114) +($M53*'fnd base rates'!K$116) +($N53*'fnd base rates'!K$117) +($O53*'fnd base rates'!K$118) +($P53*VLOOKUP($S53+12,rate_basefnd,11))) *$R53 -> 24009.43814 | AD53: =(($D53*'fnd base rates'!L$107) +($E53*'fnd base rates'!L$108) +($F53*'fnd base rates'!L$109) +($G53*'fnd base rates'!L$110) +($H53*'fnd base rates'!L$111) +($I53*'fnd base rates'!L$112) +($J53*'fnd base rates'!L$113) +($K53*'fnd base rates'!L$114) +($M53*'fnd base rates'!L$116) +($N53*'fnd base rates'!L$117) +($O53*'fnd base rates'!L$118) +($P53*VLOOKUP($S53+12,rate_basefnd,12))) -> 26512.32126 | AE53: =(($D53*'fnd base rates'!M$107) +($E53*'fnd base rates'!M$108) +($F53*'fnd base rates'!M$109) +($G53*'fnd base rates'!M$110) +($H53*'fnd base rates'!M$111) +($I53*'fnd base rates'!M$112) +($J53*'fnd base rates'!M$113) +($K53*'fnd base rates'!M$114) +($M53*'fnd base rates'!M$116) +($N53*'fnd base rates'!M$117) +($O53*'fnd base rates'!M$118) +($P53*VLOOKUP($S53+12,rate_basefnd,13))) -> 0 | AF53: 238832.8771 | AH53: 413114750 | AI53: 413 | AJ53: 114 | AK53: 750 | AL53: 1 | AM53: 22 | AN53: 238832.8771 | AO53: 10856 | AP53: 0 | AQ53: 10856 | AW53: 11517 | AX53: 6 | AY53: 11523 | AZ53: -653 | BA53: 10870 | BB53: -14 | BC53: 10856
A54: 413 | B54: 413114755 | C54: FOUR RIVERS | D54: ='fnd enro'!D54 -> 0 | E54: ='fnd enro'!E54 -> 0 | F54: ='fnd enro'!F54 -> 0 | G54: ='fnd enro'!G54 -> 0 | H54: ='fnd enro'!H54 -> 4 | I54: ='fnd enro'!I54 -> 1 | J54: ='fnd enro'!J54 -> 0 | K54: ='fnd enro'!K54 -> 0.1895 | L54: ='fnd enro'!L54 -> 0 | M54: ='fnd enro'!M54+'fnd enro'!N54 -> 0 | N54: ='fnd enro'!O54 -> 0 | O54: ='fnd enro'!P54 -> 0 | P54: ='fnd enro'!Q54 -> 2 | Q54: ='fnd enro'!S54 -> 5 | R54: 1 | S54: =VALUE('fnd enro'!R54) -> 9 | U54: =(($D54*'fnd base rates'!C$107) +($E54*'fnd base rates'!C$108) +($F54*'fnd base rates'!C$109) +($G54*'fnd base rates'!C$110) +($H54*'fnd base rates'!C$111) +($I54*'fnd base rates'!C$112) +($J54*'fnd base rates'!C$113) +($K54*'fnd base rates'!C$114) +($M54*'fnd base rates'!C$116) +($N54*'fnd base rates'!C$117) +($O54*'fnd base rates'!C$118) +($P54*VLOOKUP($S54+12,rate_basefnd,3))) *$R54 -> 2645.764495 | V54: =(($D54*'fnd base rates'!D$107) +($E54*'fnd base rates'!D$108) +($F54*'fnd base rates'!D$109) +($G54*'fnd base rates'!D$110) +($H54*'fnd base rates'!D$111) +($I54*'fnd base rates'!D$112) +($J54*'fnd base rates'!D$113) +($K54*'fnd base rates'!D$114) +($M54*'fnd base rates'!D$116) +($N54*'fnd base rates'!D$117) +($O54*'fnd base rates'!D$118) +($P54*VLOOKUP($S54+12,rate_basefnd,4))) *$R54 -> 4198.79 | W54: =(($D54*'fnd base rates'!E$107) +($E54*'fnd base rates'!E$108) +($F54*'fnd base rates'!E$109) +($G54*'fnd base rates'!E$110) +($H54*'fnd base rates'!E$111) +($I54*'fnd base rates'!E$112) +($J54*'fnd base rates'!E$113) +($K54*'fnd base rates'!E$114) +($M54*'fnd base rates'!E$116) +($N54*'fnd base rates'!E$117) +($O54*'fnd base rates'!E$118) +($P54*VLOOKUP($S54+12,rate_basefnd,5))) *$R54 -> 23411.55862 | X54: =(($D54*'fnd base rates'!F$107) +($E54*'fnd base rates'!F$108) +($F54*'fnd base rates'!F$109) +($G54*'fnd base rates'!F$110) +($H54*'fnd base rates'!F$111) +($I54*'fnd base rates'!F$112) +($J54*'fnd base rates'!F$113) +($K54*'fnd base rates'!F$114) +($M54*'fnd base rates'!F$116) +($N54*'fnd base rates'!F$117) +($O54*'fnd base rates'!F$118) +($P54*VLOOKUP($S54+12,rate_basefnd,6))) *$R54 -> 4564.221255 | Y54: =(($D54*'fnd base rates'!G$107) +($E54*'fnd base rates'!G$108) +($F54*'fnd base rates'!G$109) +($G54*'fnd base rates'!G$110) +($H54*'fnd base rates'!G$111) +($I54*'fnd base rates'!G$112) +($J54*'fnd base rates'!G$113) +($K54*'fnd base rates'!G$114) +($M54*'fnd base rates'!G$116) +($N54*'fnd base rates'!G$117) +($O54*'fnd base rates'!G$118) +($P54*VLOOKUP($S54+12,rate_basefnd,7))) *$R54 -> 1067.91703 | Z54: =(($D54*'fnd base rates'!H$107) +($E54*'fnd base rates'!H$108) +($F54*'fnd base rates'!H$109) +($G54*'fnd base rates'!H$110) +($H54*'fnd base rates'!H$111) +($I54*'fnd base rates'!H$112) +($J54*'fnd base rates'!H$113) +($K54*'fnd base rates'!H$114) +($M54*'fnd base rates'!H$116) +($N54*'fnd base rates'!H$117) +($O54*'fnd base rates'!H$118) +($P54*VLOOKUP($S54+12,rate_basefnd,8))) -> 2798.52535 | AA54: =(($D54*'fnd base rates'!I$107) +($E54*'fnd base rates'!I$108) +($F54*'fnd base rates'!I$109) +($G54*'fnd base rates'!I$110) +($H54*'fnd base rates'!I$111) +($I54*'fnd base rates'!I$112) +($J54*'fnd base rates'!I$113) +($K54*'fnd base rates'!I$114) +($M54*'fnd base rates'!I$116) +($N54*'fnd base rates'!I$117) +($O54*'fnd base rates'!I$118) +($P54*VLOOKUP($S54+12,rate_basefnd,9))) *$R54 -> 1917.33 | AB54: =(($D54*'fnd base rates'!J$107) +($E54*'fnd base rates'!J$108) +($F54*'fnd base rates'!J$109) +($G54*'fnd base rates'!J$110) +($H54*'fnd base rates'!J$111) +($I54*'fnd base rates'!J$112) +($J54*'fnd base rates'!J$113) +($K54*'fnd base rates'!J$114) +($M54*'fnd base rates'!J$116) +($N54*'fnd base rates'!J$117) +($O54*'fnd base rates'!J$118) +($P54*VLOOKUP($S54+12,rate_basefnd,10))) *$R54 -> 2690.47 | AC54: =(($D54*'fnd base rates'!K$107) +($E54*'fnd base rates'!K$108) +($F54*'fnd base rates'!K$109) +($G54*'fnd base rates'!K$110) +($H54*'fnd base rates'!K$111) +($I54*'fnd base rates'!K$112) +($J54*'fnd base rates'!K$113) +($K54*'fnd base rates'!K$114) +($M54*'fnd base rates'!K$116) +($N54*'fnd base rates'!K$117) +($O54*'fnd base rates'!K$118) +($P54*VLOOKUP($S54+12,rate_basefnd,11))) *$R54 -> 5536.54594 | AD54: =(($D54*'fnd base rates'!L$107) +($E54*'fnd base rates'!L$108) +($F54*'fnd base rates'!L$109) +($G54*'fnd base rates'!L$110) +($H54*'fnd base rates'!L$111) +($I54*'fnd base rates'!L$112) +($J54*'fnd base rates'!L$113) +($K54*'fnd base rates'!L$114) +($M54*'fnd base rates'!L$116) +($N54*'fnd base rates'!L$117) +($O54*'fnd base rates'!L$118) +($P54*VLOOKUP($S54+12,rate_basefnd,12))) -> 6933.767105 | AE54: =(($D54*'fnd base rates'!M$107) +($E54*'fnd base rates'!M$108) +($F54*'fnd base rates'!M$109) +($G54*'fnd base rates'!M$110) +($H54*'fnd base rates'!M$111) +($I54*'fnd base rates'!M$112) +($J54*'fnd base rates'!M$113) +($K54*'fnd base rates'!M$114) +($M54*'fnd base rates'!M$116) +($N54*'fnd base rates'!M$117) +($O54*'fnd base rates'!M$118) +($P54*VLOOKUP($S54+12,rate_basefnd,13))) -> 0 | AF54: 55764.88979 | AH54: 413114755 | AI54: 413 | AJ54: 114 | AK54: 755 | AL54: 1 | AM54: 5 | AN54: 55764.88979 | AO54: 11153 | AP54: 0 | AQ54: 11153 | AW54: 11249 | AX54: 25 | AY54: 11274 | AZ54: -121 | BA54: 11153 | BB54: 0 | BC54: 11153
A55: 414 | B55: 414603098 | C55: BERKSHIRE ARTS AND TECHNOLOGY | D55: ='fnd enro'!D55 -> 0 | E55: ='fnd enro'!E55 -> 0 | F55: ='fnd enro'!F55 -> 0 | G55: ='fnd enro'!G55 -> 0 | H55: ='fnd enro'!H55 -> 2 | I55: ='fnd enro'!I55 -> 1 | J55: ='fnd enro'!J55 -> 0 | K55: ='fnd enro'!K55 -> 0.1137 | L55: ='fnd enro'!L55 -> 0 | M55: ='fnd enro'!M55+'fnd enro'!N55 -> 0 | N55: ='fnd enro'!O55 -> 0 | O55: ='fnd enro'!P55 -> 0 | P55: ='fnd enro'!Q55 -> 1 | Q55: ='fnd enro'!S55 -> 3 | R55: 1 | S55: =VALUE('fnd enro'!R55) -> 7 | U55: =(($D55*'fnd base rates'!C$107) +($E55*'fnd base rates'!C$108) +($F55*'fnd base rates'!C$109) +($G55*'fnd base rates'!C$110) +($H55*'fnd base rates'!C$111) +($I55*'fnd base rates'!C$112) +($J55*'fnd base rates'!C$113) +($K55*'fnd base rates'!C$114) +($M55*'fnd base rates'!C$116) +($N55*'fnd base rates'!C$117) +($O55*'fnd base rates'!C$118) +($P55*VLOOKUP($S55+12,rate_basefnd,3))) *$R55 -> 1572.266697 | V55: =(($D55*'fnd base rates'!D$107) +($E55*'fnd base rates'!D$108) +($F55*'fnd base rates'!D$109) +($G55*'fnd base rates'!D$110) +($H55*'fnd base rates'!D$111) +($I55*'fnd base rates'!D$112) +($J55*'fnd base rates'!D$113) +($K55*'fnd base rates'!D$114) +($M55*'fnd base rates'!D$116) +($N55*'fnd base rates'!D$117) +($O55*'fnd base rates'!D$118) +($P55*VLOOKUP($S55+12,rate_basefnd,4))) *$R55 -> 2447.28 | W55: =(($D55*'fnd base rates'!E$107) +($E55*'fnd base rates'!E$108) +($F55*'fnd base rates'!E$109) +($G55*'fnd base rates'!E$110) +($H55*'fnd base rates'!E$111) +($I55*'fnd base rates'!E$112) +($J55*'fnd base rates'!E$113) +($K55*'fnd base rates'!E$114) +($M55*'fnd base rates'!E$116) +($N55*'fnd base rates'!E$117) +($O55*'fnd base rates'!E$118) +($P55*VLOOKUP($S55+12,rate_basefnd,5))) *$R55 -> 13892.49317 | X55: =(($D55*'fnd base rates'!F$107) +($E55*'fnd base rates'!F$108) +($F55*'fnd base rates'!F$109) +($G55*'fnd base rates'!F$110) +($H55*'fnd base rates'!F$111) +($I55*'fnd base rates'!F$112) +($J55*'fnd base rates'!F$113) +($K55*'fnd base rates'!F$114) +($M55*'fnd base rates'!F$116) +($N55*'fnd base rates'!F$117) +($O55*'fnd base rates'!F$118) +($P55*VLOOKUP($S55+12,rate_basefnd,6))) *$R55 -> 2697.584753 | Y55: =(($D55*'fnd base rates'!G$107) +($E55*'fnd base rates'!G$108) +($F55*'fnd base rates'!G$109) +($G55*'fnd base rates'!G$110) +($H55*'fnd base rates'!G$111) +($I55*'fnd base rates'!G$112) +($J55*'fnd base rates'!G$113) +($K55*'fnd base rates'!G$114) +($M55*'fnd base rates'!G$116) +($N55*'fnd base rates'!G$117) +($O55*'fnd base rates'!G$118) +($P55*VLOOKUP($S55+12,rate_basefnd,7))) *$R55 -> 604.940218 | Z55: =(($D55*'fnd base rates'!H$107) +($E55*'fnd base rates'!H$108) +($F55*'fnd base rates'!H$109) +($G55*'fnd base rates'!H$110) +($H55*'fnd base rates'!H$111) +($I55*'fnd base rates'!H$112) +($J55*'fnd base rates'!H$113) +($K55*'fnd base rates'!H$114) +($M55*'fnd base rates'!H$116) +($N55*'fnd base rates'!H$117) +($O55*'fnd base rates'!H$118) +($P55*VLOOKUP($S55+12,rate_basefnd,8))) -> 1788.88121 | AA55: =(($D55*'fnd base rates'!I$107) +($E55*'fnd base rates'!I$108) +($F55*'fnd base rates'!I$109) +($G55*'fnd base rates'!I$110) +($H55*'fnd base rates'!I$111) +($I55*'fnd base rates'!I$112) +($J55*'fnd base rates'!I$113) +($K55*'fnd base rates'!I$114) +($M55*'fnd base rates'!I$116) +($N55*'fnd base rates'!I$117) +($O55*'fnd base rates'!I$118) +($P55*VLOOKUP($S55+12,rate_basefnd,9))) *$R55 -> 1154.46 | AB55: =(($D55*'fnd base rates'!J$107) +($E55*'fnd base rates'!J$108) +($F55*'fnd base rates'!J$109) +($G55*'fnd base rates'!J$110) +($H55*'fnd base rates'!J$111) +($I55*'fnd base rates'!J$112) +($J55*'fnd base rates'!J$113) +($K55*'fnd base rates'!J$114) +($M55*'fnd base rates'!J$116) +($N55*'fnd base rates'!J$117) +($O55*'fnd base rates'!J$118) +($P55*VLOOKUP($S55+12,rate_basefnd,10))) *$R55 -> 1589.07 | AC55: =(($D55*'fnd base rates'!K$107) +($E55*'fnd base rates'!K$108) +($F55*'fnd base rates'!K$109) +($G55*'fnd base rates'!K$110) +($H55*'fnd base rates'!K$111) +($I55*'fnd base rates'!K$112) +($J55*'fnd base rates'!K$113) +($K55*'fnd base rates'!K$114) +($M55*'fnd base rates'!K$116) +($N55*'fnd base rates'!K$117) +($O55*'fnd base rates'!K$118) +($P55*VLOOKUP($S55+12,rate_basefnd,11))) *$R55 -> 3309.811564 | AD55: =(($D55*'fnd base rates'!L$107) +($E55*'fnd base rates'!L$108) +($F55*'fnd base rates'!L$109) +($G55*'fnd base rates'!L$110) +($H55*'fnd base rates'!L$111) +($I55*'fnd base rates'!L$112) +($J55*'fnd base rates'!L$113) +($K55*'fnd base rates'!L$114) +($M55*'fnd base rates'!L$116) +($N55*'fnd base rates'!L$117) +($O55*'fnd base rates'!L$118) +($P55*VLOOKUP($S55+12,rate_basefnd,12))) -> 4005.004263 | AE55: =(($D55*'fnd base rates'!M$107) +($E55*'fnd base rates'!M$108) +($F55*'fnd base rates'!M$109) +($G55*'fnd base rates'!M$110) +($H55*'fnd base rates'!M$111) +($I55*'fnd base rates'!M$112) +($J55*'fnd base rates'!M$113) +($K55*'fnd base rates'!M$114) +($M55*'fnd base rates'!M$116) +($N55*'fnd base rates'!M$117) +($O55*'fnd base rates'!M$118) +($P55*VLOOKUP($S55+12,rate_basefnd,13))) -> 0 | AF55: 33061.79187 | AH55: 414603098 | AI55: 414 | AJ55: 603 | AK55: 098 | AL55: 1 | AM55: 3 | AN55: 33061.79187 | AO55: 11021 | AP55: 0 | AQ55: 11021 | AW55: 11109 | AX55: 12 | AY55: 11121 | AZ55: -134 | BA55: 10987 | BB55: 34 | BC55: 11021
A56: 414 | B56: 414603152 | C56: BERKSHIRE ARTS AND TECHNOLOGY | D56: ='fnd enro'!D56 -> 0 | E56: ='fnd enro'!E56 -> 0 | F56: ='fnd enro'!F56 -> 0 | G56: ='fnd enro'!G56 -> 0 | H56: ='fnd enro'!H56 -> 0 | I56: ='fnd enro'!I56 -> 1 | J56: ='fnd enro'!J56 -> 0 | K56: ='fnd enro'!K56 -> 0.0379 | L56: ='fnd enro'!L56 -> 0 | M56: ='fnd enro'!M56+'fnd enro'!N56 -> 0 | N56: ='fnd enro'!O56 -> 0 | O56: ='fnd enro'!P56 -> 0 | P56: ='fnd enro'!Q56 -> 0 | Q56: ='fnd enro'!S56 -> 1 | R56: 1 | S56: =VALUE('fnd enro'!R56) -> 4 | U56: =(($D56*'fnd base rates'!C$107) +($E56*'fnd base rates'!C$108) +($F56*'fnd base rates'!C$109) +($G56*'fnd base rates'!C$110) +($H56*'fnd base rates'!C$111) +($I56*'fnd base rates'!C$112) +($J56*'fnd base rates'!C$113) +($K56*'fnd base rates'!C$114) +($M56*'fnd base rates'!C$116) +($N56*'fnd base rates'!C$117) +($O56*'fnd base rates'!C$118) +($P56*VLOOKUP($S56+12,rate_basefnd,3))) *$R56 -> 504.288899 | V56: =(($D56*'fnd base rates'!D$107) +($E56*'fnd base rates'!D$108) +($F56*'fnd base rates'!D$109) +($G56*'fnd base rates'!D$110) +($H56*'fnd base rates'!D$111) +($I56*'fnd base rates'!D$112) +($J56*'fnd base rates'!D$113) +($K56*'fnd base rates'!D$114) +($M56*'fnd base rates'!D$116) +($N56*'fnd base rates'!D$117) +($O56*'fnd base rates'!D$118) +($P56*VLOOKUP($S56+12,rate_basefnd,4))) *$R56 -> 721.95 | W56: =(($D56*'fnd base rates'!E$107) +($E56*'fnd base rates'!E$108) +($F56*'fnd base rates'!E$109) +($G56*'fnd base rates'!E$110) +($H56*'fnd base rates'!E$111) +($I56*'fnd base rates'!E$112) +($J56*'fnd base rates'!E$113) +($K56*'fnd base rates'!E$114) +($M56*'fnd base rates'!E$116) +($N56*'fnd base rates'!E$117) +($O56*'fnd base rates'!E$118) +($P56*VLOOKUP($S56+12,rate_basefnd,5))) *$R56 -> 4628.947723 | X56: =(($D56*'fnd base rates'!F$107) +($E56*'fnd base rates'!F$108) +($F56*'fnd base rates'!F$109) +($G56*'fnd base rates'!F$110) +($H56*'fnd base rates'!F$111) +($I56*'fnd base rates'!F$112) +($J56*'fnd base rates'!F$113) +($K56*'fnd base rates'!F$114) +($M56*'fnd base rates'!F$116) +($N56*'fnd base rates'!F$117) +($O56*'fnd base rates'!F$118) +($P56*VLOOKUP($S56+12,rate_basefnd,6))) *$R56 -> 830.948251 | Y56: =(($D56*'fnd base rates'!G$107) +($E56*'fnd base rates'!G$108) +($F56*'fnd base rates'!G$109) +($G56*'fnd base rates'!G$110) +($H56*'fnd base rates'!G$111) +($I56*'fnd base rates'!G$112) +($J56*'fnd base rates'!G$113) +($K56*'fnd base rates'!G$114) +($M56*'fnd base rates'!G$116) +($N56*'fnd base rates'!G$117) +($O56*'fnd base rates'!G$118) +($P56*VLOOKUP($S56+12,rate_basefnd,7))) *$R56 -> 154.343406 | Z56: =(($D56*'fnd base rates'!H$107) +($E56*'fnd base rates'!H$108) +($F56*'fnd base rates'!H$109) +($G56*'fnd base rates'!H$110) +($H56*'fnd base rates'!H$111) +($I56*'fnd base rates'!H$112) +($J56*'fnd base rates'!H$113) +($K56*'fnd base rates'!H$114) +($M56*'fnd base rates'!H$116) +($N56*'fnd base rates'!H$117) +($O56*'fnd base rates'!H$118) +($P56*VLOOKUP($S56+12,rate_basefnd,8))) -> 781.13707 | AA56: =(($D56*'fnd base rates'!I$107) +($E56*'fnd base rates'!I$108) +($F56*'fnd base rates'!I$109) +($G56*'fnd base rates'!I$110) +($H56*'fnd base rates'!I$111) +($I56*'fnd base rates'!I$112) +($J56*'fnd base rates'!I$113) +($K56*'fnd base rates'!I$114) +($M56*'fnd base rates'!I$116) +($N56*'fnd base rates'!I$117) +($O56*'fnd base rates'!I$118) +($P56*VLOOKUP($S56+12,rate_basefnd,9))) *$R56 -> 401.93 | AB56: =(($D56*'fnd base rates'!J$107) +($E56*'fnd base rates'!J$108) +($F56*'fnd base rates'!J$109) +($G56*'fnd base rates'!J$110) +($H56*'fnd base rates'!J$111) +($I56*'fnd base rates'!J$112) +($J56*'fnd base rates'!J$113) +($K56*'fnd base rates'!J$114) +($M56*'fnd base rates'!J$116) +($N56*'fnd base rates'!J$117) +($O56*'fnd base rates'!J$118) +($P56*VLOOKUP($S56+12,rate_basefnd,10))) *$R56 -> 541.41 | AC56: =(($D56*'fnd base rates'!K$107) +($E56*'fnd base rates'!K$108) +($F56*'fnd base rates'!K$109) +($G56*'fnd base rates'!K$110) +($H56*'fnd base rates'!K$111) +($I56*'fnd base rates'!K$112) +($J56*'fnd base rates'!K$113) +($K56*'fnd base rates'!K$114) +($M56*'fnd base rates'!K$116) +($N56*'fnd base rates'!K$117) +($O56*'fnd base rates'!K$118) +($P56*VLOOKUP($S56+12,rate_basefnd,11))) *$R56 -> 1083.077188 | AD56: =(($D56*'fnd base rates'!L$107) +($E56*'fnd base rates'!L$108) +($F56*'fnd base rates'!L$109) +($G56*'fnd base rates'!L$110) +($H56*'fnd base rates'!L$111) +($I56*'fnd base rates'!L$112) +($J56*'fnd base rates'!L$113) +($K56*'fnd base rates'!L$114) +($M56*'fnd base rates'!L$116) +($N56*'fnd base rates'!L$117) +($O56*'fnd base rates'!L$118) +($P56*VLOOKUP($S56+12,rate_basefnd,12))) -> 1117.561421 | AE56: =(($D56*'fnd base rates'!M$107) +($E56*'fnd base rates'!M$108) +($F56*'fnd base rates'!M$109) +($G56*'fnd base rates'!M$110) +($H56*'fnd base rates'!M$111) +($I56*'fnd base rates'!M$112) +($J56*'fnd base rates'!M$113) +($K56*'fnd base rates'!M$114) +($M56*'fnd base rates'!M$116) +($N56*'fnd base rates'!M$117) +($O56*'fnd base rates'!M$118) +($P56*VLOOKUP($S56+12,rate_basefnd,13))) -> 0 | AF56: 10765.59396 | AH56: 414603152 | AI56: 414 | AJ56: 603 | AK56: 152 | AL56: 1 | AM56: 1 | AN56: 10765.59396 | AO56: 10766 | AP56: 0 | AQ56: 10766 | AW56: 10835 | AX56: 0 | AY56: 10835 | AZ56: -69 | BA56: 10766 | BB56: 0 | BC56: 10766
A57: 414 | B57: 414603209 | C57: BERKSHIRE ARTS AND TECHNOLOGY | D57: ='fnd enro'!D57 -> 0 | E57: ='fnd enro'!E57 -> 0 | F57: ='fnd enro'!F57 -> 0 | G57: ='fnd enro'!G57 -> 0 | H57: ='fnd enro'!H57 -> 40 | I57: ='fnd enro'!I57 -> 33 | J57: ='fnd enro'!J57 -> 0 | K57: ='fnd enro'!K57 -> 2.7667 | L57: ='fnd enro'!L57 -> 0 | M57: ='fnd enro'!M57+'fnd enro'!N57 -> 0 | N57: ='fnd enro'!O57 -> 0 | O57: ='fnd enro'!P57 -> 0 | P57: ='fnd enro'!Q57 -> 39 | Q57: ='fnd enro'!S57 -> 73 | R57: 1 | S57: =VALUE('fnd enro'!R57) -> 10 | U57: =(($D57*'fnd base rates'!C$107) +($E57*'fnd base rates'!C$108) +($F57*'fnd base rates'!C$109) +($G57*'fnd base rates'!C$110) +($H57*'fnd base rates'!C$111) +($I57*'fnd base rates'!C$112) +($J57*'fnd base rates'!C$113) +($K57*'fnd base rates'!C$114) +($M57*'fnd base rates'!C$116) +($N57*'fnd base rates'!C$117) +($O57*'fnd base rates'!C$118) +($P57*VLOOKUP($S57+12,rate_basefnd,3))) *$R57 -> 39291.14963 | V57: =(($D57*'fnd base rates'!D$107) +($E57*'fnd base rates'!D$108) +($F57*'fnd base rates'!D$109) +($G57*'fnd base rates'!D$110) +($H57*'fnd base rates'!D$111) +($I57*'fnd base rates'!D$112) +($J57*'fnd base rates'!D$113) +($K57*'fnd base rates'!D$114) +($M57*'fnd base rates'!D$116) +($N57*'fnd base rates'!D$117) +($O57*'fnd base rates'!D$118) +($P57*VLOOKUP($S57+12,rate_basefnd,4))) *$R57 -> 64443.69 | W57: =(($D57*'fnd base rates'!E$107) +($E57*'fnd base rates'!E$108) +($F57*'fnd base rates'!E$109) +($G57*'fnd base rates'!E$110) +($H57*'fnd base rates'!E$111) +($I57*'fnd base rates'!E$112) +($J57*'fnd base rates'!E$113) +($K57*'fnd base rates'!E$114) +($M57*'fnd base rates'!E$116) +($N57*'fnd base rates'!E$117) +($O57*'fnd base rates'!E$118) +($P57*VLOOKUP($S57+12,rate_basefnd,5))) *$R57 -> 397699.0238 | X57: =(($D57*'fnd base rates'!F$107) +($E57*'fnd base rates'!F$108) +($F57*'fnd base rates'!F$109) +($G57*'fnd base rates'!F$110) +($H57*'fnd base rates'!F$111) +($I57*'fnd base rates'!F$112) +($J57*'fnd base rates'!F$113) +($K57*'fnd base rates'!F$114) +($M57*'fnd base rates'!F$116) +($N57*'fnd base rates'!F$117) +($O57*'fnd base rates'!F$118) +($P57*VLOOKUP($S57+12,rate_basefnd,6))) *$R57 -> 64754.02232 | Y57: =(($D57*'fnd base rates'!G$107) +($E57*'fnd base rates'!G$108) +($F57*'fnd base rates'!G$109) +($G57*'fnd base rates'!G$110) +($H57*'fnd base rates'!G$111) +($I57*'fnd base rates'!G$112) +($J57*'fnd base rates'!G$113) +($K57*'fnd base rates'!G$114) +($M57*'fnd base rates'!G$116) +($N57*'fnd base rates'!G$117) +($O57*'fnd base rates'!G$118) +($P57*VLOOKUP($S57+12,rate_basefnd,7))) *$R57 -> 17000.08864 | Z57: =(($D57*'fnd base rates'!H$107) +($E57*'fnd base rates'!H$108) +($F57*'fnd base rates'!H$109) +($G57*'fnd base rates'!H$110) +($H57*'fnd base rates'!H$111) +($I57*'fnd base rates'!H$112) +($J57*'fnd base rates'!H$113) +($K57*'fnd base rates'!H$114) +($M57*'fnd base rates'!H$116) +($N57*'fnd base rates'!H$117) +($O57*'fnd base rates'!H$118) +($P57*VLOOKUP($S57+12,rate_basefnd,8))) -> 46376.34611 | AA57: =(($D57*'fnd base rates'!I$107) +($E57*'fnd base rates'!I$108) +($F57*'fnd base rates'!I$109) +($G57*'fnd base rates'!I$110) +($H57*'fnd base rates'!I$111) +($I57*'fnd base rates'!I$112) +($J57*'fnd base rates'!I$113) +($K57*'fnd base rates'!I$114) +($M57*'fnd base rates'!I$116) +($N57*'fnd base rates'!I$117) +($O57*'fnd base rates'!I$118) +($P57*VLOOKUP($S57+12,rate_basefnd,9))) *$R57 -> 30730.68 | AB57: =(($D57*'fnd base rates'!J$107) +($E57*'fnd base rates'!J$108) +($F57*'fnd base rates'!J$109) +($G57*'fnd base rates'!J$110) +($H57*'fnd base rates'!J$111) +($I57*'fnd base rates'!J$112) +($J57*'fnd base rates'!J$113) +($K57*'fnd base rates'!J$114) +($M57*'fnd base rates'!J$116) +($N57*'fnd base rates'!J$117) +($O57*'fnd base rates'!J$118) +($P57*VLOOKUP($S57+12,rate_basefnd,10))) *$R57 -> 51375.73 | AC57: =(($D57*'fnd base rates'!K$107) +($E57*'fnd base rates'!K$108) +($F57*'fnd base rates'!K$109) +($G57*'fnd base rates'!K$110) +($H57*'fnd base rates'!K$111) +($I57*'fnd base rates'!K$112) +($J57*'fnd base rates'!K$113) +($K57*'fnd base rates'!K$114) +($M57*'fnd base rates'!K$116) +($N57*'fnd base rates'!K$117) +($O57*'fnd base rates'!K$118) +($P57*VLOOKUP($S57+12,rate_basefnd,11))) *$R57 -> 80276.23472 | AD57: =(($D57*'fnd base rates'!L$107) +($E57*'fnd base rates'!L$108) +($F57*'fnd base rates'!L$109) +($G57*'fnd base rates'!L$110) +($H57*'fnd base rates'!L$111) +($I57*'fnd base rates'!L$112) +($J57*'fnd base rates'!L$113) +($K57*'fnd base rates'!L$114) +($M57*'fnd base rates'!L$116) +($N57*'fnd base rates'!L$117) +($O57*'fnd base rates'!L$118) +($P57*VLOOKUP($S57+12,rate_basefnd,12))) -> 104281.3737 | AE57: =(($D57*'fnd base rates'!M$107) +($E57*'fnd base rates'!M$108) +($F57*'fnd base rates'!M$109) +($G57*'fnd base rates'!M$110) +($H57*'fnd base rates'!M$111) +($I57*'fnd base rates'!M$112) +($J57*'fnd base rates'!M$113) +($K57*'fnd base rates'!M$114) +($M57*'fnd base rates'!M$116) +($N57*'fnd base rates'!M$117) +($O57*'fnd base rates'!M$118) +($P57*VLOOKUP($S57+12,rate_basefnd,13))) -> 0 | AF57: 896228.3389 | AH57: 414603209 | AI57: 414 | AJ57: 603 | AK57: 209 | AL57: 1 | AM57: 73 | AN57: 896228.3389 | AO57: 12277 | AP57: 0 | AQ57: 12277 | AW57: 13081 | AX57: 52 | AY57: 13133 | AZ57: -856 | BA57: 12277 | BB57: 0 | BC57: 12277
A58: 414 | B58: 414603236 | C58: BERKSHIRE ARTS AND TECHNOLOGY | D58: ='fnd enro'!D58 -> 0 | E58: ='fnd enro'!E58 -> 0 | F58: ='fnd enro'!F58 -> 0 | G58: ='fnd enro'!G58 -> 0 | H58: ='fnd enro'!H58 -> 100 | I58: ='fnd enro'!I58 -> 82 | J58: ='fnd enro'!J58 -> 0 | K58: ='fnd enro'!K58 -> 6.8978 | L58: ='fnd enro'!L58 -> 0 | M58: ='fnd enro'!M58+'fnd enro'!N58 -> 0 | N58: ='fnd enro'!O58 -> 0 | O58: ='fnd enro'!P58 -> 2 | P58: ='fnd enro'!Q58 -> 99 | Q58: ='fnd enro'!S58 -> 182 | R58: 1 | S58: =VALUE('fnd enro'!R58) -> 10 | U58: =(($D58*'fnd base rates'!C$107) +($E58*'fnd base rates'!C$108) +($F58*'fnd base rates'!C$109) +($G58*'fnd base rates'!C$110) +($H58*'fnd base rates'!C$111) +($I58*'fnd base rates'!C$112) +($J58*'fnd base rates'!C$113) +($K58*'fnd base rates'!C$114) +($M58*'fnd base rates'!C$116) +($N58*'fnd base rates'!C$117) +($O58*'fnd base rates'!C$118) +($P58*VLOOKUP($S58+12,rate_basefnd,3))) *$R58 -> 98221.13962 | V58: =(($D58*'fnd base rates'!D$107) +($E58*'fnd base rates'!D$108) +($F58*'fnd base rates'!D$109) +($G58*'fnd base rates'!D$110) +($H58*'fnd base rates'!D$111) +($I58*'fnd base rates'!D$112) +($J58*'fnd base rates'!D$113) +($K58*'fnd base rates'!D$114) +($M58*'fnd base rates'!D$116) +($N58*'fnd base rates'!D$117) +($O58*'fnd base rates'!D$118) +($P58*VLOOKUP($S58+12,rate_basefnd,4))) *$R58 -> 161462.54 | W58: =(($D58*'fnd base rates'!E$107) +($E58*'fnd base rates'!E$108) +($F58*'fnd base rates'!E$109) +($G58*'fnd base rates'!E$110) +($H58*'fnd base rates'!E$111) +($I58*'fnd base rates'!E$112) +($J58*'fnd base rates'!E$113) +($K58*'fnd base rates'!E$114) +($M58*'fnd base rates'!E$116) +($N58*'fnd base rates'!E$117) +($O58*'fnd base rates'!E$118) +($P58*VLOOKUP($S58+12,rate_basefnd,5))) *$R58 -> 998180.3656 | X58: =(($D58*'fnd base rates'!F$107) +($E58*'fnd base rates'!F$108) +($F58*'fnd base rates'!F$109) +($G58*'fnd base rates'!F$110) +($H58*'fnd base rates'!F$111) +($I58*'fnd base rates'!F$112) +($J58*'fnd base rates'!F$113) +($K58*'fnd base rates'!F$114) +($M58*'fnd base rates'!F$116) +($N58*'fnd base rates'!F$117) +($O58*'fnd base rates'!F$118) +($P58*VLOOKUP($S58+12,rate_basefnd,6))) *$R58 -> 161732.2817 | Y58: =(($D58*'fnd base rates'!G$107) +($E58*'fnd base rates'!G$108) +($F58*'fnd base rates'!G$109) +($G58*'fnd base rates'!G$110) +($H58*'fnd base rates'!G$111) +($I58*'fnd base rates'!G$112) +($J58*'fnd base rates'!G$113) +($K58*'fnd base rates'!G$114) +($M58*'fnd base rates'!G$116) +($N58*'fnd base rates'!G$117) +($O58*'fnd base rates'!G$118) +($P58*VLOOKUP($S58+12,rate_basefnd,7))) *$R58 -> 42711.95989 | Z58: =(($D58*'fnd base rates'!H$107) +($E58*'fnd base rates'!H$108) +($F58*'fnd base rates'!H$109) +($G58*'fnd base rates'!H$110) +($H58*'fnd base rates'!H$111) +($I58*'fnd base rates'!H$112) +($J58*'fnd base rates'!H$113) +($K58*'fnd base rates'!H$114) +($M58*'fnd base rates'!H$116) +($N58*'fnd base rates'!H$117) +($O58*'fnd base rates'!H$118) +($P58*VLOOKUP($S58+12,rate_basefnd,8))) -> 115770.7067 | AA58: =(($D58*'fnd base rates'!I$107) +($E58*'fnd base rates'!I$108) +($F58*'fnd base rates'!I$109) +($G58*'fnd base rates'!I$110) +($H58*'fnd base rates'!I$111) +($I58*'fnd base rates'!I$112) +($J58*'fnd base rates'!I$113) +($K58*'fnd base rates'!I$114) +($M58*'fnd base rates'!I$116) +($N58*'fnd base rates'!I$117) +($O58*'fnd base rates'!I$118) +($P58*VLOOKUP($S58+12,rate_basefnd,9))) *$R58 -> 76916.83 | AB58: =(($D58*'fnd base rates'!J$107) +($E58*'fnd base rates'!J$108) +($F58*'fnd base rates'!J$109) +($G58*'fnd base rates'!J$110) +($H58*'fnd base rates'!J$111) +($I58*'fnd base rates'!J$112) +($J58*'fnd base rates'!J$113) +($K58*'fnd base rates'!J$114) +($M58*'fnd base rates'!J$116) +($N58*'fnd base rates'!J$117) +($O58*'fnd base rates'!J$118) +($P58*VLOOKUP($S58+12,rate_basefnd,10))) *$R58 -> 129133.76 | AC58: =(($D58*'fnd base rates'!K$107) +($E58*'fnd base rates'!K$108) +($F58*'fnd base rates'!K$109) +($G58*'fnd base rates'!K$110) +($H58*'fnd base rates'!K$111) +($I58*'fnd base rates'!K$112) +($J58*'fnd base rates'!K$113) +($K58*'fnd base rates'!K$114) +($M58*'fnd base rates'!K$116) +($N58*'fnd base rates'!K$117) +($O58*'fnd base rates'!K$118) +($P58*VLOOKUP($S58+12,rate_basefnd,11))) *$R58 -> 200599.3682 | AD58: =(($D58*'fnd base rates'!L$107) +($E58*'fnd base rates'!L$108) +($F58*'fnd base rates'!L$109) +($G58*'fnd base rates'!L$110) +($H58*'fnd base rates'!L$111) +($I58*'fnd base rates'!L$112) +($J58*'fnd base rates'!L$113) +($K58*'fnd base rates'!L$114) +($M58*'fnd base rates'!L$116) +($N58*'fnd base rates'!L$117) +($O58*'fnd base rates'!L$118) +($P58*VLOOKUP($S58+12,rate_basefnd,12))) -> 261270.5686 | AE58: =(($D58*'fnd base rates'!M$107) +($E58*'fnd base rates'!M$108) +($F58*'fnd base rates'!M$109) +($G58*'fnd base rates'!M$110) +($H58*'fnd base rates'!M$111) +($I58*'fnd base rates'!M$112) +($J58*'fnd base rates'!M$113) +($K58*'fnd base rates'!M$114) +($M58*'fnd base rates'!M$116) +($N58*'fnd base rates'!M$117) +($O58*'fnd base rates'!M$118) +($P58*VLOOKUP($S58+12,rate_basefnd,13))) -> 0 | AF58: 2245999.52 | AH58: 414603236 | AI58: 414 | AJ58: 603 | AK58: 236 | AL58: 1 | AM58: 182 | AN58: 2245999.52 | AO58: 12341 | AP58: 0 | AQ58: 12341 | AW58: 12542 | AX58: 42 | AY58: 12584 | AZ58: -243 | BA58: 12341 | BB58: 0 | BC58: 12341
A59: 414 | B59: 414603263 | C59: BERKSHIRE ARTS AND TECHNOLOGY | D59: ='fnd enro'!D59 -> 0 | E59: ='fnd enro'!E59 -> 0 | F59: ='fnd enro'!F59 -> 0 | G59: ='fnd enro'!G59 -> 0 | H59: ='fnd enro'!H59 -> 1 | I59: ='fnd enro'!I59 -> 2 | J59: ='fnd enro'!J59 -> 0 | K59: ='fnd enro'!K59 -> 0.1137 | L59: ='fnd enro'!L59 -> 0 | M59: ='fnd enro'!M59+'fnd enro'!N59 -> 0 | N59: ='fnd enro'!O59 -> 0 | O59: ='fnd enro'!P59 -> 0 | P59: ='fnd enro'!Q59 -> 0 | Q59: ='fnd enro'!S59 -> 3 | R59: 1 | S59: =VALUE('fnd enro'!R59) -> 10 | U59: =(($D59*'fnd base rates'!C$107) +($E59*'fnd base rates'!C$108) +($F59*'fnd base rates'!C$109) +($G59*'fnd base rates'!C$110) +($H59*'fnd base rates'!C$111) +($I59*'fnd base rates'!C$112) +($J59*'fnd base rates'!C$113) +($K59*'fnd base rates'!C$114) +($M59*'fnd base rates'!C$116) +($N59*'fnd base rates'!C$117) +($O59*'fnd base rates'!C$118) +($P59*VLOOKUP($S59+12,rate_basefnd,3))) *$R59 -> 1512.866697 | V59: =(($D59*'fnd base rates'!D$107) +($E59*'fnd base rates'!D$108) +($F59*'fnd base rates'!D$109) +($G59*'fnd base rates'!D$110) +($H59*'fnd base rates'!D$111) +($I59*'fnd base rates'!D$112) +($J59*'fnd base rates'!D$113) +($K59*'fnd base rates'!D$114) +($M59*'fnd base rates'!D$116) +($N59*'fnd base rates'!D$117) +($O59*'fnd base rates'!D$118) +($P59*VLOOKUP($S59+12,rate_basefnd,4))) *$R59 -> 2165.85 | W59: =(($D59*'fnd base rates'!E$107) +($E59*'fnd base rates'!E$108) +($F59*'fnd base rates'!E$109) +($G59*'fnd base rates'!E$110) +($H59*'fnd base rates'!E$111) +($I59*'fnd base rates'!E$112) +($J59*'fnd base rates'!E$113) +($K59*'fnd base rates'!E$114) +($M59*'fnd base rates'!E$116) +($N59*'fnd base rates'!E$117) +($O59*'fnd base rates'!E$118) +($P59*VLOOKUP($S59+12,rate_basefnd,5))) *$R59 -> 12516.00317 | X59: =(($D59*'fnd base rates'!F$107) +($E59*'fnd base rates'!F$108) +($F59*'fnd base rates'!F$109) +($G59*'fnd base rates'!F$110) +($H59*'fnd base rates'!F$111) +($I59*'fnd base rates'!F$112) +($J59*'fnd base rates'!F$113) +($K59*'fnd base rates'!F$114) +($M59*'fnd base rates'!F$116) +($N59*'fnd base rates'!F$117) +($O59*'fnd base rates'!F$118) +($P59*VLOOKUP($S59+12,rate_basefnd,6))) *$R59 -> 2595.214753 | Y59: =(($D59*'fnd base rates'!G$107) +($E59*'fnd base rates'!G$108) +($F59*'fnd base rates'!G$109) +($G59*'fnd base rates'!G$110) +($H59*'fnd base rates'!G$111) +($I59*'fnd base rates'!G$112) +($J59*'fnd base rates'!G$113) +($K59*'fnd base rates'!G$114) +($M59*'fnd base rates'!G$116) +($N59*'fnd base rates'!G$117) +($O59*'fnd base rates'!G$118) +($P59*VLOOKUP($S59+12,rate_basefnd,7))) *$R59 -> 467.340218 | Z59: =(($D59*'fnd base rates'!H$107) +($E59*'fnd base rates'!H$108) +($F59*'fnd base rates'!H$109) +($G59*'fnd base rates'!H$110) +($H59*'fnd base rates'!H$111) +($I59*'fnd base rates'!H$112) +($J59*'fnd base rates'!H$113) +($K59*'fnd base rates'!H$114) +($M59*'fnd base rates'!H$116) +($N59*'fnd base rates'!H$117) +($O59*'fnd base rates'!H$118) +($P59*VLOOKUP($S59+12,rate_basefnd,8))) -> 2055.93121 | AA59: =(($D59*'fnd base rates'!I$107) +($E59*'fnd base rates'!I$108) +($F59*'fnd base rates'!I$109) +($G59*'fnd base rates'!I$110) +($H59*'fnd base rates'!I$111) +($I59*'fnd base rates'!I$112) +($J59*'fnd base rates'!I$113) +($K59*'fnd base rates'!I$114) +($M59*'fnd base rates'!I$116) +($N59*'fnd base rates'!I$117) +($O59*'fnd base rates'!I$118) +($P59*VLOOKUP($S59+12,rate_basefnd,9))) *$R59 -> 1124.5 | AB59: =(($D59*'fnd base rates'!J$107) +($E59*'fnd base rates'!J$108) +($F59*'fnd base rates'!J$109) +($G59*'fnd base rates'!J$110) +($H59*'fnd base rates'!J$111) +($I59*'fnd base rates'!J$112) +($J59*'fnd base rates'!J$113) +($K59*'fnd base rates'!J$114) +($M59*'fnd base rates'!J$116) +($N59*'fnd base rates'!J$117) +($O59*'fnd base rates'!J$118) +($P59*VLOOKUP($S59+12,rate_basefnd,10))) *$R59 -> 1317.61 | AC59: =(($D59*'fnd base rates'!K$107) +($E59*'fnd base rates'!K$108) +($F59*'fnd base rates'!K$109) +($G59*'fnd base rates'!K$110) +($H59*'fnd base rates'!K$111) +($I59*'fnd base rates'!K$112) +($J59*'fnd base rates'!K$113) +($K59*'fnd base rates'!K$114) +($M59*'fnd base rates'!K$116) +($N59*'fnd base rates'!K$117) +($O59*'fnd base rates'!K$118) +($P59*VLOOKUP($S59+12,rate_basefnd,11))) *$R59 -> 3279.521564 | AD59: =(($D59*'fnd base rates'!L$107) +($E59*'fnd base rates'!L$108) +($F59*'fnd base rates'!L$109) +($G59*'fnd base rates'!L$110) +($H59*'fnd base rates'!L$111) +($I59*'fnd base rates'!L$112) +($J59*'fnd base rates'!L$113) +($K59*'fnd base rates'!L$114) +($M59*'fnd base rates'!L$116) +($N59*'fnd base rates'!L$117) +($O59*'fnd base rates'!L$118) +($P59*VLOOKUP($S59+12,rate_basefnd,12))) -> 3456.644263 | AE59: =(($D59*'fnd base rates'!M$107) +($E59*'fnd base rates'!M$108) +($F59*'fnd base rates'!M$109) +($G59*'fnd base rates'!M$110) +($H59*'fnd base rates'!M$111) +($I59*'fnd base rates'!M$112) +($J59*'fnd base rates'!M$113) +($K59*'fnd base rates'!M$114) +($M59*'fnd base rates'!M$116) +($N59*'fnd base rates'!M$117) +($O59*'fnd base rates'!M$118) +($P59*VLOOKUP($S59+12,rate_basefnd,13))) -> 0 | AF59: 30491.48187 | AH59: 414603263 | AI59: 414 | AJ59: 603 | AK59: 263 | AL59: 1 | AM59: 3 | AN59: 30491.48187 | AO59: 10164 | AP59: 0 | AQ59: 10164 | AW59: 13378 | AX59: 50 | AY59: 13428 | AZ59: -3264 | BA59: 10164 | BB59: 0 | BC59: 10164
